Workbook

Sheet CV Rotina <2A - procedência
E1: AO NASCER | M1: MENOR DE 1 ANO | Y1: 1 ANO | AF1: MENOR DE 1 ANO
A2: Regional | B2: Município | C2: ¹População < 1 ano e 1 ano anual | D2: ²População < 1 ano e 1 ano proporcional | E2: Doses Aplicadas HB ≤30 dias | F2: Cobertura Vacinal HB até 30 dias | G2: Doses Aplicadas HB ≤2 dias | H2: Cobertura Vacinal HB até 2 dias | I2: Doses Aplicadas HB ≤1 dia | J2: Cobertura Vacinal HB até 1 dia | K2: Doses Aplicadas BCG | L2: Cobertura Vacinal BCG | M2: Doses Aplicadas Pentavalente | N2: Cobertura Vacinal Pentavalente | O2: Doses Aplicadas Poliomielite | P2: Cobertura Vacinal Poliomielite | Q2: Doses Aplicadas Pneumo 10 | R2: Cobertura Vacinal Pneumo 10 | S2: Doses Aplicadas Rotavírus | T2: Cobertura Vacinal Rotavírus | U2: Doses Aplicadas Meningo C | V2: Cobertura Vacinal Meningo C | W2: Doses Aplicadas Febre Amarela | X2: Cobertura Vacinal Febre Amarela | Y2: Doses Aplicadas Hepatite A | Z2: Cobertura Vacinal Hepatite A | AA2: Doses Aplicadas de Tríplice Viral | AB2: Cobertura Vacinal Tríplice Viral | AC2: Doses Aplicadas Varicela | AD2: Cobertura Varicela | AF2: Doses Aplicadas COVID-19 | AG2: Cobertura Vacinal COVID-19 | AI2: VACINAS QUE ATINGIRAM A META DE CV | AJ2: HOMOGENEIDADE ENTRE AS 10 VACINAS | AK2: VACINAS DO PQA-VS QUE ATINGIRAM A META DE CV | AL2: HOMOGENEIDADE ENTRE AS VACINAS DO PQA-VS
A3: Metropolitana | B3: Afonso Cláudio | C3: 359 | D3: 332 | E3: 290 | F3: =E3/D3 -> 0.8734939759 | G3: 244 | H3: =G3/D3 -> 0.734939759 | I3: 196 | J3: =I3/D3 -> 0.5903614458 | K3: 295 | L3: =K3/D3 -> 0.8885542169 | M3: 321 | N3: =M3/D3 -> 0.9668674699 | O3: 318 | P3: =O3/D3 -> 0.9578313253 | Q3: 307 | R3: =Q3/D3 -> 0.9246987952 | S3: 311 | T3: =S3/D3 -> 0.936746988 | U3: 321 | V3: =U3/D3 -> 0.9668674699 | W3: 269 | X3: =W3/D3 -> 0.8102409639 | Y3: 319 | Z3: =Y3/D3 -> 0.9608433735 | AA3: 320 | AB3: =AA3/D3 -> 0.9638554217 | AC3: 345 | AD3: =AC3/D3 -> 1.039156627 | AF3: 1 | AG3: =AF3/D3 -> 0.003012048193 | AI3: =cálculos1!O3 -> 7 | AJ3: =AI3*0.1 -> 0.7 | AK3: =cálculos1!P3 -> 3 | AL3: =AK3*0.25 -> 0.75 | AN3: LEGENDA / HOMOGENEIDADE PQA-VS
A4: Norte | B4: Água Doce do Norte | C4: 145 | D4: 139 | E4: 37 | F4: =E4/D4 -> 0.2661870504 | G4: 1 | H4: =G4/D4 -> 0.007194244604 | I4: 0 | J4: =I4/D4 -> 0 | K4: 38 | L4: 0.273381295 | M4: 120 | N4: 0.8633093525 | O4: 118 | P4: 0.8489208633 | Q4: 104 | R4: 0.7482014388 | S4: 101 | T4: 0.726618705 | U4: 125 | V4: 0.8992805755 | W4: 121 | X4: 0.8705035971 | Y4: 137 | Z4: 0.9856115108 | AA4: 152 | AB4: 1.09352518 | AC4: 88 | AD4: 0.6330935252 | AF4: 1 | AG4: =AF4/D4 -> 0.007194244604 | AI4: =cálculos1!O4 -> 2 | AJ4: =AI4*0.1 -> 0.2 | AK4: =cálculos1!P4 -> 1 | AL4: =AK4*0.25 -> 0.25 | AN4: PERCENTUAL | AO4: Nº DE MUNICÍPIOS
A5: Central | B5: Águia Branca | C5: 165 | D5: 153 | E5: 63 | F5: 0.4117647059 | G5: 2 | H5: 0.01307189542 | I5: 0 | J5: 0 | K5: 72 | L5: 0.4705882353 | M5: 130 | N5: 0.8496732026 | O5: 131 | P5: 0.8562091503 | Q5: 128 | R5: 0.8366013072 | S5: 135 | T5: 0.8823529412 | U5: 132 | V5: 0.862745098 | W5: 113 | X5: 0.7385620915 | Y5: 140 | Z5: 0.9150326797 | AA5: 138 | AB5: 0.9019607843 | AC5: 150 | AD5: 0.9803921569 | AF5: 1 | AG5: 0.006535947712 | AI5: =cálculos1!O5 -> 1 | AJ5: 0.1 | AK5: =cálculos1!P5 -> 0 | AL5: 0 | AN5: 0 | AO5: =COUNTIF($AL$3:$AL$80,"=0") -> 17
A6: Sul | B6: Alegre | C6: 322 | D6: 292 | E6: 121 | F6: 0.4143835616 | G6: 18 | H6: 0.06164383562 | I6: 5 | J6: 0.01712328767 | K6: 124 | L6: 0.4246575342 | M6: 289 | N6: 0.9897260274 | O6: 279 | P6: 0.9554794521 | Q6: 292 | R6: 1 | S6: 294 | T6: 1.006849315 | U6: 313 | V6: 1.071917808 | W6: 254 | X6: 0.8698630137 | Y6: 314 | Z6: 1.075342466 | AA6: 305 | AB6: 1.044520548 | AC6: 333 | AD6: 1.140410959 | AF6: 16 | AG6: 0.05479452055 | AI6: =cálculos1!O6 -> 8 | AJ6: 0.8 | AK6: =cálculos1!P6 -> 4 | AL6: 1 | AN6: 0.25 | AO6: =COUNTIF($AL$3:$AL$80,"=0,25") -> 23
A7: Sul | B7: Alfredo Chaves | C7: 119 | D7: 104 | E7: 15 | F7: 0.1442307692 | G7: 2 | H7: 0.01923076923 | I7: 1 | J7: 0.009615384615 | K7: 46 | L7: 0.4423076923 | M7: 95 | N7: 0.9134615385 | O7: 92 | P7: 0.8846153846 | Q7: 74 | R7: 0.7115384615 | S7: 97 | T7: 0.9326923077 | U7: 84 | V7: 0.8076923077 | W7: 89 | X7: 0.8557692308 | Y7: 125 | Z7: 1.201923077 | AA7: 110 | AB7: 1.057692308 | AC7: 123 | AD7: 1.182692308 | AF7: 1 | AG7: 0.009615384615 | AI7: =cálculos1!O7 -> 4 | AJ7: 0.4 | AK7: =cálculos1!P7 -> 1 | AL7: 0.25 | AN7: 0.5 | AO7: =COUNTIF($AL$3:$AL$80,"=0,5") -> 9
A8: Central | B8: Alto Rio Novo | C8: 99 | D8: 92 | E8: 31 | F8: 0.3369565217 | G8: 2 | H8: 0.02173913043 | I8: 1 | J8: 0.01086956522 | K8: 35 | L8: 0.3804347826 | M8: 87 | N8: 0.9456521739 | O8: 87 | P8: 0.9456521739 | Q8: 92 | R8: 1 | S8: 98 | T8: 1.065217391 | U8: 92 | V8: 1 | W8: 83 | X8: 0.902173913 | Y8: 88 | Z8: 0.9565217391 | AA8: 90 | AB8: 0.9782608696 | AC8: 95 | AD8: 1.032608696 | AF8: 0 | AG8: 0 | AI8: =cálculos1!O8 -> 6 | AJ8: 0.6 | AK8: =cálculos1!P8 -> 2 | AL8: 0.5 | AN8: 0.75 | AO8: =COUNTIF($AL$3:$AL$80,"=0,75") -> 9
A9: Sul | B9: Anchieta | C9: 334 | D9: 308 | E9: 28 | F9: 0.09090909091 | G9: 2 | H9: 0.006493506494 | I9: 0 | J9: 0 | K9: 134 | L9: 0.4350649351 | M9: 316 | N9: 1.025974026 | O9: 316 | P9: 1.025974026 | Q9: 303 | R9: 0.9837662338 | S9: 326 | T9: 1.058441558 | U9: 308 | V9: 1 | W9: 277 | X9: 0.8993506494 | Y9: 324 | Z9: 1.051948052 | AA9: 354 | AB9: 1.149350649 | AC9: 325 | AD9: 1.055194805 | AF9: 22 | AG9: 0.07142857143 | AI9: =cálculos1!O9 -> 8 | AJ9: 0.8 | AK9: =cálculos1!P9 -> 4 | AL9: 1 | AN9: 1 | AO9: =COUNTIF($AL$3:$AL$80,"=1,0") -> 20
A10: Sul | B10: Apiacá | C10: 64 | D10: 57 | E10: 6 | F10: 0.1052631579 | G10: 0 | H10: 0 | I10: 0 | J10: 0 | K10: 52 | L10: 0.9122807018 | M10: 65 | N10: 1.140350877 | O10: 61 | P10: 1.070175439 | Q10: 68 | R10: 1.192982456 | S10: 66 | T10: 1.157894737 | U10: 72 | V10: 1.263157895 | W10: 51 | X10: 0.8947368421 | Y10: 66 | Z10: 1.157894737 | AA10: 63 | AB10: 1.105263158 | AC10: 71 | AD10: 1.245614035 | AF10: 0 | AG10: 0 | AI10: =cálculos1!O10 -> 9 | AJ10: 0.9 | AK10: =cálculos1!P10 -> 4 | AL10: 1
A11: Metropolitana | B11: Aracruz | C11: 1420 | D11: 1316 | E11: 1107 | F11: 0.8411854103 | G11: 708 | H11: 0.537993921 | I11: 446 | J11: 0.3389057751 | K11: 1132 | L11: 0.8601823708 | M11: 1149 | N11: 0.873100304 | O11: 1140 | P11: 0.8662613982 | Q11: 1139 | R11: 0.8655015198 | S11: 1234 | T11: 0.9376899696 | U11: 1156 | V11: 0.8784194529 | W11: 956 | X11: 0.726443769 | Y11: 1287 | Z11: 0.9779635258 | AA11: 1313 | AB11: 0.9977203647 | AC11: 1298 | AD11: 0.9863221884 | AF11: 58 | AG11: 0.04407294833 | AI11: =cálculos1!O11 -> 4 | AJ11: 0.4 | AK11: =cálculos1!P11 -> 1 | AL11: 0.25
A12: Sul | B12: Atilio Vivacqua | C12: 148 | D12: 131 | E12: 7 | F12: 0.0534351145 | G12: 0 | H12: 0 | I12: 0 | J12: 0 | K12: 13 | L12: 0.09923664122 | M12: 140 | N12: 1.06870229 | O12: 138 | P12: 1.053435115 | Q12: 140 | R12: 1.06870229 | S12: 142 | T12: 1.083969466 | U12: 149 | V12: 1.13740458 | W12: 128 | X12: 0.9770992366 | Y12: 134 | Z12: 1.022900763 | AA12: 145 | AB12: 1.106870229 | AC12: 130 | AD12: 0.9923664122 | AF12: 4 | AG12: 0.03053435115 | AI12: =cálculos1!O12 -> 9 | AJ12: 0.9 | AK12: =cálculos1!P12 -> 4 | AL12: 1 | AN12: LEGENDA / HOMOGENEIDADE 10 VACINAS
A13: Central | B13: Baixo Guandu | C13: 354 | D13: 324 | E13: 75 | F13: 0.2314814815 | G13: 7 | H13: 0.02160493827 | I13: 3 | J13: 0.009259259259 | K13: 155 | L13: 0.4783950617 | M13: 318 | N13: 0.9814814815 | O13: 318 | P13: 0.9814814815 | Q13: 338 | R13: 1.043209877 | S13: 328 | T13: 1.012345679 | U13: 329 | V13: 1.015432099 | W13: 272 | X13: 0.8395061728 | Y13: 354 | Z13: 1.092592593 | AA13: 339 | AB13: 1.046296296 | AC13: 342 | AD13: 1.055555556 | AF13: 0 | AG13: 0 | AI13: =cálculos1!O13 -> 8 | AJ13: 0.8 | AK13: =cálculos1!P13 -> 4 | AL13: 1 | AN13: PERCENTUAL | AO13: Nº DE MUNICÍPIOS
A14: Norte | B14: Barra de São Francisco | C14: 622 | D14: 570 | E14: 383 | F14: 0.6719298246 | G14: 212 | H14: 0.3719298246 | I14: 185 | J14: 0.3245614035 | K14: 402 | L14: 0.7052631579 | M14: 488 | N14: 0.8561403509 | O14: 477 | P14: 0.8368421053 | Q14: 488 | R14: 0.8561403509 | S14: 502 | T14: 0.8807017544 | U14: 486 | V14: 0.8526315789 | W14: 402 | X14: 0.7052631579 | Y14: 457 | Z14: 0.801754386 | AA14: 512 | AB14: 0.898245614 | AC14: 498 | AD14: 0.8736842105 | AF14: 0 | AG14: 0 | AI14: =cálculos1!O14 -> 0 | AJ14: 0 | AK14: =cálculos1!P14 -> 0 | AL14: 0 | AN14: 0 | AO14: =COUNTIF($AJ$3:$AJ$80,"=0") -> 8
A15: Norte | B15: Boa Esperança | C15: 209 | D15: 191 | E15: 14 | F15: 0.07329842932 | G15: 1 | H15: 0.005235602094 | I15: 0 | J15: 0 | K15: 73 | L15: 0.3821989529 | M15: 184 | N15: 0.9633507853 | O15: 182 | P15: 0.9528795812 | Q15: 198 | R15: 1.036649215 | S15: 201 | T15: 1.052356021 | U15: 181 | V15: 0.9476439791 | W15: 156 | X15: 0.8167539267 | Y15: 171 | Z15: 0.8952879581 | AA15: 185 | AB15: 0.9685863874 | AC15: 165 | AD15: 0.8638743455 | AF15: 2 | AG15: 0.01047120419 | AI15: =cálculos1!O15 -> 5 | AJ15: 0.5 | AK15: =cálculos1!P15 -> 4 | AL15: 1 | AN15: 0.1 | AO15: =COUNTIFS($AJ$3:$AJ$80,">=0,10",$AJ$3:$AJ$80,"<0,20") -> 6
A16: Sul | B16: Bom Jesus do Norte | C16: 72 | D16: 67 | E16: 38 | F16: 0.5671641791 | G16: 0 | H16: 0 | I16: 0 | J16: 0 | K16: 84 | L16: 1.253731343 | M16: 98 | N16: 1.462686567 | O16: 98 | P16: 1.462686567 | Q16: 98 | R16: 1.462686567 | S16: 102 | T16: 1.52238806 | U16: 93 | V16: 1.388059701 | W16: 84 | X16: 1.253731343 | Y16: 96 | Z16: 1.432835821 | AA16: 104 | AB16: 1.552238806 | AC16: 89 | AD16: 1.328358209 | AF16: 6 | AG16: 0.08955223881 | AI16: =cálculos1!O16 -> 10 | AJ16: 1 | AK16: =cálculos1!P16 -> 4 | AL16: 1 | AN16: 0.2 | AO16: =COUNTIFS($AJ$3:$AJ$80,">=0,20",$AJ$3:$AJ$80,"<0,30") -> 9
A17: Metropolitana | B17: Brejetuba | C17: 227 | D17: 213 | E17: 17 | F17: 0.07981220657 | G17: 1 | H17: 0.004694835681 | I17: 0 | J17: 0 | K17: 128 | L17: 0.6009389671 | M17: 177 | N17: 0.8309859155 | O17: 186 | P17: 0.8732394366 | Q17: 179 | R17: 0.8403755869 | S17: 195 | T17: 0.9154929577 | U17: 188 | V17: 0.882629108 | W17: 171 | X17: 0.8028169014 | Y17: 185 | Z17: 0.8685446009 | AA17: 200 | AB17: 0.9389671362 | AC17: 215 | AD17: 1.009389671 | AF17: 2 | AG17: 0.009389671362 | AI17: =cálculos1!O17 -> 2 | AJ17: 0.2 | AK17: =cálculos1!P17 -> 0 | AL17: 0 | AN17: 0.3 | AO17: =COUNTIFS($AJ$3:$AJ$80,">=0,30",$AJ$3:$AJ$80,"<0,40") -> 10
A18: Sul | B18: Cachoeiro de Itapemirim | C18: 2386 | D18: 2179 | E18: 4732 | F18: 2.171638366 | G18: 4329 | H18: 1.986691143 | I18: 2817 | J18: 1.29279486 | K18: 4727 | L18: 2.169343736 | M18: 2022 | N18: 0.9279486003 | O18: 2007 | P18: 0.9210647086 | Q18: 2096 | R18: 0.9619091326 | S18: 2154 | T18: 0.9885268472 | U18: 2052 | V18: 0.9417163837 | W18: 1474 | X18: 0.6764570904 | Y18: 2010 | Z18: 0.9224414869 | AA18: 2211 | AB18: 1.014685636 | AC18: 1963 | AD18: 0.9008719596 | AF18: 59 | AG18: 0.02707664066 | AI18: =cálculos1!O18 -> 4 | AJ18: 0.4 | AK18: =cálculos1!P18 -> 2 | AL18: 0.5 | AN18: 0.4 | AO18: =COUNTIFS($AJ$3:$AJ$80,">=0,40",$AJ$3:$AJ$80,"<0,50") -> 7
A19: Metropolitana | B19: Cariacica | C19: 4738 | D19: 4375 | E19: 2325 | F19: 0.5314285714 | G19: 1335 | H19: 0.3051428571 | I19: 704 | J19: 0.1609142857 | K19: 2275 | L19: 0.52 | M19: 3681 | N19: 0.8413714286 | O19: 3646 | P19: 0.8333714286 | Q19: 3491 | R19: 0.7979428571 | S19: 3948 | T19: 0.9024 | U19: 3817 | V19: 0.8724571429 | W19: 2906 | X19: 0.6642285714 | Y19: 3952 | Z19: 0.9033142857 | AA19: 4178 | AB19: 0.9549714286 | AC19: 3411 | AD19: 0.7796571429 | AF19: 136 | AG19: 0.03108571429 | AI19: =cálculos1!O19 -> 2 | AJ19: 0.2 | AK19: =cálculos1!P19 -> 1 | AL19: 0.25 | AN19: 0.5 | AO19: =COUNTIFS($AJ$3:$AJ$80,">=0,50",$AJ$3:$AJ$80,"<0,60") -> 8
A20: Sul | B20: Castelo | C20: 383 | D20: 342 | E20: 226 | F20: 0.6608187135 | G20: 159 | H20: 0.4649122807 | I20: 116 | J20: 0.3391812865 | K20: 239 | L20: 0.6988304094 | M20: 382 | N20: 1.116959064 | O20: 376 | P20: 1.099415205 | Q20: 358 | R20: 1.046783626 | S20: 387 | T20: 1.131578947 | U20: 391 | V20: 1.143274854 | W20: 327 | X20: 0.9561403509 | Y20: 415 | Z20: 1.213450292 | AA20: 396 | AB20: 1.157894737 | AC20: 358 | AD20: 1.046783626 | AF20: 3 | AG20: 0.008771929825 | AI20: =cálculos1!O20 -> 9 | AJ20: 0.9 | AK20: =cálculos1!P20 -> 4 | AL20: 1 | AN20: 0.6 | AO20: =COUNTIFS($AJ$3:$AJ$80,">=0,60",$AJ$3:$AJ$80,"<0,70") -> 8
A21: Central | B21: Colatina | C21: 1485 | D21: 1358 | E21: 3174 | F21: 2.337260677 | G21: 2436 | H21: 1.793814433 | I21: 2127 | J21: 1.566273932 | K21: 3123 | L21: 2.299705449 | M21: 1255 | N21: 0.9241531664 | O21: 1252 | P21: 0.9219440353 | Q21: 1253 | R21: 0.9226804124 | S21: 1296 | T21: 0.9543446244 | U21: 1319 | V21: 0.971281296 | W21: 992 | X21: 0.7304860088 | Y21: 1222 | Z21: 0.8998527246 | AA21: 1319 | AB21: 0.971281296 | AC21: 1142 | AD21: 0.8409425626 | AF21: 22 | AG21: 0.01620029455 | AI21: =cálculos1!O21 -> 4 | AJ21: 0.4 | AK21: =cálculos1!P21 -> 1 | AL21: 0.25 | AN21: 0.7 | AO21: =COUNTIFS($AJ$3:$AJ$80,">=0,70",$AJ$3:$AJ$80,"<0,80") -> 6
A22: Norte | B22: Conceição da Barra | C22: 343 | D22: 327 | E22: 14 | F22: 0.04281345566 | G22: 0 | H22: 0 | I22: 0 | J22: 0 | K22: 24 | L22: 0.07339449541 | M22: 314 | N22: 0.9602446483 | O22: 317 | P22: 0.9694189602 | Q22: 315 | R22: 0.9633027523 | S22: 330 | T22: 1.009174312 | U22: 318 | V22: 0.9724770642 | W22: 291 | X22: 0.8899082569 | Y22: 380 | Z22: 1.162079511 | AA22: 379 | AB22: 1.159021407 | AC22: 372 | AD22: 1.137614679 | AF22: 6 | AG22: 0.01834862385 | AI22: =cálculos1!O22 -> 8 | AJ22: 0.8 | AK22: =cálculos1!P22 -> 4 | AL22: 1 | AN22: 0.8 | AO22: =COUNTIFS($AJ$3:$AJ$80,">=0,80",$AJ$3:$AJ$80,"<0,90") -> 7
A23: Metropolitana | B23: Conceição do Castelo | C23: 187 | D23: 171 | E23: 5 | F23: 0.02923976608 | G23: 0 | H23: 0 | I23: 0 | J23: 0 | K23: 30 | L23: 0.1754385965 | M23: 140 | N23: 0.8187134503 | O23: 131 | P23: 0.7660818713 | Q23: 93 | R23: 0.5438596491 | S23: 150 | T23: 0.8771929825 | U23: 138 | V23: 0.8070175439 | W23: 123 | X23: 0.7192982456 | Y23: 129 | Z23: 0.7543859649 | AA23: 143 | AB23: 0.8362573099 | AC23: 151 | AD23: 0.8830409357 | AF23: 5 | AG23: 0.02923976608 | AI23: =cálculos1!O23 -> 0 | AJ23: 0 | AK23: =cálculos1!P23 -> 0 | AL23: 0 | AN23: 0.9 | AO23: =COUNTIFS($AJ$3:$AJ$80,">=0,90",$AJ$3:$AJ$80,"<1,0") -> 8
A24: Sul | B24: Divino de São Lourenço | C24: 67 | D24: 62 | E24: 51 | F24: 0.8225806452 | G24: 2 | H24: 0.03225806452 | I24: 0 | J24: 0 | K24: 54 | L24: 0.8709677419 | M24: 45 | N24: 0.7258064516 | O24: 45 | P24: 0.7258064516 | Q24: 44 | R24: 0.7096774194 | S24: 45 | T24: 0.7258064516 | U24: 46 | V24: 0.7419354839 | W24: 54 | X24: 0.8709677419 | Y24: 66 | Z24: 1.064516129 | AA24: 68 | AB24: 1.096774194 | AC24: 72 | AD24: 1.161290323 | AF24: 1 | AG24: 0.01612903226 | AI24: =cálculos1!O24 -> 3 | AJ24: 0.3 | AK24: =cálculos1!P24 -> 1 | AL24: 0.25 | AN24: 1 | AO24: =COUNTIF($AJ$3:$AJ$80,">=1,0") -> 1
A25: Metropolitana | B25: Domingos Martins | C25: 426 | D25: 382 | E25: 23 | F25: 0.06020942408 | G25: 1 | H25: 0.002617801047 | I25: 0 | J25: 0 | K25: 58 | L25: 0.1518324607 | M25: 394 | N25: 1.031413613 | O25: 390 | P25: 1.020942408 | Q25: 345 | R25: 0.9031413613 | S25: 383 | T25: 1.002617801 | U25: 375 | V25: 0.9816753927 | W25: 346 | X25: 0.9057591623 | Y25: 386 | Z25: 1.010471204 | AA25: 383 | AB25: 1.002617801 | AC25: 401 | AD25: 1.04973822 | AF25: 32 | AG25: 0.08376963351 | AI25: =cálculos1!O25 -> 7 | AJ25: 0.7 | AK25: =cálculos1!P25 -> 3 | AL25: 0.75
A26: Sul | B26: Dores do Rio Preto | C26: 102 | D26: 99 | E26: 41 | F26: 0.4141414141 | G26: 2 | H26: 0.0202020202 | I26: 0 | J26: 0 | K26: 65 | L26: 0.6565656566 | M26: 110 | N26: 1.111111111 | O26: 110 | P26: 1.111111111 | Q26: 74 | R26: 0.7474747475 | S26: 112 | T26: 1.131313131 | U26: 106 | V26: 1.070707071 | W26: 82 | X26: 0.8282828283 | Y26: 100 | Z26: 1.01010101 | AA26: 106 | AB26: 1.070707071 | AC26: 93 | AD26: 0.9393939394 | AF26: 1 | AG26: 0.0101010101 | AI26: =cálculos1!O26 -> 6 | AJ26: 0.6 | AK26: =cálculos1!P26 -> 3 | AL26: 0.75
A27: Norte | B27: Ecoporanga | C27: 250 | D27: 233 | E27: 77 | F27: 0.330472103 | G27: 0 | H27: 0 | I27: 0 | J27: 0 | K27: 77 | L27: 0.330472103 | M27: 228 | N27: 0.9785407725 | O27: 224 | P27: 0.9613733906 | Q27: 226 | R27: 0.9699570815 | S27: 234 | T27: 1.004291845 | U27: 230 | V27: 0.9871244635 | W27: 186 | X27: 0.7982832618 | Y27: 220 | Z27: 0.9442060086 | AA27: 222 | AB27: 0.9527896996 | AC27: 207 | AD27: 0.8884120172 | AF27: 1 | AG27: 0.004291845494 | AI27: =cálculos1!O27 -> 6 | AJ27: 0.6 | AK27: =cálculos1!P27 -> 4 | AL27: 1
A28: Metropolitana | B28: Fundão | C28: 231 | D28: 213 | E28: 26 | F28: 0.1220657277 | G28: 0 | H28: 0 | I28: 0 | J28: 0 | K28: 33 | L28: 0.1549295775 | M28: 220 | N28: 1.03286385 | O28: 220 | P28: 1.03286385 | Q28: 195 | R28: 0.9154929577 | S28: 221 | T28: 1.037558685 | U28: 216 | V28: 1.014084507 | W28: 151 | X28: 0.7089201878 | Y28: 199 | Z28: 0.9342723005 | AA28: 212 | AB28: 0.9953051643 | AC28: 199 | AD28: 0.9342723005 | AF28: 3 | AG28: 0.01408450704 | AI28: =cálculos1!O28 -> 5 | AJ28: 0.5 | AK28: =cálculos1!P28 -> 3 | AL28: 0.75
A29: Central | B29: Governador Lindenberg | C29: 141 | D29: 130 | E29: 56 | F29: 0.4307692308 | G29: 4 | H29: 0.03076923077 | I29: 1 | J29: 0.007692307692 | K29: 44 | L29: 0.3384615385 | M29: 89 | N29: 0.6846153846 | O29: 90 | P29: 0.6923076923 | Q29: 87 | R29: 0.6692307692 | S29: 102 | T29: 0.7846153846 | U29: 96 | V29: 0.7384615385 | W29: 84 | X29: 0.6461538462 | Y29: 113 | Z29: 0.8692307692 | AA29: 121 | AB29: 0.9307692308 | AC29: 106 | AD29: 0.8153846154 | AF29: 0 | AG29: 0 | AI29: =cálculos1!O29 -> 0 | AJ29: 0 | AK29: =cálculos1!P29 -> 0 | AL29: 0
A30: Sul | B30: Guaçuí | C30: 387 | D30: 354 | E30: 238 | F30: 0.6723163842 | G30: 62 | H30: 0.1751412429 | I30: 52 | J30: 0.1468926554 | K30: 247 | L30: 0.697740113 | M30: 286 | N30: 0.8079096045 | O30: 283 | P30: 0.7994350282 | Q30: 296 | R30: 0.8361581921 | S30: 305 | T30: 0.8615819209 | U30: 297 | V30: 0.8389830508 | W30: 252 | X30: 0.7118644068 | Y30: 300 | Z30: 0.8474576271 | AA30: 322 | AB30: 0.9096045198 | AC30: 289 | AD30: 0.8163841808 | AF30: 13 | AG30: 0.03672316384 | AI30: =cálculos1!O30 -> 0 | AJ30: 0 | AK30: =cálculos1!P30 -> 0 | AL30: 0
A31: Metropolitana | B31: Guarapari | C31: 1643 | D31: 1526 | E31: 1245 | F31: 0.8158584535 | G31: 1034 | H31: 0.6775884666 | I31: 853 | J31: 0.5589777195 | K31: 1287 | L31: 0.8433813893 | M31: 1244 | N31: 0.8152031455 | O31: 1232 | P31: 0.8073394495 | Q31: 1335 | R31: 0.874836173 | S31: 1388 | T31: 0.9095674967 | U31: 1329 | V31: 0.870904325 | W31: 887 | X31: 0.5812581913 | Y31: 1277 | Z31: 0.8368283093 | AA31: 1358 | AB31: 0.8899082569 | AC31: 1128 | AD31: 0.7391874181 | AF31: 34 | AG31: 0.02228047182 | AI31: =cálculos1!O31 -> 1 | AJ31: 0.1 | AK31: =cálculos1!P31 -> 0 | AL31: 0
A32: Metropolitana | B32: Ibatiba | C32: 410 | D32: 375 | E32: 242 | F32: 0.6453333333 | G32: 15 | H32: 0.04 | I32: 5 | J32: 0.01333333333 | K32: 284 | L32: 0.7573333333 | M32: 360 | N32: 0.96 | O32: 355 | P32: 0.9466666667 | Q32: 334 | R32: 0.8906666667 | S32: 361 | T32: 0.9626666667 | U32: 363 | V32: 0.968 | W32: 310 | X32: 0.8266666667 | Y32: 378 | Z32: 1.008 | AA32: 364 | AB32: 0.9706666667 | AC32: 351 | AD32: 0.936 | AF32: 13 | AG32: 0.03466666667 | AI32: =cálculos1!O32 -> 5 | AJ32: 0.5 | AK32: =cálculos1!P32 -> 2 | AL32: 0.5
A33: Metropolitana | B33: Ibiraçu | C33: 130 | D33: 123 | E33: 31 | F33: 0.2520325203 | G33: 2 | H33: 0.0162601626 | I33: 0 | J33: 0 | K33: 29 | L33: 0.2357723577 | M33: 109 | N33: 0.8861788618 | O33: 107 | P33: 0.8699186992 | Q33: 105 | R33: 0.8536585366 | S33: 103 | T33: 0.837398374 | U33: 112 | V33: 0.9105691057 | W33: 101 | X33: 0.8211382114 | Y33: 126 | Z33: 1.024390244 | AA33: 144 | AB33: 1.170731707 | AC33: 127 | AD33: 1.032520325 | AF33: 0 | AG33: 0 | AI33: =cálculos1!O33 -> 3 | AJ33: 0.3 | AK33: =cálculos1!P33 -> 1 | AL33: 0.25
A34: Sul | B34: Ibitirama | C34: 139 | D34: 130 | E34: 81 | F34: 0.6230769231 | G34: 7 | H34: 0.05384615385 | I34: 0 | J34: 0 | K34: 94 | L34: 0.7230769231 | M34: 138 | N34: 1.061538462 | O34: 135 | P34: 1.038461538 | Q34: 142 | R34: 1.092307692 | S34: 149 | T34: 1.146153846 | U34: 141 | V34: 1.084615385 | W34: 113 | X34: 0.8692307692 | Y34: 116 | Z34: 0.8923076923 | AA34: 133 | AB34: 1.023076923 | AC34: 122 | AD34: 0.9384615385 | AF34: 12 | AG34: 0.09230769231 | AI34: =cálculos1!O34 -> 6 | AJ34: 0.6 | AK34: =cálculos1!P34 -> 4 | AL34: 1
A35: Sul | B35: Iconha | C35: 140 | D35: 132 | E35: 27 | F35: 0.2045454545 | G35: 1 | H35: 0.007575757576 | I35: 0 | J35: 0 | K35: 63 | L35: =K35/D35 -> 0.4772727273 | M35: 107 | N35: =M35/D35 -> 0.8106060606 | O35: 107 | P35: =O35/D35 -> 0.8106060606 | Q35: 91 | R35: =Q35/D35 -> 0.6893939394 | S35: 107 | T35: =S35/D35 -> 0.8106060606 | U35: 109 | V35: =U35/D35 -> 0.8257575758 | W35: 98 | X35: =W35/D35 -> 0.7424242424 | Y35: 95 | Z35: =Y35/D35 -> 0.7196969697 | AA35: 101 | AB35: =AA35/D35 -> 0.7651515152 | AC35: 121 | AD35: =AC35/D35 -> 0.9166666667 | AF35: 1 | AG35: 0.007575757576 | AI35: =cálculos1!O35 -> 0 | AJ35: 0 | AK35: =cálculos1!P35 -> 0 | AL35: 0
A36: Sul | B36: Irupi | C36: 194 | D36: 179 | E36: 83 | F36: 0.4636871508 | G36: 6 | H36: 0.03351955307 | I36: 3 | J36: 0.01675977654 | K36: 119 | L36: 0.6648044693 | M36: 163 | N36: 0.9106145251 | O36: 161 | P36: 0.8994413408 | Q36: 157 | R36: 0.8770949721 | S36: 168 | T36: 0.938547486 | U36: 165 | V36: 0.9217877095 | W36: 162 | X36: 0.905027933 | Y36: 208 | Z36: 1.162011173 | AA36: 189 | AB36: 1.055865922 | AC36: 166 | AD36: 0.9273743017 | AF36: 14 | AG36: 0.0782122905 | AI36: =cálculos1!O36 -> 3 | AJ36: 0.3 | AK36: =cálculos1!P36 -> 1 | AL36: 0.25
A37: Metropolitana | B37: Itaguaçu | C37: 121 | D37: 119 | E37: 21 | F37: 0.1764705882 | G37: 1 | H37: 0.008403361345 | I37: 0 | J37: 0 | K37: 26 | L37: 0.218487395 | M37: 110 | N37: 0.9243697479 | O37: 110 | P37: 0.9243697479 | Q37: 99 | R37: 0.8319327731 | S37: 113 | T37: 0.9495798319 | U37: 103 | V37: 0.8655462185 | W37: 122 | X37: 1.025210084 | Y37: 139 | Z37: 1.168067227 | AA37: 147 | AB37: 1.235294118 | AC37: 144 | AD37: 1.210084034 | AF37: 10 | AG37: 0.08403361345 | AI37: =cálculos1!O37 -> 5 | AJ37: 0.5 | AK37: =cálculos1!P37 -> 1 | AL37: 0.25
A38: Sul | B38: Itapemirim | C38: 537 | D38: 494 | E38: 768 | F38: 1.55465587 | G38: 744 | H38: 1.506072874 | I38: 743 | J38: 1.504048583 | K38: 225 | L38: 0.455465587 | M38: 381 | N38: 0.7712550607 | O38: 359 | P38: 0.7267206478 | Q38: 415 | R38: 0.8400809717 | S38: 410 | T38: 0.8299595142 | U38: 406 | V38: 0.8218623482 | W38: 268 | X38: 0.5425101215 | Y38: 384 | Z38: 0.7773279352 | AA38: 416 | AB38: 0.8421052632 | AC38: 342 | AD38: 0.6923076923 | AF38: 3 | AG38: 0.006072874494 | AI38: =cálculos1!O38 -> 0 | AJ38: 0 | AK38: =cálculos1!P38 -> 0 | AL38: 0
A39: Metropolitana | B39: Itarana | C39: 131 | D39: 126 | E39: 12 | F39: 0.09523809524 | G39: 2 | H39: 0.01587301587 | I39: 0 | J39: 0 | K39: 20 | L39: 0.1587301587 | M39: 97 | N39: 0.7698412698 | O39: 97 | P39: 0.7698412698 | Q39: 91 | R39: 0.7222222222 | S39: 97 | T39: 0.7698412698 | U39: 97 | V39: 0.7698412698 | W39: 98 | X39: 0.7777777778 | Y39: 129 | Z39: 1.023809524 | AA39: 126 | AB39: 1 | AC39: 131 | AD39: 1.03968254 | AF39: 1 | AG39: 0.007936507937 | AI39: =cálculos1!O39 -> 3 | AJ39: 0.3 | AK39: =cálculos1!P39 -> 1 | AL39: 0.25
A40: Sul | B40: Iúna | C40: 387 | D40: 358 | E40: 241 | F40: 0.6731843575 | G40: 20 | H40: 0.05586592179 | I40: 7 | J40: 0.01955307263 | K40: 287 | L40: 0.8016759777 | M40: 338 | N40: 0.9441340782 | O40: 340 | P40: 0.9497206704 | Q40: 329 | R40: 0.9189944134 | S40: 346 | T40: 0.9664804469 | U40: 346 | V40: 0.9664804469 | W40: 307 | X40: 0.8575418994 | Y40: 402 | Z40: 1.122905028 | AA40: 383 | AB40: 1.069832402 | AC40: 371 | AD40: 1.036312849 | AF40: 1 | AG40: 0.002793296089 | AI40: =cálculos1!O40 -> 5 | AJ40: 0.5 | AK40: =cálculos1!P40 -> 1 | AL40: 0.25
A41: Norte | B41: Jaguaré | C41: 444 | D41: 415 | E41: 314 | F41: 0.756626506 | G41: 283 | H41: 0.6819277108 | I41: 274 | J41: 0.6602409639 | K41: 302 | L41: 0.7277108434 | M41: 383 | N41: 0.9228915663 | O41: 377 | P41: 0.9084337349 | Q41: 373 | R41: 0.8987951807 | S41: 401 | T41: 0.9662650602 | U41: 387 | V41: 0.9325301205 | W41: 328 | X41: 0.7903614458 | Y41: 446 | Z41: 1.074698795 | AA41: 456 | AB41: 1.098795181 | AC41: 373 | AD41: 0.8987951807 | AF41: 1 | AG41: 0.002409638554 | AI41: =cálculos1!O41 -> 3 | AJ41: 0.3 | AK41: =cálculos1!P41 -> 1 | AL41: 0.25
A42: Sul | B42: Jerônimo Monteiro | C42: 114 | D42: 111 | E42: 5 | F42: 0.04504504505 | G42: 0 | H42: 0 | I42: 0 | J42: 0 | K42: 10 | L42: 0.09009009009 | M42: 97 | N42: 0.8738738739 | O42: 98 | P42: 0.8828828829 | Q42: 96 | R42: 0.8648648649 | S42: 105 | T42: 0.9459459459 | U42: 98 | V42: 0.8828828829 | W42: 90 | X42: 0.8108108108 | Y42: 123 | Z42: 1.108108108 | AA42: 127 | AB42: 1.144144144 | AC42: 121 | AD42: 1.09009009 | AF42: 5 | AG42: 0.04504504505 | AI42: =cálculos1!O42 -> 4 | AJ42: 0.4 | AK42: =cálculos1!P42 -> 1 | AL42: 0.25
A43: Metropolitana | B43: João Neiva | C43: 143 | D43: 132 | E43: 54 | F43: 0.4090909091 | G43: 13 | H43: 0.09848484848 | I43: 7 | J43: 0.05303030303 | K43: 40 | L43: 0.303030303 | M43: 136 | N43: 1.03030303 | O43: 132 | P43: 1 | Q43: 122 | R43: 0.9242424242 | S43: 127 | T43: 0.9621212121 | U43: 134 | V43: 1.015151515 | W43: 120 | X43: 0.9090909091 | Y43: 149 | Z43: 1.128787879 | AA43: 151 | AB43: 1.143939394 | AC43: 143 | AD43: 1.083333333 | AF43: 2 | AG43: 0.01515151515 | AI43: =cálculos1!O43 -> 7 | AJ43: 0.7 | AK43: =cálculos1!P43 -> 3 | AL43: 0.75
A44: Metropolitana | B44: Laranja da Terra | C44: 120 | D44: 114 | E44: 8 | F44: 0.0701754386 | G44: 2 | H44: 0.01754385965 | I44: 1 | J44: 0.008771929825 | K44: 17 | L44: 0.149122807 | M44: 116 | N44: 1.01754386 | O44: 116 | P44: 1.01754386 | Q44: 124 | R44: 1.087719298 | S44: 129 | T44: 1.131578947 | U44: 117 | V44: 1.026315789 | W44: 97 | X44: 0.850877193 | Y44: 97 | Z44: 0.850877193 | AA44: 104 | AB44: 0.9122807018 | AC44: 110 | AD44: 0.9649122807 | AF44: 8 | AG44: 0.0701754386 | AI44: =cálculos1!O44 -> 6 | AJ44: 0.6 | AK44: =cálculos1!P44 -> 3 | AL44: 0.75
A45: Central | B45: Linhares | C45: 2668 | D45: 2438 | E45: 3022 | F45: 1.239540607 | G45: 2517 | H45: 1.03240361 | I45: 2156 | J45: 0.8843314192 | K45: 3052 | L45: 1.251845775 | M45: 2093 | N45: 0.858490566 | O45: 2046 | P45: 0.8392124692 | Q45: 2150 | R45: 0.8818703856 | S45: 2224 | T45: 0.9122231337 | U45: 2222 | V45: 0.9114027892 | W45: 1638 | X45: 0.6718621821 | Y45: 2012 | Z45: 0.825266612 | AA45: 2194 | AB45: 0.8999179655 | AC45: 1848 | AD45: 0.7579983593 | AF45: 9 | AG45: 0.003691550451 | AI45: =cálculos1!O45 -> 2 | AJ45: 0.2 | AK45: =cálculos1!P45 -> 0 | AL45: 0
A46: Central | B46: Mantenópolis | C46: 132 | D46: 121 | E46: 32 | F46: 0.2644628099 | G46: 1 | H46: 0.00826446281 | I46: 1 | J46: 0.00826446281 | K46: 38 | L46: 0.3140495868 | M46: 119 | N46: 0.9834710744 | O46: 114 | P46: 0.9421487603 | Q46: 106 | R46: 0.8760330579 | S46: 110 | T46: 0.9090909091 | U46: 119 | V46: 0.9834710744 | W46: 118 | X46: 0.9752066116 | Y46: 138 | Z46: 1.140495868 | AA46: 141 | AB46: 1.165289256 | AC46: 152 | AD46: 1.256198347 | AF46: 1 | AG46: 0.00826446281 | AI46: =cálculos1!O46 -> 7 | AJ46: 0.7 | AK46: =cálculos1!P46 -> 2 | AL46: 0.5
A47: Sul | B47: Marataízes | C47: 570 | D47: 532 | E47: 34 | F47: 0.06390977444 | G47: 2 | H47: 0.003759398496 | I47: 0 | J47: 0 | K47: 232 | L47: 0.4360902256 | M47: 496 | N47: 0.9323308271 | O47: 438 | P47: 0.8233082707 | Q47: 523 | R47: 0.9830827068 | S47: 527 | T47: 0.9906015038 | U47: 495 | V47: 0.9304511278 | W47: 326 | X47: 0.6127819549 | Y47: 532 | Z47: 1 | AA47: 530 | AB47: 0.9962406015 | AC47: 448 | AD47: 0.8421052632 | AF47: 2 | AG47: 0.003759398496 | AI47: =cálculos1!O47 -> 4 | AJ47: 0.4 | AK47: =cálculos1!P47 -> 2 | AL47: 0.5
A48: Metropolitana | B48: Marechal Floriano | C48: 207 | D48: 190 | E48: 30 | F48: 0.1578947368 | G48: 4 | H48: 0.02105263158 | I48: 0 | J48: 0 | K48: 28 | L48: 0.1473684211 | M48: 177 | N48: 0.9315789474 | O48: 178 | P48: 0.9368421053 | Q48: 167 | R48: 0.8789473684 | S48: 183 | T48: 0.9631578947 | U48: 175 | V48: 0.9210526316 | W48: 152 | X48: 0.8 | Y48: 196 | Z48: 1.031578947 | AA48: 186 | AB48: 0.9789473684 | AC48: 201 | AD48: 1.057894737 | AF48: 11 | AG48: 0.05789473684 | AI48: =cálculos1!O48 -> 4 | AJ48: 0.4 | AK48: =cálculos1!P48 -> 1 | AL48: 0.25
A49: Central | B49: Marilândia | C49: 166 | D49: 159 | E49: 48 | F49: 0.3018867925 | G49: 8 | H49: 0.05031446541 | I49: 0 | J49: 0 | K49: 60 | L49: 0.3773584906 | M49: 119 | N49: 0.748427673 | O49: 120 | P49: 0.7547169811 | Q49: 116 | R49: 0.7295597484 | S49: 134 | T49: 0.8427672956 | U49: 113 | V49: 0.7106918239 | W49: 130 | X49: 0.8176100629 | Y49: 138 | Z49: 0.8679245283 | AA49: 139 | AB49: 0.8742138365 | AC49: 146 | AD49: 0.9182389937 | AF49: 6 | AG49: 0.03773584906 | AI49: =cálculos1!O49 -> 0 | AJ49: 0 | AK49: =cálculos1!P49 -> 0 | AL49: 0
A50: Sul | B50: Mimoso do Sul | C50: 279 | D50: 256 | E50: 28 | F50: 0.109375 | G50: 1 | H50: 0.00390625 | I50: 1 | J50: 0.00390625 | K50: 37 | L50: 0.14453125 | M50: 226 | N50: 0.8828125 | O50: 213 | P50: 0.83203125 | Q50: 225 | R50: 0.87890625 | S50: 242 | T50: 0.9453125 | U50: 217 | V50: 0.84765625 | W50: 188 | X50: 0.734375 | Y50: 166 | Z50: 0.6484375 | AA50: 203 | AB50: 0.79296875 | AC50: 179 | AD50: 0.69921875 | AF50: 5 | AG50: 0.01953125 | AI50: =cálculos1!O50 -> 1 | AJ50: 0.1 | AK50: =cálculos1!P50 -> 0 | AL50: 0
A51: Norte | B51: Montanha | C51: 217 | D51: 205 | E51: 63 | F51: 0.3073170732 | G51: 4 | H51: 0.01951219512 | I51: 1 | J51: 0.00487804878 | K51: 78 | L51: 0.3804878049 | M51: 221 | N51: 1.07804878 | O51: 223 | P51: 1.087804878 | Q51: 249 | R51: 1.214634146 | S51: 242 | T51: 1.180487805 | U51: 220 | V51: 1.073170732 | W51: 186 | X51: 0.9073170732 | Y51: 227 | Z51: 1.107317073 | AA51: 237 | AB51: 1.156097561 | AC51: 241 | AD51: 1.175609756 | AF51: 8 | AG51: 0.03902439024 | AI51: =cálculos1!O51 -> 8 | AJ51: 0.8 | AK51: =cálculos1!P51 -> 4 | AL51: 1
A52: Norte | B52: Mucurici | C52: 53 | D52: 46 | E52: 8 | F52: 0.1739130435 | G52: 1 | H52: 0.02173913043 | I52: 0 | J52: 0 | K52: 6 | L52: 0.1304347826 | M52: 58 | N52: 1.260869565 | O52: 59 | P52: 1.282608696 | Q52: 60 | R52: 1.304347826 | S52: 60 | T52: 1.304347826 | U52: 54 | V52: 1.173913043 | W52: 56 | X52: 1.217391304 | Y52: 63 | Z52: 1.369565217 | AA52: 63 | AB52: 1.369565217 | AC52: 64 | AD52: 1.391304348 | AF52: 1 | AG52: 0.02173913043 | AI52: =cálculos1!O52 -> 9 | AJ52: 0.9 | AK52: =cálculos1!P52 -> 4 | AL52: 1
A53: Sul | B53: Muniz Freire | C53: 248 | D53: 226 | E53: 100 | F53: 0.4424778761 | G53: 6 | H53: 0.02654867257 | I53: 0 | J53: 0 | K53: 125 | L53: 0.5530973451 | M53: 206 | N53: 0.9115044248 | O53: 206 | P53: 0.9115044248 | Q53: 217 | R53: 0.9601769912 | S53: 222 | T53: 0.982300885 | U53: 197 | V53: 0.8716814159 | W53: 204 | X53: 0.9026548673 | Y53: 219 | Z53: 0.9690265487 | AA53: 224 | AB53: 0.9911504425 | AC53: 244 | AD53: 1.079646018 | AF53: 3 | AG53: 0.01327433628 | AI53: =cálculos1!O53 -> 5 | AJ53: 0.5 | AK53: =cálculos1!P53 -> 2 | AL53: 0.5
A54: Sul | B54: Muqui | C54: 154 | D54: 143 | E54: 17 | F54: 0.1188811189 | G54: 3 | H54: 0.02097902098 | I54: 0 | J54: 0 | K54: 18 | L54: 0.1258741259 | M54: 144 | N54: 1.006993007 | O54: 144 | P54: 1.006993007 | Q54: 142 | R54: 0.993006993 | S54: 149 | T54: 1.041958042 | U54: 135 | V54: 0.9440559441 | W54: 129 | X54: 0.9020979021 | Y54: 144 | Z54: 1.006993007 | AA54: 140 | AB54: 0.979020979 | AC54: 156 | AD54: 1.090909091 | AF54: 7 | AG54: 0.04895104895 | AI54: =cálculos1!O54 -> 7 | AJ54: 0.7 | AK54: =cálculos1!P54 -> 4 | AL54: 1
A55: Norte | B55: Nova Venécia | C55: 690 | D55: 628 | E55: 522 | F55: 0.8312101911 | G55: 449 | H55: 0.7149681529 | I55: 444 | J55: 0.7070063694 | K55: 444 | L55: 0.7070063694 | M55: 531 | N55: 0.8455414013 | O55: 524 | P55: 0.8343949045 | Q55: 479 | R55: 0.7627388535 | S55: 592 | T55: 0.9426751592 | U55: 549 | V55: 0.8742038217 | W55: 496 | X55: 0.7898089172 | Y55: 576 | Z55: 0.9171974522 | AA55: 626 | AB55: 0.9968152866 | AC55: 538 | AD55: 0.8566878981 | AF55: 12 | AG55: 0.01910828025 | AI55: =cálculos1!O55 -> 2 | AJ55: 0.2 | AK55: =cálculos1!P55 -> 1 | AL55: 0.25
A56: Central | B56: Pancas | C56: 218 | D56: 201 | E56: 84 | F56: 0.4179104478 | G56: 5 | H56: 0.02487562189 | I56: 2 | J56: 0.009950248756 | K56: 101 | L56: 0.5024875622 | M56: 197 | N56: 0.9800995025 | O56: 198 | P56: 0.9850746269 | Q56: 189 | R56: 0.9402985075 | S56: 192 | T56: 0.9552238806 | U56: 198 | V56: 0.9850746269 | W56: 173 | X56: 0.8606965174 | Y56: 193 | Z56: 0.960199005 | AA56: 198 | AB56: 0.9850746269 | AC56: 206 | AD56: 1.024875622 | AF56: 3 | AG56: 0.01492537313 | AI56: =cálculos1!O56 -> 7 | AJ56: 0.7 | AK56: =cálculos1!P56 -> 3 | AL56: 0.75
A57: Norte | B57: Pedro Canário | C57: 320 | D57: 297 | E57: 21 | F57: 0.07070707071 | G57: 2 | H57: 0.006734006734 | I57: 0 | J57: 0 | K57: 33 | L57: 0.1111111111 | M57: 285 | N57: 0.9595959596 | O57: 269 | P57: 0.9057239057 | Q57: 279 | R57: 0.9393939394 | S57: 293 | T57: 0.9865319865 | U57: 273 | V57: 0.9191919192 | W57: 210 | X57: 0.7070707071 | Y57: 321 | Z57: 1.080808081 | AA57: 331 | AB57: 1.114478114 | AC57: 305 | AD57: 1.026936027 | AF57: 7 | AG57: 0.02356902357 | AI57: =cálculos1!O57 -> 5 | AJ57: 0.5 | AK57: =cálculos1!P57 -> 2 | AL57: 0.5
A58: Norte | B58: Pinheiros | C58: 304 | D58: 286 | E58: 6 | F58: 0.02097902098 | G58: 1 | H58: 0.003496503497 | I58: 0 | J58: 0 | K58: 18 | L58: 0.06293706294 | M58: 244 | N58: 0.8531468531 | O58: 240 | P58: 0.8391608392 | Q58: 261 | R58: 0.9125874126 | S58: 279 | T58: 0.9755244755 | U58: 263 | V58: 0.9195804196 | W58: 218 | X58: 0.7622377622 | Y58: 249 | Z58: 0.8706293706 | AA58: 273 | AB58: 0.9545454545 | AC58: 258 | AD58: 0.9020979021 | AF58: 3 | AG58: 0.01048951049 | AI58: =cálculos1!O58 -> 2 | AJ58: 0.2 | AK58: =cálculos1!P58 -> 1 | AL58: 0.25
A59: Sul | B59: Piúma | C59: 310 | D59: 281 | E59: 12 | F59: 0.04270462633 | G59: 0 | H59: 0 | I59: 0 | J59: 0 | K59: 101 | L59: 0.359430605 | M59: 266 | N59: 0.9466192171 | O59: 258 | P59: 0.9181494662 | Q59: 257 | R59: 0.9145907473 | S59: 270 | T59: 0.9608540925 | U59: 265 | V59: 0.9430604982 | W59: 191 | X59: 0.6797153025 | Y59: 255 | Z59: 0.9074733096 | AA59: 279 | AB59: 0.9928825623 | AC59: 226 | AD59: 0.8042704626 | AF59: 13 | AG59: 0.0462633452 | AI59: =cálculos1!O59 -> 2 | AJ59: 0.2 | AK59: =cálculos1!P59 -> 1 | AL59: 0.25
A60: Norte | B60: Ponto Belo | C60: 68 | D60: 65 | E60: 13 | F60: 0.2 | G60: 2 | H60: 0.03076923077 | I60: 0 | J60: 0 | K60: 15 | L60: 0.2307692308 | M60: 72 | N60: 1.107692308 | O60: 72 | P60: 1.107692308 | Q60: 75 | R60: 1.153846154 | S60: 77 | T60: 1.184615385 | U60: 77 | V60: 1.184615385 | W60: 81 | X60: 1.246153846 | Y60: 80 | Z60: 1.230769231 | AA60: 82 | AB60: 1.261538462 | AC60: 75 | AD60: 1.153846154 | AF60: 3 | AG60: 0.04615384615 | AI60: =cálculos1!O60 -> 9 | AJ60: 0.9 | AK60: =cálculos1!P60 -> 4 | AL60: 1
A61: Sul | B61: Presidente Kennedy | C61: 199 | D61: 183 | E61: 9 | F61: 0.04918032787 | G61: 0 | H61: 0 | I61: 0 | J61: 0 | K61: 14 | L61: 0.07650273224 | M61: 170 | N61: 0.9289617486 | O61: 168 | P61: 0.9180327869 | Q61: 176 | R61: 0.9617486339 | S61: 182 | T61: 0.9945355191 | U61: 181 | V61: 0.9890710383 | W61: 168 | X61: 0.9180327869 | Y61: 177 | Z61: 0.9672131148 | AA61: 203 | AB61: 1.109289617 | AC61: 179 | AD61: 0.9781420765 | AF61: 5 | AG61: 0.02732240437 | AI61: =cálculos1!O61 -> 6 | AJ61: 0.6 | AK61: =cálculos1!P61 -> 2 | AL61: 0.5
A62: Central | B62: Rio Bananal | C62: 296 | D62: 265 | E62: 42 | F62: 0.158490566 | G62: 1 | H62: 0.003773584906 | I62: 0 | J62: 0 | K62: 37 | L62: 0.1396226415 | M62: 236 | N62: 0.8905660377 | O62: 234 | P62: 0.8830188679 | Q62: 234 | R62: 0.8830188679 | S62: 247 | T62: 0.9320754717 | U62: 232 | V62: 0.8754716981 | W62: 246 | X62: 0.9283018868 | Y62: 277 | Z62: 1.045283019 | AA62: 275 | AB62: 1.037735849 | AC62: 240 | AD62: 0.9056603774 | AF62: 9 | AG62: 0.03396226415 | AI62: =cálculos1!O62 -> 3 | AJ62: 0.3 | AK62: =cálculos1!P62 -> 1 | AL62: 0.25
A63: Sul | B63: Rio Novo do Sul | C63: 97 | D63: 88 | E63: 3 | F63: 0.03409090909 | G63: 0 | H63: 0 | I63: 0 | J63: 0 | K63: 31 | L63: 0.3522727273 | M63: 97 | N63: 1.102272727 | O63: 97 | P63: 1.102272727 | Q63: 98 | R63: 1.113636364 | S63: 103 | T63: 1.170454545 | U63: 101 | V63: 1.147727273 | W63: 78 | X63: 0.8863636364 | Y63: 87 | Z63: 0.9886363636 | AA63: 98 | AB63: 1.113636364 | AC63: 93 | AD63: 1.056818182 | AF63: 1 | AG63: 0.01136363636 | AI63: =cálculos1!O63 -> 8 | AJ63: 0.8 | AK63: =cálculos1!P63 -> 4 | AL63: 1
A64: Metropolitana | B64: Santa Leopoldina | C64: 96 | D64: 89 | E64: 11 | F64: 0.1235955056 | G64: 2 | H64: 0.02247191011 | I64: 0 | J64: 0 | K64: 15 | L64: 0.1685393258 | M64: 72 | N64: 0.808988764 | O64: 72 | P64: 0.808988764 | Q64: 75 | R64: 0.8426966292 | S64: 78 | T64: 0.8764044944 | U64: 76 | V64: 0.8539325843 | W64: 65 | X64: 0.7303370787 | Y64: 86 | Z64: 0.9662921348 | AA64: 72 | AB64: 0.808988764 | AC64: 84 | AD64: 0.9438202247 | AF64: 0 | AG64: 0 | AI64: =cálculos1!O64 -> 1 | AJ64: 0.1 | AK64: =cálculos1!P64 -> 0 | AL64: 0
A65: Metropolitana | B65: Santa Maria de Jetibá | C65: 721 | D65: 667 | E65: 441 | F65: 0.6611694153 | G65: 431 | H65: 0.6461769115 | I65: 430 | J65: 0.6446776612 | K65: 428 | L65: 0.6416791604 | M65: 570 | N65: 0.8545727136 | O65: 571 | P65: 0.856071964 | Q65: 605 | R65: 0.9070464768 | S65: 629 | T65: 0.9430284858 | U65: 609 | V65: 0.9130434783 | W65: 480 | X65: 0.7196401799 | Y65: 553 | Z65: 0.8290854573 | AA65: 584 | AB65: 0.8755622189 | AC65: 525 | AD65: 0.7871064468 | AF65: 1 | AG65: 0.001499250375 | AI65: =cálculos1!O65 -> 1 | AJ65: 0.1 | AK65: =cálculos1!P65 -> 0 | AL65: 0
A66: Metropolitana | B66: Santa Teresa | C66: 283 | D66: 262 | E66: 694 | F66: 2.648854962 | G66: 671 | H66: 2.561068702 | I66: 467 | J66: 1.782442748 | K66: 696 | L66: 2.65648855 | M66: 222 | N66: 0.8473282443 | O66: 222 | P66: 0.8473282443 | Q66: 238 | R66: 0.9083969466 | S66: 236 | T66: 0.9007633588 | U66: 236 | V66: 0.9007633588 | W66: 200 | X66: 0.7633587786 | Y66: 244 | Z66: 0.9312977099 | AA66: 243 | AB66: 0.927480916 | AC66: 254 | AD66: 0.9694656489 | AF66: 5 | AG66: 0.01908396947 | AI66: =cálculos1!O66 -> 3 | AJ66: 0.3 | AK66: =cálculos1!P66 -> 0 | AL66: 0
A67: Central | B67: São Domingos do Norte | C67: 111 | D67: 101 | E67: 50 | F67: 0.495049505 | G67: 8 | H67: 0.07920792079 | I67: 1 | J67: 0.009900990099 | K67: 55 | L67: =K67/D67 -> 0.5445544554 | M67: 77 | N67: =M67/D67 -> 0.7623762376 | O67: 78 | P67: =O67/D67 -> 0.7722772277 | Q67: 81 | R67: =Q67/D67 -> 0.801980198 | S67: 90 | T67: =S67/D67 -> 0.8910891089 | U67: 82 | V67: =U67/D67 -> 0.8118811881 | W67: 84 | X67: =W67/D67 -> 0.8316831683 | Y67: 115 | Z67: =Y67/D67 -> 1.138613861 | AA67: 105 | AB67: =AA67/D67 -> 1.03960396 | AC67: 110 | AD67: =AC67/D67 -> 1.089108911 | AF67: 0 | AG67: 0 | AI67: =cálculos1!O67 -> 3 | AJ67: 0.3 | AK67: =cálculos1!P67 -> 1 | AL67: 0.25
A68: Central | B68: São Gabriel da Palha | C68: 401 | D68: 376 | E68: 139 | F68: =E68/D68 -> 0.3696808511 | G68: 7 | H68: =G68/D68 -> 0.01861702128 | I68: 0 | J68: =I68/D68 -> 0 | K68: 162 | L68: 0.4308510638 | M68: 359 | N68: 0.954787234 | O68: 359 | P68: 0.954787234 | Q68: 345 | R68: 0.9175531915 | S68: 352 | T68: 0.9361702128 | U68: 356 | V68: 0.9468085106 | W68: 318 | X68: 0.8457446809 | Y68: 379 | Z68: 1.007978723 | AA68: 381 | AB68: 1.013297872 | AC68: 356 | AD68: 0.9468085106 | AF68: 5 | AG68: =AF68/D68 -> 0.01329787234 | AI68: =cálculos1!O68 -> 5 | AJ68: =AI68*0.1 -> 0.5 | AK68: =cálculos1!P68 -> 3 | AL68: =AK68*0.25 -> 0.75
A69: Sul | B69: São José do Calçado | C69: 94 | D69: 84 | E69: 65 | F69: 0.7738095238 | G69: 6 | H69: 0.07142857143 | I69: 1 | J69: 0.0119047619 | K69: 73 | L69: 0.869047619 | M69: 94 | N69: 1.119047619 | O69: 94 | P69: 1.119047619 | Q69: 87 | R69: 1.035714286 | S69: 89 | T69: 1.05952381 | U69: 88 | V69: 1.047619048 | W69: 58 | X69: 0.6904761905 | Y69: 91 | Z69: 1.083333333 | AA69: 85 | AB69: 1.011904762 | AC69: 91 | AD69: 1.083333333 | AF69: 3 | AG69: 0.03571428571 | AI69: =cálculos1!O69 -> 8 | AJ69: 0.8 | AK69: =cálculos1!P69 -> 4 | AL69: 1
A70: Norte | B70: São Mateus | C70: 1670 | D70: 1562 | E70: 2816 | F70: 1.802816901 | G70: 2716 | H70: 1.738796415 | I70: 2464 | J70: 1.577464789 | K70: 2670 | L70: 1.709346991 | M70: 1460 | N70: 0.9346991037 | O70: 1438 | P70: 0.9206145967 | Q70: 1615 | R70: 1.033930858 | S70: 1611 | T70: 1.031370038 | U70: 1562 | V70: 1 | W70: 1079 | X70: 0.6907810499 | Y70: 1498 | Z70: 0.9590268886 | AA70: 1553 | AB70: 0.9942381562 | AC70: 1320 | AD70: 0.8450704225 | AF70: 47 | AG70: 0.03008962868 | AI70: =cálculos1!O70 -> 6 | AJ70: 0.6 | AK70: =cálculos1!P70 -> 2 | AL70: 0.5
A71: Central | B71: São Roque do Canaã | C71: 131 | D71: 121 | E71: 47 | F71: 0.3884297521 | G71: 6 | H71: 0.04958677686 | I71: 0 | J71: 0 | K71: 48 | L71: 0.3966942149 | M71: 105 | N71: 0.867768595 | O71: 102 | P71: 0.8429752066 | Q71: 94 | R71: 0.7768595041 | S71: 109 | T71: 0.9008264463 | U71: 101 | V71: 0.8347107438 | W71: 95 | X71: 0.7851239669 | Y71: 109 | Z71: 0.9008264463 | AA71: 126 | AB71: 1.041322314 | AC71: 114 | AD71: 0.9421487603 | AF71: 5 | AG71: 0.04132231405 | AI71: =cálculos1!O71 -> 2 | AJ71: 0.2 | AK71: =cálculos1!P71 -> 1 | AL71: 0.25
A72: Metropolitana | B72: Serra | C72: 7550 | D72: 7009 | E72: 8192 | F72: 1.168782993 | G72: 6916 | H72: 0.9867313454 | I72: 5330 | J72: 0.7604508489 | K72: 7864 | L72: 1.121986018 | M72: 5435 | N72: 0.775431588 | O72: 5370 | P72: 0.7661577971 | Q72: 5684 | R72: 0.8109573406 | S72: 6002 | T72: 0.8563275788 | U72: 5658 | V72: 0.8072478242 | W72: 4440 | X72: 0.6334712512 | Y72: 5793 | Z72: 0.8265087744 | AA72: 6047 | AB72: 0.8627478956 | AC72: 4952 | AD72: 0.7065201883 | AF72: 132 | AG72: 0.01883292909 | AI72: =cálculos1!O72 -> 1 | AJ72: 0.1 | AK72: =cálculos1!P72 -> 0 | AL72: 0
A73: Central | B73: Sooretama | C73: 428 | D73: 391 | E73: 22 | F73: 0.05626598465 | G73: 1 | H73: 0.002557544757 | I73: 0 | J73: 0 | K73: 32 | L73: 0.08184143223 | M73: 337 | N73: 0.8618925831 | O73: 332 | P73: 0.8491048593 | Q73: 336 | R73: 0.8593350384 | S73: 377 | T73: 0.9641943734 | U73: 362 | V73: 0.925831202 | W73: 297 | X73: 0.7595907928 | Y73: 362 | Z73: 0.925831202 | AA73: 405 | AB73: 1.035805627 | AC73: 338 | AD73: 0.8644501279 | AF73: 2 | AG73: 0.005115089514 | AI73: =cálculos1!O73 -> 2 | AJ73: 0.2 | AK73: =cálculos1!P73 -> 1 | AL73: 0.25
A74: Sul | B74: Vargem Alta | C74: 270 | D74: 252 | E74: 17 | F74: 0.06746031746 | G74: 2 | H74: 0.007936507937 | I74: 0 | J74: 0 | K74: 31 | L74: 0.123015873 | M74: 231 | N74: 0.9166666667 | O74: 227 | P74: 0.9007936508 | Q74: 243 | R74: 0.9642857143 | S74: 247 | T74: 0.9801587302 | U74: 242 | V74: 0.9603174603 | W74: 196 | X74: 0.7777777778 | Y74: 228 | Z74: 0.9047619048 | AA74: 230 | AB74: 0.9126984127 | AC74: 239 | AD74: 0.9484126984 | AF74: 7 | AG74: 0.02777777778 | AI74: =cálculos1!O74 -> 3 | AJ74: 0.3 | AK74: =cálculos1!P74 -> 1 | AL74: 0.25
A75: Metropolitana | B75: Venda Nova do Imigrante | C75: 352 | D75: 323 | E75: 601 | F75: 1.860681115 | G75: 563 | H75: 1.743034056 | I75: 562 | J75: 1.73993808 | K75: 371 | L75: 1.148606811 | M75: 310 | N75: 0.959752322 | O75: 309 | P75: 0.9566563467 | Q75: 314 | R75: 0.9721362229 | S75: 326 | T75: 1.009287926 | U75: 314 | V75: 0.9721362229 | W75: 290 | X75: 0.8978328173 | Y75: 335 | Z75: 1.037151703 | AA75: 338 | AB75: 1.046439628 | AC75: 352 | AD75: 1.089783282 | AF75: 12 | AG75: 0.03715170279 | AI75: =cálculos1!O75 -> 9 | AJ75: 0.9 | AK75: =cálculos1!P75 -> 4 | AL75: 1
A76: Metropolitana | B76: Viana | C76: 863 | D76: 803 | E76: 194 | F76: 0.2415940224 | G76: 3 | H76: 0.003735990037 | I76: 1 | J76: 0.001245330012 | K76: 163 | L76: 0.202988792 | M76: 785 | N76: 0.9775840598 | O76: 733 | P76: 0.9128268991 | Q76: 789 | R76: 0.9825653798 | S76: 832 | T76: 1.03611457 | U76: 804 | V76: 1.00124533 | W76: 539 | X76: 0.6712328767 | Y76: 793 | Z76: 0.9875466999 | AA76: 906 | AB76: 1.128268991 | AC76: 613 | AD76: 0.7633872976 | AF76: 17 | AG76: 0.02117061021 | AI76: =cálculos1!O76 -> 6 | AJ76: 0.6 | AK76: =cálculos1!P76 -> 3 | AL76: 0.75
A77: Norte | B77: Vila Pavão | C77: 95 | D77: 91 | E77: 24 | F77: 0.2637362637 | G77: 2 | H77: 0.02197802198 | I77: 2 | J77: 0.02197802198 | K77: 47 | L77: 0.5164835165 | M77: 118 | N77: 1.296703297 | O77: 118 | P77: 1.296703297 | Q77: 106 | R77: 1.164835165 | S77: 110 | T77: 1.208791209 | U77: 119 | V77: 1.307692308 | W77: 98 | X77: 1.076923077 | Y77: 99 | Z77: 1.087912088 | AA77: 111 | AB77: 1.21978022 | AC77: 90 | AD77: 0.989010989 | AF77: 4 | AG77: 0.04395604396 | AI77: =cálculos1!O77 -> 9 | AJ77: 0.9 | AK77: =cálculos1!P77 -> 4 | AL77: 1
A78: Central | B78: Vila Valério | C78: 254 | D78: 236 | E78: 40 | F78: 0.1694915254 | G78: 0 | H78: 0 | I78: 0 | J78: 0 | K78: 53 | L78: 0.2245762712 | M78: 179 | N78: 0.7584745763 | O78: 181 | P78: 0.7669491525 | Q78: 171 | R78: 0.7245762712 | S78: 185 | T78: 0.7838983051 | U78: 177 | V78: 0.75 | W78: 178 | X78: 0.7542372881 | Y78: 245 | Z78: 1.038135593 | AA78: 238 | AB78: 1.008474576 | AC78: 235 | AD78: 0.9957627119 | AF78: 0 | AG78: 0 | AI78: =cálculos1!O78 -> 3 | AJ78: 0.3 | AK78: =cálculos1!P78 -> 1 | AL78: 0.25
A79: Metropolitana | B79: Vila Velha | C79: 5551 | D79: 5140 | E79: 3877 | F79: 0.7542801556 | G79: 2619 | H79: 0.5095330739 | I79: 1820 | J79: 0.3540856031 | K79: 3737 | L79: 0.7270428016 | M79: 3998 | N79: 0.7778210117 | O79: 3989 | P79: 0.7760700389 | Q79: 4299 | R79: 0.836381323 | S79: 4511 | T79: 0.8776264591 | U79: 4341 | V79: 0.8445525292 | W79: 3166 | X79: 0.6159533074 | Y79: 4349 | Z79: 0.8461089494 | AA79: 4434 | AB79: 0.8626459144 | AC79: 3938 | AD79: 0.7661478599 | AF79: 167 | AG79: 0.03249027237 | AI79: =cálculos1!O79 -> 0 | AJ79: 0 | AK79: =cálculos1!P79 -> 0 | AL79: 0
A80: Metropolitana | B80: Vitória | C80: 3544 | D80: 3269 | E80: 6110 | F80: 1.869073111 | G80: 5363 | H80: 1.640562863 | I80: 4424 | J80: 1.353319058 | K80: 6675 | L80: 2.041908841 | M80: 3698 | N80: 1.131232793 | O80: 3685 | P80: 1.127256042 | Q80: 3982 | R80: 1.218109514 | S80: 3808 | T80: 1.164882227 | U80: 3910 | V80: 1.196084429 | W80: 2360 | X80: 0.7219333129 | Y80: 3431 | Z80: 1.049556439 | AA80: 3726 | AB80: 1.139798103 | AC80: 3199 | AD80: 0.9785867238 | AF80: 189 | AG80: 0.05781584582 | AI80: =cálculos1!O80 -> 9 | AJ80: 0.9 | AK80: =cálculos1!P80 -> 4 | AL80: 1
B82: Total Norte | C82: =SUMIF($A$3:$A$80,"Norte",C$3:C$80) -> 5430 | D82: =SUMIF($A$3:$A$80,"Norte",D$3:D$80) -> 5055 | E82: =SUMIF($A$3:$A$80,"Norte",E$3:E$80) -> 4312 | F82: =E82/D82 -> 0.853016815 | G82: =SUMIF($A$3:$A$80,"Norte",G$3:G$80) -> 3674 | H82: =G82/D82 -> 0.7268051434 | I82: =SUMIF($A$3:$A$80,"Norte",I$3:I$80) -> 3370 | J82: =I82/D82 -> 0.6666666667 | K82: =SUMIF($A$3:$A$80,"Norte",K$3:K$80) -> 4227 | L82: =K82/D82 -> 0.8362017804 | M82: =SUMIF($A$3:$A$80,"Norte",M$3:M$80) -> 4706 | N82: =M82/D82 -> 0.9309594461 | O82: =SUMIF($A$3:$A$80,"Norte",O$3:O$80) -> 4638 | P82: =O82/D82 -> 0.9175074184 | Q82: =SUMIF($A$3:$A$80,"Norte",Q$3:Q$80) -> 4828 | R82: =Q82/D82 -> 0.9550939664 | S82: =SUMIF($A$3:$A$80,"Norte",S$3:S$80) -> 5033 | T82: =S82/D82 -> 0.9956478734 | U82: =SUMIF($A$3:$A$80,"Norte",U$3:U$80) -> 4844 | V82: =U82/D82 -> 0.9582591494 | W82: =SUMIF($A$3:$A$80,"Norte",W$3:W$80) -> 3908 | X82: =W82/D82 -> 0.7730959446 | Y82: =SUMIF($A$3:$A$80,"Norte",Y$3:Y$80) -> 4924 | Z82: =Y82/D82 -> 0.9740850643 | AA82: =SUMIF($A$3:$A$80,"Norte",AA$3:AA$80) -> 5182 | AB82: =AA82/D82 -> 1.02512364 | AC82: =SUMIF($A$3:$A$80,"Norte",AC$3:AC$80) -> 4594 | AD82: =AC82/D82 -> 0.9088031652 | AF82: =SUMIF($A$3:$A$80,"Norte",AF$3:AF$80) -> 96 | AG82: =AF82/D82 -> 0.01899109792 | AI82: =cálculos1!O82 -> 5 | AJ82: =AI82*0.1 -> 0.5 | AK82: =cálculos1!P82 -> 2 | AL82: 0.5
B83: Total Central | C83: =SUMIF($A$3:$A$80,"Central",C$3:C$80) -> 7049 | D83: =SUMIF($A$3:$A$80,"Central",D$3:D$80) -> 6466 | E83: =SUMIF($A$3:$A$80,"Central",E$3:E$80) -> 6925 | F83: =E83/D83 -> 1.0709867 | G83: =SUMIF($A$3:$A$80,"Central",G$3:G$80) -> 5005 | H83: =G83/D83 -> 0.774048871 | I83: =SUMIF($A$3:$A$80,"Central",I$3:I$80) -> 4292 | J83: =I83/D83 -> 0.6637797711 | K83: =SUMIF($A$3:$A$80,"Central",K$3:K$80) -> 7067 | L83: =K83/D83 -> 1.092947727 | M83: =SUMIF($A$3:$A$80,"Central",M$3:M$80) -> 5700 | N83: =M83/D83 -> 0.8815341788 | O83: =SUMIF($A$3:$A$80,"Central",O$3:O$80) -> 5642 | P83: =O83/D83 -> 0.8725641819 | Q83: =SUMIF($A$3:$A$80,"Central",Q$3:Q$80) -> 5720 | R83: =Q83/D83 -> 0.8846272812 | S83: =SUMIF($A$3:$A$80,"Central",S$3:S$80) -> 5979 | T83: =S83/D83 -> 0.924682957 | U83: =SUMIF($A$3:$A$80,"Central",U$3:U$80) -> 5930 | V83: =U83/D83 -> 0.9171048562 | W83: =SUMIF($A$3:$A$80,"Central",W$3:W$80) -> 4821 | X83: =W83/D83 -> 0.7455923291 | Y83: =SUMIF($A$3:$A$80,"Central",Y$3:Y$80) -> 5885 | Z83: =Y83/D83 -> 0.9101453758 | AA83: =SUMIF($A$3:$A$80,"Central",AA$3:AA$80) -> 6209 | AB83: =AA83/D83 -> 0.9602536344 | AC83: =SUMIF($A$3:$A$80,"Central",AC$3:AC$80) -> 5580 | AD83: =AC83/D83 -> 0.8629755645 | AF83: =SUMIF($A$3:$A$80,"Central",AF$3:AF$80) -> 63 | AG83: =AF83/D83 -> 0.009743272502 | AI83: =cálculos1!O83 -> 3 | AJ83: =AI83*0.1 -> 0.3 | AK83: =cálculos1!P83 -> 1 | AL83: 0.25
B84: Total Metropolitana | C84: =SUMIF($A$3:$A$80,"Metropolitana",C$3:C$80) -> 29453 | D84: =SUMIF($A$3:$A$80,"Metropolitana",D$3:D$80) -> 27269 | E84: =SUMIF($A$3:$A$80,"Metropolitana",E$3:E$80) -> 25556 | F84: =E84/D84 -> 0.9371814148 | G84: =SUMIF($A$3:$A$80,"Metropolitana",G$3:G$80) -> 19930 | H84: =G84/D84 -> 0.7308665518 | I84: =SUMIF($A$3:$A$80,"Metropolitana",I$3:I$80) -> 15246 | J84: 0.5590964098 | K84: =SUMIF($A$3:$A$80,"Metropolitana",K$3:K$80) -> 25631 | L84: =K84/D84 -> 0.9399317907 | M84: =SUMIF($A$3:$A$80,"Metropolitana",M$3:M$80) -> 23521 | N84: =M84/D84 -> 0.8625545491 | O84: =SUMIF($A$3:$A$80,"Metropolitana",O$3:O$80) -> 23309 | P84: =O84/D84 -> 0.8547801533 | Q84: =SUMIF($A$3:$A$80,"Metropolitana",Q$3:Q$80) -> 24112 | R84: =Q84/D84 -> 0.8842275111 | S84: =SUMIF($A$3:$A$80,"Metropolitana",S$3:S$80) -> 25365 | T84: =S84/D84 -> 0.9301771242 | U84: =SUMIF($A$3:$A$80,"Metropolitana",U$3:U$80) -> 24589 | V84: =U84/D84 -> 0.9017199017 | W84: =SUMIF($A$3:$A$80,"Metropolitana",W$3:W$80) -> 18349 | X84: =W84/D84 -> 0.6728886281 | Y84: =SUMIF($A$3:$A$80,"Metropolitana",Y$3:Y$80) -> 24532 | Z84: =Y84/D84 -> 0.899629616 | AA84: =SUMIF($A$3:$A$80,"Metropolitana",AA$3:AA$80) -> 25679 | AB84: =AA84/D84 -> 0.9416920312 | AC84: =SUMIF($A$3:$A$80,"Metropolitana",AC$3:AC$80) -> 22272 | AD84: =AC84/D84 -> 0.8167516227 | AF84: =SUMIF($A$3:$A$80,"Metropolitana",AF$3:AF$80) -> 839 | AG84: 0.03076753823 | AI84: =cálculos1!O84 -> 2 | AJ84: 0.2 | AK84: =cálculos1!P84 -> 0 | AL84: 0
B85: Total Sul | C85: =SUMIF($A$3:$A$80,"sul",C$3:C$80) -> 8116 | D85: =SUMIF($A$3:$A$80,"sul",D$3:D$80) -> 7444 | E85: =SUMIF($A$3:$A$80,"Sul",E$3:E$80) -> 6993 | F85: =E85/D85 -> 0.9394142934 | G85: =SUMIF($A$3:$A$80,"Sul",G$3:G$80) -> 5374 | H85: =G85/D85 -> 0.7219236969 | I85: =SUMIF($A$3:$A$80,"Sul",I$3:I$80) -> 3746 | J85: 0.5032240731 | K85: =SUMIF($A$3:$A$80,"Sul",K$3:K$80) -> 7245 | L85: =K85/D85 -> 0.9732670607 | M85: =SUMIF($A$3:$A$80,"Sul",M$3:M$80) -> 7002 | N85: =M85/D85 -> 0.9406233208 | O85: =SUMIF($A$3:$A$80,"Sul",O$3:O$80) -> 6850 | P85: =O85/D85 -> 0.9202041913 | Q85: =SUMIF($A$3:$A$80,"Sul",Q$3:Q$80) -> 7041 | R85: =Q85/D85 -> 0.9458624395 | S85: =SUMIF($A$3:$A$80,"Sul",S$3:S$80) -> 7346 | T85: =S85/D85 -> 0.9868350349 | U85: =SUMIF($A$3:$A$80,"Sul",U$3:U$80) -> 7097 | V85: =U85/D85 -> 0.9533852767 | W85: =SUMIF($A$3:$A$80,"Sul",W$3:W$80) -> 5648 | X85: =W85/D85 -> 0.7587318646 | Y85: =SUMIF($A$3:$A$80,"Sul",Y$3:Y$80) -> 7177 | Z85: =Y85/D85 -> 0.964132187 | AA85: =SUMIF($A$3:$A$80,"Sul",AA$3:AA$80) -> 7525 | AB85: =AA85/D85 -> 1.010881247 | AC85: =SUMIF($A$3:$A$80,"Sul",AC$3:AC$80) -> 6944 | AD85: =AC85/D85 -> 0.9328318109 | AF85: =SUMIF($A$3:$A$80,"Sul",AF$3:AF$80) -> 208 | AG85: 0.02794196668 | AI85: =cálculos1!O85 -> 5 | AJ85: 0.5 | AK85: =cálculos1!P85 -> 1 | AL85: 0.25
B86: Total Espírito Santo | C86: =SUM(C3:C80) -> 50048 | D86: =SUM(D3:D80) -> 46234 | E86: =SUM(E82:E85) -> 43786 | F86: =E86/D86 -> 0.9470519531 | G86: =SUM(G82:G85) -> 33983 | H86: =G86/D86 -> 0.7350218454 | I86: =SUM(I82:I85) -> 26654 | J86: 0.5765021413 | K86: =SUM(K82:K85) -> 44170 | L86: =K86/D86 -> 0.9553575291 | M86: =SUM(M82:M85) -> 40929 | N86: =M86/D86 -> 0.8852576026 | O86: =SUM(O82:O85) -> 40439 | P86: =O86/D86 -> 0.8746593416 | Q86: =SUM(Q82:Q85) -> 41701 | R86: =Q86/D86 -> 0.901955271 | S86: =SUM(S82:S85) -> 43723 | T86: =S86/D86 -> 0.9456893195 | U86: =SUM(U82:U85) -> 42460 | V86: =U86/D86 -> 0.918371761 | W86: =SUM(W82:W85) -> 32726 | X86: =W86/D86 -> 0.7078340615 | Y86: =SUM(Y82:Y85) -> 42518 | Z86: =Y86/D86 -> 0.9196262491 | AA86: =SUM(AA82:AA85) -> 44595 | AB86: =AA86/D86 -> 0.9645498983 | AC86: =SUM(AC82:AC85) -> 39390 | AD86: =AC86/D86 -> 0.8519704114 | AF86: =SUM(AF82:AF85) -> 1206 | AG86: 0.02608469957 | AI86: =cálculos1!O86 -> 3 | AJ86: 0.3 | AK86: =cálculos1!P86 -> 1 | AL86: 0.25
E87: =COUNTIF(F3:F80,">=0,95") -> 9 | G87: =COUNTIF(H3:H80,">=0,95") -> 9 | I87: =COUNTIF(J3:J80,">=0,95") -> 7 | K87: =COUNTIF(L3:L80,">=0,9") -> 10 | M87: =COUNTIF(N3:N80,">=0,95") -> 32 | O87: =COUNTIF(P3:P80,">=0,95") -> 28 | Q87: =COUNTIF(R3:R80,">=0,95") -> 29 | S87: =COUNTIF(T3:T80,">=0,9") -> 61 | U87: =COUNTIF(V3:V80,">=0,95") -> 34 | W87: =COUNTIF(X3:X80,">=0,95") -> 8 | Y87: =COUNTIF(Z3:Z80,">=0,95") -> 48 | AA87: =COUNTIF(AB3:AB80,">=0,95") -> 59 | AC87: =COUNTIF(AD3:AD80,">=0,95") -> 41 | AF87: =COUNTIF(AG3:AG80,">=0,9") -> 0
B88: HOMOGENEIDADE ENTRE MUNICÍPIOS | E88: =E87/78 -> 0.1153846154 | G88: =G87/78 -> 0.1153846154 | I88: =I87/78 -> 0.08974358974 | K88: =K87/78 -> 0.1282051282 | M88: =M87/78 -> 0.4102564103 | O88: =O87/78 -> 0.358974359 | Q88: =Q87/78 -> 0.3717948718 | S88: =S87/78 -> 0.7820512821 | U88: =U87/78 -> 0.4358974359 | W88: =W87/78 -> 0.1025641026 | Y88: =Y87/78 -> 0.6153846154 | AA88: =AA87/78 -> 0.7564102564 | AC88: =AC87/78 -> 0.5256410256 | AF88: =AF87/78 -> 0
A90: Fonte: Vacina e Confia, em 22 e 23 de Dezembro de 2025.**<https://vacinaeconfia.saude.es.gov.br/>
A91: **Dados referente às doses aplicadas no período de Janeiro a Novembro 2025
A92: Cobertura Calculada por município de procedência/ocorrência da vacinação
A93: 1 População anual extraída do MS/SVS/DASIS - SINASC/DASIS/SVS/MS 2024 (hoje preliminares) referente ao período de Outubro a Dezembro de 2024 e SINASC/DASIS/SVS/MS 2025 referente ao período de Janeiro e Setembro de 2025.
A94: ² População proporcional extraída do MS/SVS/DASIS - SINASC/DASIS/SVS/MS 2024 (hoje preliminares) referente ao período de Outubro e Novembro 2024 e SINASC/DASIS/SVS/MS 2024 (hoje preliminares) referente ao período de Janeiro a Setembro/ 2025.
A95: Sinasc, atualizado em 11/12/2025
A96: Método de Cálculo Simples
A97: Homogeineidade: O cálculo da Homogeineidade entre vacinas é feito de acordo com a pactuação estabelecida no Plano Plurianual (PPA) vigente no período 2024-2027.
A100: Observações:
A101: 1. Imunobiológicos que foram recebidos parcialmente pelo estado no mês de Novembro/2025, sendo distribuídos em quantidades reduzidas às regionais e municípios:
A102: SORO ANTIRRÁBICO HUMANO; IMUNOGLOBULINA ANTIRRÁBICA HUMANA.
A103: 2. Imunobiológicos indisponíveis no mês de Novembro/2025, não sendo possível a distribuição às regionais e municípios:
A104: IMUNOGLOBULINA HUMANA ANTI-HEPATITE B - 100 UI, VACINA TETRA VIRAL, IMUNOGLOBULINA HUMANA ANTIVARICELA (ZOSTER) – 125UI
A105: 3. Imunobiológicos distribuídos através de pautas: VACINA COVID-19 PFIZER PEDIÁTRICA MENOR QUE 5 ANOS,VACINA COVID-19 PFIZER ADULTO E ADOLESCENTE A PARTIR DE 12 ANOS, VACINA COVID-19 PFIZER PEDIÁTRICA, VACINA CONTRA DENGUE 1,2,3 E 4 (ATENUADA).

Sheet CV Rotina <2A - residência
E1: AO NASCER | M1: MENOR DE 1 ANO | Y1: 1 ANO | AF1: MENOR DE 1 ANO
A2: Regional | B2: Município | C2: ¹População < 1 ano e 1 ano anual | D2: ²População < 1 ano e 1 ano proporcional | E2: Doses Aplicadas HB ≤30 dias | F2: Cobertura Vacinal HB até 30 dias | G2: Doses Aplicadas HB ≤2 dias | H2: Cobertura Vacinal HB até 2 dias | I2: Doses Aplicadas HB ≤1 dia | J2: Cobertura Vacinal HB até 1 dia | K2: Doses Aplicadas BCG | L2: Cobertura Vacinal BCG | M2: Doses Aplicadas Pentavalente | N2: Cobertura Vacinal Pentavalente | O2: Doses Aplicadas Poliomielite | P2: Cobertura Vacinal Poliomielite | Q2: Doses Aplicadas Pneumo 10 | R2: Cobertura Vacinal Pneumo 10 | S2: Doses Aplicadas Rotavírus | T2: Cobertura Vacinal Rotavírus | U2: Doses Aplicadas Meningo C | V2: Cobertura Vacinal Meningo C | W2: Doses Aplicadas Febre Amarela | X2: Cobertura Vacinal Febre Amarela | Y2: Doses Aplicadas Hepatite A | Z2: Cobertura Vacinal Hepatite A | AA2: Doses Aplicadas de Tríplice Viral | AB2: Cobertura Vacinal Tríplice Viral | AC2: Doses Aplicadas Varicela | AD2: Cobertura Varicela | AF2: Doses Aplicadas COVID-19 | AG2: Cobertura Vacinal COVID-19 D1 | AI2: VACINAS QUE ATINGIRAM A META DE CV | AJ2: HOMOGENEIDADE ENTRE AS 10 VACINAS | AK2: VACINAS DO PQA-VS QUE ATINGIRAM A META DE CV | AL2: HOMOGENEIDADE ENTRE AS VACINAS DO PQA-VS
A3: Metropolitana | B3: Afonso Cláudio | C3: 359 | D3: 332 | E3: 317 | F3: =E3/D3 -> 0.9548192771 | G3: 264 | H3: =G3/D3 -> 0.7951807229 | I3: 214 | J3: =I3/D3 -> 0.6445783133 | K3: 316 | L3: =K3/D3 -> 0.9518072289 | M3: 322 | N3: =M3/D3 -> 0.9698795181 | O3: 319 | P3: =O3/D3 -> 0.9608433735 | Q3: 307 | R3: =Q3/D3 -> 0.9246987952 | S3: 315 | T3: =S3/D3 -> 0.9487951807 | U3: 319 | V3: =U3/D3 -> 0.9608433735 | W3: 281 | X3: =W3/D3 -> 0.8463855422 | Y3: 346 | Z3: =Y3/D3 -> 1.042168675 | AA3: 337 | AB3: =AA3/D3 -> 1.015060241 | AC3: 367 | AD3: =AC3/D3 -> 1.105421687 | AF3: 1 | AG3: =AF3/D3 -> 0.003012048193 | AI3: =cálculos2!O3 -> 8 | AJ3: =AI3*0.1 -> 0.8 | AK3: =cálculos2!P3 -> 3 | AL3: =AK3*0.25 -> 0.75 | AN3: LEGENDA / HOMOGENEIDADE PQA-VS
A4: Norte | B4: Água Doce do Norte | C4: 145 | D4: 139 | E4: 118 | F4: =E4/D4 -> 0.8489208633 | G4: 74 | H4: =G4/D4 -> 0.5323741007 | I4: 64 | J4: =I4/D4 -> 0.4604316547 | K4: 121 | L4: =K4/D4 -> 0.8705035971 | M4: 117 | N4: 0.8417266187 | O4: 117 | P4: 0.8417266187 | Q4: 101 | R4: 0.726618705 | S4: 98 | T4: 0.7050359712 | U4: 118 | V4: 0.8489208633 | W4: 126 | X4: 0.9064748201 | Y4: 144 | Z4: 1.035971223 | AA4: 158 | AB4: 1.136690647 | AC4: 100 | AD4: 0.7194244604 | AF4: 1 | AG4: =AF4/D4 -> 0.007194244604 | AI4: =cálculos2!O4 -> 2 | AJ4: =AI4*0.1 -> 0.2 | AK4: =cálculos2!P4 -> 1 | AL4: =AK4*0.25 -> 0.25 | AN4: PERCENTUAL | AO4: Nº DE MUNICÍPIOS
A5: Central | B5: Águia Branca | C5: 165 | D5: 153 | E5: 152 | F5: 0.9934640523 | G5: 77 | H5: 0.5032679739 | I5: 66 | J5: 0.431372549 | K5: 150 | L5: 0.9803921569 | M5: 140 | N5: 0.9150326797 | O5: 141 | P5: 0.9215686275 | Q5: 135 | R5: 0.8823529412 | S5: 139 | T5: 0.908496732 | U5: 137 | V5: 0.8954248366 | W5: 113 | X5: 0.7385620915 | Y5: 136 | Z5: 0.8888888889 | AA5: 140 | AB5: 0.9150326797 | AC5: 143 | AD5: 0.9346405229 | AF5: 1 | AG5: 0.006535947712 | AI5: =cálculos2!O5 -> 2 | AJ5: 0.2 | AK5: =cálculos2!P5 -> 0 | AL5: 0 | AN5: 0 | AO5: =COUNTIF($AL$3:$AL$80,"=0") -> 16
A6: Sul | B6: Alegre | C6: 322 | D6: 292 | E6: 254 | F6: 0.8698630137 | G6: 148 | H6: 0.5068493151 | I6: 90 | J6: 0.3082191781 | K6: 251 | L6: 0.8595890411 | M6: 272 | N6: 0.9315068493 | O6: 262 | P6: 0.897260274 | Q6: 257 | R6: 0.8801369863 | S6: 272 | T6: 0.9315068493 | U6: 279 | V6: 0.9554794521 | W6: 242 | X6: 0.8287671233 | Y6: 309 | Z6: 1.058219178 | AA6: 304 | AB6: 1.04109589 | AC6: 327 | AD6: 1.119863014 | AF6: 16 | AG6: 0.05479452055 | AI6: =cálculos2!O6 -> 5 | AJ6: 0.5 | AK6: =cálculos2!P6 -> 1 | AL6: 0.25 | AN6: 0.25 | AO6: =COUNTIF($AL$3:$AL$80,"=0,25") -> 24
A7: Sul | B7: Alfredo Chaves | C7: 119 | D7: 104 | E7: 108 | F7: 1.038461538 | G7: 89 | H7: 0.8557692308 | I7: 72 | J7: 0.6923076923 | K7: 107 | L7: 1.028846154 | M7: 101 | N7: 0.9711538462 | O7: 100 | P7: 0.9615384615 | Q7: 89 | R7: 0.8557692308 | S7: 102 | T7: 0.9807692308 | U7: 96 | V7: 0.9230769231 | W7: 85 | X7: 0.8173076923 | Y7: 112 | Z7: 1.076923077 | AA7: 104 | AB7: 1 | AC7: 117 | AD7: 1.125 | AF7: 1 | AG7: 0.009615384615 | AI7: =cálculos2!O7 -> 7 | AJ7: 0.7 | AK7: =cálculos2!P7 -> 3 | AL7: 0.75 | AN7: 0.5 | AO7: =COUNTIF($AL$3:$AL$80,"=0,5") -> 2
A8: Central | B8: Alto Rio Novo | C8: 99 | D8: 92 | E8: 83 | F8: 0.902173913 | G8: 51 | H8: 0.5543478261 | I8: 47 | J8: 0.5108695652 | K8: 91 | L8: 0.9891304348 | M8: 84 | N8: 0.9130434783 | O8: 84 | P8: 0.9130434783 | Q8: 94 | R8: 1.02173913 | S8: 95 | T8: 1.032608696 | U8: 91 | V8: 0.9891304348 | W8: 80 | X8: 0.8695652174 | Y8: 86 | Z8: 0.9347826087 | AA8: 87 | AB8: 0.9456521739 | AC8: 92 | AD8: 1 | AF8: 0 | AG8: 0 | AI8: =cálculos2!O8 -> 5 | AJ8: 0.5 | AK8: =cálculos2!P8 -> 1 | AL8: 0.25 | AN8: 0.75 | AO8: =COUNTIF($AL$3:$AL$80,"=0,75") -> 13
A9: Sul | B9: Anchieta | C9: 334 | D9: 308 | E9: 312 | F9: 1.012987013 | G9: 277 | H9: 0.8993506494 | I9: 214 | J9: 0.6948051948 | K9: 321 | L9: 1.042207792 | M9: 350 | N9: 1.136363636 | O9: 348 | P9: 1.12987013 | Q9: 347 | R9: 1.126623377 | S9: 354 | T9: 1.149350649 | U9: 354 | V9: 1.149350649 | W9: 285 | X9: 0.9253246753 | Y9: 348 | Z9: 1.12987013 | AA9: 380 | AB9: 1.233766234 | AC9: 351 | AD9: 1.13961039 | AF9: 20 | AG9: 0.06493506494 | AI9: =cálculos2!O9 -> 9 | AJ9: 0.9 | AK9: =cálculos2!P9 -> 4 | AL9: 1 | AN9: 1 | AO9: =COUNTIF($AL$3:$AL$80,"=1,0") -> 23
A10: Sul | B10: Apiacá | C10: 64 | D10: 57 | E10: 16 | F10: 0.2807017544 | G10: 9 | H10: 0.1578947368 | I10: 4 | J10: 0.0701754386 | K10: 58 | L10: 1.01754386 | M10: 61 | N10: 1.070175439 | O10: 58 | P10: 1.01754386 | Q10: 56 | R10: 0.9824561404 | S10: 54 | T10: 0.9473684211 | U10: 59 | V10: 1.035087719 | W10: 47 | X10: 0.8245614035 | Y10: 55 | Z10: 0.9649122807 | AA10: 57 | AB10: 1 | AC10: 62 | AD10: 1.087719298 | AF10: 0 | AG10: 0 | AI10: =cálculos2!O10 -> 9 | AJ10: 0.9 | AK10: =cálculos2!P10 -> 4 | AL10: 1
A11: Metropolitana | B11: Aracruz | C11: 1420 | D11: 1316 | E11: 1290 | F11: 0.9802431611 | G11: 842 | H11: 0.6398176292 | I11: 555 | J11: 0.4217325228 | K11: 1296 | L11: 0.9848024316 | M11: 1155 | N11: 0.8776595745 | O11: 1151 | P11: 0.8746200608 | Q11: 1146 | R11: 0.8708206687 | S11: 1241 | T11: 0.9430091185 | U11: 1175 | V11: 0.8928571429 | W11: 956 | X11: 0.726443769 | Y11: 1267 | Z11: 0.9627659574 | AA11: 1321 | AB11: 1.003799392 | AC11: 1273 | AD11: 0.967325228 | AF11: 55 | AG11: 0.04179331307 | AI11: =cálculos2!O11 -> 5 | AJ11: 0.5 | AK11: =cálculos2!P11 -> 1 | AL11: 0.25
A12: Sul | B12: Atilio Vivacqua | C12: 148 | D12: 131 | E12: 129 | F12: 0.9847328244 | G12: 120 | H12: 0.9160305344 | I12: 71 | J12: 0.5419847328 | K12: 129 | L12: 0.9847328244 | M12: 161 | N12: 1.229007634 | O12: 159 | P12: 1.213740458 | Q12: 157 | R12: 1.198473282 | S12: 160 | T12: 1.221374046 | U12: 162 | V12: 1.236641221 | W12: 146 | X12: 1.114503817 | Y12: 148 | Z12: 1.129770992 | AA12: 161 | AB12: 1.229007634 | AC12: 146 | AD12: 1.114503817 | AF12: 4 | AG12: 0.03053435115 | AI12: =cálculos2!O12 -> 10 | AJ12: 1 | AK12: =cálculos2!P12 -> 4 | AL12: 1 | AN12: LEGENDA / HOMOGENEIDADE 10 VACINAS
A13: Central | B13: Baixo Guandu | C13: 354 | D13: 324 | E13: 267 | F13: 0.8240740741 | G13: 179 | H13: 0.5524691358 | I13: 159 | J13: 0.4907407407 | K13: 337 | L13: 1.040123457 | M13: 302 | N13: 0.9320987654 | O13: 301 | P13: 0.9290123457 | Q13: 307 | R13: 0.9475308642 | S13: 314 | T13: 0.9691358025 | U13: 307 | V13: 0.9475308642 | W13: 264 | X13: 0.8148148148 | Y13: 341 | Z13: 1.052469136 | AA13: 331 | AB13: 1.021604938 | AC13: 323 | AD13: 0.9969135802 | AF13: 0 | AG13: 0 | AI13: =cálculos2!O13 -> 5 | AJ13: 0.5 | AK13: =cálculos2!P13 -> 1 | AL13: 0.25 | AN13: PERCENTUAL | AO13: Nº DE MUNICÍPIOS
A14: Norte | B14: Barra de São Francisco | C14: 622 | D14: 570 | E14: 469 | F14: 0.8228070175 | G14: 296 | H14: 0.5192982456 | I14: 259 | J14: 0.4543859649 | K14: 478 | L14: 0.8385964912 | M14: 478 | N14: 0.8385964912 | O14: 468 | P14: 0.8210526316 | Q14: 476 | R14: 0.8350877193 | S14: 490 | T14: 0.8596491228 | U14: 479 | V14: 0.8403508772 | W14: 387 | X14: 0.6789473684 | Y14: 454 | Z14: 0.7964912281 | AA14: 493 | AB14: 0.8649122807 | AC14: 489 | AD14: 0.8578947368 | AF14: 0 | AG14: 0 | AI14: =cálculos2!O14 -> 0 | AJ14: 0 | AK14: =cálculos2!P14 -> 0 | AL14: 0 | AN14: 0 | AO14: =COUNTIF($AJ$3:$AJ$80,"=0") -> 3
A15: Norte | B15: Boa Esperança | C15: 209 | D15: 191 | E15: 177 | F15: 0.9267015707 | G15: 166 | H15: 0.8691099476 | I15: 149 | J15: 0.780104712 | K15: 172 | L15: 0.9005235602 | M15: 171 | N15: 0.8952879581 | O15: 171 | P15: 0.8952879581 | Q15: 184 | R15: 0.9633507853 | S15: 183 | T15: 0.9581151832 | U15: 173 | V15: 0.9057591623 | W15: 147 | X15: 0.7696335079 | Y15: 170 | Z15: 0.890052356 | AA15: 179 | AB15: 0.9371727749 | AC15: 162 | AD15: 0.8481675393 | AF15: 2 | AG15: 0.01047120419 | AI15: =cálculos2!O15 -> 3 | AJ15: 0.3 | AK15: =cálculos2!P15 -> 1 | AL15: 0.25 | AN15: 0.1 | AO15: =COUNTIFS($AJ$3:$AJ$80,">=0,10",$AJ$3:$AJ$80,"<0,20") -> 5
A16: Sul | B16: Bom Jesus do Norte | C16: 72 | D16: 67 | E16: 44 | F16: 0.6567164179 | G16: 10 | H16: 0.1492537313 | I16: 5 | J16: 0.07462686567 | K16: 88 | L16: 1.313432836 | M16: 92 | N16: 1.373134328 | O16: 92 | P16: 1.373134328 | Q16: 99 | R16: 1.47761194 | S16: 102 | T16: 1.52238806 | U16: 94 | V16: 1.402985075 | W16: 74 | X16: 1.104477612 | Y16: 93 | Z16: 1.388059701 | AA16: 95 | AB16: 1.417910448 | AC16: 89 | AD16: 1.328358209 | AF16: 6 | AG16: 0.08955223881 | AI16: =cálculos2!O16 -> 10 | AJ16: 1 | AK16: =cálculos2!P16 -> 4 | AL16: 1 | AN16: 0.2 | AO16: =COUNTIFS($AJ$3:$AJ$80,">=0,20",$AJ$3:$AJ$80,"<0,30") -> 10
A17: Metropolitana | B17: Brejetuba | C17: 227 | D17: 213 | E17: 165 | F17: 0.7746478873 | G17: 145 | H17: 0.6807511737 | I17: 130 | J17: 0.6103286385 | K17: 168 | L17: 0.7887323944 | M17: 183 | N17: 0.8591549296 | O17: 191 | P17: 0.896713615 | Q17: 188 | R17: 0.882629108 | S17: 204 | T17: 0.9577464789 | U17: 195 | V17: 0.9154929577 | W17: 168 | X17: 0.7887323944 | Y17: 181 | Z17: 0.8497652582 | AA17: 196 | AB17: 0.9201877934 | AC17: 210 | AD17: 0.985915493 | AF17: 2 | AG17: 0.009389671362 | AI17: =cálculos2!O17 -> 2 | AJ17: 0.2 | AK17: =cálculos2!P17 -> 0 | AL17: 0 | AN17: 0.3 | AO17: =COUNTIFS($AJ$3:$AJ$80,">=0,30",$AJ$3:$AJ$80,"<0,40") -> 9
A18: Sul | B18: Cachoeiro de Itapemirim | C18: 2386 | D18: 2179 | E18: 2125 | F18: 0.9752179899 | G18: 1845 | H18: 0.8467186783 | I18: 1223 | J18: 0.5612666361 | K18: 2134 | L18: 0.9793483249 | M18: 1917 | N18: 0.8797613584 | O18: 1897 | P18: 0.8705828362 | Q18: 1951 | R18: 0.8953648463 | S18: 2058 | T18: 0.9444699403 | U18: 1941 | V18: 0.8907755851 | W18: 1449 | X18: 0.6649839376 | Y18: 1998 | Z18: 0.9169343736 | AA18: 2171 | AB18: 0.9963285911 | AC18: 1949 | AD18: 0.894446994 | AF18: 60 | AG18: 0.02753556677 | AI18: =cálculos2!O18 -> 3 | AJ18: 0.3 | AK18: =cálculos2!P18 -> 1 | AL18: 0.25 | AN18: 0.4 | AO18: =COUNTIFS($AJ$3:$AJ$80,">=0,40",$AJ$3:$AJ$80,"<0,50") -> 6
A19: Metropolitana | B19: Cariacica | C19: 4738 | D19: 4375 | E19: 4019 | F19: 0.9186285714 | G19: 2835 | H19: 0.648 | I19: 1913 | J19: 0.4372571429 | K19: 4051 | L19: 0.9259428571 | M19: 3642 | N19: 0.8324571429 | O19: 3603 | P19: 0.8235428571 | Q19: 3555 | R19: 0.8125714286 | S19: 3906 | T19: 0.8928 | U19: 3832 | V19: 0.8758857143 | W19: 2797 | X19: 0.6393142857 | Y19: 3872 | Z19: 0.8850285714 | AA19: 4072 | AB19: 0.9307428571 | AC19: 3344 | AD19: 0.7643428571 | AF19: 131 | AG19: 0.02994285714 | AI19: =cálculos2!O19 -> 1 | AJ19: 0.1 | AK19: =cálculos2!P19 -> 0 | AL19: 0 | AN19: 0.5 | AO19: =COUNTIFS($AJ$3:$AJ$80,">=0,50",$AJ$3:$AJ$80,"<0,60") -> 8
A20: Sul | B20: Castelo | C20: 383 | D20: 342 | E20: 386 | F20: 1.128654971 | G20: 305 | H20: 0.8918128655 | I20: 218 | J20: 0.6374269006 | K20: 389 | L20: 1.137426901 | M20: 369 | N20: 1.078947368 | O20: 362 | P20: 1.058479532 | Q20: 347 | R20: 1.014619883 | S20: 377 | T20: 1.102339181 | U20: 372 | V20: 1.087719298 | W20: 328 | X20: 0.9590643275 | Y20: 405 | Z20: 1.184210526 | AA20: 396 | AB20: 1.157894737 | AC20: 360 | AD20: 1.052631579 | AF20: 5 | AG20: 0.01461988304 | AI20: =cálculos2!O20 -> 10 | AJ20: 1 | AK20: =cálculos2!P20 -> 4 | AL20: 1 | AN20: 0.6 | AO20: =COUNTIFS($AJ$3:$AJ$80,">=0,60",$AJ$3:$AJ$80,"<0,70") -> 4
A21: Central | B21: Colatina | C21: 1485 | D21: 1358 | E21: 1334 | F21: 0.9823269514 | G21: 775 | H21: 0.5706921944 | I21: 651 | J21: 0.4793814433 | K21: 1358 | L21: 1 | M21: 1174 | N21: 0.8645066274 | O21: 1170 | P21: 0.8615611193 | Q21: 1131 | R21: 0.8328424153 | S21: 1227 | T21: 0.9035346097 | U21: 1228 | V21: 0.9042709867 | W21: 988 | X21: 0.7275405007 | Y21: 1211 | Z21: 0.8917525773 | AA21: 1313 | AB21: 0.9668630339 | AC21: 1141 | AD21: 0.8402061856 | AF21: 23 | AG21: 0.01693667158 | AI21: =cálculos2!O21 -> 3 | AJ21: 0.3 | AK21: =cálculos2!P21 -> 1 | AL21: 0.25 | AN21: 0.7 | AO21: =COUNTIFS($AJ$3:$AJ$80,">=0,70",$AJ$3:$AJ$80,"<0,80") -> 5
A22: Norte | B22: Conceição da Barra | C22: 343 | D22: 327 | E22: 333 | F22: 1.018348624 | G22: 310 | H22: 0.9480122324 | I22: 269 | J22: 0.8226299694 | K22: 321 | L22: 0.9816513761 | M22: 339 | N22: 1.036697248 | O22: 340 | P22: 1.039755352 | Q22: 347 | R22: 1.06116208 | S22: 353 | T22: 1.079510703 | U22: 351 | V22: 1.073394495 | W22: 306 | X22: 0.9357798165 | Y22: 396 | Z22: 1.211009174 | AA22: 400 | AB22: 1.22324159 | AC22: 388 | AD22: 1.186544343 | AF22: 6 | AG22: 0.01834862385 | AI22: =cálculos2!O22 -> 9 | AJ22: 0.9 | AK22: =cálculos2!P22 -> 4 | AL22: 1 | AN22: 0.8 | AO22: =COUNTIFS($AJ$3:$AJ$80,">=0,80",$AJ$3:$AJ$80,"<0,90") -> 9
A23: Metropolitana | B23: Conceição do Castelo | C23: 187 | D23: 171 | E23: 145 | F23: 0.8479532164 | G23: 131 | H23: 0.7660818713 | I23: 126 | J23: 0.7368421053 | K23: 143 | L23: 0.8362573099 | M23: 135 | N23: 0.7894736842 | O23: 126 | P23: 0.7368421053 | Q23: 100 | R23: 0.5847953216 | S23: 148 | T23: 0.865497076 | U23: 138 | V23: 0.8070175439 | W23: 116 | X23: 0.6783625731 | Y23: 112 | Z23: 0.6549707602 | AA23: 132 | AB23: 0.7719298246 | AC23: 132 | AD23: 0.7719298246 | AF23: 3 | AG23: 0.01754385965 | AI23: =cálculos2!O23 -> 0 | AJ23: 0 | AK23: =cálculos2!P23 -> 0 | AL23: 0 | AN23: 0.9 | AO23: =COUNTIFS($AJ$3:$AJ$80,">=0,90",$AJ$3:$AJ$80,"<1,0") -> 12
A24: Sul | B24: Divino de São Lourenço | C24: 67 | D24: 62 | E24: 68 | F24: 1.096774194 | G24: 19 | H24: 0.3064516129 | I24: 12 | J24: 0.1935483871 | K24: 67 | L24: 1.080645161 | M24: 43 | N24: 0.6935483871 | O24: 44 | P24: 0.7096774194 | Q24: 45 | R24: 0.7258064516 | S24: 46 | T24: 0.7419354839 | U24: 44 | V24: 0.7096774194 | W24: 52 | X24: 0.8387096774 | Y24: 66 | Z24: 1.064516129 | AA24: 63 | AB24: 1.016129032 | AC24: 72 | AD24: 1.161290323 | AF24: 0 | AG24: 0 | AI24: =cálculos2!O24 -> 4 | AJ24: 0.4 | AK24: =cálculos2!P24 -> 1 | AL24: 0.25 | AN24: 1 | AO24: =COUNTIF($AJ$3:$AJ$80,">=1,0") -> 7
A25: Metropolitana | B25: Domingos Martins | C25: 426 | D25: 382 | E25: 345 | F25: 0.9031413613 | G25: 305 | H25: 0.7984293194 | I25: 259 | J25: 0.6780104712 | K25: 354 | L25: 0.9267015707 | M25: 380 | N25: 0.9947643979 | O25: 376 | P25: 0.9842931937 | Q25: 365 | R25: 0.9554973822 | S25: 383 | T25: 1.002617801 | U25: 398 | V25: 1.041884817 | W25: 333 | X25: 0.8717277487 | Y25: 385 | Z25: 1.007853403 | AA25: 382 | AB25: 1 | AC25: 390 | AD25: 1.020942408 | AF25: 31 | AG25: 0.08115183246 | AI25: =cálculos2!O25 -> 9 | AJ25: 0.9 | AK25: =cálculos2!P25 -> 4 | AL25: 1
A26: Sul | B26: Dores do Rio Preto | C26: 102 | D26: 99 | E26: 59 | F26: 0.595959596 | G26: 19 | H26: 0.1919191919 | I26: 8 | J26: 0.08080808081 | K26: 61 | L26: 0.6161616162 | M26: 97 | N26: 0.9797979798 | O26: 96 | P26: 0.9696969697 | Q26: 65 | R26: 0.6565656566 | S26: 99 | T26: 1 | U26: 93 | V26: 0.9393939394 | W26: 77 | X26: 0.7777777778 | Y26: 88 | Z26: 0.8888888889 | AA26: 95 | AB26: 0.9595959596 | AC26: 81 | AD26: 0.8181818182 | AF26: 0 | AG26: 0 | AI26: =cálculos2!O26 -> 4 | AJ26: 0.4 | AK26: =cálculos2!P26 -> 3 | AL26: 0.75
A27: Norte | B27: Ecoporanga | C27: 250 | D27: 233 | E27: 227 | F27: 0.974248927 | G27: 151 | H27: 0.6480686695 | I27: 134 | J27: 0.5751072961 | K27: 226 | L27: 0.9699570815 | M27: 238 | N27: 1.021459227 | O27: 233 | P27: 1 | Q27: 232 | R27: 0.9957081545 | S27: 241 | T27: 1.034334764 | U27: 239 | V27: 1.025751073 | W27: 190 | X27: 0.8154506438 | Y27: 229 | Z27: 0.982832618 | AA27: 238 | AB27: 1.021459227 | AC27: 215 | AD27: 0.9227467811 | AF27: 1 | AG27: 0.004291845494 | AI27: =cálculos2!O27 -> 8 | AJ27: 0.8 | AK27: =cálculos2!P27 -> 4 | AL27: 1
A28: Metropolitana | B28: Fundão | C28: 231 | D28: 213 | E28: 194 | F28: 0.9107981221 | G28: 164 | H28: 0.7699530516 | I28: 124 | J28: 0.5821596244 | K28: 205 | L28: 0.9624413146 | M28: 211 | N28: 0.9906103286 | O28: 210 | P28: 0.985915493 | Q28: 195 | R28: 0.9154929577 | S28: 213 | T28: 1 | U28: 201 | V28: 0.9436619718 | W28: 152 | X28: 0.7136150235 | Y28: 187 | Z28: 0.8779342723 | AA28: 205 | AB28: 0.9624413146 | AC28: 188 | AD28: 0.882629108 | AF28: 3 | AG28: 0.01408450704 | AI28: =cálculos2!O28 -> 5 | AJ28: 0.5 | AK28: =cálculos2!P28 -> 3 | AL28: 0.75
A29: Central | B29: Governador Lindenberg | C29: 141 | D29: 130 | E29: 129 | F29: 0.9923076923 | G29: 74 | H29: 0.5692307692 | I29: 61 | J29: 0.4692307692 | K29: 136 | L29: 1.046153846 | M29: 94 | N29: 0.7230769231 | O29: 94 | P29: 0.7230769231 | Q29: 99 | R29: 0.7615384615 | S29: 106 | T29: 0.8153846154 | U29: 98 | V29: 0.7538461538 | W29: 79 | X29: 0.6076923077 | Y29: 113 | Z29: 0.8692307692 | AA29: 118 | AB29: 0.9076923077 | AC29: 109 | AD29: 0.8384615385 | AF29: 0 | AG29: 0 | AI29: =cálculos2!O29 -> 1 | AJ29: 0.1 | AK29: =cálculos2!P29 -> 0 | AL29: 0
A30: Sul | B30: Guaçuí | C30: 387 | D30: 354 | E30: 315 | F30: 0.8898305085 | G30: 139 | H30: 0.3926553672 | I30: 89 | J30: 0.2514124294 | K30: 323 | L30: 0.9124293785 | M30: 308 | N30: 0.8700564972 | O30: 305 | P30: 0.8615819209 | Q30: 316 | R30: 0.8926553672 | S30: 318 | T30: 0.8983050847 | U30: 322 | V30: 0.9096045198 | W30: 262 | X30: 0.7401129944 | Y30: 312 | Z30: 0.8813559322 | AA30: 338 | AB30: 0.9548022599 | AC30: 301 | AD30: 0.8502824859 | AF30: 14 | AG30: 0.0395480226 | AI30: =cálculos2!O30 -> 2 | AJ30: 0.2 | AK30: =cálculos2!P30 -> 1 | AL30: 0.25
A31: Metropolitana | B31: Guarapari | C31: 1643 | D31: 1526 | E31: 1304 | F31: 0.8545216252 | G31: 1100 | H31: 0.7208387942 | I31: 902 | J31: 0.5910878113 | K31: 1394 | L31: 0.9134993447 | M31: 1257 | N31: 0.8237221494 | O31: 1248 | P31: 0.8178243775 | Q31: 1340 | R31: 0.878112713 | S31: 1403 | T31: 0.9193971166 | U31: 1350 | V31: 0.8846657929 | W31: 912 | X31: 0.5976408912 | Y31: 1324 | Z31: 0.8676277851 | AA31: 1407 | AB31: 0.9220183486 | AC31: 1170 | AD31: 0.7667103539 | AF31: 34 | AG31: 0.02228047182 | AI31: =cálculos2!O31 -> 2 | AJ31: 0.2 | AK31: =cálculos2!P31 -> 0 | AL31: 0
A32: Metropolitana | B32: Ibatiba | C32: 410 | D32: 375 | E32: 309 | F32: 0.824 | G32: 76 | H32: 0.2026666667 | I32: 52 | J32: 0.1386666667 | K32: 335 | L32: 0.8933333333 | M32: 336 | N32: 0.896 | O32: 333 | P32: 0.888 | Q32: 321 | R32: 0.856 | S32: 340 | T32: 0.9066666667 | U32: 334 | V32: 0.8906666667 | W32: 283 | X32: 0.7546666667 | Y32: 357 | Z32: 0.952 | AA32: 346 | AB32: 0.9226666667 | AC32: 331 | AD32: 0.8826666667 | AF32: 14 | AG32: 0.03733333333 | AI32: =cálculos2!O32 -> 2 | AJ32: 0.2 | AK32: =cálculos2!P32 -> 0 | AL32: 0
A33: Metropolitana | B33: Ibiraçu | C33: 130 | D33: 123 | E33: 119 | F33: 0.9674796748 | G33: 80 | H33: 0.6504065041 | I33: 59 | J33: 0.4796747967 | K33: 117 | L33: 0.9512195122 | M33: 115 | N33: 0.9349593496 | O33: 112 | P33: 0.9105691057 | Q33: 112 | R33: 0.9105691057 | S33: 107 | T33: 0.8699186992 | U33: 114 | V33: 0.9268292683 | W33: 104 | X33: 0.8455284553 | Y33: 129 | Z33: 1.048780488 | AA33: 129 | AB33: 1.048780488 | AC33: 129 | AD33: 1.048780488 | AF33: 0 | AG33: 0 | AI33: =cálculos2!O33 -> 4 | AJ33: 0.4 | AK33: =cálculos2!P33 -> 1 | AL33: 0.25
A34: Sul | B34: Ibitirama | C34: 139 | D34: 130 | E34: 126 | F34: 0.9692307692 | G34: 48 | H34: 0.3692307692 | I34: 25 | J34: 0.1923076923 | K34: 134 | L34: 1.030769231 | M34: 155 | N34: 1.192307692 | O34: 151 | P34: 1.161538462 | Q34: 156 | R34: 1.2 | S34: 161 | T34: 1.238461538 | U34: 153 | V34: 1.176923077 | W34: 127 | X34: 0.9769230769 | Y34: 138 | Z34: 1.061538462 | AA34: 149 | AB34: 1.146153846 | AC34: 136 | AD34: 1.046153846 | AF34: 13 | AG34: 0.1 | AI34: =cálculos2!O34 -> 10 | AJ34: 1 | AK34: =cálculos2!P34 -> 4 | AL34: 1
A35: Sul | B35: Iconha | C35: 140 | D35: 132 | E35: 120 | F35: 0.9090909091 | G35: 91 | H35: 0.6893939394 | I35: 68 | J35: 0.5151515152 | K35: 126 | L35: 0.9545454545 | M35: 120 | N35: =M35/D35 -> 0.9090909091 | O35: 120 | P35: =O35/D35 -> 0.9090909091 | Q35: 108 | R35: =Q35/D35 -> 0.8181818182 | S35: 114 | T35: =S35/D35 -> 0.8636363636 | U35: 115 | V35: =U35/D35 -> 0.8712121212 | W35: 98 | X35: =W35/D35 -> 0.7424242424 | Y35: 101 | Z35: =Y35/D35 -> 0.7651515152 | AA35: 109 | AB35: =AA35/D35 -> 0.8257575758 | AC35: 118 | AD35: =AC35/D35 -> 0.8939393939 | AF35: 1 | AG35: 0.007575757576 | AI35: =cálculos2!O35 -> 1 | AJ35: 0.1 | AK35: =cálculos2!P35 -> 0 | AL35: 0
A36: Sul | B36: Irupi | C36: 194 | D36: 179 | E36: 131 | F36: 0.7318435754 | G36: 50 | H36: 0.2793296089 | I36: 32 | J36: 0.1787709497 | K36: 161 | L36: 0.8994413408 | M36: 150 | N36: 0.8379888268 | O36: 147 | P36: 0.8212290503 | Q36: 150 | R36: 0.8379888268 | S36: 162 | T36: 0.905027933 | U36: 157 | V36: 0.8770949721 | W36: 153 | X36: 0.8547486034 | Y36: 196 | Z36: 1.094972067 | AA36: 179 | AB36: 1 | AC36: 161 | AD36: 0.8994413408 | AF36: 11 | AG36: 0.06145251397 | AI36: =cálculos2!O36 -> 3 | AJ36: 0.3 | AK36: =cálculos2!P36 -> 1 | AL36: 0.25
A37: Metropolitana | B37: Itaguaçu | C37: 121 | D37: 119 | E37: 123 | F37: 1.033613445 | G37: 100 | H37: 0.8403361345 | I37: 75 | J37: 0.6302521008 | K37: 126 | L37: 1.058823529 | M37: 109 | N37: 0.9159663866 | O37: 109 | P37: 0.9159663866 | Q37: 111 | R37: 0.9327731092 | S37: 112 | T37: 0.9411764706 | U37: 112 | V37: 0.9411764706 | W37: 113 | X37: 0.9495798319 | Y37: 136 | Z37: 1.142857143 | AA37: 143 | AB37: 1.201680672 | AC37: 135 | AD37: 1.134453782 | AF37: 9 | AG37: 0.0756302521 | AI37: =cálculos2!O37 -> 5 | AJ37: 0.5 | AK37: =cálculos2!P37 -> 1 | AL37: 0.25
A38: Sul | B38: Itapemirim | C38: 537 | D38: 494 | E38: 477 | F38: 0.9655870445 | G38: 438 | H38: 0.8866396761 | I38: 365 | J38: 0.7388663968 | K38: 461 | L38: 0.9331983806 | M38: 402 | N38: 0.8137651822 | O38: 378 | P38: 0.7651821862 | Q38: 447 | R38: 0.9048582996 | S38: 445 | T38: 0.9008097166 | U38: 440 | V38: 0.8906882591 | W38: 280 | X38: 0.5668016194 | Y38: 391 | Z38: 0.7914979757 | AA38: 432 | AB38: 0.8744939271 | AC38: 349 | AD38: 0.7064777328 | AF38: 3 | AG38: 0.006072874494 | AI38: =cálculos2!O38 -> 2 | AJ38: 0.2 | AK38: =cálculos2!P38 -> 0 | AL38: 0
A39: Metropolitana | B39: Itarana | C39: 131 | D39: 126 | E39: 130 | F39: 1.031746032 | G39: 117 | H39: 0.9285714286 | I39: 90 | J39: 0.7142857143 | K39: 136 | L39: 1.079365079 | M39: 124 | N39: 0.9841269841 | O39: 125 | P39: 0.9920634921 | Q39: 115 | R39: 0.9126984127 | S39: 116 | T39: 0.9206349206 | U39: 118 | V39: 0.9365079365 | W39: 111 | X39: 0.880952381 | Y39: 141 | Z39: 1.119047619 | AA39: 142 | AB39: 1.126984127 | AC39: 142 | AD39: 1.126984127 | AF39: 1 | AG39: 0.007936507937 | AI39: =cálculos2!O39 -> 7 | AJ39: 0.7 | AK39: =cálculos2!P39 -> 3 | AL39: 0.75
A40: Sul | B40: Iúna | C40: 387 | D40: 358 | E40: 288 | F40: 0.8044692737 | G40: 68 | H40: 0.1899441341 | I40: 41 | J40: 0.1145251397 | K40: 330 | L40: 0.9217877095 | M40: 343 | N40: 0.9581005587 | O40: 344 | P40: 0.9608938547 | Q40: 323 | R40: 0.9022346369 | S40: 336 | T40: 0.938547486 | U40: 354 | V40: 0.9888268156 | W40: 310 | X40: 0.8659217877 | Y40: 390 | Z40: 1.089385475 | AA40: 379 | AB40: 1.058659218 | AC40: 361 | AD40: 1.008379888 | AF40: 3 | AG40: 0.008379888268 | AI40: =cálculos2!O40 -> 8 | AJ40: 0.8 | AK40: =cálculos2!P40 -> 3 | AL40: 0.75
A41: Norte | B41: Jaguaré | C41: 444 | D41: 415 | E41: 446 | F41: 1.074698795 | G41: 409 | H41: 0.9855421687 | I41: 387 | J41: 0.9325301205 | K41: 438 | L41: 1.055421687 | M41: 400 | N41: 0.9638554217 | O41: 393 | P41: 0.9469879518 | Q41: 405 | R41: 0.9759036145 | S41: 410 | T41: 0.9879518072 | U41: 411 | V41: 0.9903614458 | W41: 322 | X41: 0.7759036145 | Y41: 443 | Z41: 1.06746988 | AA41: 445 | AB41: 1.072289157 | AC41: 379 | AD41: 0.913253012 | AF41: 2 | AG41: 0.004819277108 | AI41: =cálculos2!O41 -> 7 | AJ41: 0.7 | AK41: =cálculos2!P41 -> 3 | AL41: 0.75
A42: Sul | B42: Jerônimo Monteiro | C42: 114 | D42: 111 | E42: 105 | F42: 0.9459459459 | G42: 92 | H42: 0.8288288288 | I42: 63 | J42: 0.5675675676 | K42: 103 | L42: 0.9279279279 | M42: 106 | N42: 0.954954955 | O42: 107 | P42: 0.963963964 | Q42: 107 | R42: 0.963963964 | S42: 110 | T42: 0.990990991 | U42: 108 | V42: 0.972972973 | W42: 95 | X42: 0.8558558559 | Y42: 132 | Z42: 1.189189189 | AA42: 132 | AB42: 1.189189189 | AC42: 128 | AD42: 1.153153153 | AF42: 5 | AG42: 0.04504504505 | AI42: =cálculos2!O42 -> 9 | AJ42: 0.9 | AK42: =cálculos2!P42 -> 4 | AL42: 1
A43: Metropolitana | B43: João Neiva | C43: 143 | D43: 132 | E43: 117 | F43: 0.8863636364 | G43: 67 | H43: 0.5075757576 | I43: 40 | J43: 0.303030303 | K43: 119 | L43: 0.9015151515 | M43: 131 | N43: 0.9924242424 | O43: 128 | P43: 0.9696969697 | Q43: 125 | R43: 0.946969697 | S43: 127 | T43: 0.9621212121 | U43: 127 | V43: 0.9621212121 | W43: 111 | X43: 0.8409090909 | Y43: 143 | Z43: 1.083333333 | AA43: 146 | AB43: 1.106060606 | AC43: 142 | AD43: 1.075757576 | AF43: 2 | AG43: 0.01515151515 | AI43: =cálculos2!O43 -> 8 | AJ43: 0.8 | AK43: =cálculos2!P43 -> 3 | AL43: 0.75
A44: Metropolitana | B44: Laranja da Terra | C44: 120 | D44: 114 | E44: 107 | F44: 0.9385964912 | G44: 95 | H44: 0.8333333333 | I44: 66 | J44: 0.5789473684 | K44: 113 | L44: 0.9912280702 | M44: 121 | N44: 1.061403509 | O44: 121 | P44: 1.061403509 | Q44: 130 | R44: 1.140350877 | S44: 129 | T44: 1.131578947 | U44: 128 | V44: 1.122807018 | W44: 97 | X44: 0.850877193 | Y44: 89 | Z44: 0.7807017544 | AA44: 100 | AB44: 0.8771929825 | AC44: 99 | AD44: 0.8684210526 | AF44: 7 | AG44: 0.06140350877 | AI44: =cálculos2!O44 -> 6 | AJ44: 0.6 | AK44: =cálculos2!P44 -> 3 | AL44: 0.75
A45: Central | B45: Linhares | C45: 2668 | D45: 2438 | E45: 2362 | F45: 0.9688269073 | G45: 1904 | H45: 0.7809680066 | I45: 1631 | J45: 0.6689909762 | K45: 2371 | L45: 0.9725184578 | M45: 2078 | N45: 0.852337982 | O45: 2035 | P45: 0.8347005742 | Q45: 2115 | R45: 0.867514356 | S45: 2219 | T45: 0.9101722724 | U45: 2182 | V45: 0.8949958983 | W45: 1644 | X45: 0.6743232158 | Y45: 2010 | Z45: 0.8244462674 | AA45: 2195 | AB45: 0.9003281378 | AC45: 1865 | AD45: 0.7649712879 | AF45: 10 | AG45: 0.004101722724 | AI45: =cálculos2!O45 -> 2 | AJ45: 0.2 | AK45: =cálculos2!P45 -> 0 | AL45: 0
A46: Central | B46: Mantenópolis | C46: 132 | D46: 121 | E46: 121 | F46: 1 | G46: 83 | H46: 0.6859504132 | I46: 75 | J46: 0.6198347107 | K46: 123 | L46: 1.016528926 | M46: 115 | N46: 0.9504132231 | O46: 112 | P46: 0.9256198347 | Q46: 108 | R46: 0.8925619835 | S46: 113 | T46: 0.9338842975 | U46: 120 | V46: 0.9917355372 | W46: 118 | X46: 0.9752066116 | Y46: 133 | Z46: 1.099173554 | AA46: 134 | AB46: 1.107438017 | AC46: 143 | AD46: 1.181818182 | AF46: 1 | AG46: 0.00826446281 | AI46: =cálculos2!O46 -> 8 | AJ46: 0.8 | AK46: =cálculos2!P46 -> 2 | AL46: 0.5
A47: Sul | B47: Marataízes | C47: 570 | D47: 532 | E47: 536 | F47: 1.007518797 | G47: 493 | H47: 0.9266917293 | I47: 384 | J47: 0.7218045113 | K47: 535 | L47: 1.005639098 | M47: 480 | N47: 0.9022556391 | O47: 428 | P47: 0.8045112782 | Q47: 497 | R47: 0.9342105263 | S47: 500 | T47: 0.9398496241 | U47: 481 | V47: 0.9041353383 | W47: 322 | X47: 0.6052631579 | Y47: 508 | Z47: 0.954887218 | AA47: 519 | AB47: 0.9755639098 | AC47: 431 | AD47: 0.8101503759 | AF47: 2 | AG47: 0.003759398496 | AI47: =cálculos2!O47 -> 4 | AJ47: 0.4 | AK47: =cálculos2!P47 -> 1 | AL47: 0.25
A48: Metropolitana | B48: Marechal Floriano | C48: 207 | D48: 190 | E48: 178 | F48: 0.9368421053 | G48: 149 | H48: 0.7842105263 | I48: 117 | J48: 0.6157894737 | K48: 171 | L48: 0.9 | M48: 174 | N48: 0.9157894737 | O48: 175 | P48: 0.9210526316 | Q48: 173 | R48: 0.9105263158 | S48: 184 | T48: 0.9684210526 | U48: 183 | V48: 0.9631578947 | W48: 147 | X48: 0.7736842105 | Y48: 195 | Z48: 1.026315789 | AA48: 179 | AB48: 0.9421052632 | AC48: 201 | AD48: 1.057894737 | AF48: 11 | AG48: 0.05789473684 | AI48: =cálculos2!O48 -> 5 | AJ48: 0.5 | AK48: =cálculos2!P48 -> 0 | AL48: 0
A49: Central | B49: Marilândia | C49: 166 | D49: 159 | E49: 136 | F49: 0.8553459119 | G49: 92 | H49: 0.5786163522 | I49: 76 | J49: 0.4779874214 | K49: 140 | L49: 0.8805031447 | M49: 137 | N49: 0.8616352201 | O49: 139 | P49: 0.8742138365 | Q49: 143 | R49: 0.8993710692 | S49: 148 | T49: 0.9308176101 | U49: 140 | V49: 0.8805031447 | W49: 127 | X49: 0.7987421384 | Y49: 129 | Z49: 0.8113207547 | AA49: 140 | AB49: 0.8805031447 | AC49: 134 | AD49: 0.8427672956 | AF49: 4 | AG49: 0.0251572327 | AI49: =cálculos2!O49 -> 1 | AJ49: 0.1 | AK49: =cálculos2!P49 -> 0 | AL49: 0
A50: Sul | B50: Mimoso do Sul | C50: 279 | D50: 256 | E50: 233 | F50: 0.91015625 | G50: 198 | H50: 0.7734375 | I50: 129 | J50: 0.50390625 | K50: 243 | L50: 0.94921875 | M50: 243 | N50: 0.94921875 | O50: 229 | P50: 0.89453125 | Q50: 252 | R50: 0.984375 | S50: 265 | T50: 1.03515625 | U50: 242 | V50: 0.9453125 | W50: 201 | X50: 0.78515625 | Y50: 186 | Z50: 0.7265625 | AA50: 209 | AB50: 0.81640625 | AC50: 196 | AD50: 0.765625 | AF50: 6 | AG50: 0.0234375 | AI50: =cálculos2!O50 -> 3 | AJ50: 0.3 | AK50: =cálculos2!P50 -> 1 | AL50: 0.25
A51: Norte | B51: Montanha | C51: 217 | D51: 205 | E51: 207 | F51: 1.009756098 | G51: 143 | H51: 0.6975609756 | I51: 125 | J51: 0.6097560976 | K51: 201 | L51: 0.9804878049 | M51: 216 | N51: 1.053658537 | O51: 216 | P51: 1.053658537 | Q51: 220 | R51: 1.073170732 | S51: 228 | T51: 1.112195122 | U51: 209 | V51: 1.019512195 | W51: 181 | X51: 0.8829268293 | Y51: 229 | Z51: 1.117073171 | AA51: 245 | AB51: 1.195121951 | AC51: 244 | AD51: 1.190243902 | AF51: 8 | AG51: 0.03902439024 | AI51: =cálculos2!O51 -> 9 | AJ51: 0.9 | AK51: =cálculos2!P51 -> 4 | AL51: 1
A52: Norte | B52: Mucurici | C52: 53 | D52: 46 | E52: 44 | F52: 0.9565217391 | G52: 35 | H52: 0.7608695652 | I52: 27 | J52: 0.5869565217 | K52: 42 | L52: 0.9130434783 | M52: 61 | N52: 1.326086957 | O52: 61 | P52: 1.326086957 | Q52: 61 | R52: 1.326086957 | S52: 61 | T52: 1.326086957 | U52: 58 | V52: 1.260869565 | W52: 54 | X52: 1.173913043 | Y52: 66 | Z52: 1.434782609 | AA52: 66 | AB52: 1.434782609 | AC52: 69 | AD52: 1.5 | AF52: 2 | AG52: 0.04347826087 | AI52: =cálculos2!O52 -> 10 | AJ52: 1 | AK52: =cálculos2!P52 -> 4 | AL52: 1
A53: Sul | B53: Muniz Freire | C53: 248 | D53: 226 | E53: 218 | F53: 0.9646017699 | G53: 123 | H53: 0.5442477876 | I53: 89 | J53: 0.3938053097 | K53: 224 | L53: 0.9911504425 | M53: 208 | N53: 0.9203539823 | O53: 208 | P53: 0.9203539823 | Q53: 222 | R53: 0.982300885 | S53: 226 | T53: 1 | U53: 205 | V53: 0.907079646 | W53: 196 | X53: 0.8672566372 | Y53: 206 | Z53: 0.9115044248 | AA53: 208 | AB53: 0.9203539823 | AC53: 229 | AD53: 1.013274336 | AF53: 3 | AG53: 0.01327433628 | AI53: =cálculos2!O53 -> 4 | AJ53: 0.4 | AK53: =cálculos2!P53 -> 1 | AL53: 0.25
A54: Sul | B54: Muqui | C54: 154 | D54: 143 | E54: 137 | F54: 0.958041958 | G54: 118 | H54: 0.8251748252 | I54: 77 | J54: 0.5384615385 | K54: 138 | L54: 0.965034965 | M54: 146 | N54: 1.020979021 | O54: 146 | P54: 1.020979021 | Q54: 156 | R54: 1.090909091 | S54: 154 | T54: 1.076923077 | U54: 146 | V54: 1.020979021 | W54: 115 | X54: 0.8041958042 | Y54: 126 | Z54: 0.8811188811 | AA54: 131 | AB54: 0.9160839161 | AC54: 135 | AD54: 0.9440559441 | AF54: 7 | AG54: 0.04895104895 | AI54: =cálculos2!O54 -> 6 | AJ54: 0.6 | AK54: =cálculos2!P54 -> 3 | AL54: 0.75
A55: Norte | B55: Nova Venécia | C55: 690 | D55: 628 | E55: 646 | F55: 1.02866242 | G55: 545 | H55: 0.8678343949 | I55: 508 | J55: 0.8089171975 | K55: 642 | L55: 1.022292994 | M55: 574 | N55: 0.9140127389 | O55: 571 | P55: 0.9092356688 | Q55: 559 | R55: 0.8901273885 | S55: 645 | T55: 1.027070064 | U55: 601 | V55: 0.9570063694 | W55: 499 | X55: 0.7945859873 | Y55: 585 | Z55: 0.9315286624 | AA55: 621 | AB55: 0.9888535032 | AC55: 541 | AD55: 0.8614649682 | AF55: 12 | AG55: 0.01910828025 | AI55: =cálculos2!O55 -> 4 | AJ55: 0.4 | AK55: =cálculos2!P55 -> 1 | AL55: 0.25
A56: Central | B56: Pancas | C56: 218 | D56: 201 | E56: 197 | F56: 0.9800995025 | G56: 105 | H56: 0.5223880597 | I56: 88 | J56: 0.4378109453 | K56: 202 | L56: 1.004975124 | M56: 193 | N56: 0.960199005 | O56: 194 | P56: 0.9651741294 | Q56: 191 | R56: 0.9502487562 | S56: 189 | T56: 0.9402985075 | U56: 192 | V56: 0.9552238806 | W56: 169 | X56: 0.8407960199 | Y56: 191 | Z56: 0.9502487562 | AA56: 189 | AB56: 0.9402985075 | AC56: 203 | AD56: 1.009950249 | AF56: 3 | AG56: 0.01492537313 | AI56: =cálculos2!O56 -> 8 | AJ56: 0.8 | AK56: =cálculos2!P56 -> 3 | AL56: 0.75
A57: Norte | B57: Pedro Canário | C57: 320 | D57: 297 | E57: 286 | F57: 0.962962963 | G57: 266 | H57: 0.8956228956 | I57: 248 | J57: 0.835016835 | K57: 290 | L57: 0.9764309764 | M57: 277 | N57: 0.9326599327 | O57: 262 | P57: 0.8821548822 | Q57: 286 | R57: 0.962962963 | S57: 296 | T57: 0.9966329966 | U57: 270 | V57: 0.9090909091 | W57: 189 | X57: 0.6363636364 | Y57: 298 | Z57: 1.003367003 | AA57: 297 | AB57: 1 | AC57: 287 | AD57: 0.9663299663 | AF57: 4 | AG57: 0.01346801347 | AI57: =cálculos2!O57 -> 6 | AJ57: 0.6 | AK57: =cálculos2!P57 -> 2 | AL57: 0.5
A58: Norte | B58: Pinheiros | C58: 304 | D58: 286 | E58: 321 | F58: 1.122377622 | G58: 305 | H58: 1.066433566 | I58: 282 | J58: 0.986013986 | K58: 304 | L58: 1.062937063 | M58: 308 | N58: 1.076923077 | O58: 304 | P58: 1.062937063 | Q58: 331 | R58: 1.157342657 | S58: 348 | T58: 1.216783217 | U58: 328 | V58: 1.146853147 | W58: 265 | X58: 0.9265734266 | Y58: 308 | Z58: 1.076923077 | AA58: 326 | AB58: 1.13986014 | AC58: 311 | AD58: 1.087412587 | AF58: 6 | AG58: 0.02097902098 | AI58: =cálculos2!O58 -> 9 | AJ58: 0.9 | AK58: =cálculos2!P58 -> 4 | AL58: 1
A59: Sul | B59: Piúma | C59: 310 | D59: 281 | E59: 260 | F59: 0.9252669039 | G59: 246 | H59: 0.8754448399 | I59: 199 | J59: 0.7081850534 | K59: 234 | L59: 0.8327402135 | M59: 262 | N59: 0.9323843416 | O59: 255 | P59: 0.9074733096 | Q59: 268 | R59: 0.9537366548 | S59: 272 | T59: 0.9679715302 | U59: 270 | V59: 0.9608540925 | W59: 189 | X59: 0.6725978648 | Y59: 250 | Z59: 0.8896797153 | AA59: 262 | AB59: 0.9323843416 | AC59: 220 | AD59: 0.7829181495 | AF59: 15 | AG59: 0.05338078292 | AI59: =cálculos2!O59 -> 3 | AJ59: 0.3 | AK59: =cálculos2!P59 -> 1 | AL59: 0.25
A60: Norte | B60: Ponto Belo | C60: 68 | D60: 65 | E60: 65 | F60: 1 | G60: 53 | H60: 0.8153846154 | I60: 47 | J60: 0.7230769231 | K60: 62 | L60: 0.9538461538 | M60: 68 | N60: 1.046153846 | O60: 69 | P60: 1.061538462 | Q60: 72 | R60: 1.107692308 | S60: 71 | T60: 1.092307692 | U60: 71 | V60: 1.092307692 | W60: 75 | X60: 1.153846154 | Y60: 78 | Z60: 1.2 | AA60: 75 | AB60: 1.153846154 | AC60: 72 | AD60: 1.107692308 | AF60: 1 | AG60: 0.01538461538 | AI60: =cálculos2!O60 -> 10 | AJ60: 1 | AK60: =cálculos2!P60 -> 4 | AL60: 1
A61: Sul | B61: Presidente Kennedy | C61: 199 | D61: 183 | E61: 191 | F61: 1.043715847 | G61: 177 | H61: 0.9672131148 | I61: 109 | J61: 0.5956284153 | K61: 192 | L61: 1.049180328 | M61: 185 | N61: 1.010928962 | O61: 184 | P61: 1.005464481 | Q61: 191 | R61: 1.043715847 | S61: 194 | T61: 1.06010929 | U61: 194 | V61: 1.06010929 | W61: 167 | X61: 0.912568306 | Y61: 180 | Z61: 0.9836065574 | AA61: 203 | AB61: 1.109289617 | AC61: 177 | AD61: 0.9672131148 | AF61: 6 | AG61: 0.03278688525 | AI61: =cálculos2!O61 -> 9 | AJ61: 0.9 | AK61: =cálculos2!P61 -> 4 | AL61: 1
A62: Central | B62: Rio Bananal | C62: 296 | D62: 265 | E62: 257 | F62: 0.9698113208 | G62: 191 | H62: 0.720754717 | I62: 166 | J62: 0.6264150943 | K62: 259 | L62: 0.9773584906 | M62: 257 | N62: 0.9698113208 | O62: 256 | P62: 0.9660377358 | Q62: 257 | R62: 0.9698113208 | S62: 261 | T62: 0.9849056604 | U62: 258 | V62: 0.9735849057 | W62: 249 | X62: 0.9396226415 | Y62: 267 | Z62: 1.00754717 | AA62: 281 | AB62: 1.060377358 | AC62: 245 | AD62: 0.9245283019 | AF62: 9 | AG62: 0.03396226415 | AI62: =cálculos2!O62 -> 8 | AJ62: 0.8 | AK62: =cálculos2!P62 -> 4 | AL62: 1
A63: Sul | B63: Rio Novo do Sul | C63: 97 | D63: 88 | E63: 101 | F63: 1.147727273 | G63: 95 | H63: 1.079545455 | I63: 69 | J63: 0.7840909091 | K63: 102 | L63: 1.159090909 | M63: 98 | N63: 1.113636364 | O63: 98 | P63: 1.113636364 | Q63: 96 | R63: 1.090909091 | S63: 98 | T63: 1.113636364 | U63: 101 | V63: 1.147727273 | W63: 70 | X63: 0.7954545455 | Y63: 86 | Z63: 0.9772727273 | AA63: 92 | AB63: 1.045454545 | AC63: 90 | AD63: 1.022727273 | AF63: 0 | AG63: 0 | AI63: =cálculos2!O63 -> 9 | AJ63: 0.9 | AK63: =cálculos2!P63 -> 4 | AL63: 1
A64: Metropolitana | B64: Santa Leopoldina | C64: 96 | D64: 89 | E64: 92 | F64: 1.033707865 | G64: 81 | H64: 0.9101123596 | I64: 55 | J64: 0.6179775281 | K64: 90 | L64: 1.011235955 | M64: 103 | N64: 1.157303371 | O64: 103 | P64: 1.157303371 | Q64: 109 | R64: 1.224719101 | S64: 110 | T64: 1.235955056 | U64: 105 | V64: 1.179775281 | W64: 82 | X64: 0.9213483146 | Y64: 98 | Z64: 1.101123596 | AA64: 92 | AB64: 1.033707865 | AC64: 103 | AD64: 1.157303371 | AF64: 0 | AG64: 0 | AI64: =cálculos2!O64 -> 9 | AJ64: 0.9 | AK64: =cálculos2!P64 -> 4 | AL64: 1
A65: Metropolitana | B65: Santa Maria de Jetibá | C65: 721 | D65: 667 | E65: 641 | F65: 0.9610194903 | G65: 611 | H65: 0.916041979 | I65: 541 | J65: 0.8110944528 | K65: 632 | L65: 0.9475262369 | M65: 556 | N65: 0.8335832084 | O65: 558 | P65: 0.8365817091 | Q65: 592 | R65: 0.8875562219 | S65: 605 | T65: 0.9070464768 | U65: 588 | V65: 0.8815592204 | W65: 467 | X65: 0.700149925 | Y65: 528 | Z65: 0.7916041979 | AA65: 567 | AB65: 0.8500749625 | AC65: 498 | AD65: 0.7466266867 | AF65: 0 | AG65: 0 | AI65: =cálculos2!O65 -> 2 | AJ65: 0.2 | AK65: =cálculos2!P65 -> 0 | AL65: 0
A66: Metropolitana | B66: Santa Teresa | C66: 283 | D66: 262 | E66: 248 | F66: 0.9465648855 | G66: 222 | H66: 0.8473282443 | I66: 161 | J66: 0.6145038168 | K66: 253 | L66: 0.965648855 | M66: 227 | N66: 0.8664122137 | O66: 226 | P66: 0.8625954198 | Q66: 234 | R66: 0.893129771 | S66: 243 | T66: 0.927480916 | U66: 239 | V66: 0.9122137405 | W66: 215 | X66: 0.820610687 | Y66: 271 | Z66: 1.034351145 | AA66: 266 | AB66: 1.015267176 | AC66: 274 | AD66: 1.045801527 | AF66: 6 | AG66: 0.02290076336 | AI66: =cálculos2!O66 -> 5 | AJ66: 0.5 | AK66: =cálculos2!P66 -> 1 | AL66: 0.25
A67: Central | B67: São Domingos do Norte | C67: 111 | D67: 101 | E67: 112 | F67: 1.108910891 | G67: 66 | H67: 0.6534653465 | I67: 52 | J67: 0.5148514851 | K67: 113 | L67: 1.118811881 | M67: 100 | N67: =M67/D67 -> 0.9900990099 | O67: 101 | P67: =O67/D67 -> 1 | Q67: 102 | R67: =Q67/D67 -> 1.00990099 | S67: 106 | T67: =S67/D67 -> 1.04950495 | U67: 100 | V67: =U67/D67 -> 0.9900990099 | W67: 93 | X67: =W67/D67 -> 0.9207920792 | Y67: 128 | Z67: =Y67/D67 -> 1.267326733 | AA67: 127 | AB67: =AA67/D67 -> 1.257425743 | AC67: 119 | AD67: =AC67/D67 -> 1.178217822 | AF67: 0 | AG67: 0 | AI67: =cálculos2!O67 -> 9 | AJ67: 0.9 | AK67: =cálculos2!P67 -> 4 | AL67: 1
A68: Central | B68: São Gabriel da Palha | C68: 401 | D68: 376 | E68: 332 | F68: =E68/D68 -> 0.8829787234 | G68: 183 | H68: =G68/D68 -> 0.4867021277 | I68: 156 | J68: =I68/D68 -> 0.414893617 | K68: 335 | L68: =K68/D68 -> 0.8909574468 | M68: 325 | N68: 0.8643617021 | O68: 326 | P68: 0.8670212766 | Q68: 311 | R68: 0.8271276596 | S68: 329 | T68: 0.875 | U68: 332 | V68: 0.8829787234 | W68: 307 | X68: 0.8164893617 | Y68: 368 | Z68: 0.9787234043 | AA68: 374 | AB68: 0.9946808511 | AC68: 345 | AD68: 0.9175531915 | AF68: 3 | AG68: =AF68/D68 -> 0.007978723404 | AI68: =cálculos2!O68 -> 2 | AJ68: =AI68*0.1 -> 0.2 | AK68: =cálculos2!P68 -> 1 | AL68: =AK68*0.25 -> 0.25
A69: Sul | B69: São José do Calçado | C69: 94 | D69: 84 | E69: 81 | F69: 0.9642857143 | G69: 22 | H69: 0.2619047619 | I69: 10 | J69: 0.119047619 | K69: 86 | L69: 1.023809524 | M69: 92 | N69: 1.095238095 | O69: 92 | P69: 1.095238095 | Q69: 88 | R69: 1.047619048 | S69: 89 | T69: 1.05952381 | U69: 87 | V69: 1.035714286 | W69: 55 | X69: 0.6547619048 | Y69: 84 | Z69: 1 | AA69: 84 | AB69: 1 | AC69: 84 | AD69: 1 | AF69: 2 | AG69: 0.02380952381 | AI69: =cálculos2!O69 -> 9 | AJ69: 0.9 | AK69: =cálculos2!P69 -> 4 | AL69: 1
A70: Norte | B70: São Mateus | C70: 1670 | D70: 1562 | E70: 1516 | F70: 0.9705505762 | G70: 1432 | H70: 0.9167733675 | I70: 1308 | J70: 0.8373879641 | K70: 1468 | L70: 0.9398207426 | M70: 1372 | N70: 0.8783610755 | O70: 1343 | P70: 0.8597951344 | Q70: 1453 | R70: 0.9302176697 | S70: 1499 | T70: 0.9596670935 | U70: 1453 | V70: 0.9302176697 | W70: 1083 | X70: 0.6933418694 | Y70: 1482 | Z70: 0.9487836108 | AA70: 1556 | AB70: 0.9961587708 | AC70: 1305 | AD70: 0.8354673496 | AF70: 52 | AG70: 0.03329065301 | AI70: =cálculos2!O70 -> 3 | AJ70: 0.3 | AK70: =cálculos2!P70 -> 1 | AL70: 0.25
A71: Central | B71: São Roque do Canaã | C71: 131 | D71: 121 | E71: 136 | F71: 1.123966942 | G71: 81 | H71: 0.6694214876 | I71: 69 | J71: 0.5702479339 | K71: 137 | L71: 1.132231405 | M71: 113 | N71: 0.9338842975 | O71: 110 | P71: 0.9090909091 | Q71: 111 | R71: 0.9173553719 | S71: 115 | T71: 0.9504132231 | U71: 115 | V71: 0.9504132231 | W71: 104 | X71: 0.8595041322 | Y71: 115 | Z71: 0.9504132231 | AA71: 130 | AB71: 1.074380165 | AC71: 122 | AD71: 1.008264463 | AF71: 6 | AG71: 0.04958677686 | AI71: =cálculos2!O71 -> 6 | AJ71: 0.6 | AK71: =cálculos2!P71 -> 1 | AL71: 0.25
A72: Metropolitana | B72: Serra | C72: 7550 | D72: 7009 | E72: 6391 | F72: 0.9118276502 | G72: 5395 | H72: 0.7697246397 | I72: 4340 | J72: 0.6192038807 | K72: 6373 | L72: 0.9092595235 | M72: 5519 | N72: 0.7874161792 | O72: 5460 | P72: 0.7789984306 | Q72: 5869 | R72: 0.837351976 | S72: 6061 | T72: 0.8647453274 | U72: 5810 | V72: 0.8289342274 | W72: 4370 | X72: 0.6234840919 | Y72: 5865 | Z72: 0.8367812812 | AA72: 6052 | AB72: 0.8634612641 | AC72: 5001 | AD72: 0.7135111999 | AF72: 133 | AG72: 0.0189756028 | AI72: =cálculos2!O72 -> 1 | AJ72: 0.1 | AK72: =cálculos2!P72 -> 0 | AL72: 0
A73: Central | B73: Sooretama | C73: 428 | D73: 391 | E73: 392 | F73: 1.002557545 | G73: 339 | H73: 0.8670076726 | I73: 284 | J73: 0.726342711 | K73: 402 | L73: 1.028132992 | M73: 341 | N73: 0.8721227621 | O73: 337 | P73: 0.8618925831 | Q73: 347 | R73: 0.8874680307 | S73: 372 | T73: 0.9514066496 | U73: 363 | V73: 0.9283887468 | W73: 284 | X73: 0.726342711 | Y73: 344 | Z73: 0.8797953964 | AA73: 387 | AB73: 0.989769821 | AC73: 321 | AD73: 0.820971867 | AF73: 2 | AG73: 0.005115089514 | AI73: =cálculos2!O73 -> 3 | AJ73: 0.3 | AK73: =cálculos2!P73 -> 1 | AL73: 0.25
A74: Sul | B74: Vargem Alta | C74: 270 | D74: 252 | E74: 250 | F74: 0.9920634921 | G74: 227 | H74: 0.9007936508 | I74: 155 | J74: 0.6150793651 | K74: 249 | L74: 0.9880952381 | M74: 242 | N74: 0.9603174603 | O74: 237 | P74: 0.9404761905 | Q74: 262 | R74: 1.03968254 | S74: 261 | T74: 1.035714286 | U74: 258 | V74: 1.023809524 | W74: 197 | X74: 0.7817460317 | Y74: 238 | Z74: 0.9444444444 | AA74: 245 | AB74: 0.9722222222 | AC74: 244 | AD74: 0.9682539683 | AF74: 6 | AG74: 0.02380952381 | AI74: =cálculos2!O74 -> 7 | AJ74: 0.7 | AK74: =cálculos2!P74 -> 3 | AL74: 0.75
A75: Metropolitana | B75: Venda Nova do Imigrante | C75: 352 | D75: 323 | E75: 290 | F75: 0.8978328173 | G75: 246 | H75: 0.7616099071 | I75: 233 | J75: 0.7213622291 | K75: 308 | L75: 0.9535603715 | M75: 311 | N75: 0.9628482972 | O75: 311 | P75: 0.9628482972 | Q75: 315 | R75: 0.9752321981 | S75: 329 | T75: 1.018575851 | U75: 305 | V75: 0.9442724458 | W75: 295 | X75: 0.9133126935 | Y75: 339 | Z75: 1.049535604 | AA75: 332 | AB75: 1.027863777 | AC75: 372 | AD75: 1.151702786 | AF75: 13 | AG75: 0.04024767802 | AI75: =cálculos2!O75 -> 8 | AJ75: 0.8 | AK75: =cálculos2!P75 -> 4 | AL75: 1
A76: Metropolitana | B76: Viana | C76: 863 | D76: 803 | E76: 808 | F76: 1.00622665 | G76: 567 | H76: 0.7061021171 | I76: 407 | J76: 0.5068493151 | K76: 807 | L76: 1.00498132 | M76: 771 | N76: 0.9601494396 | O76: 729 | P76: 0.9078455791 | Q76: 805 | R76: 1.00249066 | S76: 825 | T76: 1.02739726 | U76: 787 | V76: 0.9800747198 | W76: 537 | X76: 0.6687422167 | Y76: 793 | Z76: 0.9875466999 | AA76: 885 | AB76: 1.102117061 | AC76: 629 | AD76: 0.7833125778 | AF76: 18 | AG76: 0.02241594022 | AI76: =cálculos2!O76 -> 7 | AJ76: 0.7 | AK76: =cálculos2!P76 -> 3 | AL76: 0.75
A77: Norte | B77: Vila Pavão | C77: 95 | D77: 91 | E77: 100 | F77: 1.098901099 | G77: 83 | H77: 0.9120879121 | I77: 78 | J77: 0.8571428571 | K77: 101 | L77: 1.10989011 | M77: 105 | N77: 1.153846154 | O77: 104 | P77: 1.142857143 | Q77: 101 | R77: 1.10989011 | S77: 98 | T77: 1.076923077 | U77: 105 | V77: 1.153846154 | W77: 87 | X77: 0.956043956 | Y77: 98 | Z77: 1.076923077 | AA77: 107 | AB77: 1.175824176 | AC77: 93 | AD77: 1.021978022 | AF77: 3 | AG77: 0.03296703297 | AI77: =cálculos2!O77 -> 10 | AJ77: 1 | AK77: =cálculos2!P77 -> 4 | AL77: 1
A78: Central | B78: Vila Valério | C78: 254 | D78: 236 | E78: 204 | F78: 0.8644067797 | G78: 157 | H78: 0.6652542373 | I78: 142 | J78: 0.6016949153 | K78: 206 | L78: 0.8728813559 | M78: 192 | N78: 0.813559322 | O78: 193 | P78: 0.8177966102 | Q78: 208 | R78: 0.8813559322 | S78: 204 | T78: 0.8644067797 | U78: 197 | V78: 0.8347457627 | W78: 180 | X78: 0.7627118644 | Y78: 254 | Z78: 1.076271186 | AA78: 243 | AB78: 1.029661017 | AC78: 248 | AD78: 1.050847458 | AF78: 1 | AG78: 0.004237288136 | AI78: =cálculos2!O78 -> 3 | AJ78: 0.3 | AK78: =cálculos2!P78 -> 1 | AL78: 0.25
A79: Metropolitana | B79: Vila Velha | C79: 5551 | D79: 5140 | E79: 4516 | F79: 0.8785992218 | G79: 3299 | H79: 0.6418287938 | I79: 2333 | J79: 0.4538910506 | K79: 4496 | L79: 0.8747081712 | M79: 3976 | N79: 0.773540856 | O79: 3958 | P79: 0.7700389105 | Q79: 4127 | R79: 0.8029182879 | S79: 4376 | T79: 0.8513618677 | U79: 4246 | V79: 0.8260700389 | W79: 3057 | X79: 0.5947470817 | Y79: 4252 | Z79: 0.8272373541 | AA79: 4353 | AB79: 0.8468871595 | AC79: 3841 | AD79: 0.7472762646 | AF79: 155 | AG79: 0.03015564202 | AI79: =cálculos2!O79 -> 0 | AJ79: 0 | AK79: =cálculos2!P79 -> 0 | AL79: 0
A80: Metropolitana | B80: Vitória | C80: 3544 | D80: 3269 | E80: 3548 | F80: 1.085347201 | G80: 2883 | H80: 0.8819210768 | I80: 2339 | J80: 0.7155093301 | K80: 3507 | L80: 1.072805139 | M80: 3500 | N80: 1.070663812 | O80: 3478 | P80: 1.063933925 | Q80: 3632 | R80: 1.111043132 | S80: 3772 | T80: 1.153869685 | U80: 3618 | V80: 1.106760477 | W80: 2543 | X80: 0.7779137351 | Y80: 3366 | Z80: 1.029672683 | AA80: 3704 | AB80: 1.133068217 | AC80: 3101 | AD80: 0.948608137 | AF80: 200 | AG80: 0.06118078923 | AI80: =cálculos2!O80 -> 8 | AJ80: 0.8 | AK80: =cálculos2!P80 -> 4 | AL80: 1
B82: Total Norte | C82: =SUMIF($A$3:$A$80,"Norte",C$3:C$80) -> 5430 | D82: =SUMIF($A$3:$A$80,"Norte",D$3:D$80) -> 5055 | E82: =SUMIF($A$3:$A$80,"Norte",E$3:E$80) -> 4955 | F82: =E82/D82 -> 0.9802176063 | G82: =SUMIF($A$3:$A$80,"Norte",G$3:G$80) -> 4268 | H82: =G82/D82 -> 0.8443125618 | I82: =SUMIF($A$3:$A$80,"Norte",I$3:I$80) -> 3885 | J82: =I82/D82 -> 0.7685459941 | K82: =SUMIF($A$3:$A$80,"Norte",K$3:K$80) -> 4866 | L82: =K82/D82 -> 0.962611276 | M82: =SUMIF($A$3:$A$80,"Norte",M$3:M$80) -> 4724 | N82: =M82/D82 -> 0.934520277 | O82: =SUMIF($A$3:$A$80,"Norte",O$3:O$80) -> 4652 | P82: =O82/D82 -> 0.9202769535 | Q82: =SUMIF($A$3:$A$80,"Norte",Q$3:Q$80) -> 4828 | R82: =Q82/D82 -> 0.9550939664 | S82: =SUMIF($A$3:$A$80,"Norte",S$3:S$80) -> 5021 | T82: =S82/D82 -> 0.9932739862 | U82: =SUMIF($A$3:$A$80,"Norte",U$3:U$80) -> 4866 | V82: =U82/D82 -> 0.962611276 | W82: =SUMIF($A$3:$A$80,"Norte",W$3:W$80) -> 3911 | X82: =W82/D82 -> 0.7736894164 | Y82: =SUMIF($A$3:$A$80,"Norte",Y$3:Y$80) -> 4980 | Z82: =Y82/D82 -> 0.9851632047 | AA82: =SUMIF($A$3:$A$80,"Norte",AA$3:AA$80) -> 5206 | AB82: =AA82/D82 -> 1.029871414 | AC82: =SUMIF($A$3:$A$80,"Norte",AC$3:AC$80) -> 4655 | AD82: =AC82/D82 -> 0.9208704253 | AF82: =SUMIF($A$3:$A$80,"Norte",AF$3:AF$80) -> 100 | AG82: =AF82/D82 -> 0.01978239367 | AI82: =cálculos2!O82 -> 6 | AJ82: =AI82*0.1 -> 0.6 | AK82: =cálculos2!P82 -> 2 | AL82: 0.5
B83: Total Central | C83: =SUMIF($A$3:$A$80,"Central",C$3:C$80) -> 7049 | D83: =SUMIF($A$3:$A$80,"Central",D$3:D$80) -> 6466 | E83: =SUMIF($A$3:$A$80,"Central",E$3:E$80) -> 6214 | F83: =E83/D83 -> 0.96102691 | G83: =SUMIF($A$3:$A$80,"Central",G$3:G$80) -> 4357 | H83: =G83/D83 -> 0.6738323539 | I83: =SUMIF($A$3:$A$80,"Central",I$3:I$80) -> 3723 | J83: =I83/D83 -> 0.5757810084 | K83: =SUMIF($A$3:$A$80,"Central",K$3:K$80) -> 6360 | L83: =K83/D83 -> 0.9836065574 | M83: =SUMIF($A$3:$A$80,"Central",M$3:M$80) -> 5645 | N83: =M83/D83 -> 0.8730281472 | O83: =SUMIF($A$3:$A$80,"Central",O$3:O$80) -> 5593 | P83: =O83/D83 -> 0.864986081 | Q83: =SUMIF($A$3:$A$80,"Central",Q$3:Q$80) -> 5659 | R83: =Q83/D83 -> 0.8751933189 | S83: =SUMIF($A$3:$A$80,"Central",S$3:S$80) -> 5937 | T83: =S83/D83 -> 0.918187442 | U83: =SUMIF($A$3:$A$80,"Central",U$3:U$80) -> 5860 | V83: =U83/D83 -> 0.9062789978 | W83: =SUMIF($A$3:$A$80,"Central",W$3:W$80) -> 4799 | X83: =W83/D83 -> 0.7421899165 | Y83: =SUMIF($A$3:$A$80,"Central",Y$3:Y$80) -> 5826 | Z83: =Y83/D83 -> 0.9010207238 | AA83: =SUMIF($A$3:$A$80,"Central",AA$3:AA$80) -> 6189 | AB83: =AA83/D83 -> 0.957160532 | AC83: =SUMIF($A$3:$A$80,"Central",AC$3:AC$80) -> 5553 | AD83: =AC83/D83 -> 0.8587998763 | AF83: =SUMIF($A$3:$A$80,"Central",AF$3:AF$80) -> 63 | AG83: =AF83/D83 -> 0.009743272502 | AI83: =cálculos2!O83 -> 3 | AJ83: =AI83*0.1 -> 0.3 | AK83: =cálculos2!P83 -> 1 | AL83: 0.25
B84: Total Metropolitana | C84: =SUMIF($A$3:$A$80,"Metropolitana",C$3:C$80) -> 29453 | D84: =SUMIF($A$3:$A$80,"Metropolitana",D$3:D$80) -> 27269 | E84: =SUMIF($A$3:$A$80,"Metropolitana",E$3:E$80) -> 25396 | F84: =E84/D84 -> 0.9313139462 | G84: =SUMIF($A$3:$A$80,"Metropolitana",G$3:G$80) -> 19774 | H84: =G84/D84 -> 0.7251457699 | I84: =SUMIF($A$3:$A$80,"Metropolitana",I$3:I$80) -> 15131 | J84: 0.5548791668 | K84: =SUMIF($A$3:$A$80,"Metropolitana",K$3:K$80) -> 25510 | L84: =K84/D84 -> 0.9354945176 | M84: =SUMIF($A$3:$A$80,"Metropolitana",M$3:M$80) -> 23358 | N84: =M84/D84 -> 0.8565770655 | O84: =SUMIF($A$3:$A$80,"Metropolitana",O$3:O$80) -> 23150 | P84: =O84/D84 -> 0.8489493564 | Q84: =SUMIF($A$3:$A$80,"Metropolitana",Q$3:Q$80) -> 23966 | R84: =Q84/D84 -> 0.878873446 | S84: =SUMIF($A$3:$A$80,"Metropolitana",S$3:S$80) -> 25249 | T84: =S84/D84 -> 0.9259232095 | U84: =SUMIF($A$3:$A$80,"Metropolitana",U$3:U$80) -> 24422 | V84: =U84/D84 -> 0.8955957314 | W84: =SUMIF($A$3:$A$80,"Metropolitana",W$3:W$80) -> 18247 | X84: =W84/D84 -> 0.6691481169 | Y84: =SUMIF($A$3:$A$80,"Metropolitana",Y$3:Y$80) -> 24376 | Z84: =Y84/D84 -> 0.8939088342 | AA84: =SUMIF($A$3:$A$80,"Metropolitana",AA$3:AA$80) -> 25488 | AB84: =AA84/D84 -> 0.9346877407 | AC84: =SUMIF($A$3:$A$80,"Metropolitana",AC$3:AC$80) -> 22072 | AD84: =AC84/D84 -> 0.809417287 | AF84: =SUMIF($A$3:$A$80,"Metropolitana",AF$3:AF$80) -> 829 | AG84: 0.03040082145 | AI84: =cálculos2!O84 -> 2 | AJ84: 0.2 | AK84: =cálculos2!P84 -> 0 | AL84: 0
B85: Total Sul | C85: =SUMIF($A$3:$A$80,"sul",C$3:C$80) -> 8116 | D85: =SUMIF($A$3:$A$80,"sul",D$3:D$80) -> 7444 | E85: =SUMIF($A$3:$A$80,"Sul",E$3:E$80) -> 7070 | F85: =E85/D85 -> 0.9497581945 | G85: =SUMIF($A$3:$A$80,"Sul",G$3:G$80) -> 5466 | H85: =G85/D85 -> 0.7342826437 | I85: =SUMIF($A$3:$A$80,"Sul",I$3:I$80) -> 3821 | J85: 0.5132993015 | K85: =SUMIF($A$3:$A$80,"Sul",K$3:K$80) -> 7246 | L85: =K85/D85 -> 0.9734013971 | M85: =SUMIF($A$3:$A$80,"Sul",M$3:M$80) -> 7003 | N85: =M85/D85 -> 0.9407576572 | O85: =SUMIF($A$3:$A$80,"Sul",O$3:O$80) -> 6847 | P85: =O85/D85 -> 0.9198011822 | Q85: =SUMIF($A$3:$A$80,"Sul",Q$3:Q$80) -> 7052 | R85: =Q85/D85 -> 0.9473401397 | S85: =SUMIF($A$3:$A$80,"Sul",S$3:S$80) -> 7329 | T85: =S85/D85 -> 0.9845513165 | U85: =SUMIF($A$3:$A$80,"Sul",U$3:U$80) -> 7127 | V85: =U85/D85 -> 0.9574153681 | W85: =SUMIF($A$3:$A$80,"Sul",W$3:W$80) -> 5622 | X85: =W85/D85 -> 0.7552391188 | Y85: =SUMIF($A$3:$A$80,"Sul",Y$3:Y$80) -> 7146 | Z85: =Y85/D85 -> 0.9599677593 | AA85: =SUMIF($A$3:$A$80,"Sul",AA$3:AA$80) -> 7497 | AB85: =AA85/D85 -> 1.007119828 | AC85: =SUMIF($A$3:$A$80,"Sul",AC$3:AC$80) -> 6914 | AD85: =AC85/D85 -> 0.9288017195 | AF85: =SUMIF($A$3:$A$80,"Sul",AF$3:AF$80) -> 209 | AG85: 0.02807630306 | AI85: =cálculos2!O85 -> 5 | AJ85: 0.5 | AK85: =cálculos2!P85 -> 1 | AL85: 0.25
B86: Total Espírito Santo | C86: =SUM(C3:C80) -> 50048 | D86: =SUM(D3:D80) -> 46234 | E86: =SUM(E82:E85) -> 43635 | F86: =E86/D86 -> 0.9437859584 | G86: =SUM(G82:G85) -> 33865 | H86: =G86/D86 -> 0.7324696111 | I86: =SUM(I82:I85) -> 26560 | J86: 0.5744690055 | K86: =SUM(K82:K85) -> 43982 | L86: =K86/D86 -> 0.9512912575 | M86: =SUM(M82:M85) -> 40730 | N86: =M86/D86 -> 0.8809534109 | O86: =SUM(O82:O85) -> 40242 | P86: =O86/D86 -> 0.8703984081 | Q86: =SUM(Q82:Q85) -> 41505 | R86: =Q86/D86 -> 0.8977159666 | S86: =SUM(S82:S85) -> 43536 | T86: =S86/D86 -> 0.9416446771 | U86: =SUM(U82:U85) -> 42275 | V86: =U86/D86 -> 0.9143703768 | W86: =SUM(W82:W85) -> 32579 | X86: =W86/D86 -> 0.7046545832 | Y86: =SUM(Y82:Y85) -> 42328 | Z86: =Y86/D86 -> 0.9155167193 | AA86: =SUM(AA82:AA85) -> 44380 | AB86: =AA86/D86 -> 0.959899641 | AC86: =SUM(AC82:AC85) -> 39194 | AD86: =AC86/D86 -> 0.847731107 | AF86: =SUM(AF82:AF85) -> 1201 | AG86: 0.02597655405 | AI86: =cálculos2!O86 -> 3 | AJ86: 0.3 | AK86: =cálculos2!P86 -> 1 | AL86: 0.25
E87: =COUNTIF(F3:F80,">=0,95") -> 45 | G87: =COUNTIF(H3:H80,">=0,95") -> 4 | I87: =COUNTIF(J3:J80,">=0,95") -> 1 | K87: =COUNTIF(L3:L80,">=0,9") -> 65 | M87: =COUNTIF(N3:N80,">=0,95") -> 37 | O87: =COUNTIF(P3:P80,">=0,95") -> 33 | Q87: =COUNTIF(R3:R80,">=0,95") -> 35 | S87: =COUNTIF(T3:T80,">=0,9") -> 65 | U87: =COUNTIF(V3:V80,">=0,95") -> 38 | W87: =COUNTIF(X3:X80,">=0,95") -> 8 | Y87: =COUNTIF(Z3:Z80,">=0,95") -> 48 | AA87: =COUNTIF(AB3:AB80,">=0,95") -> 54 | AC87: =COUNTIF(AD3:AD80,">=0,95") -> 42 | AF87: =COUNTIF(AG3:AG80,">=0,9") -> 0
B88: HOMOGENEIDADE ENTRE MUNICÍPIOS | E88: =E87/78 -> 0.5769230769 | G88: =G87/78 -> 0.05128205128 | I88: =I87/78 -> 0.01282051282 | K88: =K87/78 -> 0.8333333333 | M88: =M87/78 -> 0.4743589744 | O88: =O87/78 -> 0.4230769231 | Q88: =Q87/78 -> 0.4487179487 | S88: =S87/78 -> 0.8333333333 | U88: =U87/78 -> 0.4871794872 | W88: =W87/78 -> 0.1025641026 | Y88: =Y87/78 -> 0.6153846154 | AA88: =AA87/78 -> 0.6923076923 | AC88: =AC87/78 -> 0.5384615385 | AF88: =AF87/78 -> 0
A90: Fonte: Vacina e Confia, em 22 e 23 de Dezembro de 2025.**<https://vacinaeconfia.saude.es.gov.br/>
A91: **Dados referente às doses aplicadas no período de Janeiro a Novembro 2025
A92: Cobertura Calculada por município de residência da vacinação
A93: 1 População anual extraída do MS/SVS/DASIS - SINASC/DASIS/SVS/MS 2024 (hoje preliminares) referente ao período de Outubro a Dezembro de 2024 e SINASC/DASIS/SVS/MS 2025 referente ao período de Janeiro e Setembro de 2025.
A94: ² População proporcional extraída do MS/SVS/DASIS - SINASC/DASIS/SVS/MS 2024 (hoje preliminares) referente ao período de Outubro e Novembro 2024 e SINASC/DASIS/SVS/MS 2024 (hoje preliminares) referente ao período de Janeiro a Setembro/ 2025.
A95: Sinasc, atualizado em 11/12/2025
A96: Método de Cálculo Simples
A97: Homogeineidade: O cálculo da Homogeineidade entre vacinas é feito de acordo com a pactuação estabelecida no Plano Plurianual (PPA) vigente no período 2024-2027.
A101: Observações:
A102: 1. Imunobiológicos que foram recebidos parcialmente pelo estado no mês de Novembro/2025, sendo distribuídos em quantidades reduzidas às regionais e municípios:
A103: SORO ANTIRRÁBICO HUMANO; IMUNOGLOBULINA ANTIRRÁBICA HUMANA.
A104: 2. Imunobiológicos indisponíveis no mês de Novembro/2025, não sendo possível a distribuição às regionais e municípios:
A105: IMUNOGLOBULINA HUMANA ANTI-HEPATITE B - 100 UI, VACINA TETRA VIRAL, IMUNOGLOBULINA HUMANA ANTIVARICELA (ZOSTER) – 125UI
A106: 3. Imunobiológicos distribuídos através de pautas: VACINA COVID-19 PFIZER PEDIÁTRICA MENOR QUE 5 ANOS,VACINA COVID-19 PFIZER ADULTO E ADOLESCENTE A PARTIR DE 12 ANOS, VACINA COVID-19 PFIZER PEDIÁTRICA, VACINA CONTRA DENGUE 1,2,3 E 4 (ATENUADA).

Sheet CV REF 1A e 4A - procedência
G1: D2 | K1: REFORÇOS 1 ANO | S1: REFORÇOS 4 ANOS
A2: Regional | B2: Município | C2: ¹População 1 ano anual | D2: ²População 1 ano proporcional | E2: ³População 4 anos anual | F2: ³População 4 anos proporcional | G2: DOSES APLICADAS D2 TRÍPLICE VIRAL | H2: COBERTURA D2 TRÍPLICE VIRAL | I2: DOSES APLICADAS D2 VARICELA | J2: COBERTURA D2 VARICELA | K2: DOSES APLICADAS REF PNEUMO | L2: COBERTURA REF PNEUMO | M2: DOSES APLICADAS REF MENINGO | N2: COBERTURA REF MENINGO | O2: DOSES APLICADAS REF POLIO | P2: COBERTURA REF POLIO | Q2: DOSES APLICADAS R1 TRÍPLICE BACTERIANA | R2: COBERTURA R1 TRÍPLICE BACTERIANA | S2: DOSES APLICADAS REF FEBRE AMARELA | T2: COBERTURA REF FEBRE AMARELA | U2: DOSES APLICADAS R2 TRÍPLICE BACTERIANA | V2: COBERTURA R2 TRÍPLICE BACTERIANA
A3: Metropolitana | B3: Afonso Cláudio | C3: 359 | D3: 332 | E3: 416 | F3: =(E3/12)*11 -> 381.3333333 | G3: 305 | H3: =G3/D3 -> 0.9186746988 | I3: 365 | J3: =I3/F3 -> 0.9571678322 | K3: 338 | L3: =K3/D3 -> 1.018072289 | M3: 311 | N3: =M3/D3 -> 0.936746988 | O3: 338 | P3: =O3/D3 -> 1.018072289 | Q3: 305 | R3: =Q3/D3 -> 0.9186746988 | S3: 345 | T3: =S3/F3 -> 0.9047202797 | U3: 341 | V3: =U3/F3 -> 0.8942307692
A4: Norte | B4: Água Doce do Norte | C4: 145 | D4: 139 | E4: 151 | F4: =(E4/12)*11 -> 138.4166667 | G4: 114 | H4: 0.8201438849 | I4: 73 | J4: 0.5273931367 | K4: 180 | L4: 1.294964029 | M4: 146 | N4: 1.050359712 | O4: 138 | P4: 0.9928057554 | Q4: 132 | R4: 0.9496402878 | S4: 86 | T4: 0.6213124624 | U4: 102 | V4: 0.7369054786
A5: Central | B5: Águia Branca | C5: 165 | D5: 153 | E5: 129 | F5: 118.25 | G5: 147 | H5: 0.9607843137 | I5: 106 | J5: 0.8964059197 | K5: 154 | L5: 1.006535948 | M5: 134 | N5: 0.8758169935 | O5: 140 | P5: 0.9150326797 | Q5: 135 | R5: 0.8823529412 | S5: 101 | T5: 0.8541226216 | U5: 103 | V5: 0.8710359408
A6: Sul | B6: Alegre | C6: 322 | D6: 292 | E6: 372 | F6: 341 | G6: 322 | H6: 1.102739726 | I6: 308 | J6: 0.9032258065 | K6: 322 | L6: 1.102739726 | M6: 282 | N6: 0.9657534247 | O6: 329 | P6: 1.126712329 | Q6: 310 | R6: 1.061643836 | S6: 276 | T6: 0.8093841642 | U6: 299 | V6: 0.8768328446
A7: Sul | B7: Alfredo Chaves | C7: 119 | D7: 104 | E7: 138 | F7: 126.5 | G7: 118 | H7: 1.134615385 | I7: 126 | J7: 0.9960474308 | K7: 112 | L7: 1.076923077 | M7: 103 | N7: 0.9903846154 | O7: 129 | P7: 1.240384615 | Q7: 125 | R7: 1.201923077 | S7: 107 | T7: 0.8458498024 | U7: 125 | V7: 0.9881422925
A8: Central | B8: Alto Rio Novo | C8: 99 | D8: 92 | E8: 102 | F8: 93.5 | G8: 94 | H8: 1.02173913 | I8: 126 | J8: 1.347593583 | K8: 94 | L8: 1.02173913 | M8: 87 | N8: 0.9456521739 | O8: 86 | P8: 0.9347826087 | Q8: 84 | R8: 0.9130434783 | S8: 103 | T8: 1.101604278 | U8: 102 | V8: 1.090909091
A9: Sul | B9: Anchieta | C9: 334 | D9: 308 | E9: 390 | F9: 357.5 | G9: 316 | H9: 1.025974026 | I9: 356 | J9: 0.9958041958 | K9: 328 | L9: 1.064935065 | M9: 329 | N9: 1.068181818 | O9: 345 | P9: 1.12012987 | Q9: 318 | R9: 1.032467532 | S9: 348 | T9: 0.9734265734 | U9: 359 | V9: 1.004195804
A10: Sul | B10: Apiacá | C10: 64 | D10: 57 | E10: 90 | F10: 82.5 | G10: 68 | H10: 1.192982456 | I10: 65 | J10: 0.7878787879 | K10: 90 | L10: 1.578947368 | M10: 68 | N10: 1.192982456 | O10: 66 | P10: 1.157894737 | Q10: 64 | R10: 1.122807018 | S10: 22 | T10: 0.2666666667 | U10: 68 | V10: 0.8242424242
A11: Metropolitana | B11: Aracruz | C11: 1420 | D11: 1316 | E11: 1420 | F11: 1301.666667 | G11: 1269 | H11: 0.9642857143 | I11: 1470 | J11: 1.129321383 | K11: 1368 | L11: 1.039513678 | M11: 1236 | N11: 0.9392097264 | O11: 1307 | P11: 0.9931610942 | Q11: 1200 | R11: 0.9118541033 | S11: 1148 | T11: 0.8819462228 | U11: 1308 | V11: 1.004865557
A12: Sul | B12: Atilio Vivacqua | C12: 148 | D12: 131 | E12: 138 | F12: 126.5 | G12: 139 | H12: 1.061068702 | I12: 142 | J12: 1.122529644 | K12: 126 | L12: 0.9618320611 | M12: 138 | N12: 1.053435115 | O12: 133 | P12: 1.015267176 | Q12: 125 | R12: 0.9541984733 | S12: 130 | T12: 1.027667984 | U12: 133 | V12: 1.051383399
A13: Central | B13: Baixo Guandu | C13: 354 | D13: 324 | E13: 427 | F13: 391.4166667 | G13: 346 | H13: 1.067901235 | I13: 394 | J13: 1.006599957 | K13: 416 | L13: 1.283950617 | M13: 334 | N13: 1.030864198 | O13: 363 | P13: 1.12037037 | Q13: 349 | R13: 1.077160494 | S13: 338 | T13: 0.8635299127 | U13: 365 | V13: 0.9325101128
A14: Norte | B14: Barra de São Francisco | C14: 622 | D14: 570 | E14: 589 | F14: 539.9166667 | G14: 483 | H14: 0.8473684211 | I14: 457 | J14: 0.8464269177 | K14: 492 | L14: 0.8631578947 | M14: 510 | N14: 0.8947368421 | O14: 484 | P14: 0.849122807 | Q14: 467 | R14: 0.8192982456 | S14: 400 | T14: 0.7408550702 | U14: 422 | V14: 0.7816020991
A15: Norte | B15: Boa Esperança | C15: 209 | D15: 191 | E15: 200 | F15: 183.3333333 | G15: 158 | H15: 0.8272251309 | I15: 127 | J15: 0.6927272727 | K15: 180 | L15: 0.942408377 | M15: 172 | N15: 0.9005235602 | O15: 154 | P15: 0.8062827225 | Q15: 130 | R15: 0.6806282723 | S15: 98 | T15: 0.5345454545 | U15: 128 | V15: 0.6981818182
A16: Sul | B16: Bom Jesus do Norte | C16: 72 | D16: 67 | E16: 146 | F16: 133.8333333 | G16: 92 | H16: 1.373134328 | I16: 133 | J16: 0.9937733499 | K16: 98 | L16: 1.462686567 | M16: 99 | N16: 1.47761194 | O16: 99 | P16: 1.47761194 | Q16: 92 | R16: 1.373134328 | S16: 102 | T16: 0.7621419676 | U16: 139 | V16: 1.03860523
A17: Metropolitana | B17: Brejetuba | C17: 227 | D17: 213 | E17: 169 | F17: 154.9166667 | G17: 232 | H17: 1.089201878 | I17: 262 | J17: 1.691231845 | K17: 192 | L17: 0.9014084507 | M17: 199 | N17: 0.9342723005 | O17: 174 | P17: 0.8169014085 | Q17: 172 | R17: 0.8075117371 | S17: 196 | T17: 1.265196342 | U17: 191 | V17: 1.232920925
A18: Sul | B18: Cachoeiro de Itapemirim | C18: 2386 | D18: 2179 | E18: 2417 | F18: 2215.583333 | G18: 1930 | H18: 0.8857273979 | I18: 1829 | J18: 0.8255162297 | K18: 2240 | L18: 1.027994493 | M18: 2057 | N18: 0.9440110142 | O18: 2133 | P18: 0.9788893988 | Q18: 1965 | R18: 0.9017898118 | S18: 1641 | T18: 0.7406627299 | U18: 1958 | V18: 0.8837401738
A19: Metropolitana | B19: Cariacica | C19: 4738 | D19: 4375 | E19: 5005 | F19: 4587.916667 | G19: 3499 | H19: 0.7997714286 | I19: 3187 | J19: 0.6946508037 | K19: 4294 | L19: 0.9814857143 | M19: 4010 | N19: 0.9165714286 | O19: 4010 | P19: 0.9165714286 | Q19: 3748 | R19: 0.8566857143 | S19: 3055 | T19: 0.665879575 | U19: 3761 | V19: 0.8197620561
A20: Sul | B20: Castelo | C20: 383 | D20: 342 | E20: 399 | F20: 365.75 | G20: 385 | H20: 1.125730994 | I20: 370 | J20: 1.011619959 | K20: 418 | L20: 1.222222222 | M20: 385 | N20: 1.125730994 | O20: 413 | P20: 1.207602339 | Q20: 410 | R20: 1.198830409 | S20: 321 | T20: 0.8776486671 | U20: 356 | V20: 0.973342447
A21: Central | B21: Colatina | C21: 1485 | D21: 1358 | E21: 1561 | F21: 1430.916667 | G21: 1168 | H21: 0.8600883652 | I21: 1015 | J21: 0.7093355075 | K21: 1320 | L21: 0.972017673 | M21: 1282 | N21: 0.9440353461 | O21: 1188 | P21: 0.8748159057 | Q21: 1107 | R21: 0.8151693667 | S21: 861 | T21: 0.6017121892 | U21: 978 | V21: 0.683477957
A22: Norte | B22: Conceição da Barra | C22: 343 | D22: 327 | E22: 391 | F22: 358.4166667 | G22: 379 | H22: 1.159021407 | I22: 397 | J22: 1.107649384 | K22: 400 | L22: 1.22324159 | M22: 365 | N22: 1.116207951 | O22: 381 | P22: 1.165137615 | Q22: 350 | R22: 1.070336391 | S22: 408 | T22: 1.138339921 | U22: 385 | V22: 1.074168798
A23: Metropolitana | B23: Conceição do Castelo | C23: 187 | D23: 171 | E23: 144 | F23: 132 | G23: 168 | H23: 0.9824561404 | I23: 168 | J23: 1.272727273 | K23: 114 | L23: 0.6666666667 | M23: 137 | N23: 0.8011695906 | O23: 114 | P23: 0.6666666667 | Q23: 124 | R23: 0.7251461988 | S23: 141 | T23: 1.068181818 | U23: 131 | V23: 0.9924242424
A24: Sul | B24: Divino de São Lourenço | C24: 67 | D24: 62 | E24: 68 | F24: 62.33333333 | G24: 72 | H24: 1.161290323 | I24: 78 | J24: 1.251336898 | K24: 92 | L24: 1.483870968 | M24: 65 | N24: 1.048387097 | O24: 70 | P24: 1.129032258 | Q24: 68 | R24: 1.096774194 | S24: 48 | T24: 0.7700534759 | U24: 52 | V24: 0.8342245989
A25: Metropolitana | B25: Domingos Martins | C25: 426 | D25: 382 | E25: 411 | F25: 376.75 | G25: 383 | H25: 1.002617801 | I25: 432 | J25: 1.146648971 | K25: 378 | L25: 0.9895287958 | M25: 361 | N25: 0.945026178 | O25: 390 | P25: 1.020942408 | Q25: 369 | R25: 0.9659685864 | S25: 320 | T25: 0.8493696085 | U25: 369 | V25: 0.9794293298
A26: Sul | B26: Dores do Rio Preto | C26: 102 | D26: 99 | E26: 92 | F26: 84.33333333 | G26: 92 | H26: 0.9292929293 | I26: 86 | J26: 1.019762846 | K26: 98 | L26: 0.9898989899 | M26: 106 | N26: 1.070707071 | O26: 109 | P26: 1.101010101 | Q26: 104 | R26: 1.050505051 | S26: 73 | T26: 0.8656126482 | U26: 77 | V26: 0.9130434783
A27: Norte | B27: Ecoporanga | C27: 250 | D27: 233 | E27: 283 | F27: 259.4166667 | G27: 205 | H27: 0.8798283262 | I27: 259 | J27: 0.9983938323 | K27: 242 | L27: 1.038626609 | M27: 224 | N27: 0.9613733906 | O27: 221 | P27: 0.9484978541 | Q27: 202 | R27: 0.8669527897 | S27: 207 | T27: 0.7979441054 | U27: 230 | V27: 0.8866045615
A28: Metropolitana | B28: Fundão | C28: 231 | D28: 213 | E28: 218 | F28: 199.8333333 | G28: 187 | H28: 0.8779342723 | I28: 208 | J28: 1.040867389 | K28: 208 | L28: 0.9765258216 | M28: 201 | N28: 0.9436619718 | O28: 192 | P28: 0.9014084507 | Q28: 183 | R28: 0.8591549296 | S28: 170 | T28: 0.8507089241 | U28: 199 | V28: 0.9958298582
A29: Central | B29: Governador Lindenberg | C29: 141 | D29: 130 | E29: 142 | F29: 130.1666667 | G29: 117 | H29: 0.9 | I29: 151 | J29: 1.160051216 | K29: 112 | L29: 0.8615384615 | M29: 113 | N29: 0.8692307692 | O29: 114 | P29: 0.8769230769 | Q29: 108 | R29: 0.8307692308 | S29: 148 | T29: 1.137003841 | U29: 143 | V29: 1.098591549
A30: Sul | B30: Guaçuí | C30: 387 | D30: 354 | E30: 407 | F30: 373.0833333 | G30: 311 | H30: 0.8785310734 | I30: 341 | J30: 0.914004914 | K30: 290 | L30: 0.8192090395 | M30: 319 | N30: 0.9011299435 | O30: 311 | P30: 0.8785310734 | Q30: 300 | R30: 0.8474576271 | S30: 366 | T30: 0.9810140719 | U30: 349 | V30: 0.9354478445
A31: Metropolitana | B31: Guarapari | C31: 1643 | D31: 1526 | E31: 1557 | F31: 1427.25 | G31: 1116 | H31: 0.7313237221 | I31: 1398 | J31: 0.9795060431 | K31: 1438 | L31: 0.9423328965 | M31: 1334 | N31: 0.874180865 | O31: 1371 | P31: 0.8984272608 | Q31: 1248 | R31: 0.8178243775 | S31: 1067 | T31: 0.7475915222 | U31: 1369 | V31: 0.9591872482
A32: Metropolitana | B32: Ibatiba | C32: 410 | D32: 375 | E32: 354 | F32: 324.5 | G32: 413 | H32: 1.101333333 | I32: 243 | J32: 0.748844376 | K32: 350 | L32: 0.9333333333 | M32: 355 | N32: 0.9466666667 | O32: 391 | P32: 1.042666667 | Q32: 351 | R32: 0.936 | S32: 289 | T32: 0.8906009245 | U32: 330 | V32: 1.016949153
A33: Metropolitana | B33: Ibiraçu | C33: 130 | D33: 123 | E33: 160 | F33: 146.6666667 | G33: 129 | H33: 1.048780488 | I33: 150 | J33: 1.022727273 | K33: 144 | L33: 1.170731707 | M33: 143 | N33: 1.162601626 | O33: 121 | P33: 0.9837398374 | Q33: 123 | R33: 1 | S33: 119 | T33: 0.8113636364 | U33: 119 | V33: 0.8113636364
A34: Sul | B34: Ibitirama | C34: 139 | D34: 130 | E34: 148 | F34: 135.6666667 | G34: 127 | H34: 0.9769230769 | I34: 137 | J34: 1.00982801 | K34: 148 | L34: 1.138461538 | M34: 135 | N34: 1.038461538 | O34: 130 | P34: 1 | Q34: 111 | R34: 0.8538461538 | S34: 131 | T34: 0.9656019656 | U34: 125 | V34: 0.9213759214
A35: Sul | B35: Iconha | C35: 140 | D35: 132 | E35: 156 | F35: 143 | G35: 135 | H35: =G35/D35 -> 1.022727273 | I35: 176 | J35: =I35/F35 -> 1.230769231 | K35: 102 | L35: =K35/D35 -> 0.7727272727 | M35: 96 | N35: =M35/D35 -> 0.7272727273 | O35: 94 | P35: =O35/D35 -> 0.7121212121 | Q35: 88 | R35: =Q35/D35 -> 0.6666666667 | S35: 118 | T35: =S35/F35 -> 0.8251748252 | U35: 118 | V35: =U35/F35 -> 0.8251748252
A36: Sul | B36: Irupi | C36: 194 | D36: 179 | E36: 200 | F36: 183.3333333 | G36: 165 | H36: 0.9217877095 | I36: 163 | J36: 0.8890909091 | K36: 198 | L36: 1.106145251 | M36: 193 | N36: 1.078212291 | O36: 204 | P36: 1.139664804 | Q36: 205 | R36: 1.145251397 | S36: 164 | T36: 0.8945454545 | U36: 163 | V36: 0.8890909091
A37: Metropolitana | B37: Itaguaçu | C37: 121 | D37: 119 | E37: 154 | F37: 141.1666667 | G37: 138 | H37: 1.159663866 | I37: 143 | J37: 1.012987013 | K37: 152 | L37: 1.277310924 | M37: 142 | N37: 1.193277311 | O37: 142 | P37: 1.193277311 | Q37: 127 | R37: 1.067226891 | S37: 110 | T37: 0.7792207792 | U37: 110 | V37: 0.7792207792
A38: Sul | B38: Itapemirim | C38: 537 | D38: 494 | E38: 556 | F38: 509.6666667 | G38: 343 | H38: 0.6943319838 | I38: 393 | J38: 0.7710922171 | K38: 432 | L38: 0.8744939271 | M38: 385 | N38: 0.7793522267 | O38: 389 | P38: 0.7874493927 | Q38: 373 | R38: 0.7550607287 | S38: 307 | T38: 0.6023544801 | U38: 446 | V38: 0.8750817528
A39: Metropolitana | B39: Itarana | C39: 131 | D39: 126 | E39: 128 | F39: 117.3333333 | G39: 132 | H39: 1.047619048 | I39: 117 | J39: 0.9971590909 | K39: 146 | L39: 1.158730159 | M39: 118 | N39: 0.9365079365 | O39: 128 | P39: 1.015873016 | Q39: 121 | R39: 0.9603174603 | S39: 99 | T39: 0.84375 | U39: 95 | V39: 0.8096590909
A40: Sul | B40: Iúna | C40: 387 | D40: 358 | E40: 410 | F40: 375.8333333 | G40: 386 | H40: 1.078212291 | I40: 317 | J40: 0.84345898 | K40: 388 | L40: 1.083798883 | M40: 374 | N40: 1.044692737 | O40: 419 | P40: 1.170391061 | Q40: 377 | R40: 1.053072626 | S40: 327 | T40: 0.8700665188 | U40: 356 | V40: 0.9472283814
A41: Norte | B41: Jaguaré | C41: 444 | D41: 415 | E41: 445 | F41: 407.9166667 | G41: 391 | H41: 0.9421686747 | I41: 377 | J41: 0.9242083759 | K41: 406 | L41: 0.978313253 | M41: 425 | N41: 1.024096386 | O41: 416 | P41: 1.002409639 | Q41: 408 | R41: 0.9831325301 | S41: 332 | T41: 0.8138917263 | U41: 409 | V41: 1.002655771
A42: Sul | B42: Jerônimo Monteiro | C42: 114 | D42: 111 | E42: 157 | F42: 143.9166667 | G42: 131 | H42: 1.18018018 | I42: 125 | J42: 0.8685581934 | K42: 136 | L42: 1.225225225 | M42: 116 | N42: 1.045045045 | O42: 133 | P42: 1.198198198 | Q42: 120 | R42: 1.081081081 | S42: 83 | T42: 0.5767226404 | U42: 126 | V42: 0.8755066589
A43: Metropolitana | B43: João Neiva | C43: 143 | D43: 132 | E43: 142 | F43: 130.1666667 | G43: 135 | H43: 1.022727273 | I43: 158 | J43: 1.213828425 | K43: 150 | L43: 1.136363636 | M43: 139 | N43: 1.053030303 | O43: 144 | P43: 1.090909091 | Q43: 140 | R43: 1.060606061 | S43: 116 | T43: 0.8911651729 | U43: 148 | V43: 1.137003841
A44: Metropolitana | B44: Laranja da Terra | C44: 120 | D44: 114 | E44: 133 | F44: 121.9166667 | G44: 110 | H44: 0.9649122807 | I44: 129 | J44: 1.058099795 | K44: 106 | L44: 0.9298245614 | M44: 104 | N44: 0.9122807018 | O44: 94 | P44: 0.8245614035 | Q44: 87 | R44: 0.7631578947 | S44: 88 | T44: 0.7218045113 | U44: 101 | V44: 0.8284347232
A45: Central | B45: Linhares | C45: 2668 | D45: 2438 | E45: 2452 | F45: 2247.666667 | G45: 1856 | H45: 0.7612797375 | I45: 1864 | J45: 0.8293044639 | K45: 2086 | L45: 0.8556193601 | M45: 2090 | N45: 0.8572600492 | O45: 2006 | P45: 0.8228055783 | Q45: 1995 | R45: 0.8182936833 | S45: 1601 | T45: 0.7122942311 | U45: 2046 | V45: 0.9102773246
A46: Central | B46: Mantenópolis | C46: 132 | D46: 121 | E46: 166 | F46: 152.1666667 | G46: 148 | H46: 1.223140496 | I46: 148 | J46: 0.9726177437 | K46: 148 | L46: 1.223140496 | M46: 138 | N46: 1.140495868 | O46: 146 | P46: 1.20661157 | Q46: 135 | R46: 1.115702479 | S46: 174 | T46: 1.143483023 | U46: 184 | V46: 1.209200438
A47: Sul | B47: Marataízes | C47: 570 | D47: 532 | E47: 579 | F47: 530.75 | G47: 432 | H47: 0.8120300752 | I47: 568 | J47: 1.070183702 | K47: 550 | L47: 1.033834586 | M47: 540 | N47: 1.015037594 | O47: 501 | P47: 0.9417293233 | Q47: 506 | R47: 0.9511278195 | S47: 345 | T47: 0.6500235516 | U47: 539 | V47: 1.015544041
A48: Metropolitana | B48: Marechal Floriano | C48: 207 | D48: 190 | E48: 236 | F48: 216.3333333 | G48: 197 | H48: 1.036842105 | I48: 216 | J48: 0.998459168 | K48: 202 | L48: 1.063157895 | M48: 175 | N48: 0.9210526316 | O48: 201 | P48: 1.057894737 | Q48: 192 | R48: 1.010526316 | S48: 160 | T48: 0.7395993837 | U48: 196 | V48: 0.906009245
A49: Central | B49: Marilândia | C49: 166 | D49: 159 | E49: 164 | F49: 150.3333333 | G49: 146 | H49: 0.9182389937 | I49: 174 | J49: 1.157427938 | K49: 126 | L49: 0.7924528302 | M49: 116 | N49: 0.7295597484 | O49: 139 | P49: 0.8742138365 | Q49: 128 | R49: 0.8050314465 | S49: 143 | T49: 0.9512195122 | U49: 132 | V49: 0.8780487805
A50: Sul | B50: Mimoso do Sul | C50: 279 | D50: 256 | E50: 276 | F50: 253 | G50: 199 | H50: 0.77734375 | I50: 169 | J50: 0.6679841897 | K50: 204 | L50: 0.796875 | M50: 199 | N50: 0.77734375 | O50: 195 | P50: 0.76171875 | Q50: 187 | R50: 0.73046875 | S50: 171 | T50: 0.6758893281 | U50: 188 | V50: 0.743083004
A51: Norte | B51: Montanha | C51: 217 | D51: 205 | E51: 278 | F51: 254.8333333 | G51: 244 | H51: 1.190243902 | I51: 251 | J51: 0.9849574886 | K51: 288 | L51: 1.404878049 | M51: 241 | N51: 1.175609756 | O51: 239 | P51: 1.165853659 | Q51: 234 | R51: 1.141463415 | S51: 175 | T51: 0.6867233486 | U51: 191 | V51: 0.7495094833
A52: Norte | B52: Mucurici | C52: 53 | D52: 46 | E52: 97 | F52: 88.91666667 | G52: 65 | H52: 1.413043478 | I52: 58 | J52: 0.6522961575 | K52: 64 | L52: 1.391304348 | M52: 50 | N52: 1.086956522 | O52: 64 | P52: 1.391304348 | Q52: 60 | R52: 1.304347826 | S52: 52 | T52: 0.5848172446 | U52: 52 | V52: 0.5848172446
A53: Sul | B53: Muniz Freire | C53: 248 | D53: 226 | E53: 275 | F53: 252.0833333 | G53: 350 | H53: 1.548672566 | I53: 127 | J53: 0.5038016529 | K53: 234 | L53: 1.03539823 | M53: 207 | N53: 0.9159292035 | O53: 217 | P53: 0.9601769912 | Q53: 211 | R53: 0.9336283186 | S53: 211 | T53: 0.8370247934 | U53: 224 | V53: 0.8885950413
A54: Sul | B54: Muqui | C54: 154 | D54: 143 | E54: 152 | F54: 139.3333333 | G54: 149 | H54: 1.041958042 | I54: 179 | J54: 1.284688995 | K54: 148 | L54: 1.034965035 | M54: 138 | N54: 0.965034965 | O54: 152 | P54: 1.062937063 | Q54: 144 | R54: 1.006993007 | S54: 160 | T54: 1.148325359 | U54: 162 | V54: 1.162679426
A55: Norte | B55: Nova Venécia | C55: 690 | D55: 628 | E55: 656 | F55: 601.3333333 | G55: 536 | H55: 0.8535031847 | I55: 601 | J55: 0.9994456763 | K55: 638 | L55: 1.015923567 | M55: 605 | N55: 0.9633757962 | O55: 593 | P55: 0.9442675159 | Q55: 550 | R55: 0.8757961783 | S55: 452 | T55: 0.7516629712 | U55: 535 | V55: 0.8896895787
A56: Central | B56: Pancas | C56: 218 | D56: 201 | E56: 244 | F56: 223.6666667 | G56: 198 | H56: 0.9850746269 | I56: 226 | J56: 1.010432191 | K56: 184 | L56: 0.9154228856 | M56: 186 | N56: 0.9253731343 | O56: 205 | P56: 1.019900498 | Q56: 193 | R56: 0.960199005 | S56: 136 | T56: 0.60804769 | U56: 174 | V56: 0.7779433681
A57: Norte | B57: Pedro Canário | C57: 320 | D57: 297 | E57: 338 | F57: 309.8333333 | G57: 311 | H57: 1.047138047 | I57: 337 | J57: 1.087681549 | K57: 346 | L57: 1.164983165 | M57: 297 | N57: 1 | O57: 318 | P57: 1.070707071 | Q57: 294 | R57: 0.9898989899 | S57: 268 | T57: 0.8649811727 | U57: 304 | V57: 0.9811726735
A58: Norte | B58: Pinheiros | C58: 304 | D58: 286 | E58: 383 | F58: 351.0833333 | G58: 264 | H58: 0.9230769231 | I58: 271 | J58: 0.7718965108 | K58: 256 | L58: 0.8951048951 | M58: 268 | N58: 0.9370629371 | O58: 253 | P58: 0.8846153846 | Q58: 247 | R58: 0.8636363636 | S58: 227 | T58: 0.64657014 | U58: 271 | V58: 0.7718965108
A59: Sul | B59: Piúma | C59: 310 | D59: 281 | E59: 311 | F59: 285.0833333 | G59: 236 | H59: 0.8398576512 | I59: 250 | J59: 0.8769365683 | K59: 296 | L59: 1.053380783 | M59: 265 | N59: 0.9430604982 | O59: 236 | P59: 0.8398576512 | Q59: 219 | R59: 0.7793594306 | S59: 234 | T59: 0.8208126279 | U59: 266 | V59: 0.9330605086
A60: Norte | B60: Ponto Belo | C60: 68 | D60: 65 | E60: 85 | F60: 77.91666667 | G60: 76 | H60: 1.169230769 | I60: 107 | J60: 1.373262032 | K60: 80 | L60: 1.230769231 | M60: 81 | N60: 1.246153846 | O60: 72 | P60: 1.107692308 | Q60: 73 | R60: 1.123076923 | S60: 93 | T60: 1.193582888 | U60: 95 | V60: 1.219251337
A61: Sul | B61: Presidente Kennedy | C61: 199 | D61: 183 | E61: 239 | F61: 219.0833333 | G61: 179 | H61: 0.9781420765 | I61: 169 | J61: 0.771395968 | K61: 214 | L61: 1.169398907 | M61: 185 | N61: 1.010928962 | O61: 188 | P61: 1.027322404 | Q61: 175 | R61: 0.956284153 | S61: 162 | T61: 0.7394446558 | U61: 162 | V61: 0.7394446558
A62: Central | B62: Rio Bananal | C62: 296 | D62: 265 | E62: 229 | F62: 209.9166667 | G62: 365 | H62: 1.377358491 | I62: 218 | J62: 1.038507344 | K62: 258 | L62: 0.9735849057 | M62: 250 | N62: 0.9433962264 | O62: 280 | P62: 1.056603774 | Q62: 273 | R62: 1.030188679 | S62: 260 | T62: 1.238586741 | U62: 275 | V62: 1.310043668
A63: Sul | B63: Rio Novo do Sul | C63: 97 | D63: 88 | E63: 144 | F63: 132 | G63: 93 | H63: 1.056818182 | I63: 113 | J63: 0.8560606061 | K63: 94 | L63: 1.068181818 | M63: 97 | N63: 1.102272727 | O63: 91 | P63: 1.034090909 | Q63: 83 | R63: 0.9431818182 | S63: 74 | T63: 0.5606060606 | U63: 85 | V63: 0.6439393939
A64: Metropolitana | B64: Santa Leopoldina | C64: 96 | D64: 89 | E64: 155 | F64: 142.0833333 | G64: 92 | H64: 1.033707865 | I64: 108 | J64: 0.7601173021 | K64: 94 | L64: 1.056179775 | M64: 79 | N64: 0.8876404494 | O64: 85 | P64: 0.9550561798 | Q64: 84 | R64: 0.9438202247 | S64: 103 | T64: 0.7249266862 | U64: 100 | V64: 0.7038123167
A65: Metropolitana | B65: Santa Maria de Jetibá | C65: 721 | D65: 667 | E65: 685 | F65: 627.9166667 | G65: 584 | H65: 0.8755622189 | I65: 470 | J65: 0.7485069675 | K65: 610 | L65: 0.9145427286 | M65: 558 | N65: 0.8365817091 | O65: 560 | P65: 0.8395802099 | Q65: 548 | R65: 0.8215892054 | S65: 493 | T65: 0.7851360319 | U65: 590 | V65: 0.9396151294
A66: Metropolitana | B66: Santa Teresa | C66: 283 | D66: 262 | E66: 260 | F66: 238.3333333 | G66: 242 | H66: 0.9236641221 | I66: 310 | J66: 1.300699301 | K66: 274 | L66: 1.045801527 | M66: 259 | N66: 0.9885496183 | O66: 255 | P66: 0.9732824427 | Q66: 237 | R66: 0.9045801527 | S66: 230 | T66: 0.965034965 | U66: 243 | V66: 1.01958042
A67: Central | B67: São Domingos do Norte | C67: 111 | D67: 101 | E67: 117 | F67: 107.25 | G67: 104 | H67: =G67/D67 -> 1.02970297 | I67: 91 | J67: =I67/F67 -> 0.8484848485 | K67: 110 | L67: =K67/D67 -> 1.089108911 | M67: 105 | N67: =M67/D67 -> 1.03960396 | O67: 114 | P67: =O67/D67 -> 1.128712871 | Q67: 103 | R67: =Q67/D67 -> 1.01980198 | S67: 79 | T67: =S67/F67 -> 0.7365967366 | U67: 85 | V67: =U67/F67 -> 0.7925407925
A68: Central | B68: São Gabriel da Palha | C68: 401 | D68: 376 | E68: 426 | F68: =(E68/12)*11 -> 390.5 | G68: 407 | H68: 1.082446809 | I68: 382 | J68: 0.9782330346 | K68: 384 | L68: 1.021276596 | M68: 371 | N68: 0.9867021277 | O68: 378 | P68: 1.005319149 | Q68: 384 | R68: 1.021276596 | S68: 345 | T68: 0.8834827145 | U68: 360 | V68: 0.9218950064
A69: Sul | B69: São José do Calçado | C69: 94 | D69: 84 | E69: 150 | F69: 137.5 | G69: 88 | H69: 1.047619048 | I69: 94 | J69: 0.6836363636 | K69: 82 | L69: 0.9761904762 | M69: 83 | N69: 0.9880952381 | O69: 92 | P69: 1.095238095 | Q69: 86 | R69: 1.023809524 | S69: 77 | T69: 0.56 | U69: 103 | V69: 0.7490909091
A70: Norte | B70: São Mateus | C70: 1670 | D70: 1562 | E70: 1766 | F70: 1618.833333 | G70: 1316 | H70: 0.8425096031 | I70: 1324 | J70: 0.8178729538 | K70: 1654 | L70: 1.058898848 | M70: 1540 | N70: 0.985915493 | O70: 1538 | P70: 0.9846350832 | Q70: 1448 | R70: 0.9270166453 | S70: 1208 | T70: 0.746216411 | U70: 1414 | V70: 0.8734685473
A71: Central | B71: São Roque do Canaã | C71: 131 | D71: 121 | E71: 100 | F71: 91.66666667 | G71: 113 | H71: 0.9338842975 | I71: 111 | J71: 1.210909091 | K71: 116 | L71: 0.958677686 | M71: 111 | N71: 0.9173553719 | O71: 97 | P71: 0.8016528926 | Q71: 97 | R71: 0.8016528926 | S71: 89 | T71: 0.9709090909 | U71: 96 | V71: 1.047272727
A72: Metropolitana | B72: Serra | C72: 7550 | D72: 7009 | E72: 7550 | F72: 6920.833333 | G72: 5057 | H72: 0.7215009274 | I72: 4676 | J72: 0.67564118 | K72: 6446 | L72: 0.919674704 | M72: 5900 | N72: 0.8417748609 | O72: 5638 | P72: 0.8043943501 | Q72: 5310 | R72: 0.7575973748 | S72: 4514 | T72: 0.6522335942 | U72: 5299 | V72: 0.7656592414
A73: Central | B73: Sooretama | C73: 428 | D73: 391 | E73: 415 | F73: 380.4166667 | G73: 346 | H73: 0.8849104859 | I73: 368 | J73: 0.9673603505 | K73: 398 | L73: 1.017902813 | M73: 384 | N73: 0.9820971867 | O73: 390 | P73: 0.9974424552 | Q73: 347 | R73: 0.8874680307 | S73: 309 | T73: 0.8122672508 | U73: 374 | V73: 0.9831325301
A74: Sul | B74: Vargem Alta | C74: 270 | D74: 252 | E74: 278 | F74: 254.8333333 | G74: 226 | H74: 0.8968253968 | I74: 226 | J74: 0.886854153 | K74: 224 | L74: 0.8888888889 | M74: 224 | N74: 0.8888888889 | O74: 235 | P74: 0.9325396825 | Q74: 222 | R74: 0.880952381 | S74: 141 | T74: 0.5533028123 | U74: 214 | V74: 0.839764552
A75: Metropolitana | B75: Venda Nova do Imigrante | C75: 352 | D75: 323 | E75: 328 | F75: 300.6666667 | G75: 353 | H75: 1.092879257 | I75: 217 | J75: 0.72172949 | K75: 370 | L75: 1.145510836 | M75: 290 | N75: 0.8978328173 | O75: 331 | P75: 1.024767802 | Q75: 319 | R75: 0.9876160991 | S75: 285 | T75: 0.9478935698 | U75: 305 | V75: 1.014412417
A76: Metropolitana | B76: Viana | C76: 863 | D76: 803 | E76: 1064 | F76: 975.3333333 | G76: 636 | H76: 0.7920298879 | I76: 707 | J76: 0.7248803828 | K76: 888 | L76: 1.105853051 | M76: 844 | N76: 1.051058531 | O76: 760 | P76: 0.9464508095 | Q76: 769 | R76: 0.9576587796 | S76: 692 | T76: 0.7095010253 | U76: 954 | V76: 0.978127136
A77: Norte | B77: Vila Pavão | C77: 95 | D77: 91 | E77: 127 | F77: 116.4166667 | G77: 93 | H77: 1.021978022 | I77: 84 | J77: 0.7215461704 | K77: 106 | L77: 1.164835165 | M77: 107 | N77: 1.175824176 | O77: 107 | P77: 1.175824176 | Q77: 100 | R77: 1.098901099 | S77: 93 | T77: 0.7988546886 | U77: 104 | V77: 0.8933428776
A78: Central | B78: Vila Valério | C78: 254 | D78: 236 | E78: 169 | F78: 154.9166667 | G78: 256 | H78: 1.084745763 | I78: 220 | J78: 1.420118343 | K78: 226 | L78: 0.9576271186 | M78: 216 | N78: 0.9152542373 | O78: 228 | P78: 0.9661016949 | Q78: 219 | R78: 0.9279661017 | S78: 198 | T78: 1.278106509 | U78: 200 | V78: 1.291016676
A79: Metropolitana | B79: Vila Velha | C79: 5551 | D79: 5140 | E79: 5675 | F79: 5202.083333 | G79: 3866 | H79: 0.7521400778 | I79: 4363 | J79: 0.8387024429 | K79: 4836 | L79: 0.9408560311 | M79: 4177 | N79: 0.8126459144 | O79: 4315 | P79: 0.8394941634 | Q79: 4010 | R79: 0.780155642 | S79: 3529 | T79: 0.6783820585 | U79: 4034 | V79: 0.7754585503
A80: Metropolitana | B80: Vitória | C80: 3544 | D80: 3269 | E80: 3833 | F80: 3513.583333 | G80: 3185 | H80: 0.9743040685 | I80: 2554 | J80: 0.7268932476 | K80: 3720 | L80: 1.13796268 | M80: 2936 | N80: 0.8981339859 | O80: 3482 | P80: 1.065157541 | Q80: 3251 | R80: 0.994493729 | S80: 2025 | T80: 0.576334701 | U80: 2869 | V80: 0.8165453122
B82: Total Norte | C82: =SUMIF($A$3:$A$80,"Norte",C$3:C$80) -> 5430 | D82: =SUMIF($A$3:$A$80,"Norte",D$3:D$80) -> 5055 | E82: =SUMIF($A$3:$A$80,"Norte",E$3:E$80) -> 5789 | F82: =SUMIF($A$3:$A$80,"Norte",F$3:F$80) -> 5306.583333 | G82: =SUMIF($A$3:$A$80,"Norte",G$3:G$80) -> 4635 | H82: =G82/D82 -> 0.9169139466 | I82: =SUMIF($A$3:$A$80,"Norte",I$3:I$80) -> 4723 | J82: =I82/F82 -> 0.8900265394 | K82: =SUMIF($A$3:$A$80,"Norte",K$3:K$80) -> 5332 | L82: =K82/D82 -> 1.05479723 | M82: =SUMIF($A$3:$A$80,"Norte",M$3:M$80) -> 5031 | N82: =M82/D82 -> 0.9952522255 | O82: =SUMIF($A$3:$A$80,"Norte",O$3:O$80) -> 4978 | P82: =O82/D82 -> 0.9847675569 | Q82: =SUMIF($A$3:$A$80,"Norte",Q$3:Q$80) -> 4695 | R82: =Q82/D82 -> 0.9287833828 | S82: =SUMIF($A$3:$A$80,"Norte",S$3:S$80) -> 4099 | T82: =S82/F82 -> 0.7724367531 | U82: =SUMIF($A$3:$A$80,"Norte",U$3:U$80) -> 4642 | V82: =U82/F82 -> 0.8747624806
B83: Total Central | C83: =SUMIF($A$3:$A$80,"Central",C$3:C$80) -> 7049 | D83: =SUMIF($A$3:$A$80,"Central",D$3:D$80) -> 6466 | E83: =SUMIF($A$3:$A$80,"Central",E$3:E$80) -> 6843 | F83: =SUMIF($A$3:$A$80,"Central",F$3:F$80) -> 6272.75 | G83: =SUMIF($A$3:$A$80,"Central",G$3:G$80) -> 5811 | H83: =G83/D83 -> 0.898700897 | I83: =SUMIF($A$3:$A$80,"Central",I$3:I$80) -> 5594 | J83: =I83/F83 -> 0.8917938703 | K83: =SUMIF($A$3:$A$80,"Central",K$3:K$80) -> 6132 | L83: =K83/D83 -> 0.9483451902 | M83: =SUMIF($A$3:$A$80,"Central",M$3:M$80) -> 5917 | N83: =M83/D83 -> 0.9150943396 | O83: =SUMIF($A$3:$A$80,"Central",O$3:O$80) -> 5874 | P83: =O83/D83 -> 0.9084441695 | Q83: =SUMIF($A$3:$A$80,"Central",Q$3:Q$80) -> 5657 | R83: =Q83/D83 -> 0.8748840087 | S83: =SUMIF($A$3:$A$80,"Central",S$3:S$80) -> 4885 | T83: =S83/F83 -> 0.7787652943 | U83: =SUMIF($A$3:$A$80,"Central",U$3:U$80) -> 5617 | V83: =U83/F83 -> 0.8954605237
B84: Total Metropolitana | C84: =SUMIF($A$3:$A$80,"Metropolitana",C$3:C$80) -> 29453 | D84: =SUMIF($A$3:$A$80,"Metropolitana",D$3:D$80) -> 27269 | E84: =SUMIF($A$3:$A$80,"Metropolitana",E$3:E$80) -> 30197 | F84: =SUMIF($A$3:$A$80,"Metropolitana",F$3:F$80) -> 27680.58333 | G84: =SUMIF($A$3:$A$80,"Metropolitana",G$3:G$80) -> 22428 | H84: =G84/D84 -> 0.8224724046 | I84: =SUMIF($A$3:$A$80,"Metropolitana",I$3:I$80) -> 22051 | J84: =I84/F84 -> 0.7966233852 | K84: =SUMIF($A$3:$A$80,"Metropolitana",K$3:K$80) -> 26818 | L84: =K84/D84 -> 0.983461073 | M84: =SUMIF($A$3:$A$80,"Metropolitana",M$3:M$80) -> 24008 | N84: =M84/D84 -> 0.8804136565 | O84: =SUMIF($A$3:$A$80,"Metropolitana",O$3:O$80) -> 24543 | P84: =O84/D84 -> 0.9000330045 | Q84: =SUMIF($A$3:$A$80,"Metropolitana",Q$3:Q$80) -> 23018 | R84: =Q84/D84 -> 0.8441086949 | S84: =SUMIF($A$3:$A$80,"Metropolitana",S$3:S$80) -> 19294 | T84: =S84/F84 -> 0.6970228831 | U84: =SUMIF($A$3:$A$80,"Metropolitana",U$3:U$80) -> 23162 | V84: =U84/F84 -> 0.8367598226
B85: Total Sul | C85: =SUMIF($A$3:$A$80,"sul",C$3:C$80) -> 8116 | D85: =SUMIF($A$3:$A$80,"sul",D$3:D$80) -> 7444 | E85: =SUMIF($A$3:$A$80,"sul",E$3:E$80) -> 8688 | F85: =SUMIF($A$3:$A$80,"sul",F$3:F$80) -> 7964 | G85: =SUMIF($A$3:$A$80,"sul",G$3:G$80) -> 7084 | H85: =G85/D85 -> 0.9516389038 | I85: =SUMIF($A$3:$A$80,"sul",I$3:I$80) -> 7040 | J85: =I85/F85 -> 0.8839779006 | K85: =SUMIF($A$3:$A$80,"Sul",K$3:K$80) -> 7664 | L85: =K85/D85 -> 1.029554003 | M85: =SUMIF($A$3:$A$80,"Sul",M$3:M$80) -> 7188 | N85: =M85/D85 -> 0.9656098872 | O85: =SUMIF($A$3:$A$80,"Sul",O$3:O$80) -> 7413 | P85: =O85/D85 -> 0.9958355723 | Q85: =SUMIF($A$3:$A$80,"Sul",Q$3:Q$80) -> 6988 | R85: =Q85/D85 -> 0.9387426115 | S85: =SUMIF($A$3:$A$80,"Sul",S$3:S$80) -> 6139 | T85: =S85/F85 -> 0.7708437971 | U85: =SUMIF($A$3:$A$80,"Sul",U$3:U$80) -> 7192 | V85: =U85/F85 -> 0.903063787
B86: Total Espírito Santo | C86: =SUM(C3:C80) -> 50048 | D86: =SUM(D3:D80) -> 46234 | E86: =SUM(E3:E80) -> 51517 | F86: =SUM(F3:F80) -> 47223.91667 | G86: =SUM(G3:G80) -> 39958 | H86: =G86/D86 -> 0.8642557425 | I86: =SUM(I3:I80) -> 39408 | J86: =I86/F86 -> 0.8344924094 | K86: =SUM(K3:K80) -> 45946 | L86: =K86/D86 -> 0.993770818 | M86: =SUM(M3:M80) -> 42144 | N86: =M86/D86 -> 0.9115369641 | O86: =SUM(O3:O80) -> 42808 | P86: =O86/D86 -> 0.9258986893 | Q86: =SUM(Q3:Q80) -> 40358 | R86: =Q86/D86 -> 0.8729073842 | S86: =SUM(S3:S80) -> 34417 | T86: =S86/F86 -> 0.728804437 | U86: =SUM(U3:U80) -> 40613 | V86: =U86/F86 -> 0.8600091408
A90: Fonte: Vacina e Confia, em 22 e 23 de Dezembro de 2025.**<https://vacinaeconfia.saude.es.gov.br/>
A91: **Dados referente às doses aplicadas no período de Janeiro a Outubro 2025
A92: Cobertura Calculada por município de procedência/ocorrência da vacinação
A93: 1 População anual extraída do MS/SVS/DASIS - SINASC/DASIS/SVS/MS 2024 (hoje preliminares) referente ao período de Outubro a Dezembro de 2024 e SINASC/DASIS/SVS/MS 2025 referente ao período de Janeiro e Setembro de 2025.
A94: ² População proporcional extraída do MS/SVS/DASIS - SINASC/DASIS/SVS/MS 2024 (hoje preliminares) referente ao período de Outubro e Novembro de 2024 e SINASC/DASIS/SVS/MS 2025 referente ao período de Janeiro a Setembro de 2025.
A95: Sinasc, atualizado em 11/12/2025.
A96: Método de Cálculo Simples
A97: Homogeineidade: O cálculo da Homogeineidade entre vacinas é feito de acordo com a pactuação estabelecida no Plano Plurianual (PPA) vigente no período 2024-2027.
A101: Observações:
A102: 1. Imunobiológicos que foram recebidos parcialmente pelo estado no mês de Novembro/2025, sendo distribuídos em quantidades reduzidas às regionais e municípios:
A103: SORO ANTIRRÁBICO HUMANO; IMUNOGLOBULINA ANTIRRÁBICA HUMANA.
A104: 2. Imunobiológicos indisponíveis no mês de Novembro/2025, não sendo possível a distribuição às regionais e municípios:
A105: IMUNOGLOBULINA HUMANA ANTI-HEPATITE B - 100 UI, VACINA TETRA VIRAL, IMUNOGLOBULINA HUMANA ANTIVARICELA (ZOSTER) – 125UI
A106: 3. Imunobiológicos distribuídos através de pautas: VACINA COVID-19 PFIZER PEDIÁTRICA MENOR QUE 5 ANOS,VACINA COVID-19 PFIZER ADULTO E ADOLESCENTE A PARTIR DE 12 ANOS, VACINA COVID-19 PFIZER PEDIÁTRICA, VACINA CONTRA DENGUE 1,2,3 E 4 (ATENUADA).

Sheet CV REF 1A e 4A - residência
G1: D2 | K1: REFORÇOS 1 ANO | S1: REFORÇOS 4 ANOS
A2: Regional | B2: Município | C2: ¹População 1 ano anual | D2: ²População 1 ano proporcional | E2: ³População 4 anos anual | F2: ³População 4 anos proporcional | G2: DOSES APLICADAS D2 TRÍPLICE VIRAL | H2: COBERTURA D2 TRÍPLICE VIRAL | I2: DOSES APLICADAS D2 VARICELA | J2: COBERTURA D2 VARICELA | K2: DOSES APLICADAS REF PNEUMO | L2: COBERTURA REF PNEUMO | M2: DOSES APLICADAS REF MENINGO | N2: COBERTURA REF MENINGO | O2: DOSES APLICADAS REF POLIO | P2: COBERTURA REF POLIO | Q2: DOSES APLICADAS R1 TRÍPLICE BACTERIANA | R2: COBERTURA R1 TRÍPLICE BACTERIANA | S2: DOSES APLICADAS REF FEBRE AMARELA | T2: COBERTURA REF FEBRE AMARELA | U2: DOSES APLICADAS R2 TRÍPLICE BACTERIANA | V2: COBERTURA R2 TRÍPLICE BACTERIANA
A3: Metropolitana | B3: Afonso Cláudio | C3: 359 | D3: 332 | E3: 416 | F3: =(E3/12)*11 -> 381.3333333 | G3: 342 | H3: =G3/D3 -> 1.030120482 | I3: 378 | J3: =I3/F3 -> 0.9912587413 | K3: 328 | L3: =K3/D3 -> 0.9879518072 | M3: 328 | N3: =M3/D3 -> 0.9879518072 | O3: 362 | P3: =O3/D3 -> 1.090361446 | Q3: 334 | R3: =Q3/D3 -> 1.006024096 | S3: 355 | T3: =S3/F3 -> 0.9309440559 | U3: 366 | V3: =U3/F3 -> 0.9597902098
A4: Norte | B4: Água Doce do Norte | C4: 145 | D4: 139 | E4: 151 | F4: =(E4/12)*11 -> 138.4166667 | G4: 126 | H4: 0.9064748201 | I4: 79 | J4: 0.5707405178 | K4: 159 | L4: 1.143884892 | M4: 150 | N4: 1.079136691 | O4: 146 | P4: 1.050359712 | Q4: 141 | R4: 1.014388489 | S4: 88 | T4: 0.6357615894 | U4: 101 | V4: 0.7296809151
A5: Central | B5: Águia Branca | C5: 165 | D5: 153 | E5: 129 | F5: 118.25 | G5: 140 | H5: 0.9150326797 | I5: 94 | J5: 0.7949260042 | K5: 133 | L5: 0.8692810458 | M5: 137 | N5: 0.8954248366 | O5: 144 | P5: 0.9411764706 | Q5: 140 | R5: 0.9150326797 | S5: 88 | T5: 0.7441860465 | U5: 94 | V5: 0.7949260042
A6: Sul | B6: Alegre | C6: 322 | D6: 292 | E6: 372 | F6: 341 | G6: 323 | H6: 1.106164384 | I6: 299 | J6: 0.8768328446 | K6: 280 | L6: 0.9589041096 | M6: 270 | N6: 0.9246575342 | O6: 319 | P6: 1.092465753 | Q6: 307 | R6: 1.051369863 | S6: 268 | T6: 0.7859237537 | U6: 294 | V6: 0.862170088
A7: Sul | B7: Alfredo Chaves | C7: 119 | D7: 104 | E7: 138 | F7: 126.5 | G7: 108 | H7: 1.038461538 | I7: 117 | J7: 0.9249011858 | K7: 102 | L7: 0.9807692308 | M7: 97 | N7: 0.9326923077 | O7: 123 | P7: 1.182692308 | Q7: 116 | R7: 1.115384615 | S7: 97 | T7: 0.766798419 | U7: 112 | V7: 0.8853754941
A8: Central | B8: Alto Rio Novo | C8: 99 | D8: 92 | E8: 102 | F8: 93.5 | G8: 91 | H8: 0.9891304348 | I8: 103 | J8: 1.101604278 | K8: 82 | L8: 0.8913043478 | M8: 85 | N8: 0.9239130435 | O8: 85 | P8: 0.9239130435 | Q8: 84 | R8: 0.9130434783 | S8: 91 | T8: 0.9732620321 | U8: 86 | V8: 0.9197860963
A9: Sul | B9: Anchieta | C9: 334 | D9: 308 | E9: 390 | F9: 357.5 | G9: 339 | H9: 1.100649351 | I9: 384 | J9: 1.074125874 | K9: 346 | L9: 1.123376623 | M9: 349 | N9: 1.133116883 | O9: 368 | P9: 1.194805195 | Q9: 340 | R9: 1.103896104 | S9: 367 | T9: 1.026573427 | U9: 391 | V9: 1.093706294
A10: Sul | B10: Apiacá | C10: 64 | D10: 57 | E10: 90 | F10: 82.5 | G10: 59 | H10: 1.035087719 | I10: 63 | J10: 0.7636363636 | K10: 61 | L10: 1.070175439 | M10: 59 | N10: 1.035087719 | O10: 59 | P10: 1.035087719 | Q10: 54 | R10: 0.9473684211 | S10: 23 | T10: 0.2787878788 | U10: 58 | V10: 0.703030303
A11: Metropolitana | B11: Aracruz | C11: 1420 | D11: 1316 | E11: 1420 | F11: 1301.666667 | G11: 1251 | H11: 0.9506079027 | I11: 1418 | J11: 1.089372599 | K11: 1189 | L11: 0.9034954407 | M11: 1247 | N11: 0.9475683891 | O11: 1295 | P11: 0.9840425532 | Q11: 1197 | R11: 0.9095744681 | S11: 1115 | T11: 0.8565941101 | U11: 1266 | V11: 0.9725992318
A12: Sul | B12: Atilio Vivacqua | C12: 148 | D12: 131 | E12: 138 | F12: 126.5 | G12: 152 | H12: 1.160305344 | I12: 159 | J12: 1.256916996 | K12: 154 | L12: 1.175572519 | M12: 157 | N12: 1.198473282 | O12: 150 | P12: 1.145038168 | Q12: 143 | R12: 1.091603053 | S12: 145 | T12: 1.146245059 | U12: 155 | V12: 1.225296443
A13: Central | B13: Baixo Guandu | C13: 354 | D13: 324 | E13: 427 | F13: 391.4166667 | G13: 331 | H13: 1.021604938 | I13: 367 | J13: 0.9376197573 | K13: 325 | L13: 1.00308642 | M13: 319 | N13: 0.9845679012 | O13: 340 | P13: 1.049382716 | Q13: 328 | R13: 1.012345679 | S13: 305 | T13: 0.7792207792 | U13: 335 | V13: 0.855865446
A14: Norte | B14: Barra de São Francisco | C14: 622 | D14: 570 | E14: 589 | F14: 539.9166667 | G14: 476 | H14: 0.8350877193 | I14: 456 | J14: 0.8445747801 | K14: 478 | L14: 0.8385964912 | M14: 491 | N14: 0.8614035088 | O14: 476 | P14: 0.8350877193 | Q14: 452 | R14: 0.7929824561 | S14: 394 | T14: 0.7297422442 | U14: 428 | V14: 0.7927149251
A15: Norte | B15: Boa Esperança | C15: 209 | D15: 191 | E15: 200 | F15: 183.3333333 | G15: 158 | H15: 0.8272251309 | I15: 122 | J15: 0.6654545455 | K15: 169 | L15: 0.8848167539 | M15: 173 | N15: 0.9057591623 | O15: 160 | P15: 0.8376963351 | Q15: 138 | R15: 0.722513089 | S15: 97 | T15: 0.5290909091 | U15: 116 | V15: 0.6327272727
A16: Sul | B16: Bom Jesus do Norte | C16: 72 | D16: 67 | E16: 146 | F16: 133.8333333 | G16: 89 | H16: 1.328358209 | I16: 128 | J16: 0.9564134496 | K16: 92 | L16: 1.373134328 | M16: 93 | N16: 1.388059701 | O16: 94 | P16: 1.402985075 | Q16: 89 | R16: 1.328358209 | S16: 93 | T16: 0.6948941469 | U16: 125 | V16: 0.9339975093
A17: Metropolitana | B17: Brejetuba | C17: 227 | D17: 213 | E17: 169 | F17: 154.9166667 | G17: 226 | H17: 1.061032864 | I17: 237 | J17: 1.529854761 | K17: 189 | L17: 0.8873239437 | M17: 193 | N17: 0.9061032864 | O17: 172 | P17: 0.8075117371 | Q17: 168 | R17: 0.7887323944 | S17: 178 | T17: 1.149004841 | U17: 178 | V17: 1.149004841
A18: Sul | B18: Cachoeiro de Itapemirim | C18: 2386 | D18: 2179 | E18: 2417 | F18: 2215.583333 | G18: 1930 | H18: 0.8857273979 | I18: 1837 | J18: 0.829127017 | K18: 1959 | L18: 0.8990362552 | M18: 1978 | N18: 0.9077558513 | O18: 2100 | P18: 0.9637448371 | Q18: 1948 | R18: 0.8939880679 | S18: 1653 | T18: 0.7460789107 | U18: 1963 | V18: 0.8859969158
A19: Metropolitana | B19: Cariacica | C19: 4738 | D19: 4375 | E19: 5005 | F19: 4587.916667 | G19: 3431 | H19: 0.7842285714 | I19: 3258 | J19: 0.7101262374 | K19: 3865 | L19: 0.8834285714 | M19: 3900 | N19: 0.8914285714 | O19: 3952 | P19: 0.9033142857 | Q19: 3687 | R19: 0.8427428571 | S19: 3039 | T19: 0.6623921533 | U19: 3781 | V19: 0.8241213332
A20: Sul | B20: Castelo | C20: 383 | D20: 342 | E20: 399 | F20: 365.75 | G20: 385 | H20: 1.125730994 | I20: 362 | J20: 0.989747095 | K20: 350 | L20: 1.023391813 | M20: 372 | N20: 1.087719298 | O20: 405 | P20: 1.184210526 | Q20: 400 | R20: 1.169590643 | S20: 303 | T20: 0.8284347232 | U20: 339 | V20: 0.9268626111
A21: Central | B21: Colatina | C21: 1485 | D21: 1358 | E21: 1561 | F21: 1430.916667 | G21: 1170 | H21: 0.8615611193 | I21: 1040 | J21: 0.7268068255 | K21: 1204 | L21: 0.8865979381 | M21: 1246 | N21: 0.9175257732 | O21: 1185 | P21: 0.8726067747 | Q21: 1097 | R21: 0.8078055965 | S21: 886 | T21: 0.6191835071 | U21: 999 | V21: 0.6981538641
A22: Norte | B22: Conceição da Barra | C22: 343 | D22: 327 | E22: 391 | F22: 358.4166667 | G22: 395 | H22: 1.20795107 | I22: 421 | J22: 1.174610556 | K22: 380 | L22: 1.162079511 | M22: 384 | N22: 1.174311927 | O22: 405 | P22: 1.23853211 | Q22: 369 | R22: 1.128440367 | S22: 418 | T22: 1.166240409 | U22: 403 | V22: 1.124389677
A23: Metropolitana | B23: Conceição do Castelo | C23: 187 | D23: 171 | E23: 144 | F23: 132 | G23: 141 | H23: 0.8245614035 | I23: 164 | J23: 1.242424242 | K23: 113 | L23: 0.6608187135 | M23: 128 | N23: 0.7485380117 | O23: 106 | P23: 0.6198830409 | Q23: 110 | R23: 0.6432748538 | S23: 136 | T23: 1.03030303 | U23: 126 | V23: 0.9545454545
A24: Sul | B24: Divino de São Lourenço | C24: 67 | D24: 62 | E24: 68 | F24: 62.33333333 | G24: 72 | H24: 1.161290323 | I24: 68 | J24: 1.090909091 | K24: 61 | L24: 0.9838709677 | M24: 61 | N24: 0.9838709677 | O24: 68 | P24: 1.096774194 | Q24: 67 | R24: 1.080645161 | S24: 42 | T24: 0.6737967914 | U24: 50 | V24: 0.8021390374
A25: Metropolitana | B25: Domingos Martins | C25: 426 | D25: 382 | E25: 411 | F25: 376.75 | G25: 379 | H25: 0.9921465969 | I25: 426 | J25: 1.130723291 | K25: 361 | L25: 0.945026178 | M25: 360 | N25: 0.942408377 | O25: 396 | P25: 1.036649215 | Q25: 376 | R25: 0.9842931937 | S25: 326 | T25: 0.8652952887 | U25: 359 | V25: 0.9528865295
A26: Sul | B26: Dores do Rio Preto | C26: 102 | D26: 99 | E26: 92 | F26: 84.33333333 | G26: 83 | H26: 0.8383838384 | I26: 64 | J26: 0.7588932806 | K26: 90 | L26: 0.9090909091 | M26: 95 | N26: 0.9595959596 | O26: 92 | P26: 0.9292929293 | Q26: 92 | R26: 0.9292929293 | S26: 58 | T26: 0.6877470356 | U26: 62 | V26: 0.7351778656
A27: Norte | B27: Ecoporanga | C27: 250 | D27: 233 | E27: 283 | F27: 259.4166667 | G27: 212 | H27: 0.9098712446 | I27: 260 | J27: 1.002248635 | K27: 236 | L27: 1.012875536 | M27: 243 | N27: 1.042918455 | O27: 228 | P27: 0.9785407725 | Q27: 211 | R27: 0.9055793991 | S27: 204 | T27: 0.786379698 | U27: 231 | V27: 0.890459364
A28: Metropolitana | B28: Fundão | C28: 231 | D28: 213 | E28: 218 | F28: 199.8333333 | G28: 177 | H28: 0.8309859155 | I28: 188 | J28: 0.9407839867 | K28: 185 | L28: 0.8685446009 | M28: 188 | N28: 0.882629108 | O28: 187 | P28: 0.8779342723 | Q28: 172 | R28: 0.8075117371 | S28: 163 | T28: 0.8156797331 | U28: 181 | V28: 0.9057547957
A29: Central | B29: Governador Lindenberg | C29: 141 | D29: 130 | E29: 142 | F29: 130.1666667 | G29: 114 | H29: 0.8769230769 | I29: 146 | J29: 1.121638924 | K29: 100 | L29: 0.7692307692 | M29: 106 | N29: 0.8153846154 | O29: 110 | P29: 0.8461538462 | Q29: 104 | R29: 0.8 | S29: 140 | T29: 1.075544174 | U29: 135 | V29: 1.037131882
A30: Sul | B30: Guaçuí | C30: 387 | D30: 354 | E30: 407 | F30: 373.0833333 | G30: 318 | H30: 0.8983050847 | I30: 344 | J30: 0.922046013 | K30: 296 | L30: 0.8361581921 | M30: 339 | N30: 0.9576271186 | O30: 327 | P30: 0.9237288136 | Q30: 316 | R30: 0.8926553672 | S30: 362 | T30: 0.9702926067 | U30: 349 | V30: 0.9354478445
A31: Metropolitana | B31: Guarapari | C31: 1643 | D31: 1526 | E31: 1557 | F31: 1427.25 | G31: 1162 | H31: 0.7614678899 | I31: 1335 | J31: 0.9353652128 | K31: 1388 | L31: 0.9095674967 | M31: 1349 | N31: 0.8840104849 | O31: 1400 | P31: 0.9174311927 | Q31: 1285 | R31: 0.8420707733 | S31: 1048 | T31: 0.7342792083 | U31: 1340 | V31: 0.9388684533
A32: Metropolitana | B32: Ibatiba | C32: 410 | D32: 375 | E32: 354 | F32: 324.5 | G32: 389 | H32: 1.037333333 | I32: 233 | J32: 0.718027735 | K32: 327 | L32: 0.872 | M32: 340 | N32: 0.9066666667 | O32: 373 | P32: 0.9946666667 | Q32: 337 | R32: 0.8986666667 | S32: 290 | T32: 0.8936825886 | U32: 322 | V32: 0.9922958398
A33: Metropolitana | B33: Ibiraçu | C33: 130 | D33: 123 | E33: 160 | F33: 146.6666667 | G33: 129 | H33: 1.048780488 | I33: 141 | J33: 0.9613636364 | K33: 133 | L33: 1.081300813 | M33: 133 | N33: 1.081300813 | O33: 121 | P33: 0.9837398374 | Q33: 124 | R33: 1.008130081 | S33: 108 | T33: 0.7363636364 | U33: 114 | V33: 0.7772727273
A34: Sul | B34: Ibitirama | C34: 139 | D34: 130 | E34: 148 | F34: 135.6666667 | G34: 146 | H34: 1.123076923 | I34: 156 | J34: 1.14987715 | K34: 150 | L34: 1.153846154 | M34: 149 | N34: 1.146153846 | O34: 147 | P34: 1.130769231 | Q34: 128 | R34: 0.9846153846 | S34: 155 | T34: 1.142506143 | U34: 150 | V34: 1.105651106
A35: Sul | B35: Iconha | C35: 140 | D35: 132 | E35: 156 | F35: 143 | G35: 133 | H35: =G35/D35 -> 1.007575758 | I35: 173 | J35: =I35/F35 -> 1.20979021 | K35: 107 | L35: =K35/D35 -> 0.8106060606 | M35: 107 | N35: =M35/D35 -> 0.8106060606 | O35: 100 | P35: =O35/D35 -> 0.7575757576 | Q35: 94 | R35: =Q35/D35 -> 0.7121212121 | S35: 110 | T35: =S35/F35 -> 0.7692307692 | U35: 117 | V35: =U35/F35 -> 0.8181818182
A36: Sul | B36: Irupi | C36: 194 | D36: 179 | E36: 200 | F36: 183.3333333 | G36: 162 | H36: 0.905027933 | I36: 162 | J36: 0.8836363636 | K36: 166 | L36: 0.9273743017 | M36: 179 | N36: 1 | O36: 188 | P36: 1.05027933 | Q36: 191 | R36: 1.067039106 | S36: 150 | T36: 0.8181818182 | U36: 154 | V36: 0.84
A37: Metropolitana | B37: Itaguaçu | C37: 121 | D37: 119 | E37: 154 | F37: 141.1666667 | G37: 134 | H37: 1.12605042 | I37: 136 | J37: 0.9634002361 | K37: 128 | L37: 1.075630252 | M37: 138 | N37: 1.159663866 | O37: 138 | P37: 1.159663866 | Q37: 124 | R37: 1.042016807 | S37: 105 | T37: 0.7438016529 | U37: 102 | V37: 0.7225501771
A38: Sul | B38: Itapemirim | C38: 537 | D38: 494 | E38: 556 | F38: 509.6666667 | G38: 346 | H38: 0.7004048583 | I38: 386 | J38: 0.7573577502 | K38: 425 | L38: 0.8603238866 | M38: 412 | N38: 0.8340080972 | O38: 404 | P38: 0.8178137652 | Q38: 378 | R38: 0.7651821862 | S38: 310 | T38: 0.6082406802 | U38: 429 | V38: 0.8417266187
A39: Metropolitana | B39: Itarana | C39: 131 | D39: 126 | E39: 128 | F39: 117.3333333 | G39: 141 | H39: 1.119047619 | I39: 121 | J39: 1.03125 | K39: 138 | L39: 1.095238095 | M39: 138 | N39: 1.095238095 | O39: 140 | P39: 1.111111111 | Q39: 135 | R39: 1.071428571 | S39: 98 | T39: 0.8352272727 | U39: 103 | V39: 0.8778409091
A40: Sul | B40: Iúna | C40: 387 | D40: 358 | E40: 410 | F40: 375.8333333 | G40: 376 | H40: 1.05027933 | I40: 288 | J40: 0.7662971175 | K40: 348 | L40: 0.9720670391 | M40: 371 | N40: 1.036312849 | O40: 415 | P40: 1.159217877 | Q40: 367 | R40: 1.025139665 | S40: 301 | T40: 0.800886918 | U40: 329 | V40: 0.8753880266
A41: Norte | B41: Jaguaré | C41: 444 | D41: 415 | E41: 445 | F41: 407.9166667 | G41: 399 | H41: 0.9614457831 | I41: 363 | J41: 0.8898876404 | K41: 408 | L41: 0.9831325301 | M41: 419 | N41: 1.009638554 | O41: 421 | P41: 1.014457831 | Q41: 415 | R41: 1 | S41: 317 | T41: 0.7771195097 | U41: 390 | V41: 0.9560776302
A42: Sul | B42: Jerônimo Monteiro | C42: 114 | D42: 111 | E42: 157 | F42: 143.9166667 | G42: 135 | H42: 1.216216216 | I42: 112 | J42: 0.7782281413 | K42: 126 | L42: 1.135135135 | M42: 127 | N42: 1.144144144 | O42: 138 | P42: 1.243243243 | Q42: 127 | R42: 1.144144144 | S42: 85 | T42: 0.5906195715 | U42: 123 | V42: 0.8546612623
A43: Metropolitana | B43: João Neiva | C43: 143 | D43: 132 | E43: 142 | F43: 130.1666667 | G43: 131 | H43: 0.9924242424 | I43: 154 | J43: 1.183098592 | K43: 135 | L43: 1.022727273 | M43: 133 | N43: 1.007575758 | O43: 133 | P43: 1.007575758 | Q43: 130 | R43: 0.9848484848 | S43: 114 | T43: 0.8758002561 | U43: 137 | V43: 1.052496799
A44: Metropolitana | B44: Laranja da Terra | C44: 120 | D44: 114 | E44: 133 | F44: 121.9166667 | G44: 96 | H44: 0.8421052632 | I44: 121 | J44: 0.992481203 | K44: 94 | L44: 0.8245614035 | M44: 98 | N44: 0.8596491228 | O44: 85 | P44: 0.7456140351 | Q44: 80 | R44: 0.701754386 | S44: 81 | T44: 0.6643882433 | U44: 94 | V44: 0.7710184552
A45: Central | B45: Linhares | C45: 2668 | D45: 2438 | E45: 2452 | F45: 2247.666667 | G45: 1867 | H45: 0.7657916325 | I45: 1891 | J45: 0.8413169213 | K45: 1977 | L45: 0.8109105824 | M45: 2050 | N45: 0.8408531583 | O45: 2002 | P45: 0.8211648893 | Q45: 1989 | R45: 0.8158326497 | S45: 1663 | T45: 0.7398783924 | U45: 2080 | V45: 0.9254041228
A46: Central | B46: Mantenópolis | C46: 132 | D46: 121 | E46: 166 | F46: 152.1666667 | G46: 141 | H46: 1.165289256 | I46: 135 | J46: 0.8871851041 | K46: 123 | L46: 1.016528926 | M46: 132 | N46: 1.090909091 | O46: 140 | P46: 1.157024793 | Q46: 130 | R46: 1.074380165 | S46: 162 | T46: 1.064622125 | U46: 171 | V46: 1.123767798
A47: Sul | B47: Marataízes | C47: 570 | D47: 532 | E47: 579 | F47: 530.75 | G47: 420 | H47: 0.7894736842 | I47: 551 | J47: 1.038153556 | K47: 509 | L47: 0.9567669173 | M47: 536 | N47: 1.007518797 | O47: 485 | P47: 0.9116541353 | Q47: 484 | R47: 0.9097744361 | S47: 340 | T47: 0.6406029204 | U47: 527 | V47: 0.9929345266
A48: Metropolitana | B48: Marechal Floriano | C48: 207 | D48: 190 | E48: 236 | F48: 216.3333333 | G48: 199 | H48: 1.047368421 | I48: 201 | J48: 0.9291217257 | K48: 173 | L48: 0.9105263158 | M48: 164 | N48: 0.8631578947 | O48: 201 | P48: 1.057894737 | Q48: 195 | R48: 1.026315789 | S48: 158 | T48: 0.7303543914 | U48: 182 | V48: 0.8412942989
A49: Central | B49: Marilândia | C49: 166 | D49: 159 | E49: 164 | F49: 150.3333333 | G49: 134 | H49: 0.8427672956 | I49: 166 | J49: 1.10421286 | K49: 123 | L49: 0.7735849057 | M49: 135 | N49: 0.8490566038 | O49: 131 | P49: 0.8238993711 | Q49: 123 | R49: 0.7735849057 | S49: 133 | T49: 0.8847006652 | U49: 126 | V49: 0.8381374723
A50: Sul | B50: Mimoso do Sul | C50: 279 | D50: 256 | E50: 276 | F50: 253 | G50: 213 | H50: 0.83203125 | I50: 177 | J50: 0.6996047431 | K50: 204 | L50: 0.796875 | M50: 205 | N50: 0.80078125 | O50: 213 | P50: 0.83203125 | Q50: 205 | R50: 0.80078125 | S50: 179 | T50: 0.7075098814 | U50: 198 | V50: 0.7826086957
A51: Norte | B51: Montanha | C51: 217 | D51: 205 | E51: 278 | F51: 254.8333333 | G51: 243 | H51: 1.185365854 | I51: 259 | J51: 1.016350556 | K51: 230 | L51: 1.12195122 | M51: 244 | N51: 1.190243902 | O51: 233 | P51: 1.136585366 | Q51: 225 | R51: 1.097560976 | S51: 183 | T51: 0.718116416 | U51: 205 | V51: 0.8044473512
A52: Norte | B52: Mucurici | C52: 53 | D52: 46 | E52: 97 | F52: 88.91666667 | G52: 69 | H52: 1.5 | I52: 57 | J52: 0.641049672 | K52: 60 | L52: 1.304347826 | M52: 53 | N52: 1.152173913 | O52: 69 | P52: 1.5 | Q52: 64 | R52: 1.391304348 | S52: 50 | T52: 0.5623242737 | U52: 51 | V52: 0.5735707591
A53: Sul | B53: Muniz Freire | C53: 248 | D53: 226 | E53: 275 | F53: 252.0833333 | G53: 321 | H53: 1.420353982 | I53: 121 | J53: 0.48 | K53: 206 | L53: 0.9115044248 | M53: 201 | N53: 0.889380531 | O53: 204 | P53: 0.9026548673 | Q53: 201 | R53: 0.889380531 | S53: 183 | T53: 0.7259504132 | U53: 204 | V53: 0.8092561983
A54: Sul | B54: Muqui | C54: 154 | D54: 143 | E54: 152 | F54: 139.3333333 | G54: 129 | H54: 0.9020979021 | I54: 173 | J54: 1.241626794 | K54: 130 | L54: 0.9090909091 | M54: 131 | N54: 0.9160839161 | O54: 135 | P54: 0.9440559441 | Q54: 126 | R54: 0.8811188811 | S54: 148 | T54: 1.062200957 | U54: 152 | V54: 1.090909091
A55: Norte | B55: Nova Venécia | C55: 690 | D55: 628 | E55: 656 | F55: 601.3333333 | G55: 542 | H55: 0.8630573248 | I55: 582 | J55: 0.9678492239 | K55: 598 | L55: 0.9522292994 | M55: 603 | N55: 0.9601910828 | O55: 597 | P55: 0.9506369427 | Q55: 561 | R55: 0.8933121019 | S55: 444 | T55: 0.7383592018 | U55: 515 | V55: 0.8564301552
A56: Central | B56: Pancas | C56: 218 | D56: 201 | E56: 244 | F56: 223.6666667 | G56: 195 | H56: 0.9701492537 | I56: 215 | J56: 0.9612518629 | K56: 170 | L56: 0.8457711443 | M56: 180 | N56: 0.8955223881 | O56: 204 | P56: 1.014925373 | Q56: 191 | R56: 0.9502487562 | S56: 140 | T56: 0.6259314456 | U56: 172 | V56: 0.7690014903
A57: Norte | B57: Pedro Canário | C57: 320 | D57: 297 | E57: 338 | F57: 309.8333333 | G57: 292 | H57: 0.9831649832 | I57: 332 | J57: 1.071543841 | K57: 290 | L57: 0.9764309764 | M57: 273 | N57: 0.9191919192 | O57: 302 | P57: 1.016835017 | Q57: 280 | R57: 0.9427609428 | S57: 269 | T57: 0.8682087144 | U57: 301 | V57: 0.9714900484
A58: Norte | B58: Pinheiros | C58: 304 | D58: 286 | E58: 383 | F58: 351.0833333 | G58: 319 | H58: 1.115384615 | I58: 305 | J58: 0.8687396155 | K58: 323 | L58: 1.129370629 | M58: 324 | N58: 1.132867133 | O58: 317 | P58: 1.108391608 | Q58: 304 | R58: 1.062937063 | S58: 261 | T58: 0.7434132447 | U58: 308 | V58: 0.8772845953
A59: Sul | B59: Piúma | C59: 310 | D59: 281 | E59: 311 | F59: 285.0833333 | G59: 227 | H59: 0.8078291815 | I59: 227 | J59: 0.796258404 | K59: 243 | L59: 0.8647686833 | M59: 241 | N59: 0.8576512456 | O59: 232 | P59: 0.8256227758 | Q59: 218 | R59: 0.7758007117 | S59: 204 | T59: 0.7155802397 | U59: 239 | V59: 0.8383513593
A60: Norte | B60: Ponto Belo | C60: 68 | D60: 65 | E60: 85 | F60: 77.91666667 | G60: 72 | H60: 1.107692308 | I60: 106 | J60: 1.360427807 | K60: 74 | L60: 1.138461538 | M60: 74 | N60: 1.138461538 | O60: 69 | P60: 1.061538462 | Q60: 71 | R60: 1.092307692 | S60: 89 | T60: 1.142245989 | U60: 90 | V60: 1.155080214
A61: Sul | B61: Presidente Kennedy | C61: 199 | D61: 183 | E61: 239 | F61: 219.0833333 | G61: 179 | H61: 0.9781420765 | I61: 174 | J61: 0.794218334 | K61: 188 | L61: 1.027322404 | M61: 186 | N61: 1.016393443 | O61: 190 | P61: 1.038251366 | Q61: 179 | R61: 0.9781420765 | S61: 166 | T61: 0.7577025485 | U61: 171 | V61: 0.7805249144
A62: Central | B62: Rio Bananal | C62: 296 | D62: 265 | E62: 229 | F62: 209.9166667 | G62: 357 | H62: 1.347169811 | I62: 239 | J62: 1.138547042 | K62: 246 | L62: 0.9283018868 | M62: 256 | N62: 0.9660377358 | O62: 267 | P62: 1.00754717 | Q62: 261 | R62: 0.9849056604 | S62: 268 | T62: 1.276697102 | U62: 282 | V62: 1.343390234
A63: Sul | B63: Rio Novo do Sul | C63: 97 | D63: 88 | E63: 144 | F63: 132 | G63: 87 | H63: 0.9886363636 | I63: 105 | J63: 0.7954545455 | K63: 88 | L63: 1 | M63: 90 | N63: 1.022727273 | O63: 86 | P63: 0.9772727273 | Q63: 80 | R63: 0.9090909091 | S63: 75 | T63: 0.5681818182 | U63: 87 | V63: 0.6590909091
A64: Metropolitana | B64: Santa Leopoldina | C64: 96 | D64: 89 | E64: 155 | F64: 142.0833333 | G64: 110 | H64: 1.235955056 | I64: 132 | J64: 0.9290322581 | K64: 98 | L64: 1.101123596 | M64: 97 | N64: 1.08988764 | O64: 98 | P64: 1.101123596 | Q64: 98 | R64: 1.101123596 | S64: 121 | T64: 0.8516129032 | U64: 131 | V64: 0.9219941349
A65: Metropolitana | B65: Santa Maria de Jetibá | C65: 721 | D65: 667 | E65: 685 | F65: 627.9166667 | G65: 548 | H65: 0.8215892054 | I65: 467 | J65: 0.7437292634 | K65: 537 | L65: 0.8050974513 | M65: 538 | N65: 0.8065967016 | O65: 539 | P65: 0.808095952 | Q65: 524 | R65: 0.7856071964 | S65: 467 | T65: 0.7437292634 | U65: 557 | V65: 0.8870603849
A66: Metropolitana | B66: Santa Teresa | C66: 283 | D66: 262 | E66: 260 | F66: 238.3333333 | G66: 269 | H66: 1.026717557 | I66: 316 | J66: 1.325874126 | K66: 266 | L66: 1.015267176 | M66: 271 | N66: 1.034351145 | O66: 281 | P66: 1.072519084 | Q66: 259 | R66: 0.9885496183 | S66: 246 | T66: 1.032167832 | U66: 259 | V66: 1.086713287
A67: Central | B67: São Domingos do Norte | C67: 111 | D67: 101 | E67: 117 | F67: 107.25 | G67: 118 | H67: =G67/D67 -> 1.168316832 | I67: 102 | J67: =I67/F67 -> 0.951048951 | K67: 121 | L67: =K67/D67 -> 1.198019802 | M67: 123 | N67: =M67/D67 -> 1.217821782 | O67: 125 | P67: =O67/D67 -> 1.237623762 | Q67: 115 | R67: =Q67/D67 -> 1.138613861 | S67: 84 | T67: =S67/F67 -> 0.7832167832 | U67: 90 | V67: =U67/F67 -> 0.8391608392
A68: Central | B68: São Gabriel da Palha | C68: 401 | D68: 376 | E68: 426 | F68: =(E68/12)*11 -> 390.5 | G68: 395 | H68: 1.050531915 | I68: 352 | J68: 0.9014084507 | K68: 355 | L68: 0.9441489362 | M68: 365 | N68: 0.9707446809 | O68: 365 | P68: 0.9707446809 | Q68: 362 | R68: 0.9627659574 | S68: 313 | T68: 0.8015364917 | U68: 334 | V68: 0.8553137004
A69: Sul | B69: São José do Calçado | C69: 94 | D69: 84 | E69: 150 | F69: 137.5 | G69: 85 | H69: 1.011904762 | I69: 86 | J69: 0.6254545455 | K69: 82 | L69: 0.9761904762 | M69: 82 | N69: 0.9761904762 | O69: 87 | P69: 1.035714286 | Q69: 81 | R69: 0.9642857143 | S69: 66 | T69: 0.48 | U69: 96 | V69: 0.6981818182
A70: Norte | B70: São Mateus | C70: 1670 | D70: 1562 | E70: 1766 | F70: 1618.833333 | G70: 1308 | H70: 0.8373879641 | I70: 1259 | J70: 0.7777205807 | K70: 1504 | L70: 0.9628681178 | M70: 1525 | N70: 0.97631242 | O70: 1512 | P70: 0.9679897567 | Q70: 1424 | R70: 0.9116517286 | S70: 1151 | T70: 0.7110058684 | U70: 1363 | V70: 0.8419643776
A71: Central | B71: São Roque do Canaã | C71: 131 | D71: 121 | E71: 100 | F71: 91.66666667 | G71: 118 | H71: 0.9752066116 | I71: 113 | J71: 1.232727273 | K71: 114 | L71: 0.9421487603 | M71: 124 | N71: 1.024793388 | O71: 104 | P71: 0.8595041322 | Q71: 103 | R71: 0.8512396694 | S71: 96 | T71: 1.047272727 | U71: 99 | V71: 1.08
A72: Metropolitana | B72: Serra | C72: 7550 | D72: 7009 | E72: 7550 | F72: 6920.833333 | G72: 5096 | H72: 0.7270652019 | I72: 4774 | J72: 0.6898013245 | K72: 5932 | L72: 0.8463404195 | M72: 5922 | N72: 0.8449136824 | O72: 5750 | P72: 0.8203738051 | Q72: 5416 | R72: 0.7727207876 | S72: 4521 | T72: 0.6532450331 | U72: 5353 | V72: 0.77346177
A73: Central | B73: Sooretama | C73: 428 | D73: 391 | E73: 415 | F73: 380.4166667 | G73: 327 | H73: 0.8363171355 | I73: 366 | J73: 0.9621029573 | K73: 359 | L73: 0.9181585678 | M73: 361 | N73: 0.9232736573 | O73: 378 | P73: 0.9667519182 | Q73: 341 | R73: 0.8721227621 | S73: 297 | T73: 0.7807228916 | U73: 361 | V73: 0.9489594743
A74: Sul | B74: Vargem Alta | C74: 270 | D74: 252 | E74: 278 | F74: 254.8333333 | G74: 237 | H74: 0.9404761905 | I74: 225 | J74: 0.8829300196 | K74: 245 | L74: 0.9722222222 | M74: 246 | N74: 0.9761904762 | O74: 253 | P74: 1.003968254 | Q74: 236 | R74: 0.9365079365 | S74: 144 | T74: 0.5650752126 | U74: 211 | V74: 0.8279921517
A75: Metropolitana | B75: Venda Nova do Imigrante | C75: 352 | D75: 323 | E75: 328 | F75: 300.6666667 | G75: 360 | H75: 1.114551084 | I75: 249 | J75: 0.8281596452 | K75: 325 | L75: 1.00619195 | M75: 300 | N75: 0.9287925697 | O75: 329 | P75: 1.018575851 | Q75: 317 | R75: 0.9814241486 | S75: 296 | T75: 0.9844789357 | U75: 319 | V75: 1.06097561
A76: Metropolitana | B76: Viana | C76: 863 | D76: 803 | E76: 1064 | F76: 975.3333333 | G76: 653 | H76: 0.8132004981 | I76: 705 | J76: 0.7228298018 | K76: 841 | L76: 1.04732254 | M76: 817 | N76: 1.01743462 | O76: 764 | P76: 0.9514321295 | Q76: 767 | R76: 0.9551681196 | S76: 672 | T76: 0.6889952153 | U76: 918 | V76: 0.9412166781
A77: Norte | B77: Vila Pavão | C77: 95 | D77: 91 | E77: 127 | F77: 116.4166667 | G77: 93 | H77: 1.021978022 | I77: 89 | J77: 0.7644953472 | K77: 102 | L77: 1.120879121 | M77: 105 | N77: 1.153846154 | O77: 106 | P77: 1.164835165 | Q77: 99 | R77: 1.087912088 | S77: 98 | T77: 0.8418038654 | U77: 106 | V77: 0.9105225483
A78: Central | B78: Vila Valério | C78: 254 | D78: 236 | E78: 169 | F78: 154.9166667 | G78: 258 | H78: 1.093220339 | I78: 212 | J78: 1.368477676 | K78: 223 | L78: 0.9449152542 | M78: 221 | N78: 0.936440678 | O78: 237 | P78: 1.004237288 | Q78: 230 | R78: 0.9745762712 | S78: 187 | T78: 1.207100592 | U78: 192 | V78: 1.239376009
A79: Metropolitana | B79: Vila Velha | C79: 5551 | D79: 5140 | E79: 5675 | F79: 5202.083333 | G79: 3808 | H79: 0.7408560311 | I79: 4242 | J79: 0.815442531 | K79: 4162 | L79: 0.8097276265 | M79: 4088 | N79: 0.7953307393 | O79: 4313 | P79: 0.8391050584 | Q79: 4007 | R79: 0.7795719844 | S79: 3439 | T79: 0.6610812976 | U79: 4034 | V79: 0.7754585503
A80: Metropolitana | B80: Vitória | C80: 3544 | D80: 3269 | E80: 3833 | F80: 3513.583333 | G80: 3089 | H80: 0.9449372897 | I80: 2300 | J80: 0.6546023765 | K80: 3186 | L80: 0.9746099725 | M80: 3033 | N80: 0.9278066687 | O80: 3242 | P80: 0.9917405935 | Q80: 3015 | R80: 0.9223003977 | S80: 1942 | T80: 0.5527120935 | U80: 2546 | V80: 0.7246163698
B82: Total Norte | C82: =SUMIF($A$3:$A$80,"Norte",C$3:C$80) -> 5430 | D82: =SUMIF($A$3:$A$80,"Norte",D$3:D$80) -> 5055 | E82: =SUMIF($A$3:$A$80,"Norte",E$3:E$80) -> 5789 | F82: =SUMIF($A$3:$A$80,"Norte",F$3:F$80) -> 5306.583333 | G82: =SUMIF($A$3:$A$80,"Norte",G$3:G$80) -> 4704 | H82: =G82/D82 -> 0.9305637982 | I82: =SUMIF($A$3:$A$80,"Norte",I$3:I$80) -> 4690 | J82: =I82/F82 -> 0.8838078487 | K82: =SUMIF($A$3:$A$80,"Norte",K$3:K$80) -> 5011 | L82: =K82/D82 -> 0.9912957468 | M82: =SUMIF($A$3:$A$80,"Norte",M$3:M$80) -> 5061 | N82: =M82/D82 -> 1.001186944 | O82: =SUMIF($A$3:$A$80,"Norte",O$3:O$80) -> 5041 | P82: =O82/D82 -> 0.9972304649 | Q82: =SUMIF($A$3:$A$80,"Norte",Q$3:Q$80) -> 4754 | R82: =Q82/D82 -> 0.9404549951 | S82: =SUMIF($A$3:$A$80,"Norte",S$3:S$80) -> 4063 | T82: =S82/F82 -> 0.765652727 | U82: =SUMIF($A$3:$A$80,"Norte",U$3:U$80) -> 4608 | V82: =U82/F82 -> 0.8683553448
B83: Total Central | C83: =SUMIF($A$3:$A$80,"Central",C$3:C$80) -> 7049 | D83: =SUMIF($A$3:$A$80,"Central",D$3:D$80) -> 6466 | E83: =SUMIF($A$3:$A$80,"Central",E$3:E$80) -> 6843 | F83: =SUMIF($A$3:$A$80,"Central",F$3:F$80) -> 6272.75 | G83: =SUMIF($A$3:$A$80,"Central",G$3:G$80) -> 5756 | H83: =G83/D83 -> 0.8901948655 | I83: =SUMIF($A$3:$A$80,"Central",I$3:I$80) -> 5541 | J83: =I83/F83 -> 0.8833446256 | K83: =SUMIF($A$3:$A$80,"Central",K$3:K$80) -> 5655 | L83: =K83/D83 -> 0.8745746984 | M83: =SUMIF($A$3:$A$80,"Central",M$3:M$80) -> 5840 | N83: =M83/D83 -> 0.9031858955 | O83: =SUMIF($A$3:$A$80,"Central",O$3:O$80) -> 5817 | P83: =O83/D83 -> 0.8996288277 | Q83: =SUMIF($A$3:$A$80,"Central",Q$3:Q$80) -> 5598 | R83: =Q83/D83 -> 0.8657593566 | S83: =SUMIF($A$3:$A$80,"Central",S$3:S$80) -> 4853 | T83: =S83/F83 -> 0.7736638635 | U83: =SUMIF($A$3:$A$80,"Central",U$3:U$80) -> 5556 | V83: =U83/F83 -> 0.8857359212
B84: Total Metropolitana | C84: =SUMIF($A$3:$A$80,"Metropolitana",C$3:C$80) -> 29453 | D84: =SUMIF($A$3:$A$80,"Metropolitana",D$3:D$80) -> 27269 | E84: =SUMIF($A$3:$A$80,"Metropolitana",E$3:E$80) -> 30197 | F84: =SUMIF($A$3:$A$80,"Metropolitana",F$3:F$80) -> 27680.58333 | G84: =SUMIF($A$3:$A$80,"Metropolitana",G$3:G$80) -> 22261 | H84: =G84/D84 -> 0.8163482343 | I84: =SUMIF($A$3:$A$80,"Metropolitana",I$3:I$80) -> 21696 | J84: =I84/F84 -> 0.783798511 | K84: =SUMIF($A$3:$A$80,"Metropolitana",K$3:K$80) -> 24093 | L84: =K84/D84 -> 0.8835307492 | M84: =SUMIF($A$3:$A$80,"Metropolitana",M$3:M$80) -> 23903 | N84: =M84/D84 -> 0.8765631303 | O84: =SUMIF($A$3:$A$80,"Metropolitana",O$3:O$80) -> 24377 | P84: =O84/D84 -> 0.8939455059 | Q84: =SUMIF($A$3:$A$80,"Metropolitana",Q$3:Q$80) -> 22857 | R84: =Q84/D84 -> 0.8382045546 | S84: =SUMIF($A$3:$A$80,"Metropolitana",S$3:S$80) -> 19018 | T84: =S84/F84 -> 0.6870519949 | U84: =SUMIF($A$3:$A$80,"Metropolitana",U$3:U$80) -> 22768 | V84: =U84/F84 -> 0.8225260185
B85: Total Sul | C85: =SUMIF($A$3:$A$80,"sul",C$3:C$80) -> 8116 | D85: =SUMIF($A$3:$A$80,"sul",D$3:D$80) -> 7444 | E85: =SUMIF($A$3:$A$80,"sul",E$3:E$80) -> 8688 | F85: =SUMIF($A$3:$A$80,"sul",F$3:F$80) -> 7964 | G85: =SUMIF($A$3:$A$80,"sul",G$3:G$80) -> 7054 | H85: =G85/D85 -> 0.9476088125 | I85: =SUMIF($A$3:$A$80,"sul",I$3:I$80) -> 6941 | J85: =I85/F85 -> 0.8715469613 | K85: =SUMIF($A$3:$A$80,"sul",K$3:K$80) -> 7008 | L85: =K85/D85 -> 0.9414293391 | M85: =SUMIF($A$3:$A$80,"sul",M$3:M$80) -> 7133 | N85: =M85/D85 -> 0.9582213864 | O85: =SUMIF($A$3:$A$80,"sul",O$3:O$80) -> 7382 | P85: =O85/D85 -> 0.9916711445 | Q85: =SUMIF($A$3:$A$80,"sul",Q$3:Q$80) -> 6967 | R85: =Q85/D85 -> 0.9359215476 | S85: =SUMIF($A$3:$A$80,"sul",S$3:S$80) -> 6027 | T85: =S85/F85 -> 0.7567805123 | U85: =SUMIF($A$3:$A$80,"sul",U$3:U$80) -> 7085 | V85: =U85/F85 -> 0.8896283275
B86: Total Espírito Santo | C86: =SUM(C3:C80) -> 50048 | D86: =SUM(D3:D80) -> 46234 | E86: =SUM(E3:E80) -> 51517 | F86: =SUM(F3:F80) -> 47223.91667 | G86: =SUM(G3:G80) -> 39775 | H86: =G86/D86 -> 0.8602976165 | I86: =SUM(I3:I80) -> 38868 | J86: =I86/F86 -> 0.8230575256 | K86: =SUM(K3:K80) -> 41767 | L86: =K86/D86 -> 0.9033827919 | M86: =SUM(M3:M80) -> 41937 | N86: =M86/D86 -> 0.9070597396 | O86: =SUM(O3:O80) -> 42617 | P86: =O86/D86 -> 0.9217675304 | Q86: =SUM(Q3:Q80) -> 40176 | R86: =Q86/D86 -> 0.8689708872 | S86: =SUM(S3:S80) -> 33961 | T86: =S86/F86 -> 0.7191483129 | U86: =SUM(U3:U80) -> 40017 | V86: =U86/F86 -> 0.8473884172
A90: Fonte: Vacina e Confia, em 22 e 23 de Dezembro de 2025.**<https://vacinaeconfia.saude.es.gov.br/>
A91: **Dados referente às doses aplicadas no período de Janeiro a Outubro 2025
A92: Cobertura Calculada por município de residência
A93: 1 População anual extraída do MS/SVS/DASIS - SINASC/DASIS/SVS/MS 2024 (hoje preliminares) referente ao período de Outubro a Dezembro de 2024 e SINASC/DASIS/SVS/MS 2025 referente ao período de Janeiro e Setembro de 2025.
A94: ² População proporcional extraída do MS/SVS/DASIS - SINASC/DASIS/SVS/MS 2024 (hoje preliminares) referente ao período de Outubro e Novembro de 2024 e SINASC/DASIS/SVS/MS 2025 referente ao período de Janeiro a Setembro de 2025.
A95: Sinasc, atualizado em 11/12/2025.
A96: Método de Cálculo Simples
A97: Homogeineidade: O cálculo da Homogeineidade entre vacinas é feito de acordo com a pactuação estabelecida no Plano Plurianual (PPA) vigente no período 2024-2027.
A100: Observações:
A101: 1. Imunobiológicos que foram recebidos parcialmente pelo estado no mês de Novembro/2025, sendo distribuídos em quantidades reduzidas às regionais e municípios:
A102: SORO ANTIRRÁBICO HUMANO; IMUNOGLOBULINA ANTIRRÁBICA HUMANA.
A103: 2. Imunobiológicos indisponíveis no mês de Novembro/2025, não sendo possível a distribuição às regionais e municípios:
A104: IMUNOGLOBULINA HUMANA ANTI-HEPATITE B - 100 UI, VACINA TETRA VIRAL, IMUNOGLOBULINA HUMANA ANTIVARICELA (ZOSTER) – 125UI
A105: 3. Imunobiológicos distribuídos através de pautas: VACINA COVID-19 PFIZER PEDIÁTRICA MENOR QUE 5 ANOS,VACINA COVID-19 PFIZER ADULTO E ADOLESCENTE A PARTIR DE 12 ANOS, VACINA COVID-19 PFIZER PEDIÁTRICA, VACINA CONTRA DENGUE 1,2,3 E 4 (ATENUADA).

Sheet Cobert. COVID-19 Menores 4 anos (hidden)
A1: Regional | B1: Município | C1: Série Histórica
A2: Região Metropolitana | B2: Afonso Cláudio
A3: Região Norte | B3: Água Doce do Norte
A4: Região Central | B4: Águia Branca
A5: Região Sul | B5: Alegre
A6: Região Sul | B6: Alfredo Chaves
A7: Região Central | B7: Alto Rio Novo
A8: Região Sul | B8: Anchieta
A9: Região Sul | B9: Apiacá
A10: Região Metropolitana | B10: Aracruz
A11: Região Sul | B11: Atilio Vivacqua
A12: Região Central | B12: Baixo Guandu
A13: Região Norte | B13: Barra de São Francisco
A14: Região Norte | B14: Boa Esperança
A15: Região Sul | B15: Bom Jesus do Norte
A16: Região Metropolitana | B16: Brejetuba
A17: Região Sul | B17: Cachoeiro de Itapemirim
A18: Região Metropolitana | B18: Cariacica
A19: Região Sul | B19: Castelo
A20: Região Central | B20: Colatina
A21: Região Norte | B21: Conceição da Barra
A22: Região Metropolitana | B22: Conceição do Castelo
A23: Região Sul | B23: Divino de São Lourenço
A24: Região Metropolitana | B24: Domingos Martins
A25: Região Sul | B25: Dores do Rio Preto
A26: Região Norte | B26: Ecoporanga
A27: Região Metropolitana | B27: Fundão
A28: Região Central | B28: Governador Lindenberg
A29: Região Sul | B29: Guaçuí
A30: Região Metropolitana | B30: Guarapari
A31: Região Metropolitana | B31: Ibatiba
A32: Região Metropolitana | B32: Ibiraçu
A33: Região Sul | B33: Ibitirama
A34: Região Sul | B34: Iconha
A35: Região Sul | B35: Irupi
A36: Região Metropolitana | B36: Itaguaçu
A37: Região Sul | B37: Itapemirim
A38: Região Metropolitana | B38: Itarana
A39: Região Sul | B39: Iúna
A40: Região Norte | B40: Jaguaré
A41: Região Sul | B41: Jerônimo Monteiro
A42: Região Metropolitana | B42: João Neiva
A43: Região Metropolitana | B43: Laranja da Terra
A44: Região Central | B44: Linhares
A45: Região Central | B45: Mantenópolis
A46: Região Sul | B46: Marataízes
A47: Região Metropolitana | B47: Marechal Floriano
A48: Região Central | B48: Marilândia
A49: Região Sul | B49: Mimoso do Sul
A50: Região Norte | B50: Montanha
A51: Região Norte | B51: Mucurici
A52: Região Sul | B52: Muniz Freire
A53: Região Sul | B53: Muqui
A54: Região Norte | B54: Nova Venécia
A55: Região Central | B55: Pancas
A56: Região Norte | B56: Pedro Canário
A57: Região Norte | B57: Pinheiros
A58: Região Sul | B58: Piúma
A59: Região Norte | B59: Ponto Belo
A60: Região Sul | B60: Presidente Kennedy
A61: Região Central | B61: Rio Bananal
A62: Região Sul | B62: Rio Novo do Sul
A63: Região Metropolitana | B63: Santa Leopoldina
A64: Região Metropolitana | B64: Santa Maria de Jetibá
A65: Região Metropolitana | B65: Santa Teresa
A66: Região Central | B66: São Domingos do Norte
A67: Região Central | B67: São Gabriel da Palha
A68: Região Sul | B68: São José do Calçado
A69: Região Norte | B69: São Mateus
A70: Região Central | B70: São Roque do Canaã
A71: Região Metropolitana | B71: Serra
A72: Região Central | B72: Sooretama
A73: Região Sul | B73: Vargem Alta
A74: Região Metropolitana | B74: Venda Nova do Imigrante
A75: Região Metropolitana | B75: Viana
A76: Região Norte | B76: Vila Pavão
A77: Região Central | B77: Vila Valério
A78: Região Metropolitana | B78: Vila Velha
A79: Região Metropolitana | B79: Vitória
B81: Espírito Santo
B82: Região Norte
B83: Região Central
B84: Região Metropolitana
B85: Região Sul
A87: Pfizer Pediátrica Menor de 5 anos e Coronavac
A88: Período avaliado: 2021-2024
A89: Fonte: https://www.vacinaeconfia.es.gov.br
A90: *Dados de janeiro/2024 extraídos do Vacina e Confia em 04/01/2024
A91: População proporcional extraída do SINASC 2022 (menores de 1 ano) e Censo IBGE 2022 (demais idades)
A92: Cobertura Calculada por município de procedência da vacinação

Sheet dTpa gestantes - procedência
A1: REGIONAL | B1: MUNICÍPIO | C1: ¹POPULAÇÃO GESTANTE ANUAL | D1: ²POPULAÇÃO PROPORCIONAL | E1: DOSES APLICADAS dTpa GESTANTES | F1: COBERTURA VACINAL dTpa GESTANTES
A2: Metropolitana | B2: Afonso Cláudio | C2: 359 | D2: 332 | E2: 296 | F2: =E2/D2 -> 0.8915662651
A3: Norte | B3: Água Doce do Norte | C3: 145 | D3: 139 | E3: 109 | F3: =E3/D3 -> 0.7841726619
A4: Central | B4: Águia Branca | C4: 165 | D4: 153 | E4: 119 | F4: 0.7777777778
A5: Sul | B5: Alegre | C5: 322 | D5: 292 | E5: 274 | F5: 0.9383561644
A6: Sul | B6: Alfredo Chaves | C6: 119 | D6: 104 | E6: 107 | F6: 1.028846154
A7: Central | B7: Alto Rio Novo | C7: 99 | D7: 92 | E7: 96 | F7: 1.043478261
A8: Sul | B8: Anchieta | C8: 334 | D8: 308 | E8: 317 | F8: 1.029220779
A9: Sul | B9: Apiacá | C9: 64 | D9: 57 | E9: 60 | F9: 1.052631579
A10: Metropolitana | B10: Aracruz | C10: 1420 | D10: 1316 | E10: 1226 | F10: 0.9316109422
A11: Sul | B11: Atilio Vivacqua | C11: 148 | D11: 131 | E11: 108 | F11: 0.8244274809
A12: Central | B12: Baixo Guandu | C12: 354 | D12: 324 | E12: 292 | F12: 0.9012345679
A13: Norte | B13: Barra de São Francisco | C13: 622 | D13: 570 | E13: 467 | F13: 0.8192982456
A14: Norte | B14: Boa Esperança | C14: 209 | D14: 191 | E14: 193 | F14: 1.010471204
A15: Sul | B15: Bom Jesus do Norte | C15: 72 | D15: 67 | E15: 88 | F15: 1.313432836
A16: Metropolitana | B16: Brejetuba | C16: 227 | D16: 213 | E16: 216 | F16: 1.014084507
A17: Sul | B17: Cachoeiro de Itapemirim | C17: 2386 | D17: 2179 | E17: 1829 | F17: 0.8393758605
A18: Metropolitana | B18: Cariacica | C18: 4738 | D18: 4375 | E18: 3526 | F18: 0.8059428571
A19: Sul | B19: Castelo | C19: 383 | D19: 342 | E19: 383 | F19: 1.119883041
A20: Central | B20: Colatina | C20: 1485 | D20: 1358 | E20: 1231 | F20: 0.9064801178
A21: Norte | B21: Conceição da Barra | C21: 343 | D21: 327 | E21: 361 | F21: 1.103975535
A22: Metropolitana | B22: Conceição do Castelo | C22: 187 | D22: 171 | E22: 135 | F22: 0.7894736842
A23: Sul | B23: Divino de São Lourenço | C23: 67 | D23: 62 | E23: 57 | F23: 0.9193548387
A24: Metropolitana | B24: Domingos Martins | C24: 426 | D24: 382 | E24: 374 | F24: 0.9790575916
A25: Sul | B25: Dores do Rio Preto | C25: 102 | D25: 99 | E25: 76 | F25: 0.7676767677
A26: Norte | B26: Ecoporanga | C26: 250 | D26: 233 | E26: 183 | F26: 0.7854077253
A27: Metropolitana | B27: Fundão | C27: 231 | D27: 213 | E27: 196 | F27: 0.9201877934
A28: Central | B28: Governador Lindenberg | C28: 141 | D28: 130 | E28: 148 | F28: 1.138461538
A29: Sul | B29: Guaçuí | C29: 387 | D29: 354 | E29: 252 | F29: 0.7118644068
A30: Metropolitana | B30: Guarapari | C30: 1643 | D30: 1526 | E30: 1220 | F30: 0.7994757536
A31: Metropolitana | B31: Ibatiba | C31: 410 | D31: 375 | E31: 348 | F31: 0.928
A32: Metropolitana | B32: Ibiraçu | C32: 130 | D32: 123 | E32: 99 | F32: 0.8048780488
A33: Sul | B33: Ibitirama | C33: 139 | D33: 130 | E33: 121 | F33: 0.9307692308
A34: Sul | B34: Iconha | C34: 140 | D34: 132 | E34: 115 | F34: 0.8712121212
A35: Sul | B35: Irupi | C35: 194 | D35: 179 | E35: 170 | F35: 0.9497206704
A36: Metropolitana | B36: Itaguaçu | C36: 121 | D36: 119 | E36: 114 | F36: 0.9579831933
A37: Sul | B37: Itapemirim | C37: 537 | D37: 494 | E37: 433 | F37: 0.8765182186
A38: Metropolitana | B38: Itarana | C38: 131 | D38: 126 | E38: 129 | F38: 1.023809524
A39: Sul | B39: Iúna | C39: 387 | D39: 358 | E39: 303 | F39: 0.8463687151
A40: Norte | B40: Jaguaré | C40: 444 | D40: 415 | E40: 424 | F40: 1.021686747
A41: Sul | B41: Jerônimo Monteiro | C41: 114 | D41: 111 | E41: 109 | F41: 0.981981982
A42: Metropolitana | B42: João Neiva | C42: 143 | D42: 132 | E42: 111 | F42: 0.8409090909
A43: Metropolitana | B43: Laranja da Terra | C43: 120 | D43: 114 | E43: 98 | F43: 0.8596491228
A44: Central | B44: Linhares | C44: 2668 | D44: 2438 | E44: 2089 | F44: 0.8568498769
A45: Central | B45: Mantenópolis | C45: 132 | D45: 121 | E45: 124 | F45: 1.024793388
A46: Sul | B46: Marataízes | C46: 570 | D46: 532 | E46: 491 | F46: 0.9229323308
A47: Metropolitana | B47: Marechal Floriano | C47: 207 | D47: 190 | E47: 166 | F47: 0.8736842105
A48: Central | B48: Marilândia | C48: 166 | D48: 159 | E48: 145 | F48: 0.9119496855
A49: Sul | B49: Mimoso do Sul | C49: 279 | D49: 256 | E49: 169 | F49: 0.66015625
A50: Norte | B50: Montanha | C50: 217 | D50: 205 | E50: 218 | F50: 1.063414634
A51: Norte | B51: Mucurici | C51: 53 | D51: 46 | E51: 60 | F51: 1.304347826
A52: Sul | B52: Muniz Freire | C52: 248 | D52: 226 | E52: 232 | F52: 1.026548673
A53: Sul | B53: Muqui | C53: 154 | D53: 143 | E53: 130 | F53: 0.9090909091
A54: Norte | B54: Nova Venécia | C54: 690 | D54: 628 | E54: 590 | F54: 0.9394904459
A55: Central | B55: Pancas | C55: 218 | D55: 201 | E55: 166 | F55: 0.8258706468
A56: Norte | B56: Pedro Canário | C56: 320 | D56: 297 | E56: 286 | F56: 0.962962963
A57: Norte | B57: Pinheiros | C57: 304 | D57: 286 | E57: 248 | F57: 0.8671328671
A58: Sul | B58: Piúma | C58: 310 | D58: 281 | E58: 209 | F58: 0.743772242
A59: Norte | B59: Ponto Belo | C59: 68 | D59: 65 | E59: 83 | F59: 1.276923077
A60: Sul | B60: Presidente Kennedy | C60: 199 | D60: 183 | E60: 162 | F60: 0.8852459016
A61: Central | B61: Rio Bananal | C61: 296 | D61: 265 | E61: 273 | F61: 1.030188679
A62: Sul | B62: Rio Novo do Sul | C62: 97 | D62: 88 | E62: 104 | F62: 1.181818182
A63: Metropolitana | B63: Santa Leopoldina | C63: 96 | D63: 89 | E63: 87 | F63: 0.9775280899
A64: Metropolitana | B64: Santa Maria de Jetibá | C64: 721 | D64: 667 | E64: 569 | F64: 0.8530734633
A65: Metropolitana | B65: Santa Teresa | C65: 283 | D65: 262 | E65: 213 | F65: 0.8129770992
A66: Central | B66: São Domingos do Norte | C66: 111 | D66: 101 | E66: 102 | F66: 1.00990099
A67: Central | B67: São Gabriel da Palha | C67: 401 | D67: 376 | E67: 391 | F67: =E67/D67 -> 1.039893617
A68: Sul | B68: São José do Calçado | C68: 94 | D68: 84 | E68: 75 | F68: 0.8928571429
A69: Norte | B69: São Mateus | C69: 1670 | D69: 1562 | E69: 1384 | F69: 0.8860435339
A70: Central | B70: São Roque do Canaã | C70: 131 | D70: 121 | E70: 122 | F70: 1.008264463
A71: Metropolitana | B71: Serra | C71: 7550 | D71: 7009 | E71: 5662 | F71: 0.807818519
A72: Central | B72: Sooretama | C72: 428 | D72: 391 | E72: 364 | F72: 0.9309462916
A73: Sul | B73: Vargem Alta | C73: 270 | D73: 252 | E73: 210 | F73: 0.8333333333
A74: Metropolitana | B74: Venda Nova do Imigrante | C74: 352 | D74: 323 | E74: 282 | F74: 0.8730650155
A75: Metropolitana | B75: Viana | C75: 863 | D75: 803 | E75: 781 | F75: 0.9726027397
A76: Norte | B76: Vila Pavão | C76: 95 | D76: 91 | E76: 106 | F76: 1.164835165
A77: Central | B77: Vila Valério | C77: 254 | D77: 236 | E77: 231 | F77: 0.9788135593
A78: Metropolitana | B78: Vila Velha | C78: 5551 | D78: 5140 | E78: 4131 | F78: 0.8036964981
A79: Metropolitana | B79: Vitória | C79: 3544 | D79: 3269 | E79: 3271 | F79: 1.000611808
B81: Total Norte | C81: =SUMIF($A$2:$A$79,"Norte",C$2:C$79) -> 5430 | D81: =SUMIF($A$2:$A$79,"Norte",D$2:D$79) -> 5055 | E81: =SUMIF($A$2:$A$79,"Norte",E$2:E$79) -> 4712 | F81: 0.9321463897
B82: Total Central | C82: =SUMIF($A$2:$A$79,"CENTRAL",C$2:C$79) -> 7049 | D82: =SUMIF($A$2:$A$79,"CENTRAL",D$2:D$79) -> 6466 | E82: =SUMIF($A$2:$A$79,"CENTRAL",E$2:E$79) -> 5893 | F82: 0.9113826168
B83: Total Metropolitana | C83: =SUMIF($A$2:$A$79,"METROPOLITANA",C$2:C$79) -> 29453 | D83: =SUMIF($A$2:$A$79,"METROPOLITANA",D$2:D$79) -> 27269 | E83: =SUMIF($A$2:$A$79,"METROPOLITANA",E$2:E$79) -> 23250 | F83: 0.8526165243
B84: Total Sul | C84: =SUMIF($A$2:$A$79,"SUL",C$2:C$79) -> 8116 | D84: =SUMIF($A$2:$A$79,"SUL",D$2:D$79) -> 7444 | E84: =SUMIF($A$2:$A$79,"SUL",E$2:E$79) -> 6584 | F84: 0.8844707147
B85: TOTAL ES | C85: =SUM(C2:C79) -> 50048 | D85: =SUM(D2:D79) -> 46234 | E85: =SUM(E2:E79) -> 40439 | F85: =E85/D85 -> 0.8746593416
B86: HOMOGENEIDADE ENTRE MUNICÍPIOS | F86: =COUNTIF(F2:F79,">=0,95")/78 -> 0.3974358974
A90: Fonte: Vacina e Confia, em 22 de Dezembro de 2025.**<https://vacinaeconfia.saude.es.gov.br/>
A91: **Dados referente às doses aplicadas no período de Janeiro a Novembro 2025
A92: Cobertura Calculada por município de procedência/ocorrência da vacinação
A93: 1 População anual extraída do MS/SVS/DASIS - SINASC/DASIS/SVS/MS 2024 (hoje preliminares) referente ao período de Outubro a Dezembro de 2024 e SINASC/DASIS/SVS/MS 2025 referente ao período de Janeiro e Setembro de 2025.
A94: ² População proporcional extraída do MS/SVS/DASIS - SINASC/DASIS/SVS/MS 2024 (hoje preliminares) referente ao período de Outubro e Novembro 2024 e SINASC/DASIS/SVS/MS 2024 (hoje preliminares) referente ao período de Janeiro a Setembro/ 2025.
A95: Sinasc, atualizado em 11/12/2025
A96: Método de Cálculo Simples
A97: Homogeineidade: O cálculo da Homogeineidade entre vacinas é feito de acordo com a pactuação estabelecida no Plano Plurianual (PPA) vigente no período 2024-2027.
A99: Observações:
A100: 1. Imunobiológicos que foram recebidos parcialmente pelo estado no mês de Novembro/2025, sendo distribuídos em quantidades reduzidas às regionais e municípios:
A101: SORO ANTIRRÁBICO HUMANO; IMUNOGLOBULINA ANTIRRÁBICA HUMANA.
A102: 2. Imunobiológicos indisponíveis no mês de Novembro/2025, não sendo possível a distribuição às regionais e municípios:
A103: IMUNOGLOBULINA HUMANA ANTI-HEPATITE B - 100 UI, VACINA TETRA VIRAL, IMUNOGLOBULINA HUMANA ANTIVARICELA (ZOSTER) – 125UI
A104: 3. Imunobiológicos distribuídos através de pautas: VACINA COVID-19 PFIZER PEDIÁTRICA MENOR QUE 5 ANOS,VACINA COVID-19 PFIZER ADULTO E ADOLESCENTE A PARTIR DE 12 ANOS, VACINA COVID-19 PFIZER PEDIÁTRICA, VACINA CONTRA DENGUE 1,2,3 E 4 (ATENUADA).

Sheet dTpa gestantes - residência
A1: REGIONAL | B1: MUNICÍPIO | C1: ¹POPULAÇÃO GESTANTE ANUAL | D1: ¹POPULAÇÃO PROPORCIONAL | E1: DOSES APLICADAS dTpa GESTANTES | F1: COBERTURA VACINAL dTpa GESTANTES
A2: Metropolitana | B2: Afonso Cláudio | C2: 359 | D2: 332 | E2: 295 | F2: =E2/D2 -> 0.8885542169
A3: Norte | B3: Água Doce do Norte | C3: 145 | D3: 139 | E3: 105 | F3: =E3/D3 -> 0.7553956835
A4: Central | B4: Águia Branca | C4: 165 | D4: 153 | E4: 97 | F4: 0.6339869281
A5: Sul | B5: Alegre | C5: 322 | D5: 292 | E5: 301 | F5: 1.030821918
A6: Sul | B6: Alfredo Chaves | C6: 119 | D6: 104 | E6: 111 | F6: 1.067307692
A7: Central | B7: Alto Rio Novo | C7: 99 | D7: 92 | E7: 97 | F7: 1.054347826
A8: Sul | B8: Anchieta | C8: 334 | D8: 308 | E8: 332 | F8: 1.077922078
A9: Sul | B9: Apiacá | C9: 64 | D9: 57 | E9: 55 | F9: 0.9649122807
A10: Metropolitana | B10: Aracruz | C10: 1420 | D10: 1316 | E10: 1104 | F10: 0.8389057751
A11: Sul | B11: Atilio Vivacqua | C11: 148 | D11: 131 | E11: 126 | F11: 0.9618320611
A12: Central | B12: Baixo Guandu | C12: 354 | D12: 324 | E12: 272 | F12: 0.8395061728
A13: Norte | B13: Barra de São Francisco | C13: 622 | D13: 570 | E13: 426 | F13: 0.7473684211
A14: Norte | B14: Boa Esperança | C14: 209 | D14: 191 | E14: 178 | F14: 0.9319371728
A15: Sul | B15: Bom Jesus do Norte | C15: 72 | D15: 67 | E15: 83 | F15: 1.23880597
A16: Metropolitana | B16: Brejetuba | C16: 227 | D16: 213 | E16: 194 | F16: 0.9107981221
A17: Sul | B17: Cachoeiro de Itapemirim | C17: 2386 | D17: 2179 | E17: 1739 | F17: 0.7980725103
A18: Metropolitana | B18: Cariacica | C18: 4738 | D18: 4375 | E18: 3830 | F18: 0.8754285714
A19: Sul | B19: Castelo | C19: 383 | D19: 342 | E19: 411 | F19: 1.201754386
A20: Central | B20: Colatina | C20: 1485 | D20: 1358 | E20: 1208 | F20: 0.8895434462
A21: Norte | B21: Conceição da Barra | C21: 343 | D21: 327 | E21: 397 | F21: 1.214067278
A22: Metropolitana | B22: Conceição do Castelo | C22: 187 | D22: 171 | E22: 135 | F22: 0.7894736842
A23: Sul | B23: Divino de São Lourenço | C23: 67 | D23: 62 | E23: 53 | F23: 0.8548387097
A24: Metropolitana | B24: Domingos Martins | C24: 426 | D24: 382 | E24: 378 | F24: 0.9895287958
A25: Sul | B25: Dores do Rio Preto | C25: 102 | D25: 99 | E25: 56 | F25: 0.5656565657
A26: Norte | B26: Ecoporanga | C26: 250 | D26: 233 | E26: 199 | F26: 0.8540772532
A27: Metropolitana | B27: Fundão | C27: 231 | D27: 213 | E27: 187 | F27: 0.8779342723
A28: Central | B28: Governador Lindenberg | C28: 141 | D28: 130 | E28: 143 | F28: 1.1
A29: Sul | B29: Guaçuí | C29: 387 | D29: 354 | E29: 277 | F29: 0.7824858757
A30: Metropolitana | B30: Guarapari | C30: 1643 | D30: 1526 | E30: 1154 | F30: 0.756225426
A31: Metropolitana | B31: Ibatiba | C31: 410 | D31: 375 | E31: 321 | F31: 0.856
A32: Metropolitana | B32: Ibiraçu | C32: 130 | D32: 123 | E32: 122 | F32: 0.9918699187
A33: Sul | B33: Ibitirama | C33: 139 | D33: 130 | E33: 152 | F33: 1.169230769
A34: Sul | B34: Iconha | C34: 140 | D34: 132 | E34: 118 | F34: 0.8939393939
A35: Sul | B35: Irupi | C35: 194 | D35: 179 | E35: 149 | F35: 0.8324022346
A36: Metropolitana | B36: Itaguaçu | C36: 121 | D36: 119 | E36: 104 | F36: 0.8739495798
A37: Sul | B37: Itapemirim | C37: 537 | D37: 494 | E37: 446 | F37: 0.9028340081
A38: Metropolitana | B38: Itarana | C38: 131 | D38: 126 | E38: 128 | F38: 1.015873016
A39: Sul | B39: Iúna | C39: 387 | D39: 358 | E39: 281 | F39: 0.7849162011
A40: Norte | B40: Jaguaré | C40: 444 | D40: 415 | E40: 400 | F40: 0.9638554217
A41: Sul | B41: Jerônimo Monteiro | C41: 114 | D41: 111 | E41: 103 | F41: 0.9279279279
A42: Metropolitana | B42: João Neiva | C42: 143 | D42: 132 | E42: 102 | F42: 0.7727272727
A43: Metropolitana | B43: Laranja da Terra | C43: 120 | D43: 114 | E43: 99 | F43: 0.8684210526
A44: Central | B44: Linhares | C44: 2668 | D44: 2438 | E44: 2005 | F44: 0.8223954061
A45: Central | B45: Mantenópolis | C45: 132 | D45: 121 | E45: 113 | F45: 0.9338842975
A46: Sul | B46: Marataízes | C46: 570 | D46: 532 | E46: 459 | F46: 0.8627819549
A47: Metropolitana | B47: Marechal Floriano | C47: 207 | D47: 190 | E47: 160 | F47: 0.8421052632
A48: Central | B48: Marilândia | C48: 166 | D48: 159 | E48: 125 | F48: 0.786163522
A49: Sul | B49: Mimoso do Sul | C49: 279 | D49: 256 | E49: 185 | F49: 0.72265625
A50: Norte | B50: Montanha | C50: 217 | D50: 205 | E50: 253 | F50: 1.234146341
A51: Norte | B51: Mucurici | C51: 53 | D51: 46 | E51: 58 | F51: 1.260869565
A52: Sul | B52: Muniz Freire | C52: 248 | D52: 226 | E52: 206 | F52: 0.9115044248
A53: Sul | B53: Muqui | C53: 154 | D53: 143 | E53: 127 | F53: 0.8881118881
A54: Norte | B54: Nova Venécia | C54: 690 | D54: 628 | E54: 619 | F54: 0.9856687898
A55: Central | B55: Pancas | C55: 218 | D55: 201 | E55: 197 | F55: 0.9800995025
A56: Norte | B56: Pedro Canário | C56: 320 | D56: 297 | E56: 316 | F56: 1.063973064
A57: Norte | B57: Pinheiros | C57: 304 | D57: 286 | E57: 292 | F57: 1.020979021
A58: Sul | B58: Piúma | C58: 310 | D58: 281 | E58: 195 | F58: 0.6939501779
A59: Norte | B59: Ponto Belo | C59: 68 | D59: 65 | E59: 78 | F59: 1.2
A60: Sul | B60: Presidente Kennedy | C60: 199 | D60: 183 | E60: 164 | F60: 0.8961748634
A61: Central | B61: Rio Bananal | C61: 296 | D61: 265 | E61: 302 | F61: 1.139622642
A62: Sul | B62: Rio Novo do Sul | C62: 97 | D62: 88 | E62: 110 | F62: 1.25
A63: Metropolitana | B63: Santa Leopoldina | C63: 96 | D63: 89 | E63: 123 | F63: 1.382022472
A64: Metropolitana | B64: Santa Maria de Jetibá | C64: 721 | D64: 667 | E64: 472 | F64: 0.7076461769
A65: Metropolitana | B65: Santa Teresa | C65: 283 | D65: 262 | E65: 226 | F65: 0.8625954198
A66: Central | B66: São Domingos do Norte | C66: 111 | D66: 101 | E66: 123 | F66: 1.217821782
A67: Central | B67: São Gabriel da Palha | C67: 401 | D67: 376 | E67: 363 | F67: =E67/D67 -> 0.9654255319
A68: Sul | B68: São José do Calçado | C68: 94 | D68: 84 | E68: 71 | F68: 0.8452380952
A69: Norte | B69: São Mateus | C69: 1670 | D69: 1562 | E69: 1183 | F69: 0.757362356
A70: Central | B70: São Roque do Canaã | C70: 131 | D70: 121 | E70: 148 | F70: 1.223140496
A71: Metropolitana | B71: Serra | C71: 7550 | D71: 7009 | E71: 5459 | F71: 0.7788557569
A72: Central | B72: Sooretama | C72: 428 | D72: 391 | E72: 388 | F72: 0.9923273657
A73: Sul | B73: Vargem Alta | C73: 270 | D73: 252 | E73: 215 | F73: 0.8531746032
A74: Metropolitana | B74: Venda Nova do Imigrante | C74: 352 | D74: 323 | E74: 311 | F74: 0.9628482972
A75: Metropolitana | B75: Viana | C75: 863 | D75: 803 | E75: 776 | F75: 0.9663760897
A76: Norte | B76: Vila Pavão | C76: 95 | D76: 91 | E76: 100 | F76: 1.098901099
A77: Central | B77: Vila Valério | C77: 254 | D77: 236 | E77: 209 | F77: 0.8855932203
A78: Metropolitana | B78: Vila Velha | C78: 5551 | D78: 5140 | E78: 3698 | F78: 0.7194552529
A79: Metropolitana | B79: Vitória | C79: 3544 | D79: 3269 | E79: 2948 | F79: 0.9018048333
B81: Total Norte | C81: =SUMIF($A$2:$A$79,"Norte",C$2:C$79) -> 5430 | D81: =SUMIF($A$2:$A$79,"Norte",D$2:D$79) -> 5055 | E81: =SUMIF($A$2:$A$79,"Norte",E$2:E$79) -> 4604 | F81: 0.9107814045
B82: Total Central | C82: =SUMIF($A$2:$A$79,"CENTRAL",C$2:C$79) -> 7049 | D82: =SUMIF($A$2:$A$79,"CENTRAL",D$2:D$79) -> 6466 | E82: =SUMIF($A$2:$A$79,"CENTRAL",E$2:E$79) -> 5790 | F82: 0.8954531395
B83: Total Metropolitana | C83: =SUMIF($A$2:$A$79,"METROPOLITANA",C$2:C$79) -> 29453 | D83: =SUMIF($A$2:$A$79,"METROPOLITANA",D$2:D$79) -> 27269 | E83: =SUMIF($A$2:$A$79,"METROPOLITANA",E$2:E$79) -> 22326 | F83: 0.8187318934
B84: Total Sul | C84: =SUMIF($A$2:$A$79,"SUL",C$2:C$79) -> 8116 | D84: =SUMIF($A$2:$A$79,"SUL",D$2:D$79) -> 7444 | E84: =SUMIF($A$2:$A$79,"SUL",E$2:E$79) -> 6525 | F84: 0.8765448684
B85: TOTAL ES | C85: =SUM(C2:C79) -> 50048 | D85: =SUM(D2:D79) -> 46234 | E85: =SUM(E2:E79) -> 39245 | F85: =E85/D85 -> 0.8488341913
B86: HOMOGENEIDADE ENTRE MUNICÍPIOS | E86: =COUNTIF(F2:F79,">=0,95") -> 32 | F86: =COUNTIF(F2:F79,">=0,95")/78 -> 0.4102564103
A90: Fonte: Vacina e Confia, em 22 de Dezembro de 2025.**<https://vacinaeconfia.saude.es.gov.br/>
A91: **Dados referente às doses aplicadas no período de Janeiro a Novembro 2025
A92: Cobertura Calculada por município de residência da vacinação
A93: 1 População anual extraída do MS/SVS/DASIS - SINASC/DASIS/SVS/MS 2024 (hoje preliminares) referente ao período de Outubro a Dezembro de 2024 e SINASC/DASIS/SVS/MS 2025 referente ao período de Janeiro e Setembro de 2025.
A94: ² População proporcional extraída do MS/SVS/DASIS - SINASC/DASIS/SVS/MS 2024 (hoje preliminares) referente ao período de Outubro e Novembro 2024 e SINASC/DASIS/SVS/MS 2024 (hoje preliminares) referente ao período de Janeiro a Setembro/ 2025.
A95: Sinasc, atualizado em 11/12/2025
A96: Método de Cálculo Simples
A97: Homogeineidade: O cálculo da Homogeineidade entre vacinas é feito de acordo com a pactuação estabelecida no Plano Plurianual (PPA) vigente no período 2024-2027.
A100: Observações:
A101: 1. Imunobiológicos que foram recebidos parcialmente pelo estado no mês de Novembro/2025, sendo distribuídos em quantidades reduzidas às regionais e municípios:
A102: SORO ANTIRRÁBICO HUMANO; IMUNOGLOBULINA ANTIRRÁBICA HUMANA.
A103: 2. Imunobiológicos indisponíveis no mês de Novembro/2025, não sendo possível a distribuição às regionais e municípios:
A104: IMUNOGLOBULINA HUMANA ANTI-HEPATITE B - 100 UI, VACINA TETRA VIRAL, IMUNOGLOBULINA HUMANA ANTIVARICELA (ZOSTER) – 125UI
A105: 3. Imunobiológicos distribuídos através de pautas: VACINA COVID-19 PFIZER PEDIÁTRICA MENOR QUE 5 ANOS,VACINA COVID-19 PFIZER ADULTO E ADOLESCENTE A PARTIR DE 12 ANOS, VACINA COVID-19 PFIZER PEDIÁTRICA, VACINA CONTRA DENGUE 1,2,3 E 4 (ATENUADA).

Sheet VSR gestante - Procedência (hidden)
A1: REGIONAL | B1: MUNICÍPIO | C1: ¹POPULAÇÃO GESTANTE | D1: DOSES APLICADAS VSR GESTANTES | E1: COBERTURA VACINAL VSR GESTANTES
A2: Metropolitana | B2: Afonso Cláudio | C2: 407 | D2: 40 | E2: =D2/C6 -> 0.2580645161
A3: Norte | B3: Água Doce do Norte | C3: 157 | D3: 20 | E3: =D3/C3 -> 0.127388535
A4: Central | B4: Águia Branca | C4: 160 | D4: 19 | E4: =D4/C4 -> 0.11875
A5: Sul | B5: Alegre | C5: 352 | D5: 45 | E5: 0.1278409091
A6: Sul | B6: Alfredo Chaves | C6: 155 | D6: 17 | E6: 0.1096774194
A7: Central | B7: Alto Rio Novo | C7: 93 | D7: 7 | E7: 0.0752688172
A8: Sul | B8: Anchieta | C8: 381 | D8: 55 | E8: 0.1443569554
A9: Sul | B9: Apiacá | C9: 65 | D9: 14 | E9: 0.2153846154
A10: Metropolitana | B10: Aracruz | C10: 1495 | D10: 129 | E10: 0.08628762542
A11: Sul | B11: Atilio Vivacqua | C11: 142 | D11: 15 | E11: 0.1056338028
A12: Central | B12: Baixo Guandu | C12: 379 | D12: 38 | E12: 0.1002638522
A13: Norte | B13: Barra de São Francisco | C13: 566 | D13: 47 | E13: 0.08303886926
A14: Norte | B14: Boa Esperança | C14: 210 | D14: 25 | E14: 0.119047619
A15: Sul | B15: Bom Jesus do Norte | C15: 78 | D15: 11 | E15: 0.141025641
A16: Metropolitana | B16: Brejetuba | C16: 204 | D16: 25 | E16: 0.1225490196
A17: Sul | B17: Cachoeiro de Itapemirim | C17: 2453 | D17: 130 | E17: 0.05299633102
A18: Metropolitana | B18: Cariacica | C18: 4931 | D18: 287 | E18: 0.05820320422
A19: Sul | B19: Castelo | C19: 453 | D19: 41 | E19: 0.09050772627
A20: Central | B20: Colatina | C20: 1576 | D20: 110 | E20: 0.06979695431
A21: Norte | B21: Conceição da Barra | C21: 392 | D21: 58 | E21: 0.1479591837
A22: Metropolitana | B22: Conceição do Castelo | C22: 161 | D22: 13 | E22: 0.08074534161
A23: Sul | B23: Divino de São Lourenço | C23: 62 | D23: 11 | E23: 0.1774193548
A24: Metropolitana | B24: Domingos Martins | C24: 417 | D24: 81 | E24: 0.1942446043
A25: Sul | B25: Dores do Rio Preto | C25: 95 | D25: 18 | E25: 0.1894736842
A26: Norte | B26: Ecoporanga | C26: 243 | D26: 30 | E26: 0.1234567901
A27: Metropolitana | B27: Fundão | C27: 209 | D27: 28 | E27: 0.1339712919
A28: Central | B28: Governador Lindenberg | C28: 140 | D28: 21 | E28: 0.15
A29: Sul | B29: Guaçuí | C29: 407 | D29: 35 | E29: 0.085995086
A30: Metropolitana | B30: Guarapari | C30: 1768 | D30: 98 | E30: 0.05542986425
A31: Metropolitana | B31: Ibatiba | C31: 349 | D31: 39 | E31: 0.111747851
A32: Metropolitana | B32: Ibiraçu | C32: 140 | D32: 14 | E32: 0.1
A33: Sul | B33: Ibitirama | C33: 133 | D33: 12 | E33: 0.09022556391
A34: Sul | B34: Iconha | C34: 121 | D34: 16 | E34: 0.132231405
A35: Sul | B35: Irupi | C35: 198 | D35: 24 | E35: 0.1212121212
A36: Metropolitana | B36: Itaguaçu | C36: 143 | D36: 22 | E36: 0.1538461538
A37: Sul | B37: Itapemirim | C37: 578 | D37: 73 | E37: 0.1262975779
A38: Metropolitana | B38: Itarana | C38: 133 | D38: 0 | E38: 0
A39: Sul | B39: Iúna | C39: 482 | D39: 42 | E39: 0.08713692946
A40: Norte | B40: Jaguaré | C40: 493 | D40: 49 | E40: 0.09939148073
A41: Sul | B41: Jerônimo Monteiro | C41: 164 | D41: 19 | E41: 0.1158536585
A42: Metropolitana | B42: João Neiva | C42: 192 | D42: 10 | E42: 0.05208333333
A43: Metropolitana | B43: Laranja da Terra | C43: 104 | D43: 16 | E43: 0.1538461538
A44: Central | B44: Linhares | C44: 2615 | D44: 233 | E44: 0.08910133843
A45: Central | B45: Mantenópolis | C45: 163 | D45: 29 | E45: 0.1779141104
A46: Sul | B46: Marataízes | C46: 547 | D46: 60 | E46: 0.1096892139
A47: Metropolitana | B47: Marechal Floriano | C47: 237 | D47: 30 | E47: 0.1265822785
A48: Central | B48: Marilândia | C48: 164 | D48: 17 | E48: 0.1036585366
A49: Sul | B49: Mimoso do Sul | C49: 263 | D49: 32 | E49: 0.1216730038
A50: Norte | B50: Montanha | C50: 254 | D50: 30 | E50: 0.1181102362
A51: Norte | B51: Mucurici | C51: 80 | D51: 4 | E51: 0.05
A52: Sul | B52: Muniz Freire | C52: 229 | D52: 29 | E52: 0.1266375546
A53: Sul | B53: Muqui | C53: 172 | D53: 22 | E53: 0.1279069767
A54: Norte | B54: Nova Venécia | C54: 697 | D54: 36 | E54: 0.05164992826
A55: Central | B55: Pancas | C55: 217 | D55: 29 | E55: 0.133640553
A56: Norte | B56: Pedro Canário | C56: 335 | D56: 33 | E56: 0.09850746269
A57: Norte | B57: Pinheiros | C57: 325 | D57: 32 | E57: 0.09846153846
A58: Sul | B58: Piúma | C58: 313 | D58: 17 | E58: 0.05431309904
A59: Norte | B59: Ponto Belo | C59: 89 | D59: 15 | E59: 0.1685393258
A60: Sul | B60: Presidente Kennedy | C60: 199 | D60: 13 | E60: 0.06532663317
A61: Central | B61: Rio Bananal | C61: 307 | D61: 36 | E61: 0.1172638436
A62: Sul | B62: Rio Novo do Sul | C62: 130 | D62: 14 | E62: 0.1076923077
A63: Metropolitana | B63: Santa Leopoldina | C63: 108 | D63: 18 | E63: 0.1666666667
A64: Metropolitana | B64: Santa Maria de Jetibá | C64: 630 | D64: 100 | E64: 0.1587301587
A65: Metropolitana | B65: Santa Teresa | C65: 288 | D65: 35 | E65: 0.1215277778
A66: Central | B66: São Domingos do Norte | C66: 117 | D66: 13 | E66: 0.1111111111
A67: Central | B67: São Gabriel da Palha | C67: 440 | D67: 73 | E67: 0.1659090909
A68: Sul | B68: São José do Calçado | C68: 116 | D68: 12 | E68: =D68/C68 -> 0.1034482759
A69: Norte | B69: São Mateus | C69: 1923 | D69: 129 | E69: 0.06708268331
A70: Central | B70: São Roque do Canaã | C70: 113 | D70: 12 | E70: 0.1061946903
A71: Metropolitana | B71: Serra | C71: 7418 | D71: 466 | E71: 0.06282016716
A72: Central | B72: Sooretama | C72: 424 | D72: 49 | E72: 0.1155660377
A73: Sul | B73: Vargem Alta | C73: 266 | D73: 33 | E73: 0.1240601504
A74: Metropolitana | B74: Venda Nova do Imigrante | C74: 412 | D74: 38 | E74: 0.09223300971
A75: Metropolitana | B75: Viana | C75: 1007 | D75: 90 | E75: 0.08937437934
A76: Norte | B76: Vila Pavão | C76: 95 | D76: 18 | E76: 0.1894736842
A77: Central | B77: Vila Valério | C77: 248 | D77: 30 | E77: 0.1209677419
A78: Metropolitana | B78: Vila Velha | C78: 5791 | D78: 466 | E78: 0.08046969435
A79: Metropolitana | B79: Vitória | C79: 3698 | D79: 483 | E79: 0.1306111412
B81: Total Norte | C81: =SUMIF($A$2:$A$79,"Norte",C$2:C$79) -> 5859 | D81: =SUMIF($A$2:$A$79,"Norte",D$2:D$79) -> 526 | E81: =D2/C2 -> 0.09828009828
B82: Total Central | C82: =SUMIF($A$2:$A$79,"CENTRAL",C$2:C$79) -> 7156 | D82: =SUMIF($A$2:$A$79,"CENTRAL",D$2:D$79) -> 716 | E82: =D3/C3 -> 0.127388535
B83: Total Metropolitana | C83: =SUMIF($A$2:$A$79,"METROPOLITANA",C$2:C$79) -> 30242 | D83: =SUMIF($A$2:$A$79,"METROPOLITANA",D$2:D$79) -> 2528 | E83: 0.11875
B84: Total Sul | C84: =SUMIF($A$2:$A$79,"SUL",C$2:C$79) -> 8554 | D84: =SUMIF($A$2:$A$79,"SUL",D$2:D$79) -> 810 | E84: 0.1278409091
B85: TOTAL ES | C85: =SUM(C2:C79) -> 51811 | D85: =SUM(D2:D79) -> 4580 | E85: 0.1096774194
B86: HOMOGENEIDADE ENTRE MUNICÍPIOS | E86: =COUNTIF(F2:F79,">=0,95")/78 -> 0
A89: Fonte: Vacina e Confia, em 22 de Dezembro de 2025.**<https://vacinaeconfia.saude.es.gov.br/>
A90: **Dados referente às doses aplicadas no mês de dezembro desde o início da vacinação em 08/12/2025.
A91: Cobertura Calculada por município de procedência/ocorrência da vacinação
A92: 1 População - Fonte: MS/SVSA/Cgiae – Sinasc, 2023.
A93: Método de Cálculo Simples
A94: Homogeineidade: O cálculo da Homogeineidade entre vacinas é feito de acordo com a pactuação estabelecida no Plano Plurianual (PPA) vigente no período 2024-2027.
A96: Observações:
A97: 1. Imunobiológicos que foram recebidos parcialmente pelo estado no mês de Novembro/2025, sendo distribuídos em quantidades reduzidas às regionais e municípios:
A98: SORO ANTIRRÁBICO HUMANO; IMUNOGLOBULINA ANTIRRÁBICA HUMANA.
A99: 2. Imunobiológicos indisponíveis no mês de Novembro/2025, não sendo possível a distribuição às regionais e municípios:
A100: IMUNOGLOBULINA HUMANA ANTI-HEPATITE B - 100 UI, VACINA TETRA VIRAL, IMUNOGLOBULINA HUMANA ANTIVARICELA (ZOSTER) – 125UI
A101: 3. Imunobiológicos distribuídos através de pautas: VACINA COVID-19 PFIZER PEDIÁTRICA MENOR QUE 5 ANOS,VACINA COVID-19 PFIZER ADULTO E ADOLESCENTE A PARTIR DE 12 ANOS, VACINA COVID-19 PFIZER PEDIÁTRICA, VACINA CONTRA DENGUE 1,2,3 E 4 (ATENUADA).

Sheet VSR gestante - residência (hidden)
A1: REGIONAL | B1: MUNICÍPIO | C1: ¹POPULAÇÃO GESTANTE | D1: DOSES APLICADAS VSR GESTANTES | E1: COBERTURA VACINAL VSR GESTANTES
A2: Metropolitana | B2: Afonso Cláudio | C2: 407 | D2: 40 | E2: =D2/C6 -> 0.2580645161
A3: Norte | B3: Água Doce do Norte | C3: 157 | D3: 20 | E3: =D3/C3 -> 0.127388535
A4: Central | B4: Águia Branca | C4: 160 | D4: 19 | E4: =D4/C4 -> 0.11875
A5: Sul | B5: Alegre | C5: 352 | D5: 45 | E5: 0.1278409091
A6: Sul | B6: Alfredo Chaves | C6: 155 | D6: 16 | E6: 0.1032258065
A7: Central | B7: Alto Rio Novo | C7: 93 | D7: 7 | E7: 0.0752688172
A8: Sul | B8: Anchieta | C8: 381 | D8: 55 | E8: 0.1443569554
A9: Sul | B9: Apiacá | C9: 65 | D9: 11 | E9: 0.1692307692
A10: Metropolitana | B10: Aracruz | C10: 1495 | D10: 122 | E10: 0.08160535117
A11: Sul | B11: Atilio Vivacqua | C11: 142 | D11: 15 | E11: 0.1056338028
A12: Central | B12: Baixo Guandu | C12: 379 | D12: 37 | E12: 0.09762532982
A13: Norte | B13: Barra de São Francisco | C13: 566 | D13: 43 | E13: 0.07597173145
A14: Norte | B14: Boa Esperança | C14: 210 | D14: 23 | E14: 0.1095238095
A15: Sul | B15: Bom Jesus do Norte | C15: 78 | D15: 10 | E15: 0.1282051282
A16: Metropolitana | B16: Brejetuba | C16: 204 | D16: 24 | E16: 0.1176470588
A17: Sul | B17: Cachoeiro de Itapemirim | C17: 2453 | D17: 128 | E17: 0.05218100285
A18: Metropolitana | B18: Cariacica | C18: 4931 | D18: 280 | E18: 0.05678361387
A19: Sul | B19: Castelo | C19: 453 | D19: 41 | E19: 0.09050772627
A20: Central | B20: Colatina | C20: 1576 | D20: 109 | E20: 0.06916243655
A21: Norte | B21: Conceição da Barra | C21: 392 | D21: 57 | E21: 0.1454081633
A22: Metropolitana | B22: Conceição do Castelo | C22: 161 | D22: 13 | E22: 0.08074534161
A23: Sul | B23: Divino de São Lourenço | C23: 62 | D23: 11 | E23: 0.1774193548
A24: Metropolitana | B24: Domingos Martins | C24: 417 | D24: 81 | E24: 0.1942446043
A25: Sul | B25: Dores do Rio Preto | C25: 95 | D25: 15 | E25: 0.1578947368
A26: Norte | B26: Ecoporanga | C26: 243 | D26: 29 | E26: 0.1193415638
A27: Metropolitana | B27: Fundão | C27: 209 | D27: 28 | E27: 0.1339712919
A28: Central | B28: Governador Lindenberg | C28: 140 | D28: 21 | E28: 0.15
A29: Sul | B29: Guaçuí | C29: 407 | D29: 35 | E29: 0.085995086
A30: Metropolitana | B30: Guarapari | C30: 1768 | D30: 95 | E30: 0.05373303167
A31: Metropolitana | B31: Ibatiba | C31: 349 | D31: 37 | E31: 0.106017192
A32: Metropolitana | B32: Ibiraçu | C32: 140 | D32: 14 | E32: 0.1
A33: Sul | B33: Ibitirama | C33: 133 | D33: 12 | E33: 0.09022556391
A34: Sul | B34: Iconha | C34: 121 | D34: 16 | E34: 0.132231405
A35: Sul | B35: Irupi | C35: 198 | D35: 23 | E35: 0.1161616162
A36: Metropolitana | B36: Itaguaçu | C36: 143 | D36: 22 | E36: 0.1538461538
A37: Sul | B37: Itapemirim | C37: 578 | D37: 71 | E37: 0.1228373702
A38: Metropolitana | B38: Itarana | C38: 133 | D38: 0 | E38: 0
A39: Sul | B39: Iúna | C39: 482 | D39: 41 | E39: 0.08506224066
A40: Norte | B40: Jaguaré | C40: 493 | D40: 49 | E40: 0.09939148073
A41: Sul | B41: Jerônimo Monteiro | C41: 164 | D41: 19 | E41: 0.1158536585
A42: Metropolitana | B42: João Neiva | C42: 192 | D42: 10 | E42: 0.05208333333
A43: Metropolitana | B43: Laranja da Terra | C43: 104 | D43: 16 | E43: 0.1538461538
A44: Central | B44: Linhares | C44: 2615 | D44: 226 | E44: 0.08642447419
A45: Central | B45: Mantenópolis | C45: 163 | D45: 29 | E45: 0.1779141104
A46: Sul | B46: Marataízes | C46: 547 | D46: 60 | E46: 0.1096892139
A47: Metropolitana | B47: Marechal Floriano | C47: 237 | D47: 28 | E47: 0.1181434599
A48: Central | B48: Marilândia | C48: 164 | D48: 17 | E48: 0.1036585366
A49: Sul | B49: Mimoso do Sul | C49: 263 | D49: 32 | E49: 0.1216730038
A50: Norte | B50: Montanha | C50: 254 | D50: 30 | E50: 0.1181102362
A51: Norte | B51: Mucurici | C51: 80 | D51: 4 | E51: 0.05
A52: Sul | B52: Muniz Freire | C52: 229 | D52: 29 | E52: 0.1266375546
A53: Sul | B53: Muqui | C53: 172 | D53: 20 | E53: 0.1162790698
A54: Norte | B54: Nova Venécia | C54: 697 | D54: 36 | E54: 0.05164992826
A55: Central | B55: Pancas | C55: 217 | D55: 29 | E55: 0.133640553
A56: Norte | B56: Pedro Canário | C56: 335 | D56: 33 | E56: 0.09850746269
A57: Norte | B57: Pinheiros | C57: 325 | D57: 32 | E57: 0.09846153846
A58: Sul | B58: Piúma | C58: 313 | D58: 16 | E58: 0.05111821086
A59: Norte | B59: Ponto Belo | C59: 89 | D59: 15 | E59: 0.1685393258
A60: Sul | B60: Presidente Kennedy | C60: 199 | D60: 13 | E60: 0.06532663317
A61: Central | B61: Rio Bananal | C61: 307 | D61: 36 | E61: 0.1172638436
A62: Sul | B62: Rio Novo do Sul | C62: 130 | D62: 14 | E62: 0.1076923077
A63: Metropolitana | B63: Santa Leopoldina | C63: 108 | D63: 18 | E63: 0.1666666667
A64: Metropolitana | B64: Santa Maria de Jetibá | C64: 630 | D64: 98 | E64: 0.1555555556
A65: Metropolitana | B65: Santa Teresa | C65: 288 | D65: 35 | E65: 0.1215277778
A66: Central | B66: São Domingos do Norte | C66: 117 | D66: 13 | E66: 0.1111111111
A67: Central | B67: São Gabriel da Palha | C67: 440 | D67: 72 | E67: 0.1636363636
A68: Sul | B68: São José do Calçado | C68: 116 | D68: 11 | E68: =D68/C68 -> 0.09482758621
A69: Norte | B69: São Mateus | C69: 1923 | D69: 123 | E69: 0.0639625585
A70: Central | B70: São Roque do Canaã | C70: 113 | D70: 12 | E70: 0.1061946903
A71: Metropolitana | B71: Serra | C71: 7418 | D71: 457 | E71: 0.06160690213
A72: Central | B72: Sooretama | C72: 424 | D72: 48 | E72: 0.1132075472
A73: Sul | B73: Vargem Alta | C73: 266 | D73: 33 | E73: 0.1240601504
A74: Metropolitana | B74: Venda Nova do Imigrante | C74: 412 | D74: 38 | E74: 0.09223300971
A75: Metropolitana | B75: Viana | C75: 1007 | D75: 86 | E75: 0.08540218471
A76: Norte | B76: Vila Pavão | C76: 95 | D76: 18 | E76: 0.1894736842
A77: Central | B77: Vila Valério | C77: 248 | D77: 30 | E77: 0.1209677419
A78: Metropolitana | B78: Vila Velha | C78: 5791 | D78: 446 | E78: 0.0770160594
A79: Metropolitana | B79: Vitória | C79: 3698 | D79: 455 | E79: 0.1230394808
B81: Total Norte | C81: =SUMIF($A$2:$A$79,"Norte",C$2:C$79) -> 5859 | D81: =SUMIF($A$2:$A$79,"Norte",D$2:D$79) -> 512 | E81: =D2/C2 -> 0.09828009828
B82: Total Central | C82: =SUMIF($A$2:$A$79,"CENTRAL",C$2:C$79) -> 7156 | D82: =SUMIF($A$2:$A$79,"CENTRAL",D$2:D$79) -> 705 | E82: =D3/C3 -> 0.127388535
B83: Total Metropolitana | C83: =SUMIF($A$2:$A$79,"METROPOLITANA",C$2:C$79) -> 30242 | D83: =SUMIF($A$2:$A$79,"METROPOLITANA",D$2:D$79) -> 2443 | E83: 0.11875
B84: Total Sul | C84: =SUMIF($A$2:$A$79,"SUL",C$2:C$79) -> 8554 | D84: =SUMIF($A$2:$A$79,"SUL",D$2:D$79) -> 792 | E84: 0.1278409091
B85: TOTAL ES | C85: =SUM(C2:C79) -> 51811 | D85: =SUM(D2:D79) -> 4452 | E85: 0.1032258065
B86: HOMOGENEIDADE ENTRE MUNICÍPIOS | E86: =COUNTIF(F2:F79,">=0,95")/78 -> 0
A89: Fonte: Vacina e Confia, em 22 de Dezembro de 2025.**<https://vacinaeconfia.saude.es.gov.br/>
A90: **Dados referente às doses aplicadas no mês de dezembro desde o início da vacinação em 08/12/2025.
A91: Cobertura Calculada por município deresidência da vacinação
A92: 1 População - Fonte: MS/SVSA/Cgiae – Sinasc, 2023.
A93: Método de Cálculo Simples
A94: Homogeineidade: O cálculo da Homogeineidade entre vacinas é feito de acordo com a pactuação estabelecida no Plano Plurianual (PPA) vigente no período 2024-2027.
A96: Observações:
A97: 1. Imunobiológicos que foram recebidos parcialmente pelo estado no mês de Novembro/2025, sendo distribuídos em quantidades reduzidas às regionais e municípios:
A98: SORO ANTIRRÁBICO HUMANO; IMUNOGLOBULINA ANTIRRÁBICA HUMANA.
A99: 2. Imunobiológicos indisponíveis no mês de Novembro/2025, não sendo possível a distribuição às regionais e municípios:
A100: IMUNOGLOBULINA HUMANA ANTI-HEPATITE B - 100 UI, VACINA TETRA VIRAL, IMUNOGLOBULINA HUMANA ANTIVARICELA (ZOSTER) – 125UI
A101: 3. Imunobiológicos distribuídos através de pautas: VACINA COVID-19 PFIZER PEDIÁTRICA MENOR QUE 5 ANOS,VACINA COVID-19 PFIZER ADULTO E ADOLESCENTE A PARTIR DE 12 ANOS, VACINA COVID-19 PFIZER PEDIÁTRICA, VACINA CONTRA DENGUE 1,2,3 E 4 (ATENUADA).

Sheet COVID-19 gestantes -Procedência
A1: REGIONAL | B1: MUNICÍPIO | C1: ¹POPULAÇÃO GESTANTE ANUAL | D1: ²POPULAÇÃO PROPORCIONAL | E1: DOSES APLICADAS COVID 19 GESTANTES | F1: COBERTURA VACINAL COVID GESTANTES
A2: Metropolitana | B2: Afonso Cláudio | C2: 359 | D2: 332 | E2: 1 | F2: =E2/D2 -> 0.003012048193
A3: Norte | B3: Água Doce do Norte | C3: 145 | D3: 139 | E3: 1 | F3: =E3/D3 -> 0.007194244604
A4: Central | B4: Águia Branca | C4: 165 | D4: 153 | E4: 1 | F4: 0.006535947712
A5: Sul | B5: Alegre | C5: 322 | D5: 292 | E5: 31 | F5: 0.1061643836
A6: Sul | B6: Alfredo Chaves | C6: 119 | D6: 104 | E6: 8 | F6: 0.07692307692
A7: Central | B7: Alto Rio Novo | C7: 99 | D7: 92 | E7: 0 | F7: 0
A8: Sul | B8: Anchieta | C8: 334 | D8: 308 | E8: 49 | F8: 0.1590909091
A9: Sul | B9: Apiacá | C9: 64 | D9: 57 | E9: 0 | F9: 0
A10: Metropolitana | B10: Aracruz | C10: 1420 | D10: 1316 | E10: 178 | F10: 0.1352583587
A11: Sul | B11: Atilio Vivacqua | C11: 148 | D11: 131 | E11: 0 | F11: 0
A12: Central | B12: Baixo Guandu | C12: 354 | D12: 324 | E12: 0 | F12: 0
A13: Norte | B13: Barra de São Francisco | C13: 622 | D13: 570 | E13: 0 | F13: 0
A14: Norte | B14: Boa Esperança | C14: 209 | D14: 191 | E14: 5 | F14: 0.02617801047
A15: Sul | B15: Bom Jesus do Norte | C15: 72 | D15: 67 | E15: 3 | F15: 0.0447761194
A16: Metropolitana | B16: Brejetuba | C16: 227 | D16: 213 | E16: 0 | F16: 0
A17: Sul | B17: Cachoeiro de Itapemirim | C17: 2386 | D17: 2179 | E17: 115 | F17: 0.05277650298
A18: Metropolitana | B18: Cariacica | C18: 4738 | D18: 4375 | E18: 993 | F18: 0.2269714286
A19: Sul | B19: Castelo | C19: 383 | D19: 342 | E19: 0 | F19: 0
A20: Central | B20: Colatina | C20: 1485 | D20: 1358 | E20: 180 | F20: 0.1325478645
A21: Norte | B21: Conceição da Barra | C21: 343 | D21: 327 | E21: 55 | F21: 0.1681957187
A22: Metropolitana | B22: Conceição do Castelo | C22: 187 | D22: 171 | E22: 34 | F22: 0.1988304094
A23: Sul | B23: Divino de São Lourenço | C23: 67 | D23: 62 | E23: 8 | F23: 0.1290322581
A24: Metropolitana | B24: Domingos Martins | C24: 426 | D24: 382 | E24: 53 | F24: 0.1387434555
A25: Sul | B25: Dores do Rio Preto | C25: 102 | D25: 99 | E25: 13 | F25: 0.1313131313
A26: Norte | B26: Ecoporanga | C26: 250 | D26: 233 | E26: 52 | F26: 0.2231759657
A27: Metropolitana | B27: Fundão | C27: 231 | D27: 213 | E27: 9 | F27: 0.04225352113
A28: Central | B28: Governador Lindenberg | C28: 141 | D28: 130 | E28: 10 | F28: 0.07692307692
A29: Sul | B29: Guaçuí | C29: 387 | D29: 354 | E29: 1 | F29: 0.002824858757
A30: Metropolitana | B30: Guarapari | C30: 1643 | D30: 1526 | E30: 80 | F30: 0.05242463958
A31: Metropolitana | B31: Ibatiba | C31: 410 | D31: 375 | E31: 25 | F31: 0.06666666667
A32: Metropolitana | B32: Ibiraçu | C32: 130 | D32: 123 | E32: 2 | F32: 0.0162601626
A33: Sul | B33: Ibitirama | C33: 139 | D33: 130 | E33: 30 | F33: 0.2307692308
A34: Sul | B34: Iconha | C34: 140 | D34: 132 | E34: 14 | F34: 0.1060606061
A35: Sul | B35: Irupi | C35: 194 | D35: 179 | E35: 7 | F35: 0.03910614525
A36: Metropolitana | B36: Itaguaçu | C36: 121 | D36: 119 | E36: 2 | F36: 0.01680672269
A37: Sul | B37: Itapemirim | C37: 537 | D37: 494 | E37: 28 | F37: 0.05668016194
A38: Metropolitana | B38: Itarana | C38: 131 | D38: 126 | E38: 0 | F38: 0
A39: Sul | B39: Iúna | C39: 387 | D39: 358 | E39: 2 | F39: 0.005586592179
A40: Norte | B40: Jaguaré | C40: 444 | D40: 415 | E40: 20 | F40: 0.04819277108
A41: Sul | B41: Jerônimo Monteiro | C41: 114 | D41: 111 | E41: 15 | F41: 0.1351351351
A42: Metropolitana | B42: João Neiva | C42: 143 | D42: 132 | E42: 0 | F42: 0
A43: Metropolitana | B43: Laranja da Terra | C43: 120 | D43: 114 | E43: 0 | F43: 0
A44: Central | B44: Linhares | C44: 2668 | D44: 2438 | E44: 46 | F44: 0.01886792453
A45: Central | B45: Mantenópolis | C45: 132 | D45: 121 | E45: 1 | F45: 0.00826446281
A46: Sul | B46: Marataízes | C46: 570 | D46: 532 | E46: 9 | F46: 0.01691729323
A47: Metropolitana | B47: Marechal Floriano | C47: 207 | D47: 190 | E47: 22 | F47: 0.1157894737
A48: Central | B48: Marilândia | C48: 166 | D48: 159 | E48: 2 | F48: 0.01257861635
A49: Sul | B49: Mimoso do Sul | C49: 279 | D49: 256 | E49: 19 | F49: 0.07421875
A50: Norte | B50: Montanha | C50: 217 | D50: 205 | E50: 32 | F50: 0.156097561
A51: Norte | B51: Mucurici | C51: 53 | D51: 46 | E51: 9 | F51: 0.1956521739
A52: Sul | B52: Muniz Freire | C52: 248 | D52: 226 | E52: 6 | F52: 0.02654867257
A53: Sul | B53: Muqui | C53: 154 | D53: 143 | E53: 4 | F53: 0.02797202797
A54: Norte | B54: Nova Venécia | C54: 690 | D54: 628 | E54: 26 | F54: 0.04140127389
A55: Central | B55: Pancas | C55: 218 | D55: 201 | E55: 9 | F55: 0.0447761194
A56: Norte | B56: Pedro Canário | C56: 320 | D56: 297 | E56: 32 | F56: 0.1077441077
A57: Norte | B57: Pinheiros | C57: 304 | D57: 286 | E57: 18 | F57: 0.06293706294
A58: Sul | B58: Piúma | C58: 310 | D58: 281 | E58: 33 | F58: 0.1174377224
A59: Norte | B59: Ponto Belo | C59: 68 | D59: 65 | E59: 0 | F59: 0
A60: Sul | B60: Presidente Kennedy | C60: 199 | D60: 183 | E60: 0 | F60: 0
A61: Central | B61: Rio Bananal | C61: 296 | D61: 265 | E61: 12 | F61: 0.04528301887
A62: Sul | B62: Rio Novo do Sul | C62: 97 | D62: 88 | E62: 4 | F62: 0.04545454545
A63: Metropolitana | B63: Santa Leopoldina | C63: 96 | D63: 89 | E63: 3 | F63: 0.03370786517
A64: Metropolitana | B64: Santa Maria de Jetibá | C64: 721 | D64: 667 | E64: 9 | F64: 0.01349325337
A65: Metropolitana | B65: Santa Teresa | C65: 283 | D65: 262 | E65: 15 | F65: 0.0572519084
A66: Central | B66: São Domingos do Norte | C66: 111 | D66: 101 | E66: 4 | F66: 0.0396039604
A67: Central | B67: São Gabriel da Palha | C67: 401 | D67: 376 | E67: 1 | F67: =E67/D67 -> 0.002659574468
A68: Sul | B68: São José do Calçado | C68: 94 | D68: 84 | E68: 1 | F68: 0.0119047619
A69: Norte | B69: São Mateus | C69: 1670 | D69: 1562 | E69: 252 | F69: 0.1613316261
A70: Central | B70: São Roque do Canaã | C70: 131 | D70: 121 | E70: 14 | F70: 0.1157024793
A71: Metropolitana | B71: Serra | C71: 7550 | D71: 7009 | E71: 1282 | F71: 0.1829076901
A72: Central | B72: Sooretama | C72: 428 | D72: 391 | E72: 41 | F72: 0.104859335
A73: Sul | B73: Vargem Alta | C73: 270 | D73: 252 | E73: 14 | F73: 0.05555555556
A74: Metropolitana | B74: Venda Nova do Imigrante | C74: 352 | D74: 323 | E74: 29 | F74: 0.08978328173
A75: Metropolitana | B75: Viana | C75: 863 | D75: 803 | E75: 161 | F75: 0.200498132
A76: Norte | B76: Vila Pavão | C76: 95 | D76: 91 | E76: 1 | F76: 0.01098901099
A77: Central | B77: Vila Valério | C77: 254 | D77: 236 | E77: 0 | F77: 0
A78: Metropolitana | B78: Vila Velha | C78: 5551 | D78: 5140 | E78: 914 | F78: 0.1778210117
A79: Metropolitana | B79: Vitória | C79: 3544 | D79: 3269 | E79: 676 | F79: 0.2067910676
B81: Total Norte | C81: =SUMIF($A$2:$A$79,"Norte",C$2:C$79) -> 5430 | D81: =SUMIF($A$2:$A$79,"Norte",D$2:D$79) -> 5055 | E81: =SUMIF($A$2:$A$79,"Norte",E$2:E$79) -> 503 | F81: =E81/D81 -> 0.09950544016
B82: Total Central | C82: =SUMIF($A$2:$A$79,"CENTRAL",C$2:C$79) -> 7049 | D82: =SUMIF($A$2:$A$79,"CENTRAL",D$2:D$79) -> 6466 | E82: =SUMIF($A$2:$A$79,"cENTRAL",E$2:E$79) -> 321 | F82: 0.04964429323
B83: Total Metropolitana | C83: =SUMIF($A$2:$A$79,"METROPOLITANA",C$2:C$79) -> 29453 | D83: =SUMIF($A$2:$A$79,"METROPOLITANA",D$2:D$79) -> 27269 | E83: =SUMIF($A$2:$A$79,"Metropolitana",E$2:E$79) -> 4488 | F83: 0.1645824929
B84: Total Sul | C84: =SUMIF($A$2:$A$79,"SUL",C$2:C$79) -> 8116 | D84: =SUMIF($A$2:$A$79,"SUL",D$2:D$79) -> 7444 | E84: =SUMIF($A$2:$A$79,"sul",E$2:E$79) -> 414 | F84: 0.05561526061
B85: TOTAL ES | C85: =SUM(C2:C79) -> 50048 | D85: =SUM(D2:D79) -> 46234 | E85: =SUM(E2:E79) -> 5726 | F85: =E85/D85 -> 0.1238482502
B86: HOMOGENEIDADE ENTRE MUNICÍPIOS | F86: =COUNTIF(F2:F79,">=0,90")/78 -> 0
A90: Fonte: Vacina e Confia, em 22 de Dezembro de 2025.**<https://vacinaeconfia.saude.es.gov.br/>
A91: **Dados referente às doses aplicadas no período de Janeiro a Novembro 2025
A92: Cobertura Calculada por município de procedência/ocorrência da vacinação
A93: 1 População anual extraída do MS/SVS/DASIS - SINASC/DASIS/SVS/MS 2024 (hoje preliminares) referente ao período de Outubro a Dezembro de 2024 e SINASC/DASIS/SVS/MS 2025 referente ao período de Janeiro e Setembro de 2025.
A94: ² População proporcional extraída do MS/SVS/DASIS - SINASC/DASIS/SVS/MS 2024 (hoje preliminares) referente ao período de Outubro e Novembro 2024 e SINASC/DASIS/SVS/MS 2024 (hoje preliminares) referente ao período de Janeiro a Setembro/ 2025.
A95: Sinasc, atualizado em 11/12/2025
A96: Método de Cálculo Simples
A97: Homogeineidade: O cálculo da Homogeineidade entre vacinas é feito de acordo com a pactuação estabelecida no Plano Plurianual (PPA) vigente no período 2024-2027.
A100: Observações:
A101: 1. Imunobiológicos que foram recebidos parcialmente pelo estado no mês de Novembro/2025, sendo distribuídos em quantidades reduzidas às regionais e municípios:
A102: SORO ANTIRRÁBICO HUMANO; IMUNOGLOBULINA ANTIRRÁBICA HUMANA.
A103: 2. Imunobiológicos indisponíveis no mês de Novembro/2025, não sendo possível a distribuição às regionais e municípios:
A104: IMUNOGLOBULINA HUMANA ANTI-HEPATITE B - 100 UI, VACINA TETRA VIRAL, IMUNOGLOBULINA HUMANA ANTIVARICELA (ZOSTER) – 125UI
A105: 3. Imunobiológicos distribuídos através de pautas: VACINA COVID-19 PFIZER PEDIÁTRICA MENOR QUE 5 ANOS,VACINA COVID-19 PFIZER ADULTO E ADOLESCENTE A PARTIR DE 12 ANOS, VACINA COVID-19 PFIZER PEDIÁTRICA, VACINA CONTRA DENGUE 1,2,3 E 4 (ATENUADA).

Sheet COVID-19 gestantes -Residência
A1: REGIONAL | B1: MUNICÍPIO | C1: ¹POPULAÇÃO GESTANTE ANUAL | D1: ²POPULAÇÃO PROPORCIONAL | E1: DOSES APLICADAS COVID GESTANTES | F1: COBERTURA VACINAL COVID GESTANTES
A2: Metropolitana | B2: Afonso Cláudio | C2: 359 | D2: 332 | E2: 7 | F2: =E2/D2 -> 0.02108433735
A3: Norte | B3: Água Doce do Norte | C3: 145 | D3: 139 | E3: 1 | F3: =E3/D3 -> 0.007194244604
A4: Central | B4: Águia Branca | C4: 165 | D4: 153 | E4: 2 | F4: 0.01307189542
A5: Sul | B5: Alegre | C5: 322 | D5: 292 | E5: 33 | F5: 0.1130136986
A6: Sul | B6: Alfredo Chaves | C6: 119 | D6: 104 | E6: 7 | F6: 0.06730769231
A7: Central | B7: Alto Rio Novo | C7: 99 | D7: 92 | E7: 2 | F7: 0.02173913043
A8: Sul | B8: Anchieta | C8: 334 | D8: 308 | E8: 55 | F8: 0.1785714286
A9: Sul | B9: Apiacá | C9: 64 | D9: 57 | E9: 1 | F9: 0.01754385965
A10: Metropolitana | B10: Aracruz | C10: 1420 | D10: 1316 | E10: 164 | F10: 0.1246200608
A11: Sul | B11: Atilio Vivacqua | C11: 148 | D11: 131 | E11: 0 | F11: 0
A12: Central | B12: Baixo Guandu | C12: 354 | D12: 324 | E12: 7 | F12: 0.02160493827
A13: Norte | B13: Barra de São Francisco | C13: 622 | D13: 570 | E13: 12 | F13: 0.02105263158
A14: Norte | B14: Boa Esperança | C14: 209 | D14: 191 | E14: 11 | F14: 0.05759162304
A15: Sul | B15: Bom Jesus do Norte | C15: 72 | D15: 67 | E15: 3 | F15: 0.0447761194
A16: Metropolitana | B16: Brejetuba | C16: 227 | D16: 213 | E16: 5 | F16: 0.0234741784
A17: Sul | B17: Cachoeiro de Itapemirim | C17: 2386 | D17: 2179 | E17: 117 | F17: 0.05369435521
A18: Metropolitana | B18: Cariacica | C18: 4738 | D18: 4375 | E18: 1025 | F18: 0.2342857143
A19: Sul | B19: Castelo | C19: 383 | D19: 342 | E19: 4 | F19: 0.01169590643
A20: Central | B20: Colatina | C20: 1485 | D20: 1358 | E20: 173 | F20: 0.1273932253
A21: Norte | B21: Conceição da Barra | C21: 343 | D21: 327 | E21: 61 | F21: 0.1865443425
A22: Metropolitana | B22: Conceição do Castelo | C22: 187 | D22: 171 | E22: 29 | F22: 0.1695906433
A23: Sul | B23: Divino de São Lourenço | C23: 67 | D23: 62 | E23: 8 | F23: 0.1290322581
A24: Metropolitana | B24: Domingos Martins | C24: 426 | D24: 382 | E24: 43 | F24: 0.112565445
A25: Sul | B25: Dores do Rio Preto | C25: 102 | D25: 99 | E25: 11 | F25: 0.1111111111
A26: Norte | B26: Ecoporanga | C26: 250 | D26: 233 | E26: 46 | F26: 0.1974248927
A27: Metropolitana | B27: Fundão | C27: 231 | D27: 213 | E27: 13 | F27: 0.06103286385
A28: Central | B28: Governador Lindenberg | C28: 141 | D28: 130 | E28: 9 | F28: 0.06923076923
A29: Sul | B29: Guaçuí | C29: 387 | D29: 354 | E29: 6 | F29: 0.01694915254
A30: Metropolitana | B30: Guarapari | C30: 1643 | D30: 1526 | E30: 92 | F30: 0.06028833552
A31: Metropolitana | B31: Ibatiba | C31: 410 | D31: 375 | E31: 19 | F31: 0.05066666667
A32: Metropolitana | B32: Ibiraçu | C32: 130 | D32: 123 | E32: 7 | F32: 0.05691056911
A33: Sul | B33: Ibitirama | C33: 139 | D33: 130 | E33: 29 | F33: 0.2230769231
A34: Sul | B34: Iconha | C34: 140 | D34: 132 | E34: 11 | F34: 0.08333333333
A35: Sul | B35: Irupi | C35: 194 | D35: 179 | E35: 8 | F35: 0.04469273743
A36: Metropolitana | B36: Itaguaçu | C36: 121 | D36: 119 | E36: 5 | F36: 0.04201680672
A37: Sul | B37: Itapemirim | C37: 537 | D37: 494 | E37: 31 | F37: 0.06275303644
A38: Metropolitana | B38: Itarana | C38: 131 | D38: 126 | E38: 2 | F38: 0.01587301587
A39: Sul | B39: Iúna | C39: 387 | D39: 358 | E39: 7 | F39: 0.01955307263
A40: Norte | B40: Jaguaré | C40: 444 | D40: 415 | E40: 23 | F40: 0.05542168675
A41: Sul | B41: Jerônimo Monteiro | C41: 114 | D41: 111 | E41: 8 | F41: 0.07207207207
A42: Metropolitana | B42: João Neiva | C42: 143 | D42: 132 | E42: 3 | F42: 0.02272727273
A43: Metropolitana | B43: Laranja da Terra | C43: 120 | D43: 114 | E43: 0 | F43: 0
A44: Central | B44: Linhares | C44: 2668 | D44: 2438 | E44: 88 | F44: 0.03609515997
A45: Central | B45: Mantenópolis | C45: 132 | D45: 121 | E45: 3 | F45: 0.02479338843
A46: Sul | B46: Marataízes | C46: 570 | D46: 532 | E46: 11 | F46: 0.02067669173
A47: Metropolitana | B47: Marechal Floriano | C47: 207 | D47: 190 | E47: 32 | F47: 0.1684210526
A48: Central | B48: Marilândia | C48: 166 | D48: 159 | E48: 3 | F48: 0.01886792453
A49: Sul | B49: Mimoso do Sul | C49: 279 | D49: 256 | E49: 18 | F49: 0.0703125
A50: Norte | B50: Montanha | C50: 217 | D50: 205 | E50: 36 | F50: 0.1756097561
A51: Norte | B51: Mucurici | C51: 53 | D51: 46 | E51: 6 | F51: 0.1304347826
A52: Sul | B52: Muniz Freire | C52: 248 | D52: 226 | E52: 8 | F52: 0.03539823009
A53: Sul | B53: Muqui | C53: 154 | D53: 143 | E53: 4 | F53: 0.02797202797
A54: Norte | B54: Nova Venécia | C54: 690 | D54: 628 | E54: 38 | F54: 0.06050955414
A55: Central | B55: Pancas | C55: 218 | D55: 201 | E55: 6 | F55: 0.02985074627
A56: Norte | B56: Pedro Canário | C56: 320 | D56: 297 | E56: 37 | F56: 0.1245791246
A57: Norte | B57: Pinheiros | C57: 304 | D57: 286 | E57: 22 | F57: 0.07692307692
A58: Sul | B58: Piúma | C58: 310 | D58: 281 | E58: 32 | F58: 0.1138790036
A59: Norte | B59: Ponto Belo | C59: 68 | D59: 65 | E59: 4 | F59: 0.06153846154
A60: Sul | B60: Presidente Kennedy | C60: 199 | D60: 183 | E60: 1 | F60: 0.005464480874
A61: Central | B61: Rio Bananal | C61: 296 | D61: 265 | E61: 15 | F61: 0.05660377358
A62: Sul | B62: Rio Novo do Sul | C62: 97 | D62: 88 | E62: 5 | F62: 0.05681818182
A63: Metropolitana | B63: Santa Leopoldina | C63: 96 | D63: 89 | E63: 5 | F63: 0.05617977528
A64: Metropolitana | B64: Santa Maria de Jetibá | C64: 721 | D64: 667 | E64: 14 | F64: 0.02098950525
A65: Metropolitana | B65: Santa Teresa | C65: 283 | D65: 262 | E65: 19 | F65: 0.07251908397
A66: Central | B66: São Domingos do Norte | C66: 111 | D66: 101 | E66: 7 | F66: 0.06930693069
A67: Central | B67: São Gabriel da Palha | C67: 401 | D67: 376 | E67: 5 | F67: =E67/D67 -> 0.01329787234
A68: Sul | B68: São José do Calçado | C68: 94 | D68: 84 | E68: 0 | F68: 0
A69: Norte | B69: São Mateus | C69: 1670 | D69: 1562 | E69: 205 | F69: 0.1312419974
A70: Central | B70: São Roque do Canaã | C70: 131 | D70: 121 | E70: 17 | F70: 0.1404958678
A71: Metropolitana | B71: Serra | C71: 7550 | D71: 7009 | E71: 1191 | F71: 0.1699243829
A72: Central | B72: Sooretama | C72: 428 | D72: 391 | E72: 42 | F72: 0.1074168798
A73: Sul | B73: Vargem Alta | C73: 270 | D73: 252 | E73: 15 | F73: 0.05952380952
A74: Metropolitana | B74: Venda Nova do Imigrante | C74: 352 | D74: 323 | E74: 34 | F74: 0.1052631579
A75: Metropolitana | B75: Viana | C75: 863 | D75: 803 | E75: 162 | F75: 0.201743462
A76: Norte | B76: Vila Pavão | C76: 95 | D76: 91 | E76: 2 | F76: 0.02197802198
A77: Central | B77: Vila Valério | C77: 254 | D77: 236 | E77: 8 | F77: 0.03389830508
A78: Metropolitana | B78: Vila Velha | C78: 5551 | D78: 5140 | E78: 794 | F78: 0.1544747082
A79: Metropolitana | B79: Vitória | C79: 3544 | D79: 3269 | E79: 605 | F79: 0.1850718874
B81: Total Norte | C81: =SUMIF($A$2:$A$79,"Norte",C$2:C$79) -> 5430 | D81: =SUMIF($A$2:$A$79,"Norte",D$2:D$79) -> 5055 | E81: =SUMIF($A$2:$A$79,"Norte",E$2:E$79) -> 504 | F81: =E81/D81 -> 0.09970326409
B82: Total Central | C82: =SUMIF($A$2:$A$79,"CENTRAL",C$2:C$79) -> 7049 | D82: =SUMIF($A$2:$A$79,"CENTRAL",D$2:D$79) -> 6466 | E82: =SUMIF($A$2:$A$79,"CENTRAL",E$2:E$79) -> 387 | F82: 0.05985153109
B83: Total Metropolitana | C83: =SUMIF($A$2:$A$79,"METROPOLITANA",C$2:C$79) -> 29453 | D83: =SUMIF($A$2:$A$79,"METROPOLITANA",D$2:D$79) -> 27269 | E83: =SUMIF($A$2:$A$79,"METROPOLITANA",E$2:E$79) -> 4270 | F83: 0.156588067
B84: Total Sul | C84: =SUMIF($A$2:$A$79,"SUL",C$2:C$79) -> 8116 | D84: =SUMIF($A$2:$A$79,"SUL",D$2:D$79) -> 7444 | E84: =SUMIF($A$2:$A$79,"SUL",E$2:E$79) -> 433 | F84: 0.0581676518
B85: TOTAL ES | C85: =SUM(C2:C79) -> 50048 | D85: =SUM(D2:D79) -> 46234 | E85: =SUM(E2:E79) -> 5594 | F85: =E85/D85 -> 0.1209932085
B86: HOMOGENEIDADE ENTRE MUNICÍPIOS | E86: =COUNTIF(F2:F79,">=0,95") -> 0 | F86: =COUNTIF(F2:F79,">=0,90")/78 -> 0
A89: Fonte: Vacina e Confia, em 22 de Dezembro de 2025.**<https://vacinaeconfia.saude.es.gov.br/>
A90: **Dados referente às doses aplicadas no período de Janeiro a Novembro 2025
A91: Cobertura Calculada por município de residência da vacinação
A92: 1 População anual extraída do MS/SVS/DASIS - SINASC/DASIS/SVS/MS 2024 (hoje preliminares) referente ao período de Outubro a Dezembro de 2024 e SINASC/DASIS/SVS/MS 2025 referente ao período de Janeiro e Setembro de 2025.
A93: ² População proporcional extraída do MS/SVS/DASIS - SINASC/DASIS/SVS/MS 2024 (hoje preliminares) referente ao período de Outubro e Novembro 2024 e SINASC/DASIS/SVS/MS 2024 (hoje preliminares) referente ao período de Janeiro a Setembro/ 2025.
A94: Sinasc, atualizado em 11/12/2025
A95: Método de Cálculo Simples
A96: Homogeineidade: O cálculo da Homogeineidade entre vacinas é feito de acordo com a pactuação estabelecida no Plano Plurianual (PPA) vigente no período 2024-2027.
A99: Observações:
A100: 1. Imunobiológicos que foram recebidos parcialmente pelo estado no mês de Novembro/2025, sendo distribuídos em quantidades reduzidas às regionais e municípios:
A101: SORO ANTIRRÁBICO HUMANO; IMUNOGLOBULINA ANTIRRÁBICA HUMANA.
A102: 2. Imunobiológicos indisponíveis no mês de Novembro/2025, não sendo possível a distribuição às regionais e municípios:
A103: IMUNOGLOBULINA HUMANA ANTI-HEPATITE B - 100 UI, VACINA TETRA VIRAL, IMUNOGLOBULINA HUMANA ANTIVARICELA (ZOSTER) – 125UI
A104: 3. Imunobiológicos distribuídos através de pautas: VACINA COVID-19 PFIZER PEDIÁTRICA MENOR QUE 5 ANOS,VACINA COVID-19 PFIZER ADULTO E ADOLESCENTE A PARTIR DE 12 ANOS, VACINA COVID-19 PFIZER PEDIÁTRICA, VACINA CONTRA DENGUE 1,2,3 E 4 (ATENUADA).

Sheet COVID-19 idoso -Procêdencia
A1: Regional | B1: Município | C1: População 60 anos + | D1: TOTAL DE DOSES APLICADAS COVID-19 | E1: COBERTURA COVID-19
A2: Metropolitana | B2: Afonso Cláudio | C2: 5905 | D2: 9 | E2: =(D2/C2) -> 0.001524132091
A3: Norte | B3: Água Doce do Norte | C3: 2357 | D3: 5 | E3: =(D3/C3) -> 0.002121340687
A4: Central | B4: Águia Branca | C4: 1775 | D4: 20 | E4: 0.01126760563
A5: Sul | B5: Alegre | C5: 5949 | D5: 217 | E5: 0.03647671878
A6: Sul | B6: Alfredo Chaves | C6: 3040 | D6: 62 | E6: 0.02039473684
A7: Central | B7: Alto Rio Novo | C7: 1417 | D7: 4 | E7: 0.002822865208
A8: Sul | B8: Anchieta | C8: 5080 | D8: 331 | E8: 0.06515748031
A9: Sul | B9: Apiacá | C9: 1536 | D9: 7 | E9: 0.004557291667
A10: Metropolitana | B10: Aracruz | C10: 13047 | D10: 883 | E10: 0.0676783935
A11: Sul | B11: Atilio Vivacqua | C11: 1843 | D11: 27 | E11: 0.01465002713
A12: Central | B12: Baixo Guandu | C12: 5706 | D12: 39 | E12: 0.00683491062
A13: Norte | B13: Barra de São Francisco | C13: 7226 | D13: 146 | E13: 0.02020481594
A14: Norte | B14: Boa Esperança | C14: 2317 | D14: 30 | E14: 0.0129477773
A15: Sul | B15: Bom Jesus do Norte | C15: 1991 | D15: 106 | E15: 0.0532395781
A16: Metropolitana | B16: Brejetuba | C16: 1637 | D16: 4 | E16: 0.002443494197
A17: Sul | B17: Cachoeiro de Itapemirim | C17: 32906 | D17: 1245 | E17: 0.03783504528
A18: Metropolitana | B18: Cariacica | C18: 54005 | D18: 4605 | E18: 0.08526988242
A19: Sul | B19: Castelo | C19: 7171 | D19: 182 | E19: 0.02538000279
A20: Central | B20: Colatina | C20: 21491 | D20: 1365 | E20: 0.06351495975
A21: Norte | B21: Conceição da Barra | C21: 4468 | D21: 91 | E21: 0.02036705461
A22: Metropolitana | B22: Conceição do Castelo | C22: 2176 | D22: 51 | E22: 0.0234375
A23: Sul | B23: Divino de São Lourenço | C23: 847 | D23: 14 | E23: 0.01652892562
A24: Metropolitana | B24: Domingos Martins | C24: 6358 | D24: 359 | E24: 0.05646429695
A25: Sul | B25: Dores do Rio Preto | C25: 1145 | D25: 44 | E25: 0.0384279476
A26: Norte | B26: Ecoporanga | C26: 4274 | D26: 113 | E26: 0.02643893308
A27: Metropolitana | B27: Fundão | C27: 3432 | D27: 185 | E27: 0.0539044289
A28: Central | B28: Governador Lindenberg | C28: 1987 | D28: 33 | E28: 0.01660795169
A29: Sul | B29: Guaçuí | C29: 5504 | D29: 189 | E29: 0.03433866279
A30: Metropolitana | B30: Guarapari | C30: 21755 | D30: 944 | E30: 0.0433923236
A31: Metropolitana | B31: Ibatiba | C31: 3852 | D31: 154 | E31: 0.03997923157
A32: Metropolitana | B32: Ibiraçu | C32: 2121 | D32: 44 | E32: 0.02074493164
A33: Sul | B33: Ibitirama | C33: 1400 | D33: 40 | E33: 0.02857142857
A34: Sul | B34: Iconha | C34: 2560 | D34: 118 | E34: 0.04609375
A35: Sul | B35: Irupi | C35: 2006 | D35: 42 | E35: 0.02093718843
A36: Metropolitana | B36: Itaguaçu | C36: 3214 | D36: 145 | E36: 0.04511512134
A37: Sul | B37: Itapemirim | C37: 6549 | D37: 120 | E37: 0.01832340815
A38: Metropolitana | B38: Itarana | C38: 2389 | D38: 25 | E38: 0.01046462955
A39: Sul | B39: Iúna | C39: 4417 | D39: 9 | E39: 0.002037582069
A40: Norte | B40: Jaguaré | C40: 3734 | D40: 117 | E40: 0.03133369041
A41: Sul | B41: Jerônimo Monteiro | C41: 2356 | D41: 116 | E41: 0.04923599321
A42: Metropolitana | B42: João Neiva | C42: 3012 | D42: 44 | E42: 0.01460823373
A43: Metropolitana | B43: Laranja da Terra | C43: 2471 | D43: 12 | E43: 0.004856333468
A44: Central | B44: Linhares | C44: 21740 | D44: 441 | E44: 0.02028518859
A45: Central | B45: Mantenópolis | C45: 2524 | D45: 0 | E45: 0
A46: Sul | B46: Marataízes | C46: 7611 | D46: 241 | E46: 0.03166469583
A47: Metropolitana | B47: Marechal Floriano | C47: 2879 | D47: 140 | E47: 0.04862799583
A48: Central | B48: Marilândia | C48: 2476 | D48: 38 | E48: 0.01534733441
A49: Sul | B49: Mimoso do Sul | C49: 5077 | D49: 34 | E49: 0.006696868229
A50: Norte | B50: Montanha | C50: 3304 | D50: 285 | E50: 0.0862590799
A51: Norte | B51: Mucurici | C51: 1090 | D51: 11 | E51: 0.01009174312
A52: Sul | B52: Muniz Freire | C52: 3309 | D52: 97 | E52: 0.02931399214
A53: Sul | B53: Muqui | C53: 2780 | D53: 75 | E53: 0.02697841727
A54: Norte | B54: Nova Venécia | C54: 8352 | D54: 170 | E54: 0.02035440613
A55: Central | B55: Pancas | C55: 3687 | D55: 56 | E55: 0.01518850014
A56: Norte | B56: Pedro Canário | C56: 3253 | D56: 81 | E56: 0.02490009222
A57: Norte | B57: Pinheiros | C57: 3762 | D57: 180 | E57: 0.04784688995
A58: Sul | B58: Piúma | C58: 3886 | D58: 155 | E58: 0.03988677303
A59: Norte | B59: Ponto Belo | C59: 1330 | D59: 30 | E59: 0.02255639098
A60: Sul | B60: Presidente Kennedy | C60: 2214 | D60: 8 | E60: 0.003613369467
A61: Central | B61: Rio Bananal | C61: 3071 | D61: 36 | E61: 0.01172256594
A62: Sul | B62: Rio Novo do Sul | C62: 2232 | D62: 20 | E62: 0.008960573477
A63: Metropolitana | B63: Santa Leopoldina | C63: 2634 | D63: 15 | E63: 0.00569476082
A64: Metropolitana | B64: Santa Maria de Jetibá | C64: 5552 | D64: 78 | E64: 0.01404899135
A65: Metropolitana | B65: Santa Teresa | C65: 4767 | D65: 101 | E65: 0.02118732956
A66: Central | B66: São Domingos do Norte | C66: 1520 | D66: 18 | E66: 0.01184210526
A67: Central | B67: São Gabriel da Palha | C67: 5456 | D67: 21 | E67: =(D67/C67) -> 0.003848973607
A68: Sul | B68: São José do Calçado | C68: 2456 | D68: 44 | E68: 0.01791530945
A69: Norte | B69: São Mateus | C69: 17649 | D69: 1372 | E69: 0.07773811547
A70: Central | B70: São Roque do Canaã | C70: 2370 | D70: 13 | E70: 0.005485232068
A71: Metropolitana | B71: Serra | C71: 66481 | D71: 5146 | E71: 0.07740557453
A72: Central | B72: Sooretama | C72: 3097 | D72: 79 | E72: 0.02550855667
A73: Sul | B73: Vargem Alta | C73: 3365 | D73: 70 | E73: 0.02080237741
A74: Metropolitana | B74: Venda Nova do Imigrante | C74: 3766 | D74: 147 | E74: 0.03903345725
A75: Metropolitana | B75: Viana | C75: 9758 | D75: 591 | E75: 0.06056568969
A76: Norte | B76: Vila Pavão | C76: 1510 | D76: 136 | E76: 0.09006622517
A77: Central | B77: Vila Valério | C77: 2160 | D77: 18 | E77: 0.008333333333
A78: Metropolitana | B78: Vila Velha | C78: 81049 | D78: 5491 | E78: 0.06774913941
A79: Metropolitana | B79: Vitória | C79: 64805 | D79: 4578 | E79: 0.07064269732
B81: Total Norte | C81: =SUMIF($A$2:$A$79,"Norte",C$2:C$79) -> 64626 | D81: =SUMIF($A$2:$A$79,"Norte",D$2:D$79) -> 2767 | E81: =D81/C81 -> 0.04281558506
B82: Total Central | C82: =SUMIF($A$2:$A$79,"Central",C$2:C$79) -> 80477 | D82: =SUMIF($A$2:$A$79,"Central",D$2:D$79) -> 2181 | E82: =D82/C82 -> 0.02710091082
B83: Total Metropolitana | C83: =SUMIF($A$2:$A$79,"Metropolitana",C$2:C$79) -> 367065 | D83: =SUMIF($A$2:$A$79,"Metropolitana",D$2:D$79) -> 23751 | E83: 0.06470516121
B84: Total Sul | C84: =SUMIF($A$2:$A$79,"sul",C$2:C$79) -> 119230 | D84: =SUMIF($A$2:$A$79,"sul",D$2:D$79) -> 3613 | E84: 0.03030277615
B85: Total Espírito Santo | C85: =SUM(C2:C79) -> 631398 | D85: =SUM(D2:D79) -> 32312 | E85: 0.0511753284
B86: HOMOGENEIDADE ENTRE MUNICÍPIOS | E86: =COUNTIF(E2:E79,">=0,90")/78 -> 0
A90: Cobertura Vacinal Covid19 dos Idosos de Novembro de 2025
A91: Vacina Covid-19-Recombinante, Serum/Zalika>, Vacina Covid-19-RNAm, Moderna (Spikevax), Vacina Covid-19-RNAm, Pfizer (Comirnaty)
A92: Período analisado: últimos 6 meses
A93: Fonte: Vacina e Confia, em 22 de Dezembro de 2025.**<https://vacinaeconfia.saude.es.gov.br/>
A94: Faixa Etária: 60+
A95: Cobertura Calculada por município de procedência da vacinação
A96: Método de Cálculo Simples
A97: Homogeineidade: O cálculo da Homogeineidade entre vacinas é feito de acordo com a pactuação estabelecida no Plano Plurianual (PPA) vigente no período 2024-2027.
A101: Observações:
A102: 1. Imunobiológicos que foram recebidos parcialmente pelo estado no mês de Novembro/2025, sendo distribuídos em quantidades reduzidas às regionais e municípios:
A103: SORO ANTIRRÁBICO HUMANO; IMUNOGLOBULINA ANTIRRÁBICA HUMANA.
A104: 2. Imunobiológicos indisponíveis no mês de Novembro/2025, não sendo possível a distribuição às regionais e municípios:
A105: IMUNOGLOBULINA HUMANA ANTI-HEPATITE B - 100 UI, VACINA TETRA VIRAL, IMUNOGLOBULINA HUMANA ANTIVARICELA (ZOSTER) – 125UI
A106: 3. Imunobiológicos distribuídos através de pautas: VACINA COVID-19 PFIZER PEDIÁTRICA MENOR QUE 5 ANOS,VACINA COVID-19 PFIZER ADULTO E ADOLESCENTE A PARTIR DE 12 ANOS, VACINA COVID-19 PFIZER PEDIÁTRICA, VACINA CONTRA DENGUE 1,2,3 E 4 (ATENUADA).

Sheet COVID-19 idoso -Residência
A1: Regional | B1: Município | C1: População 60 anos + | D1: TOTAL DE DOSES APLICADAS COVID-19 | E1: COBERTURA COVID-19
A2: Metropolitana | B2: Afonso Cláudio | C2: 5905 | D2: 22 | E2: =(D2/C2) -> 0.003725656224
A3: Norte | B3: Água Doce do Norte | C3: 2357 | D3: 12 | E3: =(D3/C3) -> 0.00509121765
A4: Central | B4: Águia Branca | C4: 1775 | D4: 18 | E4: 0.01014084507
A5: Sul | B5: Alegre | C5: 5949 | D5: 214 | E5: 0.03597243234
A6: Sul | B6: Alfredo Chaves | C6: 3040 | D6: 64 | E6: 0.02105263158
A7: Central | B7: Alto Rio Novo | C7: 1417 | D7: 7 | E7: 0.004940014114
A8: Sul | B8: Anchieta | C8: 5080 | D8: 308 | E8: 0.06062992126
A9: Sul | B9: Apiacá | C9: 1536 | D9: 8 | E9: 0.005208333333
A10: Metropolitana | B10: Aracruz | C10: 13047 | D10: 789 | E10: 0.06047367211
A11: Sul | B11: Atilio Vivacqua | C11: 1843 | D11: 37 | E11: 0.0200759631
A12: Central | B12: Baixo Guandu | C12: 5706 | D12: 46 | E12: 0.00806168945
A13: Norte | B13: Barra de São Francisco | C13: 7226 | D13: 164 | E13: 0.02269582065
A14: Norte | B14: Boa Esperança | C14: 2317 | D14: 30 | E14: 0.0129477773
A15: Sul | B15: Bom Jesus do Norte | C15: 1991 | D15: 99 | E15: 0.04972375691
A16: Metropolitana | B16: Brejetuba | C16: 1637 | D16: 13 | E16: 0.007941356139
A17: Sul | B17: Cachoeiro de Itapemirim | C17: 32906 | D17: 1251 | E17: 0.03801738285
A18: Metropolitana | B18: Cariacica | C18: 54005 | D18: 4484 | E18: 0.08302934913
A19: Sul | B19: Castelo | C19: 7171 | D19: 199 | E19: 0.02775066239
A20: Central | B20: Colatina | C20: 21491 | D20: 1371 | E20: 0.06379414639
A21: Norte | B21: Conceição da Barra | C21: 4468 | D21: 95 | E21: 0.02126230976
A22: Metropolitana | B22: Conceição do Castelo | C22: 2176 | D22: 50 | E22: 0.02297794118
A23: Sul | B23: Divino de São Lourenço | C23: 847 | D23: 12 | E23: 0.01416765053
A24: Metropolitana | B24: Domingos Martins | C24: 6358 | D24: 331 | E24: 0.05206039635
A25: Sul | B25: Dores do Rio Preto | C25: 1145 | D25: 37 | E25: 0.03231441048
A26: Norte | B26: Ecoporanga | C26: 4274 | D26: 115 | E26: 0.0269068788
A27: Metropolitana | B27: Fundão | C27: 3432 | D27: 128 | E27: 0.0372960373
A28: Central | B28: Governador Lindenberg | C28: 1987 | D28: 41 | E28: 0.02063412179
A29: Sul | B29: Guaçuí | C29: 5504 | D29: 191 | E29: 0.03470203488
A30: Metropolitana | B30: Guarapari | C30: 21755 | D30: 808 | E30: 0.03714088715
A31: Metropolitana | B31: Ibatiba | C31: 3852 | D31: 129 | E31: 0.03348909657
A32: Metropolitana | B32: Ibiraçu | C32: 2121 | D32: 49 | E32: 0.02310231023
A33: Sul | B33: Ibitirama | C33: 1400 | D33: 44 | E33: 0.03142857143
A34: Sul | B34: Iconha | C34: 2560 | D34: 110 | E34: 0.04296875
A35: Sul | B35: Irupi | C35: 2006 | D35: 32 | E35: 0.01595214357
A36: Metropolitana | B36: Itaguaçu | C36: 3214 | D36: 127 | E36: 0.03951462352
A37: Sul | B37: Itapemirim | C37: 6549 | D37: 122 | E37: 0.01862879829
A38: Metropolitana | B38: Itarana | C38: 2389 | D38: 33 | E38: 0.01381331101
A39: Sul | B39: Iúna | C39: 4417 | D39: 31 | E39: 0.007018338239
A40: Norte | B40: Jaguaré | C40: 3734 | D40: 130 | E40: 0.03481521157
A41: Sul | B41: Jerônimo Monteiro | C41: 2356 | D41: 108 | E41: 0.04584040747
A42: Metropolitana | B42: João Neiva | C42: 3012 | D42: 58 | E42: 0.0192563081
A43: Metropolitana | B43: Laranja da Terra | C43: 2471 | D43: 24 | E43: 0.009712666936
A44: Central | B44: Linhares | C44: 21740 | D44: 449 | E44: 0.02065317387
A45: Central | B45: Mantenópolis | C45: 2524 | D45: 3 | E45: 0.00118858954
A46: Sul | B46: Marataízes | C46: 7611 | D46: 195 | E46: 0.02562081198
A47: Metropolitana | B47: Marechal Floriano | C47: 2879 | D47: 132 | E47: 0.04584925321
A48: Central | B48: Marilândia | C48: 2476 | D48: 37 | E48: 0.01494345719
A49: Sul | B49: Mimoso do Sul | C49: 5077 | D49: 54 | E49: 0.01063620248
A50: Norte | B50: Montanha | C50: 3304 | D50: 287 | E50: 0.08686440678
A51: Norte | B51: Mucurici | C51: 1090 | D51: 12 | E51: 0.01100917431
A52: Sul | B52: Muniz Freire | C52: 3309 | D52: 88 | E52: 0.0265941372
A53: Sul | B53: Muqui | C53: 2780 | D53: 57 | E53: 0.02050359712
A54: Norte | B54: Nova Venécia | C54: 8352 | D54: 213 | E54: 0.02550287356
A55: Central | B55: Pancas | C55: 3687 | D55: 59 | E55: 0.01600216979
A56: Norte | B56: Pedro Canário | C56: 3253 | D56: 91 | E56: 0.02797417768
A57: Norte | B57: Pinheiros | C57: 3762 | D57: 198 | E57: 0.05263157895
A58: Sul | B58: Piúma | C58: 3886 | D58: 142 | E58: 0.03654143078
A59: Norte | B59: Ponto Belo | C59: 1330 | D59: 32 | E59: 0.02406015038
A60: Sul | B60: Presidente Kennedy | C60: 2214 | D60: 13 | E60: 0.005871725384
A61: Central | B61: Rio Bananal | C61: 3071 | D61: 43 | E61: 0.01400195376
A62: Sul | B62: Rio Novo do Sul | C62: 2232 | D62: 26 | E62: 0.01164874552
A63: Metropolitana | B63: Santa Leopoldina | C63: 2634 | D63: 37 | E63: 0.01404707669
A64: Metropolitana | B64: Santa Maria de Jetibá | C64: 5552 | D64: 75 | E64: 0.01350864553
A65: Metropolitana | B65: Santa Teresa | C65: 4767 | D65: 112 | E65: 0.0234948605
A66: Central | B66: São Domingos do Norte | C66: 1520 | D66: 16 | E66: 0.01052631579
A67: Central | B67: São Gabriel da Palha | C67: 5456 | D67: 45 | E67: =(D67/C67) -> 0.008247800587
A68: Sul | B68: São José do Calçado | C68: 2456 | D68: 38 | E68: 0.0154723127
A69: Norte | B69: São Mateus | C69: 17649 | D69: 1153 | E69: 0.06532948042
A70: Central | B70: São Roque do Canaã | C70: 2370 | D70: 15 | E70: 0.006329113924
A71: Metropolitana | B71: Serra | C71: 66481 | D71: 4829 | E71: 0.07263729487
A72: Central | B72: Sooretama | C72: 3097 | D72: 78 | E72: 0.02518566355
A73: Sul | B73: Vargem Alta | C73: 3365 | D73: 71 | E73: 0.02109955423
A74: Metropolitana | B74: Venda Nova do Imigrante | C74: 3766 | D74: 147 | E74: 0.03903345725
A75: Metropolitana | B75: Viana | C75: 9758 | D75: 565 | E75: 0.05790120926
A76: Norte | B76: Vila Pavão | C76: 1510 | D76: 116 | E76: 0.07682119205
A77: Central | B77: Vila Valério | C77: 2160 | D77: 17 | E77: 0.00787037037
A78: Metropolitana | B78: Vila Velha | C78: 81049 | D78: 5159 | E78: 0.06365285198
A79: Metropolitana | B79: Vitória | C79: 64805 | D79: 4712 | E79: 0.07271043901
B81: Total Norte | C81: =SUMIF($A$2:$A$79,"Norte",C$2:C$79) -> 64626 | D81: =SUMIF($A$2:$A$79,"Norte",D$2:D$79) -> 2648 | E81: =D81/C81 -> 0.0409742209
B82: Total Central | C82: =SUMIF($A$2:$A$79,"Central",C$2:C$79) -> 80477 | D82: =SUMIF($A$2:$A$79,"Central",D$2:D$79) -> 2245 | E82: =D82/C82 -> 0.02789616909
B83: Total Metropolitana | C83: =SUMIF($A$2:$A$79,"Metropolitana",C$2:C$79) -> 367065 | D83: =SUMIF($A$2:$A$79,"Metropolitana",D$2:D$79) -> 22813 | E83: 0.06214975549
B84: Total Sul | C84: =SUMIF($A$2:$A$79,"sul",C$2:C$79) -> 119230 | D84: =SUMIF($A$2:$A$79,"Sul",D$2:D$79) -> 3551 | E84: 0.02978277279
B85: Total Espírito Santo | C85: =SUM(C2:C79) -> 631398 | D85: =SUM(D81:D84) -> 31257 | E85: 0.04950443302
B86: HOMOGENEIDADE ENTRE MUNICÍPIOS | E86: =COUNTIF(E2:E79,">=0,90")/78 -> 0
A90: Cobertura Vacinal Covid19 dos Idosos de Novembro de 2025
A91: Vacina Covid-19-Recombinante, Serum/Zalika>, Vacina Covid-19-RNAm, Moderna (Spikevax), Vacina Covid-19-RNAm, Pfizer (Comirnaty)
A92: Período analisado: últimos 6 meses
A93: Fonte: Vacina e Confia, em 22 de Dezembro de 2025.**<https://vacinaeconfia.saude.es.gov.br/>
A94: Faixa Etária: 60+
A95: Cobertura Calculada por município de residência do cidadão (no Vacina e Confia, a origem da informação é o endereço que consta no cadastro do cidadão preenchido manualmente por meio do autocadastro ou pelo cadastro realizado por um profissional de saúde no momento do atendimento).
A96: Método de Cálculo Simples
A97: Homogeineidade: O cálculo da Homogeineidade entre vacinas é feito de acordo com a pactuação estabelecida no Plano Plurianual (PPA) vigente no período 2024-2027.
A101: Observações:
A102: 1. Imunobiológicos que foram recebidos parcialmente pelo estado no mês de Novembro/2025, sendo distribuídos em quantidades reduzidas às regionais e municípios:
A103: SORO ANTIRRÁBICO HUMANO; IMUNOGLOBULINA ANTIRRÁBICA HUMANA.
A104: 2. Imunobiológicos indisponíveis no mês de Novembro/2025, não sendo possível a distribuição às regionais e municípios:
A105: IMUNOGLOBULINA HUMANA ANTI-HEPATITE B - 100 UI, VACINA TETRA VIRAL, IMUNOGLOBULINA HUMANA ANTIVARICELA (ZOSTER) – 125UI
A106: 3. Imunobiológicos distribuídos através de pautas: VACINA COVID-19 PFIZER PEDIÁTRICA MENOR QUE 5 ANOS,VACINA COVID-19 PFIZER ADULTO E ADOLESCENTE A PARTIR DE 12 ANOS, VACINA COVID-19 PFIZER PEDIÁTRICA, VACINA CONTRA DENGUE 1,2,3 E 4 (ATENUADA).

Sheet Cobert. Meningo C Adolescentes
A1: Regional | B1: Município | C1: População 11 a 14 anos | D1: Doses Acumuladas | E1: Série Histórica %
A2: Metropolitana | B2: Afonso Cláudio | C2: 1627 | D2: 1233 | E2: 77.35257215
A3: Norte | B3: Água Doce do Norte | C3: 664 | D3: 566 | E3: 86.92091119
A4: Central | B4: Águia Branca | C4: 504 | D4: 484 | E4: 97.62985376
A5: Sul | B5: Alegre | C5: 1351 | D5: 1250 | E5: 94.60737938
A6: Sul | B6: Alfredo Chaves | C6: 632 | D6: 492 | E6: 79.36550612
A7: Central | B7: Alto Rio Novo | C7: 412 | D7: 442 | E7: 109.3157461
A8: Sul | B8: Anchieta | C8: 1512 | D8: 1589 | E8: 107.3951
A9: Sul | B9: Apiacá | C9: 364 | D9: 169 | E9: 47.29477612
A10: Metropolitana | B10: Aracruz | C10: 5398 | D10: 5790 | E10: 109.532893
A11: Sul | B11: Atilio Vivacqua | C11: 512 | D11: 563 | E11: 112.2259136
A12: Central | B12: Baixo Guandu | C12: 1522 | D12: 1336 | E12: 89.62933974
A13: Norte | B13: Barra de São Francisco | C13: 2306 | D13: 1961 | E13: 86.80832227
A14: Norte | B14: Boa Esperança | C14: 713 | D14: 546 | E14: 78.27021861
A15: Sul | B15: Bom Jesus do Norte | C15: 521 | D15: 468 | E15: 91.46579805
A16: Metropolitana | B16: Brejetuba | C16: 753 | D16: 827 | E16: 112.2370504
A17: Sul | B17: Cachoeiro de Itapemirim | C17: 9041 | D17: 8803 | E17: 99.48766246
A18: Metropolitana | B18: Cariacica | C18: 19769 | D18: 19092 | E18: 98.61782494
A19: Sul | B19: Castelo | C19: 1588 | D19: 1579 | E19: 101.5706245
A20: Central | B20: Colatina | C20: 5562 | D20: 4402 | E20: 80.87451773
A21: Norte | B21: Conceição da Barra | C21: 1742 | D21: 1443 | E21: 84.60861917
A22: Metropolitana | B22: Conceição do Castelo | C22: 592 | D22: 611 | E22: 105.3751078
A23: Sul | B23: Divino de São Lourenço | C23: 272 | D23: 234 | E23: 87.85982478
A24: Metropolitana | B24: Domingos Martins | C24: 1722 | D24: 1761 | E24: 104.5052173
A25: Sul | B25: Dores do Rio Preto | C25: 381 | D25: 365 | E25: 97.96466115
A26: Norte | B26: Ecoporanga | C26: 1137 | D26: 830 | E26: 74.40053784
A27: Metropolitana | B27: Fundão | C27: 954 | D27: 1078 | E27: 115.396967
A28: Central | B28: Governador Lindenberg | C28: 550 | D28: 543 | E28: 100.6642979
A29: Sul | B29: Guaçuí | C29: 1508 | D29: 1288 | E29: 87.35164463
A30: Metropolitana | B30: Guarapari | C30: 6549 | D30: 6367 | E30: 99.24144022
A31: Metropolitana | B31: Ibatiba | C31: 1388 | D31: 1259 | E31: 92.62460916
A32: Metropolitana | B32: Ibiraçu | C32: 574 | D32: 600 | E32: 107.0154578
A33: Sul | B33: Ibitirama | C33: 573 | D33: 597 | E33: 106.575424
A34: Sul | B34: Iconha | C34: 508 | D34: 485 | E34: 97.32441472
A35: Sul | B35: Irupi | C35: 753 | D35: 781 | E35: 105.8265583
A36: Metropolitana | B36: Itaguaçu | C36: 616 | D36: 486 | E36: 80.73089701
A37: Sul | B37: Itapemirim | C37: 2337 | D37: 2149 | E37: 94.0344224
A38: Metropolitana | B38: Itarana | C38: 428 | D38: 402 | E38: 95.92364287
A39: Sul | B39: Iúna | C39: 1564 | D39: 1352 | E39: 88.19308545
A40: Norte | B40: Jaguaré | C40: 1794 | D40: 1645 | E40: 93.54120267
A41: Sul | B41: Jerônimo Monteiro | C41: 563 | D41: 566 | E41: 102.644703
A42: Metropolitana | B42: João Neiva | C42: 659 | D42: 678 | E42: 105.1978278
A43: Metropolitana | B43: Laranja da Terra | C43: 488 | D43: 454 | E43: 95.36145633
A44: Central | B44: Linhares | C44: 9326 | D44: 9736 | E44: 106.6131314
A45: Central | B45: Mantenópolis | C45: 710 | D45: 750 | E45: 107.9654511
A46: Sul | B46: Marataízes | C46: 2239 | D46: 2540 | E46: 115.7658855
A47: Metropolitana | B47: Marechal Floriano | C47: 922 | D47: 962 | E47: 106.4257398
A48: Central | B48: Marilândia | C48: 550 | D48: 494 | E48: 91.52385364
A49: Sul | B49: Mimoso do Sul | C49: 1159 | D49: 890 | E49: 78.41985461
A50: Norte | B50: Montanha | C50: 1050 | D50: 1042 | E50: 101.4770329
A51: Norte | B51: Mucurici | C51: 253 | D51: 217 | E51: 87.55884331
A52: Sul | B52: Muniz Freire | C52: 924 | D52: 936 | E52: 103.2352941
A53: Sul | B53: Muqui | C53: 662 | D53: 626 | E53: 96.54286081
A54: Norte | B54: Nova Venécia | C54: 2425 | D54: 2593 | E54: 109.0335693
A55: Central | B55: Pancas | C55: 946 | D55: 812 | E55: 87.59439051
A56: Norte | B56: Pedro Canário | C56: 1253 | D56: 1240 | E56: 101.100693
A57: Norte | B57: Pinheiros | C57: 1417 | D57: 1097 | E57: 79.13911266
A58: Sul | B58: Piúma | C58: 1086 | D58: 1034 | E58: 97.13480507
A59: Norte | B59: Ponto Belo | C59: 396 | D59: 353 | E59: 91.0771877
A60: Sul | B60: Presidente Kennedy | C60: 730 | D60: 772 | E60: 108.0223881
A61: Central | B61: Rio Bananal | C61: 990 | D61: 1101 | E61: 113.7298786
A62: Sul | B62: Rio Novo do Sul | C62: 522 | D62: 452 | E62: 88.46843908
A63: Metropolitana | B63: Santa Leopoldina | C63: 635 | D63: 384 | E63: 61.62899559
A64: Metropolitana | B64: Santa Maria de Jetibá | C64: 2131 | D64: 2072 | E64: 99.57549059
A65: Metropolitana | B65: Santa Teresa | C65: 1054 | D65: 1133 | E65: 109.8400388
A66: Central | B66: São Domingos do Norte | C66: 410 | D66: 369 | E66: 91.94352159
A67: Central | B67: São Gabriel da Palha | C67: 1616 | D67: 1403 | E67: 88.54528242
A68: Sul | B68: São José do Calçado | C68: 552 | D68: 467 | E68: 86.20212275
A69: Norte | B69: São Mateus | C69: 6608 | D69: 5958 | E69: 92.07113698
A70: Central | B70: São Roque do Canaã | C70: 465 | D70: 486 | E70: 106.5010957
A71: Metropolitana | B71: Serra | C71: 29073 | D71: 24501 | E71: 86.11824666
A72: Central | B72: Sooretama | C72: 1715 | D72: 1779 | E72: 105.8456046
A73: Sul | B73: Vargem Alta | C73: 1036 | D73: 973 | E73: 95.77557214
A74: Metropolitana | B74: Venda Nova do Imigrante | C74: 1122 | D74: 1144 | E74: 104.1894353
A75: Metropolitana | B75: Viana | C75: 3978 | D75: 4284 | E75: 110.0483795
A76: Norte | B76: Vila Pavão | C76: 458 | D76: 518 | E76: 115.6895589
A77: Central | B77: Vila Valério | C77: 678 | D77: 819 | E77: 123.0961924
A78: Metropolitana | B78: Vila Velha | C78: 22007 | D78: 20840 | E78: 96.72141926
A79: Metropolitana | B79: Vitória | C79: 14287 | D79: 13689 | E79: 97.88286329
A80: Total | C80: =SUM(C2:C79) -> 197788 | D80: 186032 | E80: 96.06461041
A83: Meningocócica Conjudada C e Meningocócica ACWY
A84: Método de Cálculo por COORTE
A85: Período avaliado: 2016-2025
A86: Faixa Etária: 11 a 14 anos.
A87: Fonte: http://tabnet.datasus.gov.br/ e https://www.vacinaeconfia.es.gov.br
A88: *Dados parciais:
A89: Dados de janeiro/2022 a abril/2022 extraídos do TABNET em 27/05/2025
A90: Dados de Maio/2022 a Novembro/2025 extraídos do Vacina e Confia em 22/12/2025
A91: Cobertura Calculada por município de procedência da vacinação
A93: Observações:
A94: 1. Imunobiológicos que foram recebidos parcialmente pelo estado no mês de Novembro/2025, sendo distribuídos em quantidades reduzidas às regionais e municípios:
A95: SORO ANTIRRÁBICO HUMANO; IMUNOGLOBULINA ANTIRRÁBICA HUMANA.
A96: 2. Imunobiológicos indisponíveis no mês de Novembro/2025, não sendo possível a distribuição às regionais e municípios:
A97: IMUNOGLOBULINA HUMANA ANTI-HEPATITE B - 100 UI, VACINA TETRA VIRAL, IMUNOGLOBULINA HUMANA ANTIVARICELA (ZOSTER) – 125UI
A98: 3. Imunobiológicos distribuídos através de pautas: VACINA COVID-19 PFIZER PEDIÁTRICA MENOR QUE 5 ANOS,VACINA COVID-19 PFIZER ADULTO E ADOLESCENTE A PARTIR DE 12 ANOS, VACINA COVID-19 PFIZER PEDIÁTRICA, VACINA CONTRA DENGUE 1,2,3 E 4 (ATENUADA).

Sheet Cobert. HPV
A1: REGIONAL | B1: MUNICÍPIO | C1: População Feminina 9 a 14 anos | D1: População Masculina 9 a 14 anos | E1: Doses Acumuladas Feminino | F1: HPV Feminino % | G1: Doses Acumuladas Masculino | H1: HPV Masculino %
A2: Metropolitana | B2: Afonso Cláudio | C2: 15277 | D2: 15407 | E2: 1053 | F2: 91.69811321 | G2: 1144 | H2: 94.91150442
A3: Norte | B3: Água Doce do Norte | C3: 4781 | D3: 4930 | E3: 442 | F3: 97.80564263 | G3: 456 | H3: 94.49145225
A4: Central | B4: Águia Branca | C4: 5990 | D4: 6052 | E4: 294 | F4: 80.27303754 | G4: 365 | H4: 92.93443666
A5: Sul | B5: Alegre | C5: 14870 | D5: 14307 | E5: 942 | F5: 92.17972764 | G5: 826 | H5: 83.18227593
A6: Sul | B6: Alfredo Chaves | C6: 6823 | D6: 7013 | E6: 398 | F6: 87.64910993 | G6: 329 | H6: 66.26384693
A7: Central | B7: Alto Rio Novo | C7: 3733 | D7: 3701 | E7: 320 | F7: 109.934154 | G7: 328 | H7: 108.0428219
A8: Sul | B8: Anchieta | C8: 15163 | D8: 14821 | E8: 1209 | F8: 106.9201857 | G8: 1201 | H8: 104.8221689
A9: Sul | B9: Apiacá | C9: 3725 | D9: 3498 | E9: 221 | F9: 82.43705316 | G9: 186 | H9: 72.0464816
A10: Metropolitana | B10: Aracruz | C10: 47872 | D10: 46893 | E10: 4301 | F10: 110.3079784 | G10: 4411 | H10: 106.016664
A11: Sul | B11: Atílio Vivácqua | C11: 5285 | D11: 5255 | E11: 454 | F11: 117.3884939 | G11: 433 | H11: 109.136736
A12: Central | B12: Baixo Guandu | C12: 15696 | D12: 14978 | E12: 1059 | F12: 92.69822744 | G12: 1082 | H12: 96.67907669
A13: Norte | B13: Barra de São Francisco | C13: 21504 | D13: 20994 | E13: 1529 | F13: 91.10228401 | G13: 1478 | H13: 84.42899986
A14: Norte | B14: Boa Esperança | C14: 6846 | D14: 6762 | E14: 488 | F14: 91.68623767 | G14: 347 | H14: 69.00894929
A15: Sul | B15: Bom Jesus do Norte | C15: 5417 | D15: 4837 | E15: 405 | F15: 99.9794281 | G15: 352 | H15: 99.71671388
A16: Metropolitana | B16: Brejetuba | C16: 6331 | D16: 6654 | E16: 574 | F16: 101.6678967 | G16: 625 | H16: 111.7568172
A17: Sul | B17: Cachoeiro de Itapemirim | C17: 95939 | D17: 89847 | E17: 6507 | F17: 98.70307167 | G17: 6702 | H17: 98.23738503
A18: Metropolitana | B18: Cariacica | C18: 183096 | D18: 170395 | E18: 14282 | F18: 99.69228621 | G18: 13904 | H18: 91.88120557
A19: Sul | B19: Castelo | C19: 18706 | D19: 18224 | E19: 1196 | F19: 100.0139373 | G19: 1208 | H19: 103.0057557
A20: Central | B20: Colatina | C20: 61911 | D20: 58122 | E20: 3016 | F20: 75.25575979 | G20: 3319 | H20: 78.35992681
A21: Norte | B21: Conceição da Barra | C21: 14062 | D21: 13396 | E21: 1172 | F21: 92.20481217 | G21: 1188 | H21: 94.48568399
A22: Metropolitana | B22: Conceição do Castelo | C22: 5964 | D22: 5973 | E22: 473 | F22: 107.1145499 | G22: 511 | H22: 111.9386637
A23: Sul | B23: Divino de São Lourenço | C23: 2463 | D23: 2620 | E23: 165 | F23: 91.87935035 | G23: 190 | H23: 90.04739336
A24: Metropolitana | B24: Domingos Martins | C24: 17546 | D24: 17870 | E24: 1413 | F24: 114.3126812 | G24: 1368 | H24: 103.1674208
A25: Sul | B25: Dores do Rio Preto | C25: 3288 | D25: 3308 | E25: 284 | F25: 115.5254237 | G25: 258 | H25: 88.23026503
A26: Norte | B26: Ecoporanga | C26: 11077 | D26: 10915 | E26: 748 | F26: 97.21650601 | G26: 701 | H26: 82.70573198
A27: Metropolitana | B27: Fundão | C27: 9113 | D27: 8901 | E27: 633 | F27: 87.1001032 | G27: 801 | H27: 117.7364037
A28: Central | B28: Governador Lindenberg | C28: 5347 | D28: 5662 | E28: 424 | F28: 114.9570718 | G28: 437 | H28: 101.2746234
A29: Sul | B29: Guaçuí | C29: 15088 | D29: 14270 | E29: 1111 | F29: 101.6003658 | G29: 1000 | H29: 87.15229864
A30: Metropolitana | B30: Guarapari | C30: 63971 | D30: 60685 | E30: 4449 | F30: 93.56958831 | G30: 4669 | H30: 95.24036173
A31: Metropolitana | B31: Ibatiba | C31: 12686 | D31: 12694 | E31: 991 | F31: 107.0194384 | G31: 1098 | H31: 100.3350594
A32: Metropolitana | B32: Ibiraçu | C32: 5916 | D32: 5807 | E32: 450 | F32: 104.9766719 | G32: 459 | H32: 102.5698324
A33: Sul | B33: Ibitirama | C33: 4693 | D33: 4827 | E33: 286 | F33: 70.38556194 | G33: 391 | H33: 90.87739686
A34: Sul | B34: Iconha | C34: 6183 | D34: 6143 | E34: 418 | F34: 110.1207464 | G34: 389 | H34: 100.4519045
A35: Sul | B35: Irupi | C35: 6771 | D35: 6939 | E35: 437 | F35: 79.32234155 | G35: 589 | H35: 105.3667263
A36: Metropolitana | B36: Itaguaçu | C36: 6840 | D36: 6749 | E36: 432 | F36: 99.15837796 | G36: 351 | H36: 80.0912721
A37: Sul | B37: Itapemirim | C37: 20328 | D37: 19504 | E37: 1482 | F37: 89.9681287 | G37: 1578 | H37: 90.00427777
A38: Metropolitana | B38: Itarana | C38: 5336 | D38: 5261 | E38: 324 | F38: 112.3374747 | G38: 330 | H38: 95.23809524
A39: Sul | B39: Iúna | C39: 14480 | D39: 14110 | E39: 1072 | F39: 93.58358795 | G39: 1124 | H39: 97.505964
A40: Norte | B40: Jaguaré | C40: 14495 | D40: 14436 | E40: 1416 | F40: 109.8597013 | G40: 1384 | H40: 102.3416317
A41: Sul | B41: Jerônimo Monteiro | C41: 5904 | D41: 5671 | E41: 433 | F41: 105.4383117 | G41: 428 | H41: 106.8886576
A42: Metropolitana | B42: João Neiva | C42: 7265 | D42: 6814 | E42: 513 | F42: 102.6684456 | G42: 557 | H42: 123.4121123
A43: Metropolitana | B43: Laranja da Terra | C43: 5493 | D43: 5601 | E43: 333 | F43: 100.5030181 | G43: 359 | H43: 89.69394129
A44: Central | B44: Linhares | C44: 84307 | D44: 82479 | E44: 6653 | F44: 97.73283714 | G44: 7227 | H44: 103.2637558
A45: Central | B45: Mantenópolis | C45: 6477 | D45: 6293 | E45: 494 | F45: 92.88624256 | G45: 442 | H45: 89.15784165
A46: Sul | B46: Marataízes | C46: 21396 | D46: 20533 | E46: 1784 | F46: 111.4709711 | G46: 1914 | H46: 113.4782609
A47: Metropolitana | B47: Marechal Floriano | C47: 8846 | D47: 8795 | E47: 700 | F47: 110.439127 | G47: 725 | H47: 105.3141266
A48: Central | B48: Marilândia | C48: 6263 | D48: 6124 | E48: 429 | F48: 103.2490975 | G48: 467 | H48: 124.2847638
A49: Sul | B49: Mimoso do Sul | C49: 12165 | D49: 12310 | E49: 692 | F49: 82.83291771 | G49: 662 | H49: 80.43742406
A50: Norte | B50: Montanha | C50: 9553 | D50: 9347 | E50: 792 | F50: 106.8345324 | G50: 803 | H50: 100.3540929
A51: Norte | B51: Mucurici | C51: 2718 | D51: 2748 | E51: 187 | F51: 115.9689922 | G51: 183 | H51: 94.85961123
A52: Sul | B52: Muniz Freire | C52: 8942 | D52: 9211 | E52: 700 | F52: 105.9535822 | G52: 745 | H52: 107.0915189
A53: Sul | B53: Muqui | C53: 6890 | D53: 6855 | E53: 473 | F53: 96.81050657 | G53: 480 | H53: 96.66051351
A54: Norte | B54: Nova Venécia | C54: 24772 | D54: 24293 | E54: 1810 | F54: 106.5228053 | G54: 1866 | H54: 98.14595661
A55: Central | B55: Pancas | C55: 9385 | D55: 9508 | E55: 666 | F55: 99.32885906 | G55: 687 | H55: 95.04265621
A56: Norte | B56: Pedro Canário | C56: 10884 | D56: 10638 | E56: 942 | F56: 105.1437076 | G56: 911 | H56: 96.76048858
A57: Norte | B57: Pinheiros | C57: 11985 | D57: 11930 | E57: 921 | F57: 90.78363726 | G57: 868 | H57: 82.12568004
A58: Sul | B58: Piúma | C58: 11401 | D58: 10899 | E58: 733 | F58: 89.24512987 | G58: 717 | H58: 82.95410721
A59: Norte | B59: Ponto Belo | C59: 3351 | D59: 3146 | E59: 308 | F59: 105.359179 | G59: 298 | H59: 110.4385423
A60: Sul | B60: Presidente Kennedy | C60: 6865 | D60: 6831 | E60: 536 | F60: 98.33358814 | G60: 568 | H60: 95.51569507
A61: Central | B61: Rio Bananal | C61: 9408 | D61: 9866 | E61: 882 | F61: 121.837228 | G61: 957 | H61: 124.7989567
A62: Sul | B62: Rio Novo do Sul | C62: 5467 | D62: 5602 | E62: 318 | F62: 87.36263736 | G62: 389 | H62: 94.36021831
A63: Metropolitana | B63: Santa Leopoldina | C63: 6229 | D63: 6877 | E63: 310 | F63: 69.99059266 | G63: 318 | H63: 65.04175899
A64: Metropolitana | B64: Santa Maria de Jetibá | C64: 20534 | D64: 21102 | E64: 1643 | F64: 109.4603598 | G64: 1650 | H64: 100.5127164
A65: Metropolitana | B65: Santa Teresa | C65: 11475 | D65: 11333 | E65: 816 | F65: 111.755307 | G65: 818 | H65: 105.9928733
A66: Central | B66: São Domingos do Norte | C66: 4092 | D66: 4497 | E66: 319 | F66: 108.9666951 | G66: 344 | H66: 112.8485511
A67: Central | B67: São Gabriel da Palha | C67: 16365 | D67: 15887 | E67: 1077 | F67: 90.78392807 | G67: 1132 | H67: 98.67073436
A68: Sul | B68: São José do Calçado | C68: 5498 | D68: 5380 | E68: 377 | F68: 93.87839801 | G68: 383 | H68: 93.73852743
A69: Norte | B69: São Mateus | C69: 62665 | D69: 61087 | E69: 4753 | F69: 98.4890608 | G69: 4561 | H69: 91.1820075
A70: Central | B70: São Roque do Canaã | C70: 5368 | D70: 5518 | E70: 383 | F70: 106.265896 | G70: 375 | H70: 115.7705171
A71: Metropolitana | B71: Serra | C71: 269243 | D71: 251410 | E71: 20030 | F71: 93.83307893 | G71: 17881 | H71: 80.73718986
A72: Central | B72: Sooretama | C72: 13209 | D72: 13293 | E72: 1190 | F72: 93.83624655 | G72: 1315 | H72: 103.9594176
A73: Sul | B73: Vargem Alta | C73: 9623 | D73: 9940 | E73: 714 | F73: 93.39005915 | G73: 750 | H73: 93.39005915
A74: Metropolitana | B74: Venda Nova do Imigrante | C74: 12129 | D74: 11702 | E74: 879 | F74: 113.8232438 | G74: 921 | H74: 110.7082039
A75: Metropolitana | B75: Viana | C75: 36243 | D75: 37180 | E75: 3253 | F75: 115.8407027 | G75: 3216 | H75: 105.2757925
A76: Norte | B76: Vila Pavão | C76: 4415 | D76: 4496 | E76: 351 | F76: 103.0332681 | G76: 339 | H76: 98.92996109
A77: Central | B77: Vila Valério | C77: 6650 | D77: 7078 | E77: 601 | F77: 133.9275766 | G77: 574 | H77: 106.3619518
A78: Metropolitana | B78: Vila Velha | C78: 242147 | D78: 225575 | E78: 16424 | F78: 102.8847057 | G78: 16043 | H78: 95.86781798
A79: Metropolitana | B79: Vitória | C79: 173415 | D79: 149454 | E79: 11225 | F79: 109.4614691 | G79: 11025 | H79: 101.4243879
A80: TOTAL | C80: 1963649 | D80: 1870063 | E80: 142514 | F80: 99.50890488 | G80: 141410 | H80: 94.45552755
A83: Vacina HPV Quadrivalente, Bivalente e Nonavalente
A84: Método de Cálculo por COORTE
A85: Período avaliado: 2013-2025
A86: Faixa Etária: 9 a 14 anos.
A87: Fonte: http://tabnet.datasus.gov.br/ e https://www.vacinaeconfia.es.gov.br
A88: *Dados parciais:
A89: Dados de janeiro/2013 a dezembro/2022 extraídos do TABNET em 04/09/2025
A90: Dados de Janeiro/2023 a Novembro/2025 extraídos do Vacina e Confia em 22/12/2025
A91: Cobertura Calculada por município de procedência da vacinação
A95: Observações:
A96: 1. Imunobiológicos que foram recebidos parcialmente pelo estado no mês de Novembro/2025, sendo distribuídos em quantidades reduzidas às regionais e municípios:
A97: SORO ANTIRRÁBICO HUMANO; IMUNOGLOBULINA ANTIRRÁBICA HUMANA.
A98: 2. Imunobiológicos indisponíveis no mês de Novembro/2025, não sendo possível a distribuição às regionais e municípios:
A99: IMUNOGLOBULINA HUMANA ANTI-HEPATITE B - 100 UI, VACINA TETRA VIRAL, IMUNOGLOBULINA HUMANA ANTIVARICELA (ZOSTER) – 125UI
A100: 3. Imunobiológicos distribuídos através de pautas: VACINA COVID-19 PFIZER PEDIÁTRICA MENOR QUE 5 ANOS,VACINA COVID-19 PFIZER ADULTO E ADOLESCENTE A PARTIR DE 12 ANOS, VACINA COVID-19 PFIZER PEDIÁTRICA, VACINA CONTRA DENGUE 1,2,3 E 4 (ATENUADA).

Sheet Cobert. Dengue
A1: REGIONAL | B1: MUNICÍPIO | C1: População 10 a 14 anos | D1: Doses Acumuladas D1 | E1: DENGUE -D1 % | F1: Doses Acumuladas D2 | G1: DENGUE - D2 %
A2: Metropolitana | B2: Afonso Cláudio | C2: 1987 | D2: 1391 | E2: 71.07818089 | F2: 895 | G2: 45.7332652
A3: Norte | B3: Água Doce do Norte | C3: 819 | D3: 438 | E3: 54.33681381 | F3: 233 | G3: 28.90520004
A4: Central | B4: Águia Branca | C4: 605 | D4: 305 | E4: 51.12445872 | F4: 184 | G4: 30.84229641
A5: Sul | B5: Alegre | C5: 1706 | D5: 1595 | E5: 95.14341105 | F5: 1040 | G5: 62.03708306
A6: Sul | B6: Alfredo Chaves | C6: 781 | D6: 281 | E6: 36.56077198 | F6: 141 | G6: 18.34544075
A7: Central | B7: Alto Rio Novo | C7: 503 | D7: 537 | E7: 108.3936081 | F7: 373 | G7: 75.2901598
A8: Sul | B8: Anchieta | C8: 1875 | D8: 1737 | E8: 94.15910015 | F8: 1119 | G8: 60.65862583
A9: Sul | B9: Apiacá | C9: 452 | D9: 115 | E9: 25.86206897 | F9: 48 | G9: 10.7946027
A10: Metropolitana | B10: Aracruz | C10: 6737 | D10: 6432 | E10: 97.08068675 | F10: 3975 | G10: 59.99622665
A11: Sul | B11: Atílio Vivácqua | C11: 646 | D11: 477 | E11: 75.13783145 | F11: 258 | G11: 40.64058808
A12: Central | B12: Baixo Guandu | C12: 1916 | D12: 1185 | E12: 62.92592265 | F12: 626 | G12: 33.24187981
A13: Norte | B13: Barra de São Francisco | C13: 2900 | D13: 833 | E13: 29.22294334 | F13: 204 | G13: 7.156639186
A14: Norte | B14: Boa Esperança | C14: 882 | D14: 260 | E14: 29.95679309 | F14: 114 | G14: 13.13490158
A15: Sul | B15: Bom Jesus do Norte | C15: 649 | D15: 392 | E15: 61.40992167 | F15: 139 | G15: 21.77545692
A16: Metropolitana | B16: Brejetuba | C16: 924 | D16: 871 | E16: 95.74058807 | F16: 595 | G16: 65.40258313
A17: Sul | B17: Cachoeiro de Itapemirim | C17: 11366 | D17: 7394 | E17: 66.18183446 | F17: 3863 | G17: 34.57674148
A18: Metropolitana | B18: Cariacica | C18: 24648 | D18: 16739 | E18: 69.05124494 | F18: 8959 | G18: 36.95741104
A19: Sul | B19: Castelo | C19: 1979 | D19: 1457 | E19: 74.8555037 | F19: 845 | G19: 43.41310956
A20: Central | B20: Colatina | C20: 6926 | D20: 3033 | E20: 44.52219015 | F20: 1431 | G20: 21.0060185
A21: Norte | B21: Conceição da Barra | C21: 2137 | D21: 1507 | E21: 71.62263852 | F21: 731 | G21: 34.74196998
A22: Metropolitana | B22: Conceição do Castelo | C22: 734 | D22: 840 | E22: 116.3166397 | F22: 568 | G22: 78.65220402
A23: Sul | B23: Divino de São Lourenço | C23: 331 | D23: 181 | E23: 55.50728341 | F23: 121 | G23: 37.10707897
A24: Metropolitana | B24: Domingos Martins | C24: 2134 | D24: 1800 | E24: 85.72789332 | F24: 1241 | G24: 59.10461978
A25: Sul | B25: Dores do Rio Preto | C25: 464 | D25: 242 | E25: 52.9443938 | F25: 92 | G25: 20.12762078
A26: Norte | B26: Ecoporanga | C26: 1386 | D26: 707 | E26: 51.78538729 | F26: 271 | G26: 19.84984435
A27: Metropolitana | B27: Fundão | C27: 1188 | D27: 1130 | E27: 96.70517758 | F27: 752 | G27: 64.35601198
A28: Central | B28: Governador Lindenberg | C28: 672 | D28: 626 | E28: 94.58574666 | F28: 397 | G28: 59.98489046
A29: Sul | B29: Guaçuí | C29: 1888 | D29: 798 | E29: 42.98796911 | F29: 386 | G29: 20.7936793
A30: Metropolitana | B30: Guarapari | C30: 8184 | D30: 2512 | E30: 31.21369327 | F30: 970 | G30: 12.05305831
A31: Metropolitana | B31: Ibatiba | C31: 1738 | D31: 1537 | E31: 89.94440652 | F31: 889 | G31: 52.02379791
A32: Metropolitana | B32: Ibiraçu | C32: 735 | D32: 641 | E32: 88.83242869 | F32: 407 | G32: 56.40374177
A33: Sul | B33: Ibitirama | C33: 700 | D33: 498 | E33: 72.23498126 | F33: 294 | G33: 42.64474798
A34: Sul | B34: Iconha | C34: 644 | D34: 492 | E34: 77.76606955 | F34: 304 | G34: 48.05057956
A35: Sul | B35: Irupi | C35: 933 | D35: 676 | E35: 73.63834423 | F35: 411 | G35: 44.77124183
A36: Metropolitana | B36: Itaguaçu | C36: 763 | D36: 771 | E36: 102.6973027 | F36: 631 | G36: 84.04928405
A37: Sul | B37: Itapemirim | C37: 2900 | D37: 966 | E37: 33.85810673 | F37: 454 | G37: 15.91260917
A38: Metropolitana | B38: Itarana | C38: 535 | D38: 577 | E38: 109.6784413 | F38: 420 | G38: 79.83526057
A39: Sul | B39: Iúna | C39: 1916 | D39: 1219 | E39: 64.61130742 | F39: 614 | G39: 32.54416961
A40: Norte | B40: Jaguaré | C40: 2237 | D40: 654 | E40: 29.72614674 | F40: 319 | G40: 14.49945078
A41: Sul | B41: Jerônimo Monteiro | C41: 702 | D41: 488 | E41: 70.68195534 | F41: 274 | G41: 39.68617984
A42: Metropolitana | B42: João Neiva | C42: 808 | D42: 779 | E42: 97.91557557 | F42: 501 | G42: 62.97266157
A43: Metropolitana | B43: Laranja da Terra | C43: 617 | D43: 605 | E43: 99.79381443 | F43: 466 | G43: 76.86597938
A44: Central | B44: Linhares | C44: 11616 | D44: 8519 | E44: 74.5634637 | F44: 4788 | G44: 41.90748494
A45: Central | B45: Mantenópolis | C45: 880 | D45: 882 | E45: 101.86718 | F45: 591 | G45: 68.25794033
A46: Sul | B46: Marataízes | C46: 2782 | D46: 1317 | E46: 48.12277336 | F46: 565 | G46: 20.64492555
A47: Metropolitana | B47: Marechal Floriano | C47: 1127 | D47: 1068 | E47: 96.2234402 | F47: 722 | G47: 65.04992867
A48: Central | B48: Marilândia | C48: 673 | D48: 541 | E48: 81.62957375 | F48: 312 | G48: 47.07657488
A49: Sul | B49: Mimoso do Sul | C49: 1399 | D49: 526 | E49: 38.14358231 | F49: 263 | G49: 19.07179115
A50: Norte | B50: Montanha | C50: 1316 | D50: 929 | E50: 71.80213835 | F50: 495 | G50: 38.25840526
A51: Norte | B51: Mucurici | C51: 312 | D51: 207 | E51: 67.40841248 | F51: 125 | G51: 40.70556309
A52: Sul | B52: Muniz Freire | C52: 1140 | D52: 827 | E52: 73.70766488 | F52: 620 | G52: 55.25846702
A53: Sul | B53: Muqui | C53: 844 | D53: 295 | E53: 35.59219787 | F53: 159 | G53: 19.18359139
A54: Norte | B54: Nova Venécia | C54: 3044 | D54: 1494 | E54: 49.92620234 | F54: 617 | G54: 20.61878638
A55: Central | B55: Pancas | C55: 1188 | D55: 985 | E55: 84.3442272 | F55: 635 | G55: 54.37419723
A56: Norte | B56: Pedro Canário | C56: 1545 | D56: 962 | E56: 63.26172731 | F56: 505 | G56: 33.20911881
A57: Norte | B57: Pinheiros | C57: 1757 | D57: 768 | E57: 44.42730428 | F57: 297 | G57: 17.18087158
A58: Sul | B58: Piúma | C58: 1385 | D58: 765 | E58: 56.24655352 | F58: 305 | G58: 22.4250965
A59: Norte | B59: Ponto Belo | C59: 476 | D59: 475 | E59: 101.2073864 | F59: 290 | G59: 61.78977273
A60: Sul | B60: Presidente Kennedy | C60: 939 | D60: 852 | E60: 92.44958857 | F60: 487 | G60: 52.8438376
A61: Central | B61: Rio Bananal | C61: 1246 | D61: 1180 | E61: 96.35274905 | F61: 732 | G61: 59.77136636
A62: Sul | B62: Rio Novo do Sul | C62: 647 | D62: 503 | E62: 79.01557796 | F62: 296 | G62: 46.49823275
A63: Metropolitana | B63: Santa Leopoldina | C63: 787 | D63: 584 | E63: 75.41971588 | F63: 372 | G63: 48.04132587
A64: Metropolitana | B64: Santa Maria de Jetibá | C64: 2632 | D64: 2381 | E64: 91.92162919 | F64: 1564 | G64: 60.38027217
A65: Metropolitana | B65: Santa Teresa | C65: 1292 | D65: 1087 | E65: 85.44477925 | F65: 694 | G65: 54.55260055
A66: Central | B66: São Domingos do Norte | C66: 516 | D66: 351 | E66: 69.2080184 | F66: 198 | G66: 39.04042064
A67: Central | B67: São Gabriel da Palha | C67: 1977 | D67: 1905 | E67: 97.84702307 | F67: 1103 | G67: 56.65368317
A68: Sul | B68: São José do Calçado | C68: 691 | D68: 409 | E68: 60.19869987 | F68: 185 | G68: 27.22924077
A69: Norte | B69: São Mateus | C69: 8277 | D69: 3862 | E69: 47.45686345 | F69: 1636 | G69: 20.10342532
A70: Central | B70: São Roque do Canaã | C70: 600 | D70: 581 | E70: 98.6836518 | F70: 408 | G70: 69.29936306
A71: Metropolitana | B71: Serra | C71: 36482 | D71: 20868 | E71: 58.18553587 | F71: 9914 | G71: 27.64286959
A72: Central | B72: Sooretama | C72: 2138 | D72: 1395 | E72: 66.3416954 | F72: 782 | G72: 37.18939484
A73: Sul | B73: Vargem Alta | C73: 1247 | D73: 961 | E73: 78.16715244 | F73: 598 | G73: 48.64095438
A74: Metropolitana | B74: Venda Nova do Imigrante | C74: 1375 | D74: 1044 | E74: 77.10962024 | F74: 688 | G74: 50.81553518
A75: Metropolitana | B75: Viana | C75: 4928 | D75: 4513 | E75: 93.07393531 | F75: 2558 | G75: 52.75495824
A76: Norte | B76: Vila Pavão | C76: 566 | D76: 426 | E76: 76.48114901 | F76: 274 | G76: 49.19210054
A77: Central | B77: Vila Valério | C77: 817 | D77: 728 | E77: 90.38799793 | F77: 396 | G77: 49.16709778
A78: Metropolitana | B78: Vila Velha | C78: 27506 | D78: 16771 | E78: 62.00515755 | F78: 8304 | G78: 30.70125981
A79: Metropolitana | B79: Vitória | C79: 17857 | D79: 13685 | E79: 77.93502093 | F79: 7669 | G79: 43.6743643
A80: TOTAL | C80: 246651 | D80: 160364 | E80: 66.10792563 | F80: 86702 | G80: 35.74174608
A83: Vacina Dengue (Atenuada)
A84: Método de Cálculo por COORTE
A85: Período avaliado: 2024-2025
A86: Faixa Etária: 10 a 14 anos.
A87: Fonte: https://www.vacinaeconfia.es.gov.br
A88: *Dados parciais:
A89: Dados de Janeiro/2024 a Novembro/2025 extraídos do Vacina e Confia em em 22/12/2025
A90: População proporcional extraída do Censo IBGE 2022
A93: Observações:
A94: 1. Imunobiológicos que foram recebidos parcialmente pelo estado no mês de Novembro/2025, sendo distribuídos em quantidades reduzidas às regionais e municípios:
A95: SORO ANTIRRÁBICO HUMANO; IMUNOGLOBULINA ANTIRRÁBICA HUMANA.
A96: 2. Imunobiológicos indisponíveis no mês de Novembro/2025, não sendo possível a distribuição às regionais e municípios:
A97: IMUNOGLOBULINA HUMANA ANTI-HEPATITE B - 100 UI, VACINA TETRA VIRAL, IMUNOGLOBULINA HUMANA ANTIVARICELA (ZOSTER) – 125UI
A98: 3. Imunobiológicos distribuídos através de pautas: VACINA COVID-19 PFIZER PEDIÁTRICA MENOR QUE 5 ANOS,VACINA COVID-19 PFIZER ADULTO E ADOLESCENTE A PARTIR DE 12 ANOS, VACINA COVID-19 PFIZER PEDIÁTRICA, VACINA CONTRA DENGUE 1,2,3 E 4 (ATENUADA).

Sheet cálculos1 (hidden)
C1: 0.9 | E1: 0.95
A2: Regional | B2: Município | C2: Cobertura Vacinal BCG | D2: Cobertura Vacinal Rotavírus | E2: Cobertura Vacinal Pentavalente | F2: Cobertura Vacinal Poliomielite | G2: Cobertura Vacinal Pneumo 10 | H2: Cobertura Vacinal Tríplice Viral | I2: Cobertura Vacinal Meningo C | J2: Cobertura Vacinal Febre Amarela | K2: Cobertura Vacinal Hepatite A | L2: Cobertura Varicela | M2: META 90% | N2: META 95% | O2: ATINGIRAM META | P2: PQA-VS
A3: Metropolitana | B3: Afonso Cláudio | C3: ='CV Rotina <2A - procedência'!L3 -> 0.8885542169 | D3: ='CV Rotina <2A - procedência'!T3 -> 0.936746988 | E3: ='CV Rotina <2A - procedência'!N3 -> 0.9668674699 | F3: ='CV Rotina <2A - procedência'!P3 -> 0.9578313253 | G3: ='CV Rotina <2A - procedência'!R3 -> 0.9246987952 | H3: ='CV Rotina <2A - procedência'!AB3 -> 0.9638554217 | I3: ='CV Rotina <2A - procedência'!V3 -> 0.9668674699 | J3: ='CV Rotina <2A - procedência'!X3 -> 0.8102409639 | K3: ='CV Rotina <2A - procedência'!Z3 -> 0.9608433735 | L3: ='CV Rotina <2A - procedência'!AD3 -> 1.039156627 | M3: =COUNTIF(C3:D3,">=0,9") -> 1 | N3: =COUNTIFS(E3:L3,">=0,95") -> 6 | O3: =SUM(M3:N3) -> 7 | P3: =COUNTIF(E3:H3,">=0,95") -> 3
A4: Norte | B4: Água Doce do Norte | C4: ='CV Rotina <2A - procedência'!L4 -> 0.273381295 | D4: ='CV Rotina <2A - procedência'!T4 -> 0.726618705 | E4: ='CV Rotina <2A - procedência'!N4 -> 0.8633093525 | F4: ='CV Rotina <2A - procedência'!P4 -> 0.8489208633 | G4: ='CV Rotina <2A - procedência'!R4 -> 0.7482014388 | H4: ='CV Rotina <2A - procedência'!AB4 -> 1.09352518 | I4: ='CV Rotina <2A - procedência'!V4 -> 0.8992805755 | J4: ='CV Rotina <2A - procedência'!X4 -> 0.8705035971 | K4: ='CV Rotina <2A - procedência'!Z4 -> 0.9856115108 | L4: ='CV Rotina <2A - procedência'!AD4 -> 0.6330935252 | M4: 0 | N4: 2 | O4: =SUM(M4:N4) -> 2 | P4: =COUNTIF(E4:H4,">=0,95") -> 1
A5: Central | B5: Águia Branca | C5: ='CV Rotina <2A - procedência'!L5 -> 0.4705882353 | D5: ='CV Rotina <2A - procedência'!T5 -> 0.8823529412 | E5: ='CV Rotina <2A - procedência'!N5 -> 0.8496732026 | F5: ='CV Rotina <2A - procedência'!P5 -> 0.8562091503 | G5: ='CV Rotina <2A - procedência'!R5 -> 0.8366013072 | H5: ='CV Rotina <2A - procedência'!AB5 -> 0.9019607843 | I5: ='CV Rotina <2A - procedência'!V5 -> 0.862745098 | J5: ='CV Rotina <2A - procedência'!X5 -> 0.7385620915 | K5: ='CV Rotina <2A - procedência'!Z5 -> 0.9150326797 | L5: ='CV Rotina <2A - procedência'!AD5 -> 0.9803921569 | M5: 0 | N5: 1 | O5: 1 | P5: 0
A6: Sul | B6: Alegre | C6: ='CV Rotina <2A - procedência'!L6 -> 0.4246575342 | D6: ='CV Rotina <2A - procedência'!T6 -> 1.006849315 | E6: ='CV Rotina <2A - procedência'!N6 -> 0.9897260274 | F6: ='CV Rotina <2A - procedência'!P6 -> 0.9554794521 | G6: ='CV Rotina <2A - procedência'!R6 -> 1 | H6: ='CV Rotina <2A - procedência'!AB6 -> 1.044520548 | I6: ='CV Rotina <2A - procedência'!V6 -> 1.071917808 | J6: ='CV Rotina <2A - procedência'!X6 -> 0.8698630137 | K6: ='CV Rotina <2A - procedência'!Z6 -> 1.075342466 | L6: ='CV Rotina <2A - procedência'!AD6 -> 1.140410959 | M6: 1 | N6: 7 | O6: 8 | P6: 4
A7: Sul | B7: Alfredo Chaves | C7: ='CV Rotina <2A - procedência'!L7 -> 0.4423076923 | D7: ='CV Rotina <2A - procedência'!T7 -> 0.9326923077 | E7: ='CV Rotina <2A - procedência'!N7 -> 0.9134615385 | F7: ='CV Rotina <2A - procedência'!P7 -> 0.8846153846 | G7: ='CV Rotina <2A - procedência'!R7 -> 0.7115384615 | H7: ='CV Rotina <2A - procedência'!AB7 -> 1.057692308 | I7: ='CV Rotina <2A - procedência'!V7 -> 0.8076923077 | J7: ='CV Rotina <2A - procedência'!X7 -> 0.8557692308 | K7: ='CV Rotina <2A - procedência'!Z7 -> 1.201923077 | L7: ='CV Rotina <2A - procedência'!AD7 -> 1.182692308 | M7: 1 | N7: 3 | O7: 4 | P7: 1
A8: Central | B8: Alto Rio Novo | C8: ='CV Rotina <2A - procedência'!L8 -> 0.3804347826 | D8: ='CV Rotina <2A - procedência'!T8 -> 1.065217391 | E8: ='CV Rotina <2A - procedência'!N8 -> 0.9456521739 | F8: ='CV Rotina <2A - procedência'!P8 -> 0.9456521739 | G8: ='CV Rotina <2A - procedência'!R8 -> 1 | H8: ='CV Rotina <2A - procedência'!AB8 -> 0.9782608696 | I8: ='CV Rotina <2A - procedência'!V8 -> 1 | J8: ='CV Rotina <2A - procedência'!X8 -> 0.902173913 | K8: ='CV Rotina <2A - procedência'!Z8 -> 0.9565217391 | L8: ='CV Rotina <2A - procedência'!AD8 -> 1.032608696 | M8: 1 | N8: 5 | O8: 6 | P8: 2
A9: Sul | B9: Anchieta | C9: ='CV Rotina <2A - procedência'!L9 -> 0.4350649351 | D9: ='CV Rotina <2A - procedência'!T9 -> 1.058441558 | E9: ='CV Rotina <2A - procedência'!N9 -> 1.025974026 | F9: ='CV Rotina <2A - procedência'!P9 -> 1.025974026 | G9: ='CV Rotina <2A - procedência'!R9 -> 0.9837662338 | H9: ='CV Rotina <2A - procedência'!AB9 -> 1.149350649 | I9: ='CV Rotina <2A - procedência'!V9 -> 1 | J9: ='CV Rotina <2A - procedência'!X9 -> 0.8993506494 | K9: ='CV Rotina <2A - procedência'!Z9 -> 1.051948052 | L9: ='CV Rotina <2A - procedência'!AD9 -> 1.055194805 | M9: 1 | N9: 7 | O9: 8 | P9: 4
A10: Sul | B10: Apiacá | C10: ='CV Rotina <2A - procedência'!L10 -> 0.9122807018 | D10: ='CV Rotina <2A - procedência'!T10 -> 1.157894737 | E10: ='CV Rotina <2A - procedência'!N10 -> 1.140350877 | F10: ='CV Rotina <2A - procedência'!P10 -> 1.070175439 | G10: ='CV Rotina <2A - procedência'!R10 -> 1.192982456 | H10: ='CV Rotina <2A - procedência'!AB10 -> 1.105263158 | I10: ='CV Rotina <2A - procedência'!V10 -> 1.263157895 | J10: ='CV Rotina <2A - procedência'!X10 -> 0.8947368421 | K10: ='CV Rotina <2A - procedência'!Z10 -> 1.157894737 | L10: ='CV Rotina <2A - procedência'!AD10 -> 1.245614035 | M10: 2 | N10: 7 | O10: 9 | P10: 4
A11: Metropolitana | B11: Aracruz | C11: ='CV Rotina <2A - procedência'!L11 -> 0.8601823708 | D11: ='CV Rotina <2A - procedência'!T11 -> 0.9376899696 | E11: ='CV Rotina <2A - procedência'!N11 -> 0.873100304 | F11: ='CV Rotina <2A - procedência'!P11 -> 0.8662613982 | G11: ='CV Rotina <2A - procedência'!R11 -> 0.8655015198 | H11: ='CV Rotina <2A - procedência'!AB11 -> 0.9977203647 | I11: ='CV Rotina <2A - procedência'!V11 -> 0.8784194529 | J11: ='CV Rotina <2A - procedência'!X11 -> 0.726443769 | K11: ='CV Rotina <2A - procedência'!Z11 -> 0.9779635258 | L11: ='CV Rotina <2A - procedência'!AD11 -> 0.9863221884 | M11: 1 | N11: 3 | O11: 4 | P11: 1
A12: Sul | B12: Atilio Vivacqua | C12: ='CV Rotina <2A - procedência'!L12 -> 0.09923664122 | D12: ='CV Rotina <2A - procedência'!T12 -> 1.083969466 | E12: ='CV Rotina <2A - procedência'!N12 -> 1.06870229 | F12: ='CV Rotina <2A - procedência'!P12 -> 1.053435115 | G12: ='CV Rotina <2A - procedência'!R12 -> 1.06870229 | H12: ='CV Rotina <2A - procedência'!AB12 -> 1.106870229 | I12: ='CV Rotina <2A - procedência'!V12 -> 1.13740458 | J12: ='CV Rotina <2A - procedência'!X12 -> 0.9770992366 | K12: ='CV Rotina <2A - procedência'!Z12 -> 1.022900763 | L12: ='CV Rotina <2A - procedência'!AD12 -> 0.9923664122 | M12: 1 | N12: 8 | O12: 9 | P12: 4
A13: Central | B13: Baixo Guandu | C13: ='CV Rotina <2A - procedência'!L13 -> 0.4783950617 | D13: ='CV Rotina <2A - procedência'!T13 -> 1.012345679 | E13: ='CV Rotina <2A - procedência'!N13 -> 0.9814814815 | F13: ='CV Rotina <2A - procedência'!P13 -> 0.9814814815 | G13: ='CV Rotina <2A - procedência'!R13 -> 1.043209877 | H13: ='CV Rotina <2A - procedência'!AB13 -> 1.046296296 | I13: ='CV Rotina <2A - procedência'!V13 -> 1.015432099 | J13: ='CV Rotina <2A - procedência'!X13 -> 0.8395061728 | K13: ='CV Rotina <2A - procedência'!Z13 -> 1.092592593 | L13: ='CV Rotina <2A - procedência'!AD13 -> 1.055555556 | M13: 1 | N13: 7 | O13: 8 | P13: 4
A14: Norte | B14: Barra de São Francisco | C14: ='CV Rotina <2A - procedência'!L14 -> 0.7052631579 | D14: ='CV Rotina <2A - procedência'!T14 -> 0.8807017544 | E14: ='CV Rotina <2A - procedência'!N14 -> 0.8561403509 | F14: ='CV Rotina <2A - procedência'!P14 -> 0.8368421053 | G14: ='CV Rotina <2A - procedência'!R14 -> 0.8561403509 | H14: ='CV Rotina <2A - procedência'!AB14 -> 0.898245614 | I14: ='CV Rotina <2A - procedência'!V14 -> 0.8526315789 | J14: ='CV Rotina <2A - procedência'!X14 -> 0.7052631579 | K14: ='CV Rotina <2A - procedência'!Z14 -> 0.801754386 | L14: ='CV Rotina <2A - procedência'!AD14 -> 0.8736842105 | M14: 0 | N14: 0 | O14: 0 | P14: 0
A15: Norte | B15: Boa Esperança | C15: ='CV Rotina <2A - procedência'!L15 -> 0.3821989529 | D15: ='CV Rotina <2A - procedência'!T15 -> 1.052356021 | E15: ='CV Rotina <2A - procedência'!N15 -> 0.9633507853 | F15: ='CV Rotina <2A - procedência'!P15 -> 0.9528795812 | G15: ='CV Rotina <2A - procedência'!R15 -> 1.036649215 | H15: ='CV Rotina <2A - procedência'!AB15 -> 0.9685863874 | I15: ='CV Rotina <2A - procedência'!V15 -> 0.9476439791 | J15: ='CV Rotina <2A - procedência'!X15 -> 0.8167539267 | K15: ='CV Rotina <2A - procedência'!Z15 -> 0.8952879581 | L15: ='CV Rotina <2A - procedência'!AD15 -> 0.8638743455 | M15: 1 | N15: 4 | O15: 5 | P15: 4
A16: Sul | B16: Bom Jesus do Norte | C16: ='CV Rotina <2A - procedência'!L16 -> 1.253731343 | D16: ='CV Rotina <2A - procedência'!T16 -> 1.52238806 | E16: ='CV Rotina <2A - procedência'!N16 -> 1.462686567 | F16: ='CV Rotina <2A - procedência'!P16 -> 1.462686567 | G16: ='CV Rotina <2A - procedência'!R16 -> 1.462686567 | H16: ='CV Rotina <2A - procedência'!AB16 -> 1.552238806 | I16: ='CV Rotina <2A - procedência'!V16 -> 1.388059701 | J16: ='CV Rotina <2A - procedência'!X16 -> 1.253731343 | K16: ='CV Rotina <2A - procedência'!Z16 -> 1.432835821 | L16: ='CV Rotina <2A - procedência'!AD16 -> 1.328358209 | M16: 2 | N16: 8 | O16: 10 | P16: 4
A17: Metropolitana | B17: Brejetuba | C17: ='CV Rotina <2A - procedência'!L17 -> 0.6009389671 | D17: ='CV Rotina <2A - procedência'!T17 -> 0.9154929577 | E17: ='CV Rotina <2A - procedência'!N17 -> 0.8309859155 | F17: ='CV Rotina <2A - procedência'!P17 -> 0.8732394366 | G17: ='CV Rotina <2A - procedência'!R17 -> 0.8403755869 | H17: ='CV Rotina <2A - procedência'!AB17 -> 0.9389671362 | I17: ='CV Rotina <2A - procedência'!V17 -> 0.882629108 | J17: ='CV Rotina <2A - procedência'!X17 -> 0.8028169014 | K17: ='CV Rotina <2A - procedência'!Z17 -> 0.8685446009 | L17: ='CV Rotina <2A - procedência'!AD17 -> 1.009389671 | M17: 1 | N17: 1 | O17: 2 | P17: 0
A18: Sul | B18: Cachoeiro de Itapemirim | C18: ='CV Rotina <2A - procedência'!L18 -> 2.169343736 | D18: ='CV Rotina <2A - procedência'!T18 -> 0.9885268472 | E18: ='CV Rotina <2A - procedência'!N18 -> 0.9279486003 | F18: ='CV Rotina <2A - procedência'!P18 -> 0.9210647086 | G18: ='CV Rotina <2A - procedência'!R18 -> 0.9619091326 | H18: ='CV Rotina <2A - procedência'!AB18 -> 1.014685636 | I18: ='CV Rotina <2A - procedência'!V18 -> 0.9417163837 | J18: ='CV Rotina <2A - procedência'!X18 -> 0.6764570904 | K18: ='CV Rotina <2A - procedência'!Z18 -> 0.9224414869 | L18: ='CV Rotina <2A - procedência'!AD18 -> 0.9008719596 | M18: 2 | N18: 2 | O18: 4 | P18: 2
A19: Metropolitana | B19: Cariacica | C19: ='CV Rotina <2A - procedência'!L19 -> 0.52 | D19: ='CV Rotina <2A - procedência'!T19 -> 0.9024 | E19: ='CV Rotina <2A - procedência'!N19 -> 0.8413714286 | F19: ='CV Rotina <2A - procedência'!P19 -> 0.8333714286 | G19: ='CV Rotina <2A - procedência'!R19 -> 0.7979428571 | H19: ='CV Rotina <2A - procedência'!AB19 -> 0.9549714286 | I19: ='CV Rotina <2A - procedência'!V19 -> 0.8724571429 | J19: ='CV Rotina <2A - procedência'!X19 -> 0.6642285714 | K19: ='CV Rotina <2A - procedência'!Z19 -> 0.9033142857 | L19: ='CV Rotina <2A - procedência'!AD19 -> 0.7796571429 | M19: 1 | N19: 1 | O19: 2 | P19: 1
A20: Sul | B20: Castelo | C20: ='CV Rotina <2A - procedência'!L20 -> 0.6988304094 | D20: ='CV Rotina <2A - procedência'!T20 -> 1.131578947 | E20: ='CV Rotina <2A - procedência'!N20 -> 1.116959064 | F20: ='CV Rotina <2A - procedência'!P20 -> 1.099415205 | G20: ='CV Rotina <2A - procedência'!R20 -> 1.046783626 | H20: ='CV Rotina <2A - procedência'!AB20 -> 1.157894737 | I20: ='CV Rotina <2A - procedência'!V20 -> 1.143274854 | J20: ='CV Rotina <2A - procedência'!X20 -> 0.9561403509 | K20: ='CV Rotina <2A - procedência'!Z20 -> 1.213450292 | L20: ='CV Rotina <2A - procedência'!AD20 -> 1.046783626 | M20: 1 | N20: 8 | O20: 9 | P20: 4
A21: Central | B21: Colatina | C21: ='CV Rotina <2A - procedência'!L21 -> 2.299705449 | D21: ='CV Rotina <2A - procedência'!T21 -> 0.9543446244 | E21: ='CV Rotina <2A - procedência'!N21 -> 0.9241531664 | F21: ='CV Rotina <2A - procedência'!P21 -> 0.9219440353 | G21: ='CV Rotina <2A - procedência'!R21 -> 0.9226804124 | H21: ='CV Rotina <2A - procedência'!AB21 -> 0.971281296 | I21: ='CV Rotina <2A - procedência'!V21 -> 0.971281296 | J21: ='CV Rotina <2A - procedência'!X21 -> 0.7304860088 | K21: ='CV Rotina <2A - procedência'!Z21 -> 0.8998527246 | L21: ='CV Rotina <2A - procedência'!AD21 -> 0.8409425626 | M21: 2 | N21: 2 | O21: 4 | P21: 1
A22: Norte | B22: Conceição da Barra | C22: ='CV Rotina <2A - procedência'!L22 -> 0.07339449541 | D22: ='CV Rotina <2A - procedência'!T22 -> 1.009174312 | E22: ='CV Rotina <2A - procedência'!N22 -> 0.9602446483 | F22: ='CV Rotina <2A - procedência'!P22 -> 0.9694189602 | G22: ='CV Rotina <2A - procedência'!R22 -> 0.9633027523 | H22: ='CV Rotina <2A - procedência'!AB22 -> 1.159021407 | I22: ='CV Rotina <2A - procedência'!V22 -> 0.9724770642 | J22: ='CV Rotina <2A - procedência'!X22 -> 0.8899082569 | K22: ='CV Rotina <2A - procedência'!Z22 -> 1.162079511 | L22: ='CV Rotina <2A - procedência'!AD22 -> 1.137614679 | M22: 1 | N22: 7 | O22: 8 | P22: 4
A23: Metropolitana | B23: Conceição do Castelo | C23: ='CV Rotina <2A - procedência'!L23 -> 0.1754385965 | D23: ='CV Rotina <2A - procedência'!T23 -> 0.8771929825 | E23: ='CV Rotina <2A - procedência'!N23 -> 0.8187134503 | F23: ='CV Rotina <2A - procedência'!P23 -> 0.7660818713 | G23: ='CV Rotina <2A - procedência'!R23 -> 0.5438596491 | H23: ='CV Rotina <2A - procedência'!AB23 -> 0.8362573099 | I23: ='CV Rotina <2A - procedência'!V23 -> 0.8070175439 | J23: ='CV Rotina <2A - procedência'!X23 -> 0.7192982456 | K23: ='CV Rotina <2A - procedência'!Z23 -> 0.7543859649 | L23: ='CV Rotina <2A - procedência'!AD23 -> 0.8830409357 | M23: 0 | N23: 0 | O23: 0 | P23: 0
A24: Sul | B24: Divino de São Lourenço | C24: ='CV Rotina <2A - procedência'!L24 -> 0.8709677419 | D24: ='CV Rotina <2A - procedência'!T24 -> 0.7258064516 | E24: ='CV Rotina <2A - procedência'!N24 -> 0.7258064516 | F24: ='CV Rotina <2A - procedência'!P24 -> 0.7258064516 | G24: ='CV Rotina <2A - procedência'!R24 -> 0.7096774194 | H24: ='CV Rotina <2A - procedência'!AB24 -> 1.096774194 | I24: ='CV Rotina <2A - procedência'!V24 -> 0.7419354839 | J24: ='CV Rotina <2A - procedência'!X24 -> 0.8709677419 | K24: ='CV Rotina <2A - procedência'!Z24 -> 1.064516129 | L24: ='CV Rotina <2A - procedência'!AD24 -> 1.161290323 | M24: 0 | N24: 3 | O24: 3 | P24: 1
A25: Metropolitana | B25: Domingos Martins | C25: ='CV Rotina <2A - procedência'!L25 -> 0.1518324607 | D25: ='CV Rotina <2A - procedência'!T25 -> 1.002617801 | E25: ='CV Rotina <2A - procedência'!N25 -> 1.031413613 | F25: ='CV Rotina <2A - procedência'!P25 -> 1.020942408 | G25: ='CV Rotina <2A - procedência'!R25 -> 0.9031413613 | H25: ='CV Rotina <2A - procedência'!AB25 -> 1.002617801 | I25: ='CV Rotina <2A - procedência'!V25 -> 0.9816753927 | J25: ='CV Rotina <2A - procedência'!X25 -> 0.9057591623 | K25: ='CV Rotina <2A - procedência'!Z25 -> 1.010471204 | L25: ='CV Rotina <2A - procedência'!AD25 -> 1.04973822 | M25: 1 | N25: 6 | O25: 7 | P25: 3
A26: Sul | B26: Dores do Rio Preto | C26: ='CV Rotina <2A - procedência'!L26 -> 0.6565656566 | D26: ='CV Rotina <2A - procedência'!T26 -> 1.131313131 | E26: ='CV Rotina <2A - procedência'!N26 -> 1.111111111 | F26: ='CV Rotina <2A - procedência'!P26 -> 1.111111111 | G26: ='CV Rotina <2A - procedência'!R26 -> 0.7474747475 | H26: ='CV Rotina <2A - procedência'!AB26 -> 1.070707071 | I26: ='CV Rotina <2A - procedência'!V26 -> 1.070707071 | J26: ='CV Rotina <2A - procedência'!X26 -> 0.8282828283 | K26: ='CV Rotina <2A - procedência'!Z26 -> 1.01010101 | L26: ='CV Rotina <2A - procedência'!AD26 -> 0.9393939394 | M26: 1 | N26: 5 | O26: 6 | P26: 3
A27: Norte | B27: Ecoporanga | C27: ='CV Rotina <2A - procedência'!L27 -> 0.330472103 | D27: ='CV Rotina <2A - procedência'!T27 -> 1.004291845 | E27: ='CV Rotina <2A - procedência'!N27 -> 0.9785407725 | F27: ='CV Rotina <2A - procedência'!P27 -> 0.9613733906 | G27: ='CV Rotina <2A - procedência'!R27 -> 0.9699570815 | H27: ='CV Rotina <2A - procedência'!AB27 -> 0.9527896996 | I27: ='CV Rotina <2A - procedência'!V27 -> 0.9871244635 | J27: ='CV Rotina <2A - procedência'!X27 -> 0.7982832618 | K27: ='CV Rotina <2A - procedência'!Z27 -> 0.9442060086 | L27: ='CV Rotina <2A - procedência'!AD27 -> 0.8884120172 | M27: 1 | N27: 5 | O27: 6 | P27: 4
A28: Metropolitana | B28: Fundão | C28: ='CV Rotina <2A - procedência'!L28 -> 0.1549295775 | D28: ='CV Rotina <2A - procedência'!T28 -> 1.037558685 | E28: ='CV Rotina <2A - procedência'!N28 -> 1.03286385 | F28: ='CV Rotina <2A - procedência'!P28 -> 1.03286385 | G28: ='CV Rotina <2A - procedência'!R28 -> 0.9154929577 | H28: ='CV Rotina <2A - procedência'!AB28 -> 0.9953051643 | I28: ='CV Rotina <2A - procedência'!V28 -> 1.014084507 | J28: ='CV Rotina <2A - procedência'!X28 -> 0.7089201878 | K28: ='CV Rotina <2A - procedência'!Z28 -> 0.9342723005 | L28: ='CV Rotina <2A - procedência'!AD28 -> 0.9342723005 | M28: 1 | N28: 4 | O28: 5 | P28: 3
A29: Central | B29: Governador Lindenberg | C29: ='CV Rotina <2A - procedência'!L29 -> 0.3384615385 | D29: ='CV Rotina <2A - procedência'!T29 -> 0.7846153846 | E29: ='CV Rotina <2A - procedência'!N29 -> 0.6846153846 | F29: ='CV Rotina <2A - procedência'!P29 -> 0.6923076923 | G29: ='CV Rotina <2A - procedência'!R29 -> 0.6692307692 | H29: ='CV Rotina <2A - procedência'!AB29 -> 0.9307692308 | I29: ='CV Rotina <2A - procedência'!V29 -> 0.7384615385 | J29: ='CV Rotina <2A - procedência'!X29 -> 0.6461538462 | K29: ='CV Rotina <2A - procedência'!Z29 -> 0.8692307692 | L29: ='CV Rotina <2A - procedência'!AD29 -> 0.8153846154 | M29: 0 | N29: 0 | O29: 0 | P29: 0
A30: Sul | B30: Guaçuí | C30: ='CV Rotina <2A - procedência'!L30 -> 0.697740113 | D30: ='CV Rotina <2A - procedência'!T30 -> 0.8615819209 | E30: ='CV Rotina <2A - procedência'!N30 -> 0.8079096045 | F30: ='CV Rotina <2A - procedência'!P30 -> 0.7994350282 | G30: ='CV Rotina <2A - procedência'!R30 -> 0.8361581921 | H30: ='CV Rotina <2A - procedência'!AB30 -> 0.9096045198 | I30: ='CV Rotina <2A - procedência'!V30 -> 0.8389830508 | J30: ='CV Rotina <2A - procedência'!X30 -> 0.7118644068 | K30: ='CV Rotina <2A - procedência'!Z30 -> 0.8474576271 | L30: ='CV Rotina <2A - procedência'!AD30 -> 0.8163841808 | M30: 0 | N30: 0 | O30: 0 | P30: 0
A31: Metropolitana | B31: Guarapari | C31: ='CV Rotina <2A - procedência'!L31 -> 0.8433813893 | D31: ='CV Rotina <2A - procedência'!T31 -> 0.9095674967 | E31: ='CV Rotina <2A - procedência'!N31 -> 0.8152031455 | F31: ='CV Rotina <2A - procedência'!P31 -> 0.8073394495 | G31: ='CV Rotina <2A - procedência'!R31 -> 0.874836173 | H31: ='CV Rotina <2A - procedência'!AB31 -> 0.8899082569 | I31: ='CV Rotina <2A - procedência'!V31 -> 0.870904325 | J31: ='CV Rotina <2A - procedência'!X31 -> 0.5812581913 | K31: ='CV Rotina <2A - procedência'!Z31 -> 0.8368283093 | L31: ='CV Rotina <2A - procedência'!AD31 -> 0.7391874181 | M31: 1 | N31: 0 | O31: 1 | P31: 0
A32: Metropolitana | B32: Ibatiba | C32: ='CV Rotina <2A - procedência'!L32 -> 0.7573333333 | D32: ='CV Rotina <2A - procedência'!T32 -> 0.9626666667 | E32: ='CV Rotina <2A - procedência'!N32 -> 0.96 | F32: ='CV Rotina <2A - procedência'!P32 -> 0.9466666667 | G32: ='CV Rotina <2A - procedência'!R32 -> 0.8906666667 | H32: ='CV Rotina <2A - procedência'!AB32 -> 0.9706666667 | I32: ='CV Rotina <2A - procedência'!V32 -> 0.968 | J32: ='CV Rotina <2A - procedência'!X32 -> 0.8266666667 | K32: ='CV Rotina <2A - procedência'!Z32 -> 1.008 | L32: ='CV Rotina <2A - procedência'!AD32 -> 0.936 | M32: 1 | N32: 4 | O32: 5 | P32: 2
A33: Metropolitana | B33: Ibiraçu | C33: ='CV Rotina <2A - procedência'!L33 -> 0.2357723577 | D33: ='CV Rotina <2A - procedência'!T33 -> 0.837398374 | E33: ='CV Rotina <2A - procedência'!N33 -> 0.8861788618 | F33: ='CV Rotina <2A - procedência'!P33 -> 0.8699186992 | G33: ='CV Rotina <2A - procedência'!R33 -> 0.8536585366 | H33: ='CV Rotina <2A - procedência'!AB33 -> 1.170731707 | I33: ='CV Rotina <2A - procedência'!V33 -> 0.9105691057 | J33: ='CV Rotina <2A - procedência'!X33 -> 0.8211382114 | K33: ='CV Rotina <2A - procedência'!Z33 -> 1.024390244 | L33: ='CV Rotina <2A - procedência'!AD33 -> 1.032520325 | M33: 0 | N33: 3 | O33: 3 | P33: 1
A34: Sul | B34: Ibitirama | C34: ='CV Rotina <2A - procedência'!L34 -> 0.7230769231 | D34: ='CV Rotina <2A - procedência'!T34 -> 1.146153846 | E34: ='CV Rotina <2A - procedência'!N34 -> 1.061538462 | F34: ='CV Rotina <2A - procedência'!P34 -> 1.038461538 | G34: ='CV Rotina <2A - procedência'!R34 -> 1.092307692 | H34: ='CV Rotina <2A - procedência'!AB34 -> 1.023076923 | I34: ='CV Rotina <2A - procedência'!V34 -> 1.084615385 | J34: ='CV Rotina <2A - procedência'!X34 -> 0.8692307692 | K34: ='CV Rotina <2A - procedência'!Z34 -> 0.8923076923 | L34: ='CV Rotina <2A - procedência'!AD34 -> 0.9384615385 | M34: 1 | N34: 5 | O34: 6 | P34: 4
